Workbook

Sheet Summary
B2: Sources & Uses | I2: Operational Data | P2: Equity | V2: Senior Debt | AC2: Integrity
C4: Uses | J4: Project | Q4: Key Metrics | W4: Sizing | AD4: Sources = Uses | AH4: =Fund!L35 -> FALSE
C5: =Fund!B19 -> CAPEX | D5: $m | E5: =Fund!P19 -> 253 | F5: =E5/E$9 -> 0.8536672507 | J5: Loaded Scenario | L5: switch | M5: =Ops!E5 -> Base Case | Q5: WACC | R5: % | S5: =Valuation!L88 -> 0.05124107766 | W5: Max Gearing | Y5: % | Z5: =InputC!J248 -> 0.7 | AD5: Balance Sheet | AH5: =BS!L52 -> FALSE
C6: =Fund!B20 -> Interest During Construction | D6: $m | E6: =Fund!P20 -> 4.352533168 | F6: =E6/E$9 -> 0.01468622539 | J6: Loaded Sensitivity | L6: switch | M6: =Ops!E6 -> Base Case | Q6: Cost of Equity | R6: % | S6: =Valuation!L103 -> 0.12 | W6: Min DSCR | Y6: x | Z6: =InputC!J249 -> 1.25 | AD6: Macro | AH6: =Macro_Check -> FALSE
C7: =Fund!B21 -> Fees | D7: $m | E7: =Fund!P21 -> 39.0158701 | F7: =E7/E$9 -> 0.131646524 | J7: Number of turbines | L7: # | M7: =InputT!Q49 -> 6 | Q7: Equity Contribution | R7: % | S7: =1-InputC!J248 -> 0.3 | W7: Commitment | Y7: $m | Z7: =Fund!L50 -> 536.1297683 | AD7: S Curve Fully Allocated | AH7: =InputT!L43 -> FALSE
C8: =Fund!B22 -> DSRA Pre-Funding | D8: $m | E8: =Fund!P22 -> 0 | F8: =E8/E$9 -> 0 | J8: Nameplate capacity | L8: MW | M8: =InputC!J113*InputT!Q49 -> 36 | Q8: Equity Bridge Loan Active | R8: switch | S8: =InputC!J284 -> FALSE | AD8: Full Amortisation | AH8: =AND(InputT!L76:L82) -> TRUE
C9: Total Uses | D9: $m | E9: =SUM(E5:E8) -> 296.3684033 | F9: =SUM(F5:F8) -> 1 | J9: Gross Generation - P90 | L9: GWh p.a. | M9: =InputC!J110 -> 1845956.943 | W9: Repayment | AD9: Fully Depreciated | AH9: ='T&D'!L56 -> TRUE
Q10: Returns | W10: Tenor | Y10: years | Z10: =InputC!J293 -> 22 | AD10: Aggergate | AH10: =AND(AH4:AH9) -> FALSE
C11: Sources | J11: Dates | Q11: Project | R11: % | S11: =Valuation!L27 -> 0.169063729 | W11: Legal Maturity | Y11: date | Z11: =InputC!L294 -> 2044-07-01
C12: =Fund!B28 -> Net Pre-Completion Cash Flow | D12: $m | E12: =Fund!P28 -> 0.15742898 | F12: =E12/E$17 -> 0.0001776296786 | J12: Construction - Start Date | L12: date | M12: =InputC!L27 -> 2021-01-01 | Q12: Equity | R12: % | S12: =Valuation!L40 -> 5.190443277 | W12: Weighted Cost of Debt | Y12: % | Z12: =Valuation!L79 -> 0.02177296809
C13: =Fund!B29 -> Mandated Minimum Equity | D13: $m | E13: =Fund!P29 -> 2 | F13: =E13/E$17 -> 0.002256632528 | J13: Operation - Start Date | L13: date | M13: =InputC!L37 -> 2022-07-01 | W13: Cash Sweep | Y13: % | Z13: =Debt!L56 -> 0 | AC13: Covenants
C14: =Fund!B30 -> Share Capital | D14: $m | E14: =Fund!P30 -> 347.9891348 | F14: =E14/E$17 -> 0.3926418005 | J14: PPA Tenor | L14: years | M14: =InputC!L38 -> 35 | Q14: Valuation
C15: =Fund!B31 -> Senior Debt | D15: $m | E15: =Fund!P31 -> 415.7531053 | F15: =E15/E$17 -> 0.4691009906 | J15: Operation - End Date | L15: date | M15: =InputC!L39 -> 2057-06-30 | Q15: Project | R15: $m | S15: =Valuation!L97 -> 228.5917681 | W15: Ratios | AD15: DSCR | AH15: =Ratio!J31 -> TRUE
C16: =Fund!B32 -> Standby Equity | D16: $m | E16: =Fund!P32 -> 120.376663 | F16: =E16/E$17 -> 0.1358229467 | J16: Start of CFD | L16: date | M16: =InputC!L44 -> 2022-07-01 | Q16: Equity | R16: $m | S16: =Valuation!L110 -> 77.7809129 | W16: Min DSCR | Y16: x | Z16: =Ratio!J26 -> 1.285310114 | AD16: LLCR | AH16: =Ratio!J86 -> TRUE
C17: Total Sources | D17: $m | E17: =SUM(E12:E16) -> 886.2763321 | F17: =SUM(F12:F16) -> 1 | J17: End of CFD | L17: date | M17: =InputC!J46 -> 2046-06-30 | W17: Min LLCR | Y17: x | Z17: =Ratio!J77 -> 2.807969045 | AD17: PLCR | AH17: =Ratio!J120 -> TRUE
W18: Min PLCR | Y18: x | Z18: =Ratio!J111 -> 3.185857379 | AD18: Aggregate | AH18: =AND(AH15:AH17) -> TRUE
C52: ADDITIONAL GRAPHS

Sheet InputC
B2: IRR | J2: 1 | L2: 1 | M2: =L2+1 -> 2 | N2: 3 | O2: 4 | P2: 5
B3: Project | E3: =Val!$L$27 -> 0.169063729 | J3: =INDEX(L3:P7,,J2) -> Base Case | L3: Base Case | M3: Spare | N3: Spare | O3: Spare | P3: Spare
B4: Equity | E4: =Val!$L$40 -> 5.190443277
A9: General
A10: Timing
B12: ="" ->  | C12: General
C14: Financial Model Start Date | H14: date | J14: =IF(INDEX(L14:P14,0,$J$2)<>"",INDEX(L14:P14,0,$J$2),L14) -> 2021-01-01 | L14: 2021-01-01
C15: Monthly Period Length Input | H15: months | J15: =IF(INDEX(L15:P15,0,$J$2)<>"",INDEX(L15:P15,0,$J$2),L15) -> 1 | L15: 1
C16: Quarterly Period Length Input | H16: months | J16: =IF(INDEX(L16:P16,0,$J$2)<>"",INDEX(L16:P16,0,$J$2),L16) -> 3 | L16: 3
C17: Annual Period Length Input | H17: months | J17: 12 | L17: 12
C18: Number of period per year | H18: # | J18: 4 | L18: 4
C19: Days per year | H19: days | J19: 365 | L19: 365
C20: Days per month (for checks) | H20: days | J20: 30.44 | L20: 30.44
C21: Months in a semester | H21: months | J21: 6 | L21: 6
C22: Months in year | H22: months | J22: 12 | L22: 12
C23: Thousand | H23: unit | J23: 1000 | L23: 1000
B25: ="" ->  | C25: Development
C27: Construction start date | H27: date | J27: =IF(INDEX(L27:P27,0,$J$2)<>"",INDEX(L27:P27,0,$J$2),L27) -> 2021-01-01 | L27: =L14 -> 2021-01-01
C28: Construction period | H28: months | J28: =IF(INDEX(L28:P28,0,$J$2)<>"",INDEX(L28:P28,0,$J$2),L28) -> 18 | L28: 18
C29: Scheduled construction end date | H29: date | J29: =IF(INDEX(L29:P29,0,$J$2)<>"",INDEX(L29:P29,0,$J$2),L29) -> 2022-07-01 | L29: =EDATE(L27,L28) -> 2022-07-01
C30: Construction delay | H30: months | J30: =IF(INDEX(L30:P30,0,$J$2)<>"",INDEX(L30:P30,0,$J$2),L30) -> 0 | L30: =Sens!F16 -> 0
C31: Actual Construction end date | H31: date | J31: =IF(INDEX(L31:P31,0,$J$2)<>"",INDEX(L31:P31,0,$J$2),L31) -> 2022-06-30 | L31: =EDATE(L29,L30)-1 -> 2022-06-30
B33: ="" ->  | C33: Operations
C35: SPCOD | H35: date | J35: =IF(INDEX(L35:P35,0,$J$2)<>"",INDEX(L35:P35,0,$J$2),L35) -> 2022-07-01 | L35: =L31+1 -> 2022-07-01
C36: Delay In Operational Start Date | H36: months | J36: 0 | L36: 0
C37: COD | H37: date | J37: 2022-07-01 | L37: =EDATE(L35,L36) -> 2022-07-01
C38: PPA Tenor | H38: years | J38: 35 | L38: 35
C39: End of Operations | H39: date | J39: 2057-06-30 | L39: =EDATE(L37,L38*12)-1 -> 2057-06-30
C40: Interest Periodicity | H40: months | J40: 3 | L40: 3
B42: ="" ->  | C42: Contract for Difference
C44: Start | H44: date | J44: =IF(INDEX(L44:P44,0,$J$2)<>"",INDEX(L44:P44,0,$J$2),L44) -> 2022-07-01 | L44: =L37 -> 2022-07-01
C45: Tenor | H45: years | J45: 24 | L45: 24
C46: End | H46: date | J46: 2046-06-30 | L46: =EDATE(L44,L45*12)-1 -> 2046-06-30
A48: Production & Revenue
C50: Nameplate Capacity | H50: MW | J50: =IF(INDEX(L50:P50,0,$J$2)<>"",INDEX(L50:P50,0,$J$2),L50) -> 180 | L50: 180
C52: Energy Yield
C53: P50 | H53: MWh p.a | J53: =IF(INDEX(L52:P52,0,$J$2)<>"",INDEX(L52:P52,0,$J$2),L53) -> 600000 | L53: 600000
C54: P90 | H54: MWh p.a | J54: =IF(INDEX(L53:P53,0,$J$2)<>"",INDEX(L53:P53,0,$J$2),L54) -> 600000 | L54: 530000
C56: Selected Energy Yield | H56: switch | J56: =IF(INDEX(L55:P55,0,$J$2)<>"",INDEX(L55:P55,0,$J$2),L56) -> P50 | L56: P50
C58: PPA
C59: PPA Volumes | H59: % | J59: =IF(INDEX(L57:P57,0,$J$2)<>"",INDEX(L57:P57,0,$J$2),L59) -> 0.5 | L59: 0.5
C60: PPA Price | H60: EUR / MWh | J60: =IF(INDEX(L58:P58,0,$J$2)<>"",INDEX(L58:P58,0,$J$2),L60) -> 35 | L60: 35
C62: CAPEX | H62: EURm / MW | J62: =IF(INDEX(L60:P60,0,$J$2)<>"",INDEX(L60:P60,0,$J$2),L62) -> 35 | L62: 1.1
A77: CAPEX & Depreciation
A78: CAPEX
B80: ="" ->  | C80: CAPEX
C82: BoP Contract | H82: $m | J82: =IF(INDEX(L82:P82,0,$J$2)<>"",INDEX(L82:P82,0,$J$2),L82) -> 230 | L82: 230
C83: TSA | H83: $m | J83: 335.712648 | L83: 335.712648
C84: Cons Insurance | H84: $m | J84: 6.027915883 | L84: 6.027915883
C85: Transaction Costs | H85: $m | J85: 0 | L85: 0
C86: Project Company Costs | H86: $m | J86: 50.84632337 | L86: 50.84632337
C87: Capex linked to D3 move | H87: $m | J87: 4.35526275 | L87: 4.35526275
C88: Others - TSA | H88: $m | J88: 15.89934276 | L88: 15.89934276
C89: Company Value | H89: $m | J89: 0 | L89: 0
C90: Directors Fee | H90: $m | J90: 0.7402685848 | L90: 0.7402685848
C91: Advisory Fee | H91: $m | J91: 1.552411152 | L91: 1.552411152
C92: [Spare] | H92: $m | J92: 0 | L92: 0
C93: [Spare] | H93: $m | J93: 0 | L93: 0
C94: [Spare] | H94: $m | J94: 0 | L94: 0
C95: [Spare] | H95: $m | J95: 0 | L95: 0
C96: [Spare] | H96: $m | J96: 0 | L96: 0
C97: [Spare] | H97: $m | J97: 0 | L97: 0
C98: [Spare] | H98: $m | J98: 0 | L98: 0
C99: [Spare] | H99: $m | J99: 0 | L99: 0
J100: 645.1341725 | L100: =SUM(L82:L99) -> 645.1341725
B102: ="" ->  | C102: Contingency | H102: $m | J102: =IF(INDEX(L102:P102,0,$J$2)<>"",INDEX(L102:P102,0,$J$2),L102) -> 0.1 | L102: 0.1
A104: Operations
A105: Technical
B107: ="" ->  | C107: Gross Energy Yield
C109: P50 | H109: MWh p.a. | J109: =IF(INDEX(L109:P109,0,$J$2)<>"",INDEX(L109:P109,0,$J$2),L109) -> 2077900 | L109: 2077900
C110: P90 | H110: MWh p.a. | J110: 1845956.943 | L110: 1845956.943
C111: P99 | H111: MWh p.a. | J111: 1656863.304 | L111: 1656863.304
BB112: 31.81279728
C113: Capacity per Turbine | H113: MW | J113: =IF(INDEX(L113:P113,0,$J$2)<>"",INDEX(L113:P113,0,$J$2),L113) -> 6 | L113: 6
B115: ="" ->  | C115: Yield Scenario
C117: Construction | H117: switch | J117: =IF(INDEX(L117:P117,0,$J$2)<>"",INDEX(L117:P117,0,$J$2),L117) -> P50 | L117: P50
C118: Operation | H118: switch | J118: P99 | L118: P99
B120: ="" ->  | C120: Availability
C122: Construction | H122: % | J122: =IF(INDEX(L122:P122,0,$J$2)<>"",INDEX(L122:P122,0,$J$2),L122) -> 0.9313 | L122: 0.9313
C123: Operation | H123: % | J123: 0.95 | L123: 0.95
B125: ="" ->  | C125: Loss Factors
C127: Internal wake losses | H127: % | J127: =IF(INDEX(L127:P127,0,$J$2)<>"",INDEX(L127:P127,0,$J$2),L127) -> 0.8934 | L127: 0.8934
C129: External wake losses - Construction | H129: % | J129: =IF(INDEX(L129:P129,0,$J$2)<>"",INDEX(L129:P129,0,$J$2),L129) -> 0.9449 | L129: 0.9449
C130: External wake losses - Operation | H130: % | J130: =IF(INDEX(L130:P130,0,$J$2)<>"",INDEX(L130:P130,0,$J$2),L130) -> 0.9349 | L130: 0.9349
C132: Electrical Transmission Efficiency | H132: % | J132: =IF(INDEX(L132:P132,0,$J$2)<>"",INDEX(L132:P132,0,$J$2),L132) -> 0.98 | L132: 0.98
C133: Substation Availability (incl. SubSea cable) | H133: % | J133: 0.99 | L133: 0.99
C134: Grid Availability | H134: % | J134: 1 | L134: 1
C135: WTG Accessibility | H135: % | J135: 1 | L135: 1
C136: Power Curve Performance | H136: % | J136: 1 | L136: 1
C137: Icing Effect | H137: % | J137: 1 | L137: 1
C138: Blade Contamination | H138: % | J138: 0.995 | L138: 0.995
C139: Wind Hysteresis | H139: % | J139: 0.9925 | L139: 0.9925
C140: Suboptimal Operation | H140: % | J140: 0.995 | L140: 0.995
C141: Energy Yield Sensitivity | H141: % | J141: 1 | L141: 1
C142: Wind Speed Variability | H142: % | J142: 1 | L142: 1
C143: Spare | H143: % | J143: 1 | L143: 1
C145: Total Losses (excl. availability) - Construction | H145: % | J145: 0.8047662306 | L145: =L$127*L129*PRODUCT($L$132:$L$143) -> 0.8047662306
C146: Total Losses (excl. availability) - Operation | H146: % | J146: 0.7962492846 | L146: =L$127*L130*PRODUCT($L$132:$L$143) -> 0.7962492846
B148: ="" ->  | C148: Seasonality
C150: 1 | D150: January | H150: % | J150: =IF(INDEX(L150:P150,0,$J$2)<>"",INDEX(L150:P150,0,$J$2),L150) -> 0.09416666667 | L150: 0.09416666667
C151: =C150+1 -> 2 | D151: February | H151: % | J151: 0.08 | L151: 0.08
C152: =C151+1 -> 3 | D152: March | H152: % | J152: 0.075 | L152: 0.075
C153: 4 | D153: April | H153: % | J153: 0.075 | L153: 0.075
C154: 5 | D154: May | H154: % | J154: 0.075 | L154: 0.075
C155: 6 | D155: June | H155: % | J155: 0.07666666667 | L155: 0.07666666667
C156: 7 | D156: July | H156: % | J156: 0.07666666667 | L156: 0.07666666667
C157: 8 | D157: August | H157: % | J157: 0.07916666667 | L157: 0.07916666667
C158: 9 | D158: September | H158: % | J158: 0.095 | L158: 0.095
C159: 10 | D159: October | H159: % | J159: 0.08666666667 | L159: 0.08666666667
C160: 11 | D160: November | H160: % | J160: 0.095 | L160: 0.095
C161: 12 | D161: December | H161: % | J161: 0.09166666667 | L161: 0.09166666667
C163: 1 | D163: First quarter | H163: % | J163: =IF(INDEX(L163:P163,0,$J$2)<>"",INDEX(L163:P163,0,$J$2),L163) -> 0.2491666667 | L163: =SUM(L150:L152) -> 0.2491666667
C164: =C163+1 -> 2 | D164: Second quarter | H164: % | J164: 0.2266666667 | L164: =SUM(L153:L155) -> 0.2266666667
C165: =C164+1 -> 3 | D165: Third quarter | H165: % | J165: 0.2508333333 | L165: =SUM(L156:L158) -> 0.2508333333
C166: 4 | D166: Fourth quarter | H166: % | J166: 0.2733333333 | L166: =SUM(L159:L161) -> 0.2733333333
B168: ="" ->  | C168: Miscellaneous
C170: Export Fee
C171: Electricity Export Chargte - Construction | H171: $/MWh | J171: =IF(INDEX(L171:P171,0,$J$2)<>"",INDEX(L171:P171,0,$J$2),L171) -> 1.8 | L171: 1.8
C172: Electricity Export Chargte - Operations | H172: $/MWh | J172: =IF(INDEX(L172:P172,0,$J$2)<>"",INDEX(L172:P172,0,$J$2),L172) -> 1.2 | L172: 1.2
C174: Working Capital
C175: Accounts Receivalbe | H175: days | J175: =IF(INDEX(L175:P175,0,$J$2)<>"",INDEX(L175:P175,0,$J$2),L175) -> 20 | L175: 20
C176: Accounts Payable | H176: days | J176: 25 | L176: 25
C178: Discount Rate (Levelised Cost of Energy) | H178: % | J178: =IF(INDEX(L178:P178,0,$J$2)<>"",INDEX(L178:P178,0,$J$2),L178) -> 0.075 | L178: 0.075
A180: Contract for Difference
B182: ="" ->  | C182: Timing
C184: Start | H184: date | J184: =IF(INDEX(L184:P184,0,$J$2)<>"",INDEX(L184:P184,0,$J$2),L184) -> 2022-07-01 | L184: =L37 -> 2022-07-01
C185: Tenor | H185: years | J185: 15 | L185: 15
C186: End | H186: date | J186: 2037-07-01 | L186: =EDATE(L184,L185*12) -> 2037-07-01
B188: ="" ->  | C188: Pricing
C190: Year
C192: 1 | H192: $/MWh | J192: =IF(INDEX(L192:P192,0,$J$2)<>"",INDEX(L192:P192,0,$J$2),L192) -> 100 | L192: 100
C193: 3 | H193: $/MWh | J193: 100 | L193: 100
C194: =C193+2 -> 5 | H194: $/MWh | J194: 100 | L194: 100
C195: =C194+2 -> 7 | H195: $/MWh | J195: 100 | L195: 100
C196: 9 | H196: $/MWh | J196: 100 | L196: 100
C197: 11 | H197: $/MWh | J197: 100 | L197: 100
C198: 13 | H198: $/MWh | J198: 100 | L198: 100
C199: 15 | H199: $/MWh | J199: 100 | L199: 100
C200: 17 | H200: $/MWh | J200: 100 | L200: 100
A202: Operating Costs
B204: Cost Escalation | H204: % p.a. | J204: 0.01 | L204: 0
B206: ="" ->  | C206: Service & Maintenance Agreement
C208: Costs
C209: SMA - WTG Period 1 | H209: $m p.a. | J209: =IF(INDEX(L209:P209,0,$J$2)<>"",INDEX(L209:P209,0,$J$2),L209) -> 23.22186306 | L209: 23.22186306
C210: SMA - WTG Period 2 | H210: $m p.a. | J210: =IF(INDEX(L210:P210,0,$J$2)<>"",INDEX(L210:P210,0,$J$2),L210) -> 32.52749214 | L210: 32.52749214
C211: SMA - WTG Period 3 | H211: $m p.a. | J211: 34.28082108 | L211: 34.28082108
C212: SMA - WTG Period 4 | H212: $m p.a. | J212: 30.01005876 | L212: 30.01005876
C214: SMA - WTG During Construction | H214: $m p.a. | J214: =IF(INDEX(L214:P214,0,$J$2)<>"",INDEX(L214:P214,0,$J$2),L214) -> 15 | L214: 15
C216: Timing
C217: =C209 -> SMA - WTG Period 1 | H217: years | J217: =IF(INDEX(L217:P217,0,$J$2)<>"",INDEX(L217:P217,0,$J$2),L217) -> 5 | L217: 5
C218: =C210 -> SMA - WTG Period 2 | H218: years | J218: =IF(INDEX(L218:P218,0,$J$2)<>"",INDEX(L218:P218,0,$J$2),L218) -> 5 | L218: 5
C219: SMA - WTG Period 3 | H219: years | J219: 5 | L219: 5
C220: SMA - WTG Period 4 | H220: years | J220: 5 | L220: 5
B222: ="" ->  | C222: Operating Costs
C224: Pre-Operation
C225: Own Energy Consumption | H225: $m p.a. | J225: =IF(INDEX(L225:P225,0,$J$2)<>"",INDEX(L225:P225,0,$J$2),L225) -> 1 | L225: 1
C226: Asset Management Agreement | H226: $m p.a. | J226: 0.18 | L226: 0.18
C228: Operation
C229: Own Energy Consumption | H229: $m p.a. | J229: =IF(INDEX(L229:P229,0,$J$2)<>"",INDEX(L229:P229,0,$J$2),L229) -> 1 | L229: 1
C230: Property damage | H230: $m p.a. | J230: 2.703186304 | L230: 2.703186304
C231: Business Interruption | H231: $m p.a. | J231: 0 | L231: 0
C232: Other Insurance | H232: $m p.a. | J232: 0.235 | L232: 0.235
C233: SMA-WTG (out of scope) | H233: $m p.a. | J233: 0.4884 | L233: 0.4884
C234: Asset Management Agreement | H234: $m p.a. | J234: 1.57 | L234: 1.57
C235: Project Company Costs | H235: $m p.a. | J235: 2.5 | L235: 2.5
C236: Directors fee | H236: $m p.a. | J236: 0.5 | L236: 0.5
C237: Advisory fees | H237: $m p.a. | J237: 0.5 | L237: 0.5
A239: Financing
A240: Capital Structure
B242: Total Project Costs | H242: $m | J242: =Fund!P41 -> 765.8996691
B243: Net Pre-Completion Cash Flow | H243: $m | J243: =Fund!P28 -> 0.15742898
B244: Net Funding Requirement | H244: $m | J244: =J242-J243 -> 765.7422401
B246: ="" ->  | C246: Debt Sizing
C248: Max Gearing | H248: % | J248: =IF(INDEX(L248:P248,0,$J$2)<>"",INDEX(L248:P248,0,$J$2),L248) -> 0.7 | L248: 0.7
C249: Target DSCR | H249: x | J249: =IF(INDEX(L249:P249,0,$J$2)<>"",INDEX(L249:P249,0,$J$2),L249) -> 1.25 | L249: 1.25
C251: Commitment
C252: Max Gearing | H252: $ | J252: =J248*J242 -> 536.1297683
C253: Senior Debt Quantum | H253: $ | J253: =J252 -> 536.1297683
B255: ="" ->  | C255: Equity
C257: Commitment
C258: Mandated Minimum Equity | H258: $m | J258: =J266 -> 2
C259: =IF(J284,C282,"Share Capital Contribution") -> Share Capital Contribution | H259: $m | J259: =J244-J253-SUM(J258:J258) -> 227.6124717
J260: =SUM(J258:J259) -> 229.6124717
C262: Model Balanced | H262: check | J262: =Macro_Check -> FALSE
A264: Equity
B266: Mandated Minimum Equity | H266: $m | J266: =IF(INDEX(L266:P266,0,$J$2)<>"",INDEX(L266:P266,0,$J$2),L266) -> 2 | L266: 2
B267: Shortfall Cover | H267: % | J267: =IF(INDEX(L267:P267,0,$J$2)<>"",INDEX(L267:P267,0,$J$2),L267) -> 0.5 | L267: 0.5
B269: Shareholder Structure
B270: Govt of Senegal | H270: % | J270: =IF(INDEX(L270:P270,0,$J$2)<>"",INDEX(L270:P270,0,$J$2),L270) -> 0.1 | L270: 0.1
B271: Meridiam Infrastructure Partners | H271: % | J271: =IF(INDEX(L271:P271,0,$J$2)<>"",INDEX(L271:P271,0,$J$2),L271) -> 0.6 | L271: 0.6
B272: [spare] | H272: % | J272: =IF(INDEX(L272:P272,0,$J$2)<>"",INDEX(L272:P272,0,$J$2),L272) -> 0.3 | L272: =1-SUM(L270:L271) -> 0.3
L273: =SUM(L270:L272) -> 1
B275: Lock Up Interest | H275: % p.a. | J275: =IF(INDEX(L275:P275,0,$J$2)<>"",INDEX(L275:P275,0,$J$2),L275) -> 0.03 | L275: 0.03
B276: Cash Account Interest | H276: % p.a. | J276: =IF(INDEX(L276:P276,0,$J$2)<>"",INDEX(L276:P276,0,$J$2),L276) -> 0.03 | L276: 0.03
B278: Dividend Payout Ratio | H278: % | J278: =IF(INDEX(L278:P278,0,$J$2)<>"",INDEX(L278:P278,0,$J$2),L278) -> 1 | L278: 1
B280: Cost of Equity | H280: % | J280: =IF(INDEX(L280:P280,0,$J$2)<>"",INDEX(L280:P280,0,$J$2),L280) -> 0.12 | L280: 0.12
B282: ="" ->  | C282: Equity Bridge Loan
C284: Active? | H284: switch | J284: =IF(INDEX(L284:P284,0,$J$2)<>"",INDEX(L284:P284,0,$J$2),L284) -> FALSE | L284: FALSE
C285: Refinancing | H285: date | J285: =IF(INDEX(L285:P285,0,$J$2)<>"",INDEX(L285:P285,0,$J$2),L285) -> 2022-06-01 | L285: =EDATE(L35,-1) -> 2022-06-01
C286: Interest | H286: % | J286: =IF(INDEX(L286:P286,0,$J$2)<>"",INDEX(L286:P286,0,$J$2),L286) -> 0 | L286: 0
... 62 more rows

Sheet InputT
B2: IRR
B3: Project | E3: =Val!$L$27 -> 0.169063729 | Q3: Period Start: | S3: =Time!R17 -> 2021-01-01 | T3: =Time!S17 -> 2021-02-01 | U3: =Time!T17 -> 2021-03-01 | V3: =Time!U17 -> 2021-04-01 | W3: =Time!V17 -> 2021-05-01 | X3: =Time!W17 -> 2021-06-01 | Y3: =Time!X17 -> 2021-07-01 | Z3: =Time!Y17 -> 2021-08-01 | AA3: =Time!Z17 -> 2021-09-01 | AB3: =Time!AA17 -> 2021-10-01 | AC3: =Time!AB17 -> 2021-11-01 | AD3: =Time!AC17 -> 2021-12-01 | AE3: =Time!AD17 -> 2022-01-01 | AF3: =Time!AE17 -> 2022-02-01 | AG3: =Time!AF17 -> 2022-03-01 | AH3: =Time!AG17 -> 2022-04-01 | AI3: =Time!AH17 -> 2022-05-01 | AJ3: =Time!AI17 -> 2022-06-01 | AK3: =Time!AJ17 -> 2022-07-01 | AL3: =Time!AK17 -> 2022-10-01 | AM3: =Time!AL17 -> 2023-01-01 | AN3: =Time!AM17 -> 2023-04-01 | AO3: =Time!AN17 -> 2023-07-01 | AP3: =Time!AO17 -> 2023-10-01 | AQ3: =Time!AP17 -> 2024-01-01 | AR3: =Time!AQ17 -> 2024-04-01 | AS3: =Time!AR17 -> 2024-07-01 | AT3: =Time!AS17 -> 2024-10-01 | AU3: =Time!AT17 -> 2025-01-01 | AV3: =Time!AU17 -> 2025-04-01 | AW3: =Time!AV17 -> 2025-07-01 | AX3: =Time!AW17 -> 2025-10-01 | AY3: =Time!AX17 -> 2026-01-01 | AZ3: =Time!AY17 -> 2026-04-01 | BA3: =Time!AZ17 -> 2026-07-01 | BB3: =Time!BA17 -> 2026-10-01 | BC3: =Time!BB17 -> 2027-01-01 | BD3: =Time!BC17 -> 2027-04-01 | BE3: =Time!BD17 -> 2027-07-01 | BF3: =Time!BE17 -> 2027-10-01 | BG3: =Time!BF17 -> 2028-01-01 | BH3: =Time!BG17 -> 2028-04-01 | BI3: =Time!BH17 -> 2028-07-01 | BJ3: =Time!BI17 -> 2028-10-01 | BK3: =Time!BJ17 -> 2029-01-01 | BL3: =Time!BK17 -> 2029-04-01 | BM3: =Time!BL17 -> 2029-07-01 | BN3: =Time!BM17 -> 2029-10-01 | BO3: =Time!BN17 -> 2030-01-01 | BP3: =Time!BO17 -> 2030-04-01 | BQ3: =Time!BP17 -> 2030-07-01 | BR3: =Time!BQ17 -> 2030-10-01 | BS3: =Time!BR17 -> 2031-01-01 | BT3: =Time!BS17 -> 2031-04-01 | BU3: =Time!BT17 -> 2031-07-01 | BV3: =Time!BU17 -> 2031-10-01 | BW3: =Time!BV17 -> 2032-01-01 | BX3: =Time!BW17 -> 2032-04-01 | BY3: =Time!BX17 -> 2032-07-01 | BZ3: =Time!BY17 -> 2032-10-01 | CA3: =Time!BZ17 -> 2033-01-01 | CB3: =Time!CA17 -> 2033-04-01 | CC3: =Time!CB17 -> 2033-07-01 | CD3: =Time!CC17 -> 2033-10-01 | CE3: =Time!CD17 -> 2034-01-01 | CF3: =Time!CE17 -> 2034-04-01 | CG3: =Time!CF17 -> 2034-07-01 | CH3: =Time!CG17 -> 2034-10-01 | CI3: =Time!CH17 -> 2035-01-01 | CJ3: =Time!CI17 -> 2035-04-01 | CK3: =Time!CJ17 -> 2035-07-01 | CL3: =Time!CK17 -> 2035-10-01 | CM3: =Time!CL17 -> 2036-01-01 | CN3: =Time!CM17 -> 2036-04-01 | CO3: =Time!CN17 -> 2036-07-01 | CP3: =Time!CO17 -> 2036-10-01 | CQ3: =Time!CP17 -> 2037-01-01 | CR3: =Time!CQ17 -> 2037-04-01 | CS3: =Time!CR17 -> 2037-07-01 | CT3: =Time!CS17 -> 2037-10-01 | CU3: =Time!CT17 -> 2038-01-01 | CV3: =Time!CU17 -> 2038-04-01 | CW3: =Time!CV17 -> 2038-07-01 | CX3: =Time!CW17 -> 2038-10-01 | CY3: =Time!CX17 -> 2039-01-01 | CZ3: =Time!CY17 -> 2039-04-01 | DA3: =Time!CZ17 -> 2039-07-01 | DB3: =Time!DA17 -> 2039-10-01 | DC3: =Time!DB17 -> 2040-01-01 | DD3: =Time!DC17 -> 2040-04-01 | DE3: =Time!DD17 -> 2040-07-01 | DF3: =Time!DE17 -> 2040-10-01 | DG3: =Time!DF17 -> 2041-01-01 | DH3: =Time!DG17 -> 2041-04-01 | DI3: =Time!DH17 -> 2041-07-01 | DJ3: =Time!DI17 -> 2041-10-01 | DK3: =Time!DJ17 -> 2042-01-01 | DL3: =Time!DK17 -> 2042-04-01 | DM3: =Time!DL17 -> 2042-07-01 | DN3: =Time!DM17 -> 2042-10-01 | DO3: =Time!DN17 -> 2043-01-01 | DP3: =Time!DO17 -> 2043-04-01 | DQ3: =Time!DP17 -> 2043-07-01 | DR3: =Time!DQ17 -> 2043-10-01 | DS3: =Time!DR17 -> 2044-01-01 | DT3: =Time!DS17 -> 2044-04-01 | DU3: =Time!DT17 -> 2044-07-01 | DV3: =Time!DU17 -> 2044-10-01 | DW3: =Time!DV17 -> 2045-01-01 | DX3: =Time!DW17 -> 2045-04-01 | DY3: =Time!DX17 -> 2045-07-01 | DZ3: =Time!DY17 -> 2045-10-01 | EA3: =Time!DZ17 -> 2046-01-01 | EB3: =Time!EA17 -> 2046-04-01 | EC3: =Time!EB17 -> 2046-07-01 | ED3: =Time!EC17 -> 2046-10-01 | EE3: =Time!ED17 -> 2047-01-01 | EF3: =Time!EE17 -> 2047-04-01 | EG3: =Time!EF17 -> 2047-07-01 | EH3: =Time!EG17 -> 2047-10-01 | EI3: =Time!EH17 -> 2048-01-01 | EJ3: =Time!EI17 -> 2048-04-01 | EK3: =Time!EJ17 -> 2048-07-01 | EL3: =Time!EK17 -> 2048-10-01 | EM3: =Time!EL17 -> 2049-01-01 | EN3: =Time!EM17 -> 2049-04-01 | EO3: =Time!EN17 -> 2049-07-01 | EP3: =Time!EO17 -> 2049-10-01 | EQ3: =Time!EP17 -> 2050-01-01 | ER3: =Time!EQ17 -> 2050-04-01 | ES3: =Time!ER17 -> 2050-07-01 | ET3: =Time!ES17 -> 2050-10-01 | EU3: =Time!ET17 -> 2051-01-01 | EV3: =Time!EU17 -> 2051-04-01 | EW3: =Time!EV17 -> 2051-07-01 | EX3: =Time!EW17 -> 2051-10-01 | EY3: =Time!EX17 -> 2052-01-01 | EZ3: =Time!EY17 -> 2052-04-01 | FA3: =Time!EZ17 -> 2052-07-01 | FB3: =Time!FA17 -> 2052-10-01 | FC3: =Time!FB17 -> 2053-01-01 | FD3: =Time!FC17 -> 2053-04-01 | FE3: =Time!FD17 -> 2053-07-01 | FF3: =Time!FE17 -> 2053-10-01 | FG3: =Time!FF17 -> 2054-01-01 | FH3: =Time!FG17 -> 2054-04-01 | FI3: =Time!FH17 -> 2054-07-01 | FJ3: =Time!FI17 -> 2054-10-01 | FK3: =Time!FJ17 -> 2055-01-01 | FL3: =Time!FK17 -> 2055-04-01 | FM3: =Time!FL17 -> 2055-07-01
B4: Equity | E4: =Val!$L$40 -> 5.190443277 | Q4: Period End: | S4: =Time!R18 -> 2021-01-31 | T4: =Time!S18 -> 2021-02-28 | U4: =Time!T18 -> 2021-03-31 | V4: =Time!U18 -> 2021-04-30 | W4: =Time!V18 -> 2021-05-31 | X4: =Time!W18 -> 2021-06-30 | Y4: =Time!X18 -> 2021-07-31 | Z4: =Time!Y18 -> 2021-08-31 | AA4: =Time!Z18 -> 2021-09-30 | AB4: =Time!AA18 -> 2021-10-31 | AC4: =Time!AB18 -> 2021-11-30 | AD4: =Time!AC18 -> 2021-12-31 | AE4: =Time!AD18 -> 2022-01-31 | AF4: =Time!AE18 -> 2022-02-28 | AG4: =Time!AF18 -> 2022-03-31 | AH4: =Time!AG18 -> 2022-04-30 | AI4: =Time!AH18 -> 2022-05-31 | AJ4: =Time!AI18 -> 2022-06-30 | AK4: =Time!AJ18 -> 2022-09-30 | AL4: =Time!AK18 -> 2022-12-31 | AM4: =Time!AL18 -> 2023-03-31 | AN4: =Time!AM18 -> 2023-06-30 | AO4: =Time!AN18 -> 2023-09-30 | AP4: =Time!AO18 -> 2023-12-31 | AQ4: =Time!AP18 -> 2024-03-31 | AR4: =Time!AQ18 -> 2024-06-30 | AS4: =Time!AR18 -> 2024-09-30 | AT4: =Time!AS18 -> 2024-12-31 | AU4: =Time!AT18 -> 2025-03-31 | AV4: =Time!AU18 -> 2025-06-30 | AW4: =Time!AV18 -> 2025-09-30 | AX4: =Time!AW18 -> 2025-12-31 | AY4: =Time!AX18 -> 2026-03-31 | AZ4: =Time!AY18 -> 2026-06-30 | BA4: =Time!AZ18 -> 2026-09-30 | BB4: =Time!BA18 -> 2026-12-31 | BC4: =Time!BB18 -> 2027-03-31 | BD4: =Time!BC18 -> 2027-06-30 | BE4: =Time!BD18 -> 2027-09-30 | BF4: =Time!BE18 -> 2027-12-31 | BG4: =Time!BF18 -> 2028-03-31 | BH4: =Time!BG18 -> 2028-06-30 | BI4: =Time!BH18 -> 2028-09-30 | BJ4: =Time!BI18 -> 2028-12-31 | BK4: =Time!BJ18 -> 2029-03-31 | BL4: =Time!BK18 -> 2029-06-30 | BM4: =Time!BL18 -> 2029-09-30 | BN4: =Time!BM18 -> 2029-12-31 | BO4: =Time!BN18 -> 2030-03-31 | BP4: =Time!BO18 -> 2030-06-30 | BQ4: =Time!BP18 -> 2030-09-30 | BR4: =Time!BQ18 -> 2030-12-31 | BS4: =Time!BR18 -> 2031-03-31 | BT4: =Time!BS18 -> 2031-06-30 | BU4: =Time!BT18 -> 2031-09-30 | BV4: =Time!BU18 -> 2031-12-31 | BW4: =Time!BV18 -> 2032-03-31 | BX4: =Time!BW18 -> 2032-06-30 | BY4: =Time!BX18 -> 2032-09-30 | BZ4: =Time!BY18 -> 2032-12-31 | CA4: =Time!BZ18 -> 2033-03-31 | CB4: =Time!CA18 -> 2033-06-30 | CC4: =Time!CB18 -> 2033-09-30 | CD4: =Time!CC18 -> 2033-12-31 | CE4: =Time!CD18 -> 2034-03-31 | CF4: =Time!CE18 -> 2034-06-30 | CG4: =Time!CF18 -> 2034-09-30 | CH4: =Time!CG18 -> 2034-12-31 | CI4: =Time!CH18 -> 2035-03-31 | CJ4: =Time!CI18 -> 2035-06-30 | CK4: =Time!CJ18 -> 2035-09-30 | CL4: =Time!CK18 -> 2035-12-31 | CM4: =Time!CL18 -> 2036-03-31 | CN4: =Time!CM18 -> 2036-06-30 | CO4: =Time!CN18 -> 2036-09-30 | CP4: =Time!CO18 -> 2036-12-31 | CQ4: =Time!CP18 -> 2037-03-31 | CR4: =Time!CQ18 -> 2037-06-30 | CS4: =Time!CR18 -> 2037-09-30 | CT4: =Time!CS18 -> 2037-12-31 | CU4: =Time!CT18 -> 2038-03-31 | CV4: =Time!CU18 -> 2038-06-30 | CW4: =Time!CV18 -> 2038-09-30 | CX4: =Time!CW18 -> 2038-12-31 | CY4: =Time!CX18 -> 2039-03-31 | CZ4: =Time!CY18 -> 2039-06-30 | DA4: =Time!CZ18 -> 2039-09-30 | DB4: =Time!DA18 -> 2039-12-31 | DC4: =Time!DB18 -> 2040-03-31 | DD4: =Time!DC18 -> 2040-06-30 | DE4: =Time!DD18 -> 2040-09-30 | DF4: =Time!DE18 -> 2040-12-31 | DG4: =Time!DF18 -> 2041-03-31 | DH4: =Time!DG18 -> 2041-06-30 | DI4: =Time!DH18 -> 2041-09-30 | DJ4: =Time!DI18 -> 2041-12-31 | DK4: =Time!DJ18 -> 2042-03-31 | DL4: =Time!DK18 -> 2042-06-30 | DM4: =Time!DL18 -> 2042-09-30 | DN4: =Time!DM18 -> 2042-12-31 | DO4: =Time!DN18 -> 2043-03-31 | DP4: =Time!DO18 -> 2043-06-30 | DQ4: =Time!DP18 -> 2043-09-30 | DR4: =Time!DQ18 -> 2043-12-31 | DS4: =Time!DR18 -> 2044-03-31 | DT4: =Time!DS18 -> 2044-06-30 | DU4: =Time!DT18 -> 2044-09-30 | DV4: =Time!DU18 -> 2044-12-31 | DW4: =Time!DV18 -> 2045-03-31 | DX4: =Time!DW18 -> 2045-06-30 | DY4: =Time!DX18 -> 2045-09-30 | DZ4: =Time!DY18 -> 2045-12-31 | EA4: =Time!DZ18 -> 2046-03-31 | EB4: =Time!EA18 -> 2046-06-30 | EC4: =Time!EB18 -> 2046-09-30 | ED4: =Time!EC18 -> 2046-12-31 | EE4: =Time!ED18 -> 2047-03-31 | EF4: =Time!EE18 -> 2047-06-30 | EG4: =Time!EF18 -> 2047-09-30 | EH4: =Time!EG18 -> 2047-12-31 | EI4: =Time!EH18 -> 2048-03-31 | EJ4: =Time!EI18 -> 2048-06-30 | EK4: =Time!EJ18 -> 2048-09-30 | EL4: =Time!EK18 -> 2048-12-31 | EM4: =Time!EL18 -> 2049-03-31 | EN4: =Time!EM18 -> 2049-06-30 | EO4: =Time!EN18 -> 2049-09-30 | EP4: =Time!EO18 -> 2049-12-31 | EQ4: =Time!EP18 -> 2050-03-31 | ER4: =Time!EQ18 -> 2050-06-30 | ES4: =Time!ER18 -> 2050-09-30 | ET4: =Time!ES18 -> 2050-12-31 | EU4: =Time!ET18 -> 2051-03-31 | EV4: =Time!EU18 -> 2051-06-30 | EW4: =Time!EV18 -> 2051-09-30 | EX4: =Time!EW18 -> 2051-12-31 | EY4: =Time!EX18 -> 2052-03-31 | EZ4: =Time!EY18 -> 2052-06-30 | FA4: =Time!EZ18 -> 2052-09-30 | FB4: =Time!FA18 -> 2052-12-31 | FC4: =Time!FB18 -> 2053-03-31 | FD4: =Time!FC18 -> 2053-06-30 | FE4: =Time!FD18 -> 2053-09-30 | FF4: =Time!FE18 -> 2053-12-31 | FG4: =Time!FF18 -> 2054-03-31 | FH4: =Time!FG18 -> 2054-06-30 | FI4: =Time!FH18 -> 2054-09-30 | FJ4: =Time!FI18 -> 2054-12-31 | FK4: =Time!FJ18 -> 2055-03-31 | FL4: =Time!FK18 -> 2055-06-30 | FM4: =Time!FL18 -> 2055-09-30
Q5: Year: | S5: =Time!R19 -> 2021 | T5: =Time!S19 -> 2021 | U5: =Time!T19 -> 2021 | V5: =Time!U19 -> 2021 | W5: =Time!V19 -> 2021 | X5: =Time!W19 -> 2021 | Y5: =Time!X19 -> 2021 | Z5: =Time!Y19 -> 2021 | AA5: =Time!Z19 -> 2021 | AB5: =Time!AA19 -> 2021 | AC5: =Time!AB19 -> 2021 | AD5: =Time!AC19 -> 2021 | AE5: =Time!AD19 -> 2022 | AF5: =Time!AE19 -> 2022 | AG5: =Time!AF19 -> 2022 | AH5: =Time!AG19 -> 2022 | AI5: =Time!AH19 -> 2022 | AJ5: =Time!AI19 -> 2022 | AK5: =Time!AJ19 -> 2022 | AL5: =Time!AK19 -> 2022 | AM5: =Time!AL19 -> 2023 | AN5: =Time!AM19 -> 2023 | AO5: =Time!AN19 -> 2023 | AP5: =Time!AO19 -> 2023 | AQ5: =Time!AP19 -> 2024 | AR5: =Time!AQ19 -> 2024 | AS5: =Time!AR19 -> 2024 | AT5: =Time!AS19 -> 2024 | AU5: =Time!AT19 -> 2025 | AV5: =Time!AU19 -> 2025 | AW5: =Time!AV19 -> 2025 | AX5: =Time!AW19 -> 2025 | AY5: =Time!AX19 -> 2026 | AZ5: =Time!AY19 -> 2026 | BA5: =Time!AZ19 -> 2026 | BB5: =Time!BA19 -> 2026 | BC5: =Time!BB19 -> 2027 | BD5: =Time!BC19 -> 2027 | BE5: =Time!BD19 -> 2027 | BF5: =Time!BE19 -> 2027 | BG5: =Time!BF19 -> 2028 | BH5: =Time!BG19 -> 2028 | BI5: =Time!BH19 -> 2028 | BJ5: =Time!BI19 -> 2028 | BK5: =Time!BJ19 -> 2029 | BL5: =Time!BK19 -> 2029 | BM5: =Time!BL19 -> 2029 | BN5: =Time!BM19 -> 2029 | BO5: =Time!BN19 -> 2030 | BP5: =Time!BO19 -> 2030 | BQ5: =Time!BP19 -> 2030 | BR5: =Time!BQ19 -> 2030 | BS5: =Time!BR19 -> 2031 | BT5: =Time!BS19 -> 2031 | BU5: =Time!BT19 -> 2031 | BV5: =Time!BU19 -> 2031 | BW5: =Time!BV19 -> 2032 | BX5: =Time!BW19 -> 2032 | BY5: =Time!BX19 -> 2032 | BZ5: =Time!BY19 -> 2032 | CA5: =Time!BZ19 -> 2033 | CB5: =Time!CA19 -> 2033 | CC5: =Time!CB19 -> 2033 | CD5: =Time!CC19 -> 2033 | CE5: =Time!CD19 -> 2034 | CF5: =Time!CE19 -> 2034 | CG5: =Time!CF19 -> 2034 | CH5: =Time!CG19 -> 2034 | CI5: =Time!CH19 -> 2035 | CJ5: =Time!CI19 -> 2035 | CK5: =Time!CJ19 -> 2035 | CL5: =Time!CK19 -> 2035 | CM5: =Time!CL19 -> 2036 | CN5: =Time!CM19 -> 2036 | CO5: =Time!CN19 -> 2036 | CP5: =Time!CO19 -> 2036 | CQ5: =Time!CP19 -> 2037 | CR5: =Time!CQ19 -> 2037 | CS5: =Time!CR19 -> 2037 | CT5: =Time!CS19 -> 2037 | CU5: =Time!CT19 -> 2038 | CV5: =Time!CU19 -> 2038 | CW5: =Time!CV19 -> 2038 | CX5: =Time!CW19 -> 2038 | CY5: =Time!CX19 -> 2039 | CZ5: =Time!CY19 -> 2039 | DA5: =Time!CZ19 -> 2039 | DB5: =Time!DA19 -> 2039 | DC5: =Time!DB19 -> 2040 | DD5: =Time!DC19 -> 2040 | DE5: =Time!DD19 -> 2040 | DF5: =Time!DE19 -> 2040 | DG5: =Time!DF19 -> 2041 | DH5: =Time!DG19 -> 2041 | DI5: =Time!DH19 -> 2041 | DJ5: =Time!DI19 -> 2041 | DK5: =Time!DJ19 -> 2042 | DL5: =Time!DK19 -> 2042 | DM5: =Time!DL19 -> 2042 | DN5: =Time!DM19 -> 2042 | DO5: =Time!DN19 -> 2043 | DP5: =Time!DO19 -> 2043 | DQ5: =Time!DP19 -> 2043 | DR5: =Time!DQ19 -> 2043 | DS5: =Time!DR19 -> 2044 | DT5: =Time!DS19 -> 2044 | DU5: =Time!DT19 -> 2044 | DV5: =Time!DU19 -> 2044 | DW5: =Time!DV19 -> 2045 | DX5: =Time!DW19 -> 2045 | DY5: =Time!DX19 -> 2045 | DZ5: =Time!DY19 -> 2045 | EA5: =Time!DZ19 -> 2046 | EB5: =Time!EA19 -> 2046 | EC5: =Time!EB19 -> 2046 | ED5: =Time!EC19 -> 2046 | EE5: =Time!ED19 -> 2047 | EF5: =Time!EE19 -> 2047 | EG5: =Time!EF19 -> 2047 | EH5: =Time!EG19 -> 2047 | EI5: =Time!EH19 -> 2048 | EJ5: =Time!EI19 -> 2048 | EK5: =Time!EJ19 -> 2048 | EL5: =Time!EK19 -> 2048 | EM5: =Time!EL19 -> 2049 | EN5: =Time!EM19 -> 2049 | EO5: =Time!EN19 -> 2049 | EP5: =Time!EO19 -> 2049 | EQ5: =Time!EP19 -> 2050 | ER5: =Time!EQ19 -> 2050 | ES5: =Time!ER19 -> 2050 | ET5: =Time!ES19 -> 2050 | EU5: =Time!ET19 -> 2051 | EV5: =Time!EU19 -> 2051 | EW5: =Time!EV19 -> 2051 | EX5: =Time!EW19 -> 2051 | EY5: =Time!EX19 -> 2052 | EZ5: =Time!EY19 -> 2052 | FA5: =Time!EZ19 -> 2052 | FB5: =Time!FA19 -> 2052 | FC5: =Time!FB19 -> 2053 | FD5: =Time!FC19 -> 2053 | FE5: =Time!FD19 -> 2053 | FF5: =Time!FE19 -> 2053 | FG5: =Time!FF19 -> 2054 | FH5: =Time!FG19 -> 2054 | FI5: =Time!FH19 -> 2054 | FJ5: =Time!FI19 -> 2054 | FK5: =Time!FJ19 -> 2055 | FL5: =Time!FK19 -> 2055 | FM5: =Time!FL19 -> 2055
Q6: Phase: | S6: =Time!R26 -> Const | T6: =Time!S26 -> Const | U6: =Time!T26 -> Const | V6: =Time!U26 -> Const | W6: =Time!V26 -> Const | X6: =Time!W26 -> Const | Y6: =Time!X26 -> Const | Z6: =Time!Y26 -> Const | AA6: =Time!Z26 -> Const | AB6: =Time!AA26 -> Const | AC6: =Time!AB26 -> Const | AD6: =Time!AC26 -> Const | AE6: =Time!AD26 -> Const | AF6: =Time!AE26 -> Const | AG6: =Time!AF26 -> Const | AH6: =Time!AG26 -> Const | AI6: =Time!AH26 -> Const | AJ6: =Time!AI26 -> Const | AK6: =Time!AJ26 -> Ops | AL6: =Time!AK26 -> Ops | AM6: =Time!AL26 -> Ops | AN6: =Time!AM26 -> Ops | AO6: =Time!AN26 -> Ops | AP6: =Time!AO26 -> Ops | AQ6: =Time!AP26 -> Ops | AR6: =Time!AQ26 -> Ops | AS6: =Time!AR26 -> Ops | AT6: =Time!AS26 -> Ops | AU6: =Time!AT26 -> Ops | AV6: =Time!AU26 -> Ops | AW6: =Time!AV26 -> Ops | AX6: =Time!AW26 -> Ops | AY6: =Time!AX26 -> Ops | AZ6: =Time!AY26 -> Ops | BA6: =Time!AZ26 -> Ops | BB6: =Time!BA26 -> Ops | BC6: =Time!BB26 -> Ops | BD6: =Time!BC26 -> Ops | BE6: =Time!BD26 -> Ops | BF6: =Time!BE26 -> Ops | BG6: =Time!BF26 -> Ops | BH6: =Time!BG26 -> Ops | BI6: =Time!BH26 -> Ops | BJ6: =Time!BI26 -> Ops | BK6: =Time!BJ26 -> Ops | BL6: =Time!BK26 -> Ops | BM6: =Time!BL26 -> Ops | BN6: =Time!BM26 -> Ops | BO6: =Time!BN26 -> Ops | BP6: =Time!BO26 -> Ops | BQ6: =Time!BP26 -> Ops | BR6: =Time!BQ26 -> Ops | BS6: =Time!BR26 -> Ops | BT6: =Time!BS26 -> Ops | BU6: =Time!BT26 -> Ops | BV6: =Time!BU26 -> Ops | BW6: =Time!BV26 -> Ops | BX6: =Time!BW26 -> Ops | BY6: =Time!BX26 -> Ops | BZ6: =Time!BY26 -> Ops | CA6: =Time!BZ26 -> Ops | CB6: =Time!CA26 -> Ops | CC6: =Time!CB26 -> Ops | CD6: =Time!CC26 -> Ops | CE6: =Time!CD26 -> Ops | CF6: =Time!CE26 -> Ops | CG6: =Time!CF26 -> Ops | CH6: =Time!CG26 -> Ops | CI6: =Time!CH26 -> Ops | CJ6: =Time!CI26 -> Ops | CK6: =Time!CJ26 -> Ops | CL6: =Time!CK26 -> Ops | CM6: =Time!CL26 -> Ops | CN6: =Time!CM26 -> Ops | CO6: =Time!CN26 -> Ops | CP6: =Time!CO26 -> Ops | CQ6: =Time!CP26 -> Ops | CR6: =Time!CQ26 -> Ops | CS6: =Time!CR26 -> Ops | CT6: =Time!CS26 -> Ops | CU6: =Time!CT26 -> Ops | CV6: =Time!CU26 -> Ops | CW6: =Time!CV26 -> Ops | CX6: =Time!CW26 -> Ops | CY6: =Time!CX26 -> Ops | CZ6: =Time!CY26 -> Ops | DA6: =Time!CZ26 -> Ops | DB6: =Time!DA26 -> Ops | DC6: =Time!DB26 -> Ops | DD6: =Time!DC26 -> Ops | DE6: =Time!DD26 -> Ops | DF6: =Time!DE26 -> Ops | DG6: =Time!DF26 -> Ops | DH6: =Time!DG26 -> Ops | DI6: =Time!DH26 -> Ops | DJ6: =Time!DI26 -> Ops | DK6: =Time!DJ26 -> Ops | DL6: =Time!DK26 -> Ops | DM6: =Time!DL26 -> Ops | DN6: =Time!DM26 -> Ops | DO6: =Time!DN26 -> Ops | DP6: =Time!DO26 -> Ops | DQ6: =Time!DP26 -> Ops | DR6: =Time!DQ26 -> Ops | DS6: =Time!DR26 -> Ops | DT6: =Time!DS26 -> Ops | DU6: =Time!DT26 -> Ops | DV6: =Time!DU26 -> Ops | DW6: =Time!DV26 -> Ops | DX6: =Time!DW26 -> Ops | DY6: =Time!DX26 -> Ops | DZ6: =Time!DY26 -> Ops | EA6: =Time!DZ26 -> Ops | EB6: =Time!EA26 -> Ops | EC6: =Time!EB26 -> Ops | ED6: =Time!EC26 -> Ops | EE6: =Time!ED26 -> Ops | EF6: =Time!EE26 -> Ops | EG6: =Time!EF26 -> Ops | EH6: =Time!EG26 -> Ops | EI6: =Time!EH26 -> Ops | EJ6: =Time!EI26 -> Ops | EK6: =Time!EJ26 -> Ops | EL6: =Time!EK26 -> Ops | EM6: =Time!EL26 -> Ops | EN6: =Time!EM26 -> Ops | EO6: =Time!EN26 -> Ops | EP6: =Time!EO26 -> Ops | EQ6: =Time!EP26 -> Ops | ER6: =Time!EQ26 -> Ops | ES6: =Time!ER26 -> Ops | ET6: =Time!ES26 -> Ops | EU6: =Time!ET26 -> Ops | EV6: =Time!EU26 -> Ops | EW6: =Time!EV26 -> Ops | EX6: =Time!EW26 -> Ops | EY6: =Time!EX26 -> Ops | EZ6: =Time!EY26 -> Ops | FA6: =Time!EZ26 -> Ops | FB6: =Time!FA26 -> Ops | FC6: =Time!FB26 -> Ops | FD6: =Time!FC26 -> Ops | FE6: =Time!FD26 -> Ops | FF6: =Time!FE26 -> Ops | FG6: =Time!FF26 -> Ops | FH6: =Time!FG26 -> Ops | FI6: =Time!FH26 -> Ops | FJ6: =Time!FI26 -> Ops | FK6: =Time!FJ26 -> Ops | FL6: =Time!FK26 -> Ops | FM6: =Time!FL26 -> Ops
A8: Macroeconomic
B10: 0 | C10: Inflation
S11: =YEAR(S3) -> 2021 | T11: =S11+1 -> 2022 | U11: =T11+1 -> 2023 | V11: 2024 | W11: 2025 | X11: 2026 | Y11: 2027 | Z11: 2028 | AA11: 2029 | AB11: 2030 | AC11: 2031 | AD11: 2032 | AE11: 2033 | AF11: 2034 | AG11: 2035 | AH11: 2036 | AI11: 2037 | AJ11: 2038 | AK11: 2039 | AL11: 2040 | AM11: 2041 | AN11: 2042 | AO11: 2043 | AP11: 2044 | AQ11: 2045 | AR11: 2046 | AS11: 2047 | AT11: 2048 | AU11: 2049 | AV11: 2050 | AW11: 2051 | AX11: 2052 | AY11: 2053 | AZ11: 2054 | BA11: 2055 | BB11: 2056 | BC11: 2057 | BD11: 2058 | BE11: 2059 | BF11: 2060 | BG11: 2061 | BH11: 2062 | BI11: 2063 | BJ11: 2064 | BK11: 2065 | BL11: 2066 | BM11: 2067 | BN11: 2068 | BO11: 2069 | BP11: 2070 | BQ11: 2071 | BR11: 2072 | BS11: 2073 | BT11: 2074 | BU11: 2075 | BV11: 2076 | BW11: 2077 | BX11: 2078 | BY11: 2079 | BZ11: 2080 | CA11: 2081 | CB11: 2082 | CC11: 2083 | CD11: 2084 | CE11: 2085 | CF11: 2086 | CG11: =CF11+1 -> 2087 | CH11: =CG11+1 -> 2088 | CI11: =CH11+1 -> 2089 | CJ11: =CI11+1 -> 2090 | CK11: =CJ11+1 -> 2091 | CL11: =CK11+1 -> 2092 | CM11: =CL11+1 -> 2093 | CN11: =CM11+1 -> 2094 | CO11: =CN11+1 -> 2095 | CP11: =CO11+1 -> 2096 | CQ11: =CP11+1 -> 2097 | CR11: =CQ11+1 -> 2098 | CS11: =CR11+1 -> 2099 | CT11: =CS11+1 -> 2100 | CU11: =CT11+1 -> 2101 | CV11: =CU11+1 -> 2102 | CW11: =CV11+1 -> 2103 | CX11: =CW11+1 -> 2104 | CY11: =CX11+1 -> 2105 | CZ11: =CY11+1 -> 2106 | DA11: =CZ11+1 -> 2107 | DB11: =DA11+1 -> 2108 | DC11: =DB11+1 -> 2109 | DD11: =DC11+1 -> 2110 | DE11: =DD11+1 -> 2111 | DF11: =DE11+1 -> 2112 | DG11: =DF11+1 -> 2113 | DH11: =DG11+1 -> 2114 | DI11: =DH11+1 -> 2115 | DJ11: =DI11+1 -> 2116 | DK11: =DJ11+1 -> 2117 | DL11: =DK11+1 -> 2118 | DM11: =DL11+1 -> 2119 | DN11: =DM11+1 -> 2120 | DO11: =DN11+1 -> 2121 | DP11: =DO11+1 -> 2122 | DQ11: =DP11+1 -> 2123 | DR11: =DQ11+1 -> 2124 | DS11: =DR11+1 -> 2125 | DT11: =DS11+1 -> 2126 | DU11: =DT11+1 -> 2127 | DV11: =DU11+1 -> 2128 | DW11: =DV11+1 -> 2129 | DX11: =DW11+1 -> 2130 | DY11: =DX11+1 -> 2131 | DZ11: =DY11+1 -> 2132 | EA11: =DZ11+1 -> 2133 | EB11: =EA11+1 -> 2134 | EC11: =EB11+1 -> 2135 | ED11: =EC11+1 -> 2136 | EE11: =ED11+1 -> 2137 | EF11: =EE11+1 -> 2138 | EG11: =EF11+1 -> 2139 | EH11: =EG11+1 -> 2140 | EI11: =EH11+1 -> 2141 | EJ11: =EI11+1 -> 2142 | EK11: =EJ11+1 -> 2143 | EL11: =EK11+1 -> 2144 | EM11: =EL11+1 -> 2145 | EN11: =EM11+1 -> 2146 | EO11: =EN11+1 -> 2147 | EP11: =EO11+1 -> 2148 | EQ11: =EP11+1 -> 2149 | ER11: =EQ11+1 -> 2150 | ES11: =ER11+1 -> 2151 | ET11: =ES11+1 -> 2152 | EU11: =ET11+1 -> 2153 | EV11: =EU11+1 -> 2154 | EW11: =EV11+1 -> 2155 | EX11: =EW11+1 -> 2156 | EY11: =EX11+1 -> 2157 | EZ11: =EY11+1 -> 2158 | FA11: =EZ11+1 -> 2159 | FB11: =FA11+1 -> 2160 | FC11: =FB11+1 -> 2161 | FD11: =FC11+1 -> 2162 | FE11: =FD11+1 -> 2163 | FF11: =FE11+1 -> 2164 | FG11: =FF11+1 -> 2165 | FH11: =FG11+1 -> 2166 | FI11: =FH11+1 -> 2167 | FJ11: =FI11+1 -> 2168 | FK11: =FJ11+1 -> 2169 | FL11: =FK11+1 -> 2170 | FM11: =FL11+1 -> 2171
C12: Global Inflation Basket | J12: % | S12: 0.02 | T12: 0.02 | U12: 0.02 | V12: 0.02 | W12: 0.02 | X12: 0.02 | Y12: 0.02 | Z12: 0.02 | AA12: 0.02 | AB12: 0.02 | AC12: 0.02 | AD12: 0.02 | AE12: 0.02 | AF12: 0.02 | AG12: 0.02 | AH12: 0.02 | AI12: 0.02 | AJ12: 0.02 | AK12: 0.02 | AL12: 0.02 | AM12: 0.02 | AN12: 0.02 | AO12: 0.02 | AP12: 0.02 | AQ12: 0.02 | AR12: 0.02 | AS12: 0.02 | AT12: 0.02 | AU12: 0.02 | AV12: 0.02 | AW12: 0.02 | AX12: 0.02 | AY12: 0.02 | AZ12: 0.02 | BA12: 0.02 | BB12: 0.02 | BC12: 0.02 | BD12: 0.02 | BE12: 0.02 | BF12: 0.02 | BG12: 0.02 | BH12: 0.02 | BI12: 0.02 | BJ12: 0.02 | BK12: 0.02 | BL12: 0.02 | BM12: 0.02 | BN12: 0.02 | BO12: 0.02 | BP12: 0.02 | BQ12: 0.02 | BR12: 0.02 | BS12: 0.02 | BT12: 0.02 | BU12: 0.02 | BV12: 0.02 | BW12: 0.02 | BX12: 0.02 | BY12: 0.02 | BZ12: 0.02 | CA12: 0.02 | CB12: 0.02 | CC12: 0.02 | CD12: 0.02 | CE12: 0.02 | CF12: 0.02 | CG12: 0.02 | CH12: 0.02 | CI12: 0.02 | CJ12: 0.02 | CK12: 0.02 | CL12: 0.02 | CM12: 0.02 | CN12: 0.02 | CO12: 0.02 | CP12: 0.02 | CQ12: 0.02 | CR12: 0.02 | CS12: 0.02 | CT12: 0.02 | CU12: 0.02 | CV12: 0.02 | CW12: 0.02 | CX12: 0.02 | CY12: 0.02 | CZ12: 0.02 | DA12: 0.02 | DB12: 0.02 | DC12: 0.02 | DD12: 0.02 | DE12: 0.02 | DF12: 0.02 | DG12: 0.02 | DH12: 0.02 | DI12: 0.02 | DJ12: 0.02 | DK12: 0.02 | DL12: 0.02 | DM12: 0.02 | DN12: 0.02 | DO12: 0.02 | DP12: 0.02 | DQ12: 0.02 | DR12: 0.02 | DS12: 0.02 | DT12: 0.02 | DU12: 0.02 | DV12: 0.02 | DW12: 0.02 | DX12: 0.02 | DY12: 0.02 | DZ12: 0.02 | EA12: 0.02 | EB12: 0.02 | EC12: 0.02 | ED12: 0.02 | EE12: 0.02 | EF12: 0.02 | EG12: 0.02 | EH12: 0.02 | EI12: 0.02 | EJ12: 0.02 | EK12: 0.02 | EL12: 0.02 | EM12: 0.02 | EN12: 0.02 | EO12: 0.02 | EP12: 0.02 | EQ12: 0.02 | ER12: 0.02 | ES12: 0.02 | ET12: 0.02 | EU12: 0.02 | EV12: 0.02 | EW12: 0.02 | EX12: 0.02 | EY12: 0.02 | EZ12: 0.02 | FA12: 0.02 | FB12: 0.02 | FC12: 0.02 | FD12: 0.02 | FE12: 0.02 | FF12: 0.02 | FG12: 0.02 | FH12: 0.02 | FI12: 0.02 | FJ12: 0.02 | FK12: 0.02 | FL12: 0.02 | FM12: 0.02
B14: 0 | C14: Floating Interest Rates
S15: =S11 -> 2021 | T15: 2022 | U15: 2023 | V15: 2024 | W15: 2025 | X15: 2026 | Y15: 2027 | Z15: 2028 | AA15: 2029 | AB15: 2030 | AC15: 2031 | AD15: 2032 | AE15: 2033 | AF15: 2034 | AG15: 2035 | AH15: 2036 | AI15: 2037 | AJ15: 2038 | AK15: 2039 | AL15: 2040 | AM15: 2041 | AN15: 2042 | AO15: 2043 | AP15: 2044 | AQ15: 2045 | AR15: 2046 | AS15: 2047 | AT15: 2048 | AU15: 2049 | AV15: 2050 | AW15: 2051 | AX15: 2052 | AY15: =AY11 -> 2053 | AZ15: 2054 | BA15: 2055 | BB15: 2056 | BC15: 2057 | BD15: 2058 | BE15: 2059 | BF15: 2060 | BG15: 2061 | BH15: 2062 | BI15: 2063 | BJ15: 2064 | BK15: 2065 | BL15: 2066 | BM15: 2067 | BN15: 2068 | BO15: 2069 | BP15: 2070 | BQ15: 2071 | BR15: 2072 | BS15: 2073 | BT15: 2074 | BU15: 2075 | BV15: 2076 | BW15: 2077 | BX15: 2078 | BY15: 2079 | BZ15: 2080 | CA15: 2081 | CB15: 2082 | CC15: 2083 | CD15: 2084 | CE15: =CE11 -> 2085 | CF15: 2086 | CG15: 2087 | CH15: =CH11 -> 2088 | CI15: 2089 | CJ15: 2090 | CK15: 2091 | CL15: 2092 | CM15: 2093 | CN15: 2094 | CO15: 2095 | CP15: 2096 | CQ15: 2097 | CR15: 2098 | CS15: 2099 | CT15: 2100 | CU15: 2101 | CV15: 2102 | CW15: 2103 | CX15: 2104 | CY15: 2105 | CZ15: 2106 | DA15: 2107 | DB15: 2108 | DC15: 2109 | DD15: 2110 | DE15: 2111 | DF15: 2112 | DG15: 2113 | DH15: 2114 | DI15: 2115 | DJ15: 2116 | DK15: 2117 | DL15: 2118 | DM15: 2119 | DN15: 2120 | DO15: 2121 | DP15: 2122 | DQ15: 2123 | DR15: 2124 | DS15: 2125 | DT15: =DT11 -> 2126 | DU15: 2127 | DV15: 2128 | DW15: 2129 | DX15: 2130 | DY15: 2131 | DZ15: 2132 | EA15: 2133 | EB15: 2134 | EC15: 2135 | ED15: 2136 | EE15: 2137 | EF15: 2138 | EG15: 2139 | EH15: 2140 | EI15: 2141 | EJ15: 2142 | EK15: 2143 | EL15: 2144 | EM15: 2145 | EN15: 2146 | EO15: 2147 | EP15: 2148 | EQ15: 2149 | ER15: 2150 | ES15: 2151 | ET15: 2152 | EU15: 2153 | EV15: 2154 | EW15: 2155 | EX15: 2156 | EY15: 2157 | EZ15: 2158 | FA15: 2159 | FB15: 2160 | FC15: 2161 | FD15: 2162 | FE15: 2163 | FF15: 2164 | FG15: 2165 | FH15: 2166 | FI15: 2167 | FJ15: 2168 | FK15: 2169 | FL15: 2170 | FM15: 2171
C16: LIBOR - 6 month | J16: % | S16: 0.008 | T16: 0.008 | U16: 0.008 | V16: 0.008 | W16: 0.008 | X16: 0.008 | Y16: 0.008 | Z16: 0.008 | AA16: 0.008 | AB16: 0.008 | AC16: 0.008 | AD16: 0.008 | AE16: 0.008 | AF16: 0.008 | AG16: 0.008 | AH16: 0.008 | AI16: 0.008 | AJ16: 0.008 | AK16: 0.008 | AL16: 0.008 | AM16: 0.008 | AN16: 0.008 | AO16: 0.008 | AP16: 0.008 | AQ16: 0.008 | AR16: 0.008 | AS16: 0.008 | AT16: 0.008 | AU16: 0.008 | AV16: 0.008 | AW16: 0.008 | AX16: 0.008 | AY16: 0.008 | AZ16: 0.008 | BA16: 0.008 | BB16: 0.008 | BC16: 0.008 | BD16: 0.008 | BE16: 0.008 | BF16: 0.008 | BG16: 0.008 | BH16: 0.008 | BI16: 0.008 | BJ16: 0.008 | BK16: 0.008 | BL16: 0.008 | BM16: 0.008 | BN16: 0.008 | BO16: 0.008 | BP16: 0.008 | BQ16: 0.008 | BR16: 0.008 | BS16: 0.008 | BT16: 0.008 | BU16: 0.008 | BV16: 0.008 | BW16: 0.008 | BX16: 0.008 | BY16: 0.008 | BZ16: 0.008 | CA16: 0.008 | CB16: 0.008 | CC16: 0.008 | CD16: 0.008 | CE16: 0.008 | CF16: 0.008 | CG16: 0.008 | CH16: 0.008 | CI16: 0.008 | CJ16: 0.008 | CK16: 0.008 | CL16: 0.008 | CM16: 0.008 | CN16: 0.008 | CO16: 0.008 | CP16: 0.008 | CQ16: 0.008 | CR16: 0.008 | CS16: 0.008 | CT16: 0.008 | CU16: 0.008 | CV16: 0.008 | CW16: 0.008 | CX16: 0.008 | CY16: 0.008 | CZ16: 0.008 | DA16: 0.008 | DB16: 0.008 | DC16: 0.008 | DD16: 0.008 | DE16: 0.008 | DF16: 0.008 | DG16: 0.008 | DH16: 0.008 | DI16: 0.008 | DJ16: 0.008 | DK16: 0.008 | DL16: 0.008 | DM16: 0.008 | DN16: 0.008 | DO16: 0.008 | DP16: 0.008 | DQ16: 0.008 | DR16: 0.008 | DS16: 0.008 | DT16: 0.008 | DU16: 0.008 | DV16: 0.008 | DW16: 0.008 | DX16: 0.008 | DY16: 0.008 | DZ16: 0.008 | EA16: 0.008 | EB16: 0.008 | EC16: 0.008 | ED16: 0.008 | EE16: 0.008 | EF16: 0.008 | EG16: 0.008 | EH16: 0.008 | EI16: 0.008 | EJ16: 0.008 | EK16: 0.008 | EL16: 0.008 | EM16: 0.008 | EN16: 0.008 | EO16: 0.008 | EP16: 0.008 | EQ16: 0.008 | ER16: 0.008 | ES16: 0.008 | ET16: 0.008 | EU16: 0.008 | EV16: 0.008 | EW16: 0.008 | EX16: 0.008 | EY16: 0.008 | EZ16: 0.008 | FA16: 0.008 | FB16: 0.008 | FC16: 0.008 | FD16: 0.008 | FE16: 0.008 | FF16: 0.008 | FG16: 0.008 | FH16: 0.008 | FI16: 0.008 | FJ16: 0.008 | FK16: 0.008 | FL16: 0.008 | FM16: 0.008
C17: LIBOR - 3 month | J17: % | S17: 0.02184773752 | T17: 0.02184773752 | U17: 0.02184773752 | V17: 0.02184773752 | W17: 0.02184773752 | X17: 0.02184773752 | Y17: 0.02184773752 | Z17: 0.02184773752 | AA17: 0.02184773752 | AB17: 0.02184773752 | AC17: 0.02184773752 | AD17: 0.02184773752 | AE17: 0.02184773752 | AF17: 0.02184773752 | AG17: 0.02184773752 | AH17: 0.02184773752 | AI17: 0.02184773752 | AJ17: 0.02184773752 | AK17: 0.02184773752 | AL17: 0.02184773752 | AM17: 0.02184773752 | AN17: 0.02184773752 | AO17: 0.02184773752 | AP17: 0.02184773752 | AQ17: 0.02184773752 | AR17: 0.02184773752 | AS17: 0.02184773752 | AT17: 0.02184773752 | AU17: 0.02184773752 | AV17: 0.02184773752 | AW17: 0.02184773752 | AX17: 0.02184773752 | AY17: 0.02184773752 | AZ17: 0.02184773752 | BA17: 0.02184773752 | BB17: 0.02184773752 | BC17: 0.02184773752 | BD17: 0.02184773752 | BE17: 0.02184773752 | BF17: 0.02184773752 | BG17: 0.02184773752 | BH17: 0.02184773752 | BI17: 0.02184773752 | BJ17: 0.02184773752 | BK17: 0.02184773752 | BL17: 0.02184773752 | BM17: 0.02184773752 | BN17: 0.02184773752 | BO17: 0.02184773752 | BP17: 0.02184773752 | BQ17: 0.02184773752 | BR17: 0.02184773752 | BS17: 0.02184773752 | BT17: 0.02184773752 | BU17: 0.02184773752 | BV17: 0.02184773752 | BW17: 0.02184773752 | BX17: 0.02184773752 | BY17: 0.02184773752 | BZ17: 0.02184773752 | CA17: 0.02184773752 | CB17: 0.02184773752 | CC17: 0.02184773752 | CD17: 0.02184773752 | CE17: 0.02184773752 | CF17: 0.02184773752 | CG17: 0.02184773752 | CH17: 0.02184773752 | CI17: 0.02184773752 | CJ17: 0.02184773752 | CK17: 0.02184773752 | CL17: 0.02184773752 | CM17: 0.02184773752 | CN17: 0.02184773752 | CO17: 0.02184773752 | CP17: 0.02184773752 | CQ17: 0.02184773752 | CR17: 0.02184773752 | CS17: 0.02184773752 | CT17: 0.02184773752 | CU17: 0.02184773752 | CV17: 0.02184773752 | CW17: 0.02184773752 | CX17: 0.02184773752 | CY17: 0.02184773752 | CZ17: 0.02184773752 | DA17: 0.02184773752 | DB17: 0.02184773752 | DC17: 0.02184773752 | DD17: 0.02184773752 | DE17: 0.02184773752 | DF17: 0.02184773752 | DG17: 0.02184773752 | DH17: 0.02184773752 | DI17: 0.02184773752 | DJ17: 0.02184773752 | DK17: 0.02184773752 | DL17: 0.02184773752 | DM17: 0.02184773752 | DN17: 0.02184773752 | DO17: 0.02184773752 | DP17: 0.02184773752 | DQ17: 0.02184773752 | DR17: 0.02184773752 | DS17: 0.02184773752 | DT17: 0.02184773752 | DU17: 0.02184773752 | DV17: 0.02184773752 | DW17: 0.02184773752 | DX17: 0.02184773752 | DY17: 0.02184773752 | DZ17: 0.02184773752 | EA17: 0.02184773752 | EB17: 0.02184773752 | EC17: 0.02184773752 | ED17: 0.02184773752 | EE17: 0.02184773752 | EF17: 0.02184773752 | EG17: 0.02184773752 | EH17: 0.02184773752 | EI17: 0.02184773752 | EJ17: 0.02184773752 | EK17: 0.02184773752 | EL17: 0.02184773752 | EM17: 0.02184773752 | EN17: 0.02184773752 | EO17: 0.02184773752 | EP17: 0.02184773752 | EQ17: 0.02184773752 | ER17: 0.02184773752 | ES17: 0.02184773752 | ET17: 0.02184773752 | EU17: 0.02184773752 | EV17: 0.02184773752 | EW17: 0.02184773752 | EX17: 0.02184773752 | EY17: 0.02184773752 | EZ17: 0.02184773752 | FA17: 0.02184773752 | FB17: 0.02184773752 | FC17: 0.02184773752 | FD17: 0.02184773752 | FE17: 0.02184773752 | FF17: 0.02184773752 | FG17: 0.02184773752 | FH17: 0.02184773752 | FI17: 0.02184773752 | FJ17: 0.02184773752 | FK17: 0.02184773752 | FL17: 0.02184773752 | FM17: 0.02184773752
C18: EURIBOR | J18: % | S18: 0.02370835414 | T18: 0.02370835414 | U18: 0.02370835414 | V18: 0.02370835414 | W18: 0.02370835414 | X18: 0.02370835414 | Y18: 0.02370835414 | Z18: 0.02370835414 | AA18: 0.02370835414 | AB18: 0.02370835414 | AC18: 0.02370835414 | AD18: 0.02370835414 | AE18: 0.02370835414 | AF18: 0.02370835414 | AG18: 0.02370835414 | AH18: 0.02370835414 | AI18: 0.02370835414 | AJ18: 0.02370835414 | AK18: 0.02370835414 | AL18: 0.02370835414 | AM18: 0.02370835414 | AN18: 0.02370835414 | AO18: 0.02370835414 | AP18: 0.02370835414 | AQ18: 0.02370835414 | AR18: 0.02370835414 | AS18: 0.02370835414 | AT18: 0.02370835414 | AU18: 0.02370835414 | AV18: 0.02370835414 | AW18: 0.02370835414 | AX18: 0.02370835414 | AY18: 0.02370835414 | AZ18: 0.02370835414 | BA18: 0.02370835414 | BB18: 0.02370835414 | BC18: 0.02370835414 | BD18: 0.02370835414 | BE18: 0.02370835414 | BF18: 0.02370835414 | BG18: 0.02370835414 | BH18: 0.02370835414 | BI18: 0.02370835414 | BJ18: 0.02370835414 | BK18: 0.02370835414 | BL18: 0.02370835414 | BM18: 0.02370835414 | BN18: 0.02370835414 | BO18: 0.02370835414 | BP18: 0.02370835414 | BQ18: 0.02370835414 | BR18: 0.02370835414 | BS18: 0.02370835414 | BT18: 0.02370835414 | BU18: 0.02370835414 | BV18: 0.02370835414 | BW18: 0.02370835414 | BX18: 0.02370835414 | BY18: 0.02370835414 | BZ18: 0.02370835414 | CA18: 0.02370835414 | CB18: 0.02370835414 | CC18: 0.02370835414 | CD18: 0.02370835414 | CE18: 0.02370835414 | CF18: 0.02370835414 | CG18: 0.02370835414 | CH18: 0.02370835414 | CI18: 0.02370835414 | CJ18: 0.02370835414 | CK18: 0.02370835414 | CL18: 0.02370835414 | CM18: 0.02370835414 | CN18: 0.02370835414 | CO18: 0.02370835414 | CP18: 0.02370835414 | CQ18: 0.02370835414 | CR18: 0.02370835414 | CS18: 0.02370835414 | CT18: 0.02370835414 | CU18: 0.02370835414 | CV18: 0.02370835414 | CW18: 0.02370835414 | CX18: 0.02370835414 | CY18: 0.02370835414 | CZ18: 0.02370835414 | DA18: 0.02370835414 | DB18: 0.02370835414 | DC18: 0.02370835414 | DD18: 0.02370835414 | DE18: 0.02370835414 | DF18: 0.02370835414 | DG18: 0.02370835414 | DH18: 0.02370835414 | DI18: 0.02370835414 | DJ18: 0.02370835414 | DK18: 0.02370835414 | DL18: 0.02370835414 | DM18: 0.02370835414 | DN18: 0.02370835414 | DO18: 0.02370835414 | DP18: 0.02370835414 | DQ18: 0.02370835414 | DR18: 0.02370835414 | DS18: 0.02370835414 | DT18: 0.02370835414 | DU18: 0.02370835414 | DV18: 0.02370835414 | DW18: 0.02370835414 | DX18: 0.02370835414 | DY18: 0.02370835414 | DZ18: 0.02370835414 | EA18: 0.02370835414 | EB18: 0.02370835414 | EC18: 0.02370835414 | ED18: 0.02370835414 | EE18: 0.02370835414 | EF18: 0.02370835414 | EG18: 0.02370835414 | EH18: 0.02370835414 | EI18: 0.02370835414 | EJ18: 0.02370835414 | EK18: 0.02370835414 | EL18: 0.02370835414 | EM18: 0.02370835414 | EN18: 0.02370835414 | EO18: 0.02370835414 | EP18: 0.02370835414 | EQ18: 0.02370835414 | ER18: 0.02370835414 | ES18: 0.02370835414 | ET18: 0.02370835414 | EU18: 0.02370835414 | EV18: 0.02370835414 | EW18: 0.02370835414 | EX18: 0.02370835414 | EY18: 0.02370835414 | EZ18: 0.02370835414 | FA18: 0.02370835414 | FB18: 0.02370835414 | FC18: 0.02370835414 | FD18: 0.02370835414 | FE18: 0.02370835414 | FF18: 0.02370835414 | FG18: 0.02370835414 | FH18: 0.02370835414 | FI18: 0.02370835414 | FJ18: 0.02370835414 | FK18: 0.02370835414 | FL18: 0.02370835414 | FM18: 0.02370835414
A20: CAPEX
B22: 0 | C22: S Curve
L23: Check
C24: CAPEX | J24: % | L24: =Q24=1 -> TRUE | Q24: =SUMIF($6:$6,"Const",24:24) -> 1 | S24: 0.06 | T24: 0.06 | U24: 0.06 | V24: 0.07 | W24: 0.07 | X24: 0.07 | Y24: 0.07 | Z24: 0.07 | AA24: 0.07 | AB24: 0.04 | AC24: 0.04 | AD24: 0.04 | AE24: 0.04 | AF24: 0.04 | AG24: 0.05 | AH24: 0.05 | AI24: 0.05 | AJ24: 0.05
C25: [Spare] | J25: % | L25: FALSE | Q25: 0
C26: [Spare] | J26: % | L26: FALSE | Q26: 0
C27: [Spare] | J27: % | L27: FALSE | Q27: 0
C28: [Spare] | J28: % | L28: FALSE | Q28: 0
C29: [Spare] | J29: % | L29: FALSE | Q29: 0
C30: [Spare] | J30: % | L30: FALSE | Q30: 0
C31: [Spare] | J31: % | L31: FALSE | Q31: 0
C32: [Spare] | J32: % | L32: FALSE | Q32: 0
C33: [Spare] | J33: % | L33: FALSE | Q33: 0
C34: [Spare] | J34: % | L34: FALSE
C35: [Spare] | J35: % | L35: FALSE
C36: [Spare] | J36: % | L36: FALSE
C37: [Spare] | J37: % | L37: FALSE
C38: [Spare] | J38: % | L38: FALSE
C39: [Spare] | J39: % | L39: FALSE
C40: [Spare] | J40: % | L40: FALSE
C41: [Spare] | J41: % | L41: FALSE
L42: FALSE
B43: 0 | C43: Check | J43: check | L43: =AND(L24:L41) -> FALSE
A46: Operations
A47: Turbines
B49: Turbine Commissioning | J49: # | Q49: =SUMIF($6:$6,"Const",49:49) -> 6 | S49: 0 | T49: 0 | U49: 0 | V49: 0 | W49: 0 | X49: 0 | Y49: 0 | Z49: 0 | AA49: 0 | AB49: 0 | AC49: 0 | AD49: 0 | AE49: 0 | AF49: 0 | AG49: 0 | AH49: 0 | AI49: 0 | AJ49: 6 | AK49: 6 | AL49: 7 | AM49: 7 | AN49: 7 | AO49: 7 | AP49: 7 | AQ49: 7 | AR49: 6 | AS49: 6 | AT49: 0 | AU49: 0 | AV49: 0
A52: Price Deck
B54: Pricing Scenarios | S54: =S15 -> 2021 | T54: 2022 | U54: 2023 | V54: 2024 | W54: 2025 | X54: 2026 | Y54: 2027 | Z54: 2028 | AA54: 2029 | AB54: 2030 | AC54: 2031 | AD54: 2032 | AE54: 2033 | AF54: 2034 | AG54: 2035 | AH54: 2036 | AI54: 2037 | AJ54: 2038 | AK54: 2039 | AL54: 2040 | AM54: 2041 | AN54: 2042 | AO54: 2043 | AP54: 2044 | AQ54: 2045 | AR54: 2046 | AS54: 2047 | AT54: 2048 | AU54: 2049 | AV54: 2050 | AW54: 2051 | AX54: 2052 | AY54: 2053 | AZ54: 2054 | BA54: 2055 | BB54: 2056 | BC54: 2057 | BD54: 2058 | BE54: 2059 | BF54: 2060 | BG54: 2061 | BH54: 2062 | BI54: 2063 | BJ54: 2064 | BK54: 2065 | BL54: 2066 | BM54: 2067 | BN54: 2068
A55: 1 | B55: Poyry Forecast | J55: $/MWh | S55: 29.70543241 | T55: 28.14937255 | U55: 31.26739138 | V55: 33.87881426 | W55: 38.97372082 | X55: 41.92779136 | Y55: 43.77017334 | Z55: 46.56217212 | AA55: 48.13187178 | AB55: 49.27298186 | AC55: 47.54614907 | AD55: 46.70531183 | AE55: 47.12234421 | AF55: 47.78769084 | AG55: 47.86397374 | AH55: 47.43498759 | AI55: 46.65094868 | AJ55: 47.36908284 | AK55: 46.04344169 | AL55: 45.94626958 | AM55: 45.7586528 | AN55: 45.13858656 | AO55: 55.2 | AP55: 55.2 | AQ55: 55.2 | AR55: 55.2 | AS55: 55.2 | AT55: 55.2 | AU55: 55.2 | AV55: 55.2 | AW55: 55.2 | AX55: 55.2 | AY55: 55.2 | AZ55: 55.2 | BA55: 55.2 | BB55: 55.2 | BC55: 55.2 | BD55: 55.2 | BE55: 55.2 | BF55: 55.2 | BG55: 55.2 | BH55: 55.2 | BI55: 55.2 | BJ55: 55.2 | BK55: 55.2 | BL55: 55.2 | BM55: 55.2 | BN55: 55.2
A56: =A55+1 -> 2 | B56: [spare] | J56: $/MWh
A57: =A56+1 -> 3 | B57: [spare] | J57: $/MWh
A58: 4 | B58: [spare] | J58: $/MWh
A59: 5 | B59: [spare] | J59: $/MWh
A60: 6 | B60: [spare] | J60: $/MWh
A61: 7 | B61: [spare] | J61: $/MWh
A62: 8 | B62: [spare] | J62: $/MWh
A63: 9 | B63: [spare] | J63: $/MWh
B65: Selected | J65: $/MWh | L65: Poyry Forecast | S65: =INDEX(S55:S63,INDEX($A$55:$A$63,MATCH($L$65,$B$55:$B$63,0))) -> 29.70543241 | T65: =INDEX(T55:T63,INDEX($A$55:$A$63,MATCH($L$65,$B$55:$B$63,0))) -> 28.14937255 | U65: =INDEX(U55:U63,INDEX($A$55:$A$63,MATCH($L$65,$B$55:$B$63,0))) -> 31.26739138 | V65: =INDEX(V55:V63,INDEX($A$55:$A$63,MATCH($L$65,$B$55:$B$63,0))) -> 33.87881426 | W65: =INDEX(W55:W63,INDEX($A$55:$A$63,MATCH($L$65,$B$55:$B$63,0))) -> 38.97372082 | X65: =INDEX(X55:X63,INDEX($A$55:$A$63,MATCH($L$65,$B$55:$B$63,0))) -> 41.92779136 | Y65: =INDEX(Y55:Y63,INDEX($A$55:$A$63,MATCH($L$65,$B$55:$B$63,0))) -> 43.77017334 | Z65: =INDEX(Z55:Z63,INDEX($A$55:$A$63,MATCH($L$65,$B$55:$B$63,0))) -> 46.56217212 | AA65: =INDEX(AA55:AA63,INDEX($A$55:$A$63,MATCH($L$65,$B$55:$B$63,0))) -> 48.13187178 | AB65: =INDEX(AB55:AB63,INDEX($A$55:$A$63,MATCH($L$65,$B$55:$B$63,0))) -> 49.27298186 | AC65: =INDEX(AC55:AC63,INDEX($A$55:$A$63,MATCH($L$65,$B$55:$B$63,0))) -> 47.54614907 | AD65: =INDEX(AD55:AD63,INDEX($A$55:$A$63,MATCH($L$65,$B$55:$B$63,0))) -> 46.70531183 | AE65: =INDEX(AE55:AE63,INDEX($A$55:$A$63,MATCH($L$65,$B$55:$B$63,0))) -> 47.12234421 | AF65: =INDEX(AF55:AF63,INDEX($A$55:$A$63,MATCH($L$65,$B$55:$B$63,0))) -> 47.78769084 | AG65: =INDEX(AG55:AG63,INDEX($A$55:$A$63,MATCH($L$65,$B$55:$B$63,0))) -> 47.86397374 | AH65: =INDEX(AH55:AH63,INDEX($A$55:$A$63,MATCH($L$65,$B$55:$B$63,0))) -> 47.43498759 | AI65: =INDEX(AI55:AI63,INDEX($A$55:$A$63,MATCH($L$65,$B$55:$B$63,0))) -> 46.65094868 | AJ65: =INDEX(AJ55:AJ63,INDEX($A$55:$A$63,MATCH($L$65,$B$55:$B$63,0))) -> 47.36908284 | AK65: =INDEX(AK55:AK63,INDEX($A$55:$A$63,MATCH($L$65,$B$55:$B$63,0))) -> 46.04344169 | AL65: =INDEX(AL55:AL63,INDEX($A$55:$A$63,MATCH($L$65,$B$55:$B$63,0))) -> 45.94626958 | AM65: =INDEX(AM55:AM63,INDEX($A$55:$A$63,MATCH($L$65,$B$55:$B$63,0))) -> 45.7586528 | AN65: =INDEX(AN55:AN63,INDEX($A$55:$A$63,MATCH($L$65,$B$55:$B$63,0))) -> 45.13858656 | AO65: =INDEX(AO55:AO63,INDEX($A$55:$A$63,MATCH($L$65,$B$55:$B$63,0))) -> 55.2 | AP65: =INDEX(AP55:AP63,INDEX($A$55:$A$63,MATCH($L$65,$B$55:$B$63,0))) -> 55.2 | AQ65: =INDEX(AQ55:AQ63,INDEX($A$55:$A$63,MATCH($L$65,$B$55:$B$63,0))) -> 55.2 | AR65: =INDEX(AR55:AR63,INDEX($A$55:$A$63,MATCH($L$65,$B$55:$B$63,0))) -> 55.2 | AS65: =INDEX(AS55:AS63,INDEX($A$55:$A$63,MATCH($L$65,$B$55:$B$63,0))) -> 55.2 | AT65: =INDEX(AT55:AT63,INDEX($A$55:$A$63,MATCH($L$65,$B$55:$B$63,0))) -> 55.2 | AU65: =INDEX(AU55:AU63,INDEX($A$55:$A$63,MATCH($L$65,$B$55:$B$63,0))) -> 55.2 | AV65: =INDEX(AV55:AV63,INDEX($A$55:$A$63,MATCH($L$65,$B$55:$B$63,0))) -> 55.2 | AW65: =INDEX(AW55:AW63,INDEX($A$55:$A$63,MATCH($L$65,$B$55:$B$63,0))) -> 55.2 | AX65: =INDEX(AX55:AX63,INDEX($A$55:$A$63,MATCH($L$65,$B$55:$B$63,0))) -> 55.2 | AY65: =INDEX(AY55:AY63,INDEX($A$55:$A$63,MATCH($L$65,$B$55:$B$63,0))) -> 55.2 | AZ65: =INDEX(AZ55:AZ63,INDEX($A$55:$A$63,MATCH($L$65,$B$55:$B$63,0))) -> 55.2 | BA65: =INDEX(BA55:BA63,INDEX($A$55:$A$63,MATCH($L$65,$B$55:$B$63,0))) -> 55.2 | BB65: =INDEX(BB55:BB63,INDEX($A$55:$A$63,MATCH($L$65,$B$55:$B$63,0))) -> 55.2 | BC65: =INDEX(BC55:BC63,INDEX($A$55:$A$63,MATCH($L$65,$B$55:$B$63,0))) -> 55.2 | BD65: =INDEX(BD55:BD63,INDEX($A$55:$A$63,MATCH($L$65,$B$55:$B$63,0))) -> 55.2 | BE65: =INDEX(BE55:BE63,INDEX($A$55:$A$63,MATCH($L$65,$B$55:$B$63,0))) -> 55.2 | BF65: =INDEX(BF55:BF63,INDEX($A$55:$A$63,MATCH($L$65,$B$55:$B$63,0))) -> 55.2 | BG65: =INDEX(BG55:BG63,INDEX($A$55:$A$63,MATCH($L$65,$B$55:$B$63,0))) -> 55.2 | BH65: =INDEX(BH55:BH63,INDEX($A$55:$A$63,MATCH($L$65,$B$55:$B$63,0))) -> 55.2 | BI65: =INDEX(BI55:BI63,INDEX($A$55:$A$63,MATCH($L$65,$B$55:$B$63,0))) -> 55.2 | BJ65: =INDEX(BJ55:BJ63,INDEX($A$55:$A$63,MATCH($L$65,$B$55:$B$63,0))) -> 55.2 | BK65: =INDEX(BK55:BK63,INDEX($A$55:$A$63,MATCH($L$65,$B$55:$B$63,0))) -> 55.2 | BL65: =INDEX(BL55:BL63,INDEX($A$55:$A$63,MATCH($L$65,$B$55:$B$63,0))) -> 55.2 | BM65: =INDEX(BM55:BM63,INDEX($A$55:$A$63,MATCH($L$65,$B$55:$B$63,0))) -> 55.2 | BN65: =INDEX(BN55:BN63,INDEX($A$55:$A$63,MATCH($L$65,$B$55:$B$63,0))) -> 55.2 | BO65: =INDEX(BO55:BO63,INDEX($A$55:$A$63,MATCH($L$65,$B$55:$B$63,0))) -> 0 | BP65: =INDEX(BP55:BP63,INDEX($A$55:$A$63,MATCH($L$65,$B$55:$B$63,0))) -> 0 | BQ65: =INDEX(BQ55:BQ63,INDEX($A$55:$A$63,MATCH($L$65,$B$55:$B$63,0))) -> 0 | BR65: =INDEX(BR55:BR63,INDEX($A$55:$A$63,MATCH($L$65,$B$55:$B$63,0))) -> 0 | BS65: =INDEX(BS55:BS63,INDEX($A$55:$A$63,MATCH($L$65,$B$55:$B$63,0))) -> 0 | BT65: =INDEX(BT55:BT63,INDEX($A$55:$A$63,MATCH($L$65,$B$55:$B$63,0))) -> 0 | BU65: =INDEX(BU55:BU63,INDEX($A$55:$A$63,MATCH($L$65,$B$55:$B$63,0))) -> 0 | BV65: =INDEX(BV55:BV63,INDEX($A$55:$A$63,MATCH($L$65,$B$55:$B$63,0))) -> 0 | BW65: =INDEX(BW55:BW63,INDEX($A$55:$A$63,MATCH($L$65,$B$55:$B$63,0))) -> 0 | BX65: =INDEX(BX55:BX63,INDEX($A$55:$A$63,MATCH($L$65,$B$55:$B$63,0))) -> 0 | BY65: =INDEX(BY55:BY63,INDEX($A$55:$A$63,MATCH($L$65,$B$55:$B$63,0))) -> 0 | BZ65: =INDEX(BZ55:BZ63,INDEX($A$55:$A$63,MATCH($L$65,$B$55:$B$63,0))) -> 0 | CA65: =INDEX(CA55:CA63,INDEX($A$55:$A$63,MATCH($L$65,$B$55:$B$63,0))) -> 0 | CB65: =INDEX(CB55:CB63,INDEX($A$55:$A$63,MATCH($L$65,$B$55:$B$63,0))) -> 0 | CC65: =INDEX(CC55:CC63,INDEX($A$55:$A$63,MATCH($L$65,$B$55:$B$63,0))) -> 0 | CD65: =INDEX(CD55:CD63,INDEX($A$55:$A$63,MATCH($L$65,$B$55:$B$63,0))) -> 0 | CE65: =INDEX(CE55:CE63,INDEX($A$55:$A$63,MATCH($L$65,$B$55:$B$63,0))) -> 0 | CF65: =INDEX(CF55:CF63,INDEX($A$55:$A$63,MATCH($L$65,$B$55:$B$63,0))) -> 0 | CG65: =INDEX(CG55:CG63,INDEX($A$55:$A$63,MATCH($L$65,$B$55:$B$63,0))) -> 0 | CH65: =INDEX(CH55:CH63,INDEX($A$55:$A$63,MATCH($L$65,$B$55:$B$63,0))) -> 0 | CI65: =INDEX(CI55:CI63,INDEX($A$55:$A$63,MATCH($L$65,$B$55:$B$63,0))) -> 0 | CJ65: =INDEX(CJ55:CJ63,INDEX($A$55:$A$63,MATCH($L$65,$B$55:$B$63,0))) -> 0 | CK65: =INDEX(CK55:CK63,INDEX($A$55:$A$63,MATCH($L$65,$B$55:$B$63,0))) -> 0 | CL65: =INDEX(CL55:CL63,INDEX($A$55:$A$63,MATCH($L$65,$B$55:$B$63,0))) -> 0 | CM65: =INDEX(CM55:CM63,INDEX($A$55:$A$63,MATCH($L$65,$B$55:$B$63,0))) -> 0 | CN65: =INDEX(CN55:CN63,INDEX($A$55:$A$63,MATCH($L$65,$B$55:$B$63,0))) -> 0 | CO65: =INDEX(CO55:CO63,INDEX($A$55:$A$63,MATCH($L$65,$B$55:$B$63,0))) -> 0 | CP65: =INDEX(CP55:CP63,INDEX($A$55:$A$63,MATCH($L$65,$B$55:$B$63,0))) -> 0 | CQ65: =INDEX(CQ55:CQ63,INDEX($A$55:$A$63,MATCH($L$65,$B$55:$B$63,0))) -> 0 | CR65: =INDEX(CR55:CR63,INDEX($A$55:$A$63,MATCH($L$65,$B$55:$B$63,0))) -> 0 | CS65: =INDEX(CS55:CS63,INDEX($A$55:$A$63,MATCH($L$65,$B$55:$B$63,0))) -> 0 | CT65: =INDEX(CT55:CT63,INDEX($A$55:$A$63,MATCH($L$65,$B$55:$B$63,0))) -> 0 | CU65: =INDEX(CU55:CU63,INDEX($A$55:$A$63,MATCH($L$65,$B$55:$B$63,0))) -> 0 | CV65: =INDEX(CV55:CV63,INDEX($A$55:$A$63,MATCH($L$65,$B$55:$B$63,0))) -> 0 | CW65: =INDEX(CW55:CW63,INDEX($A$55:$A$63,MATCH($L$65,$B$55:$B$63,0))) -> 0 | CX65: =INDEX(CX55:CX63,INDEX($A$55:$A$63,MATCH($L$65,$B$55:$B$63,0))) -> 0 | CY65: =INDEX(CY55:CY63,INDEX($A$55:$A$63,MATCH($L$65,$B$55:$B$63,0))) -> 0 | CZ65: =INDEX(CZ55:CZ63,INDEX($A$55:$A$63,MATCH($L$65,$B$55:$B$63,0))) -> 0 | DA65: =INDEX(DA55:DA63,INDEX($A$55:$A$63,MATCH($L$65,$B$55:$B$63,0))) -> 0 | DB65: =INDEX(DB55:DB63,INDEX($A$55:$A$63,MATCH($L$65,$B$55:$B$63,0))) -> 0 | DC65: =INDEX(DC55:DC63,INDEX($A$55:$A$63,MATCH($L$65,$B$55:$B$63,0))) -> 0 | DD65: =INDEX(DD55:DD63,INDEX($A$55:$A$63,MATCH($L$65,$B$55:$B$63,0))) -> 0 | DE65: =INDEX(DE55:DE63,INDEX($A$55:$A$63,MATCH($L$65,$B$55:$B$63,0))) -> 0 | DF65: =INDEX(DF55:DF63,INDEX($A$55:$A$63,MATCH($L$65,$B$55:$B$63,0))) -> 0 | DG65: =INDEX(DG55:DG63,INDEX($A$55:$A$63,MATCH($L$65,$B$55:$B$63,0))) -> 0 | DH65: =INDEX(DH55:DH63,INDEX($A$55:$A$63,MATCH($L$65,$B$55:$B$63,0))) -> 0 | DI65: =INDEX(DI55:DI63,INDEX($A$55:$A$63,MATCH($L$65,$B$55:$B$63,0))) -> 0 | DJ65: =INDEX(DJ55:DJ63,INDEX($A$55:$A$63,MATCH($L$65,$B$55:$B$63,0))) -> 0 | DK65: =INDEX(DK55:DK63,INDEX($A$55:$A$63,MATCH($L$65,$B$55:$B$63,0))) -> 0 | DL65: =INDEX(DL55:DL63,INDEX($A$55:$A$63,MATCH($L$65,$B$55:$B$63,0))) -> 0 | DM65: =INDEX(DM55:DM63,INDEX($A$55:$A$63,MATCH($L$65,$B$55:$B$63,0))) -> 0 | DN65: =INDEX(DN55:DN63,INDEX($A$55:$A$63,MATCH($L$65,$B$55:$B$63,0))) -> 0 | DO65: =INDEX(DO55:DO63,INDEX($A$55:$A$63,MATCH($L$65,$B$55:$B$63,0))) -> 0 | DP65: =INDEX(DP55:DP63,INDEX($A$55:$A$63,MATCH($L$65,$B$55:$B$63,0))) -> 0 | DQ65: =INDEX(DQ55:DQ63,INDEX($A$55:$A$63,MATCH($L$65,$B$55:$B$63,0))) -> 0 | DR65: =INDEX(DR55:DR63,INDEX($A$55:$A$63,MATCH($L$65,$B$55:$B$63,0))) -> 0 | DS65: =INDEX(DS55:DS63,INDEX($A$55:$A$63,MATCH($L$65,$B$55:$B$63,0))) -> 0 | DT65: =INDEX(DT55:DT63,INDEX($A$55:$A$63,MATCH($L$65,$B$55:$B$63,0))) -> 0 | DU65: =INDEX(DU55:DU63,INDEX($A$55:$A$63,MATCH($L$65,$B$55:$B$63,0))) -> 0 | DV65: =INDEX(DV55:DV63,INDEX($A$55:$A$63,MATCH($L$65,$B$55:$B$63,0))) -> 0 | DW65: =INDEX(DW55:DW63,INDEX($A$55:$A$63,MATCH($L$65,$B$55:$B$63,0))) -> 0 | DX65: =INDEX(DX55:DX63,INDEX($A$55:$A$63,MATCH($L$65,$B$55:$B$63,0))) -> 0 | DY65: =INDEX(DY55:DY63,INDEX($A$55:$A$63,MATCH($L$65,$B$55:$B$63,0))) -> 0 | DZ65: =INDEX(DZ55:DZ63,INDEX($A$55:$A$63,MATCH($L$65,$B$55:$B$63,0))) -> 0 | EA65: =INDEX(EA55:EA63,INDEX($A$55:$A$63,MATCH($L$65,$B$55:$B$63,0))) -> 0 | EB65: =INDEX(EB55:EB63,INDEX($A$55:$A$63,MATCH($L$65,$B$55:$B$63,0))) -> 0 | EC65: =INDEX(EC55:EC63,INDEX($A$55:$A$63,MATCH($L$65,$B$55:$B$63,0))) -> 0 | ED65: =INDEX(ED55:ED63,INDEX($A$55:$A$63,MATCH($L$65,$B$55:$B$63,0))) -> 0 | EE65: =INDEX(EE55:EE63,INDEX($A$55:$A$63,MATCH($L$65,$B$55:$B$63,0))) -> 0 | EF65: =INDEX(EF55:EF63,INDEX($A$55:$A$63,MATCH($L$65,$B$55:$B$63,0))) -> 0 | EG65: =INDEX(EG55:EG63,INDEX($A$55:$A$63,MATCH($L$65,$B$55:$B$63,0))) -> 0 | EH65: =INDEX(EH55:EH63,INDEX($A$55:$A$63,MATCH($L$65,$B$55:$B$63,0))) -> 0 | EI65: =INDEX(EI55:EI63,INDEX($A$55:$A$63,MATCH($L$65,$B$55:$B$63,0))) -> 0 | EJ65: =INDEX(EJ55:EJ63,INDEX($A$55:$A$63,MATCH($L$65,$B$55:$B$63,0))) -> 0 | EK65: =INDEX(EK55:EK63,INDEX($A$55:$A$63,MATCH($L$65,$B$55:$B$63,0))) -> 0 | EL65: =INDEX(EL55:EL63,INDEX($A$55:$A$63,MATCH($L$65,$B$55:$B$63,0))) -> 0 | EM65: =INDEX(EM55:EM63,INDEX($A$55:$A$63,MATCH($L$65,$B$55:$B$63,0))) -> 0 | EN65: =INDEX(EN55:EN63,INDEX($A$55:$A$63,MATCH($L$65,$B$55:$B$63,0))) -> 0 | EO65: =INDEX(EO55:EO63,INDEX($A$55:$A$63,MATCH($L$65,$B$55:$B$63,0))) -> 0 | EP65: =INDEX(EP55:EP63,INDEX($A$55:$A$63,MATCH($L$65,$B$55:$B$63,0))) -> 0 | EQ65: =INDEX(EQ55:EQ63,INDEX($A$55:$A$63,MATCH($L$65,$B$55:$B$63,0))) -> 0 | ER65: =INDEX(ER55:ER63,INDEX($A$55:$A$63,MATCH($L$65,$B$55:$B$63,0))) -> 0 | ES65: =INDEX(ES55:ES63,INDEX($A$55:$A$63,MATCH($L$65,$B$55:$B$63,0))) -> 0 | ET65: =INDEX(ET55:ET63,INDEX($A$55:$A$63,MATCH($L$65,$B$55:$B$63,0))) -> 0 | EU65: =INDEX(EU55:EU63,INDEX($A$55:$A$63,MATCH($L$65,$B$55:$B$63,0))) -> 0 | EV65: =INDEX(EV55:EV63,INDEX($A$55:$A$63,MATCH($L$65,$B$55:$B$63,0))) -> 0 | EW65: =INDEX(EW55:EW63,INDEX($A$55:$A$63,MATCH($L$65,$B$55:$B$63,0))) -> 0 | EX65: =INDEX(EX55:EX63,INDEX($A$55:$A$63,MATCH($L$65,$B$55:$B$63,0))) -> 0 | EY65: =INDEX(EY55:EY63,INDEX($A$55:$A$63,MATCH($L$65,$B$55:$B$63,0))) -> 0 | EZ65: =INDEX(EZ55:EZ63,INDEX($A$55:$A$63,MATCH($L$65,$B$55:$B$63,0))) -> 0 | FA65: =INDEX(FA55:FA63,INDEX($A$55:$A$63,MATCH($L$65,$B$55:$B$63,0))) -> 0 | FB65: =INDEX(FB55:FB63,INDEX($A$55:$A$63,MATCH($L$65,$B$55:$B$63,0))) -> 0 | FC65: =INDEX(FC55:FC63,INDEX($A$55:$A$63,MATCH($L$65,$B$55:$B$63,0))) -> 0 | FD65: =INDEX(FD55:FD63,INDEX($A$55:$A$63,MATCH($L$65,$B$55:$B$63,0))) -> 0 | FE65: =INDEX(FE55:FE63,INDEX($A$55:$A$63,MATCH($L$65,$B$55:$B$63,0))) -> 0 | FF65: =INDEX(FF55:FF63,INDEX($A$55:$A$63,MATCH($L$65,$B$55:$B$63,0))) -> 0 | FG65: =INDEX(FG55:FG63,INDEX($A$55:$A$63,MATCH($L$65,$B$55:$B$63,0))) -> 0 | FH65: =INDEX(FH55:FH63,INDEX($A$55:$A$63,MATCH($L$65,$B$55:$B$63,0))) -> 0 | FI65: =INDEX(FI55:FI63,INDEX($A$55:$A$63,MATCH($L$65,$B$55:$B$63,0))) -> 0 | FJ65: =INDEX(FJ55:FJ63,INDEX($A$55:$A$63,MATCH($L$65,$B$55:$B$63,0))) -> 0 | FK65: =INDEX(FK55:FK63,INDEX($A$55:$A$63,MATCH($L$65,$B$55:$B$63,0))) -> 0 | FL65: =INDEX(FL55:FL63,INDEX($A$55:$A$63,MATCH($L$65,$B$55:$B$63,0))) -> 0 | FM65: =INDEX(FM55:FM63,INDEX($A$55:$A$63,MATCH($L$65,$B$55:$B$63,0))) -> 0
A68: Debt Repayment Schedule
B70: First Repayment Period | J70: date | L70: =Time!K134 -> 2022-07-01
B71: Maturity | J71: date | L71: =Time!K136 -> 2044-07-01
B72: Repayment Periods | J72: # | L72: =Time!P135 -> 89
B75: Pricing Scenarios | L75: Check | M75: Balloon | S75: =1 -> 1 | T75: =IF(S75<=$L72,IF(S75=$L72,"",S75+1),"") -> 2 | U75: 3 | V75: 4 | W75: 5 | X75: 6 | Y75: 7 | Z75: 8 | AA75: 9 | AB75: 10 | AC75: 11 | AD75: 12 | AE75: 13 | AF75: 14 | AG75: 15 | AH75: 16 | AI75: 17 | AJ75: 18 | AK75: 19 | AL75: 20 | AM75: 21 | AN75: 22 | AO75: 23 | AP75: 24 | AQ75: 25 | AR75: 26 | AS75: 27 | AT75: 28 | AU75: 29 | AV75: 30 | AW75: 31 | AX75: 32 | AY75: 33 | AZ75: =IF(AY75<=$L72,IF(AY75=$L72,"",AY75+1),"") -> 34 | BA75: 35 | BB75: 36 | BC75: 37 | BD75: 38 | BE75: 39 | BF75: 40 | BG75: 41 | BH75: 42 | BI75: 43 | BJ75: 44 | BK75: 45 | BL75: 46 | BM75: 47 | BN75: 48 | BO75: 49 | BP75: 50 | BQ75: 51 | BR75: 52 | BS75: 53 | BT75: 54 | BU75: 55 | BV75: 56 | BW75: 57 | BX75: 58 | BY75: 59 | BZ75: 60 | CA75: 61 | CB75: 62 | CC75: 63 | CD75: 64 | CE75: 65 | CF75: =IF(CE75<=$L72,IF(CE75=$L72,"",CE75+1),"") -> 66 | CG75: 67 | CH75: 68 | CI75: 69 | CJ75: 70 | CK75: 71 | CL75: 72 | CM75: 73 | CN75: 74 | CO75: 75 | CP75: 76 | CQ75: 77 | CR75: 78 | CS75: 79 | CT75: 80 | CU75: 81 | CV75: 82 | CW75: 83 | CX75: 84 | CY75: 85 | CZ75: 86 | DA75: 87 | DB75: 88 | DC75: 89 | DL75: =IF(DK75<=$L72,IF(DK75=$L72,"",DK75+1),"") ->  | ER75: =IF(EQ75<=$L72,IF(EQ75=$L72,"",EQ75+1),"") -> 
A76: 1 | B76: Straight | J76: % | L76: =IF(OR(Q76=1,M76=0),TRUE,FALSE) -> TRUE | M76: =IF(Q76>0,ROUND(1-Q76,5),0) -> 0 | Q76: =SUM(S76:FM76) -> 1 | S76: =1/MAX($S$75:$FM$75) -> 0.01123595506 | T76: =1/MAX($S$75:$FM$75) -> 0.01123595506 | U76: 0.01123595506 | V76: 0.01123595506 | W76: 0.01123595506 | X76: 0.01123595506 | Y76: 0.01123595506 | Z76: 0.01123595506 | AA76: 0.01123595506 | AB76: 0.01123595506 | AC76: 0.01123595506 | AD76: 0.01123595506 | AE76: 0.01123595506 | AF76: 0.01123595506 | AG76: 0.01123595506 | AH76: 0.01123595506 | AI76: 0.01123595506 | AJ76: 0.01123595506 | AK76: 0.01123595506 | AL76: 0.01123595506 | AM76: 0.01123595506 | AN76: 0.01123595506 | AO76: 0.01123595506 | AP76: 0.01123595506 | AQ76: 0.01123595506 | AR76: 0.01123595506 | AS76: 0.01123595506 | AT76: 0.01123595506 | AU76: 0.01123595506 | AV76: 0.01123595506 | AW76: 0.01123595506 | AX76: 0.01123595506 | AY76: 0.01123595506 | AZ76: 0.01123595506 | BA76: 0.01123595506 | BB76: 0.01123595506 | BC76: 0.01123595506 | BD76: 0.01123595506 | BE76: 0.01123595506 | BF76: 0.01123595506 | BG76: 0.01123595506 | BH76: 0.01123595506 | BI76: 0.01123595506 | BJ76: 0.01123595506 | BK76: 0.01123595506 | BL76: 0.01123595506 | BM76: 0.01123595506 | BN76: 0.01123595506 | BO76: 0.01123595506 | BP76: 0.01123595506 | BQ76: 0.01123595506 | BR76: 0.01123595506 | BS76: 0.01123595506 | BT76: 0.01123595506 | BU76: 0.01123595506 | BV76: 0.01123595506 | BW76: 0.01123595506 | BX76: 0.01123595506 | BY76: 0.01123595506 | BZ76: 0.01123595506 | CA76: 0.01123595506 | CB76: 0.01123595506 | CC76: 0.01123595506 | CD76: 0.01123595506 | CE76: 0.01123595506 | CF76: =1/MAX($S$75:$FM$75) -> 0.01123595506 | CG76: 0.01123595506 | CH76: 0.01123595506 | CI76: 0.01123595506 | CJ76: 0.01123595506 | CK76: 0.01123595506 | CL76: 0.01123595506 | CM76: 0.01123595506 | CN76: 0.01123595506 | CO76: 0.01123595506 | CP76: 0.01123595506 | CQ76: 0.01123595506 | CR76: 0.01123595506 | CS76: 0.01123595506 | CT76: 0.01123595506 | CU76: 0.01123595506 | CV76: 0.01123595506 | CW76: 0.01123595506 | CX76: 0.01123595506 | CY76: 0.01123595506 | CZ76: 0.01123595506 | DA76: 0.01123595506 | DB76: 0.01123595506 | DC76: 0.01123595506
A77: =A76+1 -> 2 | B77: Custom | J77: % | L77: =IF(OR(Q77=1,M77=0),TRUE,FALSE) -> TRUE | M77: =IF(Q77>0,ROUND(1-Q77,5),0) -> 0 | Q77: =SUM(S77:FM77) -> 1 | S77: 0.005 | T77: 0.005 | U77: 0.005 | V77: 0.005 | W77: 0.005 | X77: 0.005 | Y77: 0.005 | Z77: 0.005 | AA77: 0.005 | AB77: 0.005 | AC77: 0.005 | AD77: 0.005 | AE77: 0.005 | AF77: 0.005 | AG77: 0.005 | AH77: 0.005 | AI77: 0.005 | AJ77: 0.005 | AK77: 0.005 | AL77: 0.005 | AM77: 0.005 | AN77: 0.005 | AO77: 0.005 | AP77: 0.005 | AQ77: 0.005 | AR77: 0.005 | AS77: 0.005 | AT77: 0.005 | AU77: 0.005 | AV77: 0.005 | AW77: 0.005 | AX77: 0.005 | AY77: 0.005 | AZ77: 0.005 | BA77: 0.005 | BB77: 0.005 | BC77: 0.005 | BD77: 0.005 | BE77: 0.005 | BF77: 0.005 | BG77: 0.005 | BH77: 0.005 | BI77: 0.005 | BJ77: 0.005 | BK77: 0.005 | BL77: 0.005 | BM77: 0.005 | BN77: 0.005 | BO77: 0.005 | BP77: 0.005 | BQ77: 0.005 | BR77: 0.005 | BS77: 0.005 | BT77: 0.005 | BU77: 0.005 | BV77: 0.005 | BW77: 0.005 | BX77: 0.01 | BY77: 0.01 | BZ77: 0.01 | CA77: 0.01 | CB77: 0.01 | CC77: 0.01 | CD77: 0.015 | CE77: 0.015 | CF77: 0.015 | CG77: 0.02 | CH77: 0.02 | CI77: 0.02 | CJ77: 0.02 | CK77: 0.02 | CL77: 0.02 | CM77: 0.02 | CN77: 0.02 | CO77: 0.02 | CP77: 0.02 | CQ77: 0.02 | CR77: 0.02 | CS77: 0.03 | CT77: 0.03 | CU77: 0.03 | CV77: 0.03 | CW77: 0.03 | CX77: 0.03 | CY77: 0.03 | CZ77: 0.04 | DA77: 0.04 | DB77: 0.04 | DC77: 0.04
A78: =A77+1 -> 3 | B78: [spare] | J78: % | L78: TRUE | M78: 0 | Q78: 0
A79: 4 | B79: [spare] | J79: % | L79: TRUE | M79: 0 | Q79: 0
A80: 5 | B80: [spare] | J80: % | L80: TRUE | M80: 0 | Q80: 0
A81: 6 | B81: [spare] | J81: % | L81: TRUE | M81: 0 | Q81: 0
A82: 7 | B82: [spare] | J82: % | L82: TRUE | M82: 0 | Q82: 0
B84: Selected | J84: $/MWh | L84: Straight | M84: 0 | Q84: 1 | S84: =INDEX(S76:S82,INDEX($A$76:$A$82,MATCH($L$84,$B$76:$B$82,0))) -> 0.01123595506 | T84: =INDEX(T76:T82,INDEX($A$76:$A$82,MATCH($L$84,$B$76:$B$82,0))) -> 0.01123595506 | U84: =INDEX(U76:U82,INDEX($A$76:$A$82,MATCH($L$84,$B$76:$B$82,0))) -> 0.01123595506 | V84: =INDEX(V76:V82,INDEX($A$76:$A$82,MATCH($L$84,$B$76:$B$82,0))) -> 0.01123595506 | W84: =INDEX(W76:W82,INDEX($A$76:$A$82,MATCH($L$84,$B$76:$B$82,0))) -> 0.01123595506 | X84: =INDEX(X76:X82,INDEX($A$76:$A$82,MATCH($L$84,$B$76:$B$82,0))) -> 0.01123595506 | Y84: =INDEX(Y76:Y82,INDEX($A$76:$A$82,MATCH($L$84,$B$76:$B$82,0))) -> 0.01123595506 | Z84: =INDEX(Z76:Z82,INDEX($A$76:$A$82,MATCH($L$84,$B$76:$B$82,0))) -> 0.01123595506 | AA84: =INDEX(AA76:AA82,INDEX($A$76:$A$82,MATCH($L$84,$B$76:$B$82,0))) -> 0.01123595506 | AB84: =INDEX(AB76:AB82,INDEX($A$76:$A$82,MATCH($L$84,$B$76:$B$82,0))) -> 0.01123595506 | AC84: =INDEX(AC76:AC82,INDEX($A$76:$A$82,MATCH($L$84,$B$76:$B$82,0))) -> 0.01123595506 | AD84: =INDEX(AD76:AD82,INDEX($A$76:$A$82,MATCH($L$84,$B$76:$B$82,0))) -> 0.01123595506 | AE84: =INDEX(AE76:AE82,INDEX($A$76:$A$82,MATCH($L$84,$B$76:$B$82,0))) -> 0.01123595506 | AF84: =INDEX(AF76:AF82,INDEX($A$76:$A$82,MATCH($L$84,$B$76:$B$82,0))) -> 0.01123595506 | AG84: =INDEX(AG76:AG82,INDEX($A$76:$A$82,MATCH($L$84,$B$76:$B$82,0))) -> 0.01123595506 | AH84: =INDEX(AH76:AH82,INDEX($A$76:$A$82,MATCH($L$84,$B$76:$B$82,0))) -> 0.01123595506 | AI84: =INDEX(AI76:AI82,INDEX($A$76:$A$82,MATCH($L$84,$B$76:$B$82,0))) -> 0.01123595506 | AJ84: =INDEX(AJ76:AJ82,INDEX($A$76:$A$82,MATCH($L$84,$B$76:$B$82,0))) -> 0.01123595506 | AK84: =INDEX(AK76:AK82,INDEX($A$76:$A$82,MATCH($L$84,$B$76:$B$82,0))) -> 0.01123595506 | AL84: =INDEX(AL76:AL82,INDEX($A$76:$A$82,MATCH($L$84,$B$76:$B$82,0))) -> 0.01123595506 | AM84: =INDEX(AM76:AM82,INDEX($A$76:$A$82,MATCH($L$84,$B$76:$B$82,0))) -> 0.01123595506 | AN84: =INDEX(AN76:AN82,INDEX($A$76:$A$82,MATCH($L$84,$B$76:$B$82,0))) -> 0.01123595506 | AO84: =INDEX(AO76:AO82,INDEX($A$76:$A$82,MATCH($L$84,$B$76:$B$82,0))) -> 0.01123595506 | AP84: =INDEX(AP76:AP82,INDEX($A$76:$A$82,MATCH($L$84,$B$76:$B$82,0))) -> 0.01123595506 | AQ84: =INDEX(AQ76:AQ82,INDEX($A$76:$A$82,MATCH($L$84,$B$76:$B$82,0))) -> 0.01123595506 | AR84: =INDEX(AR76:AR82,INDEX($A$76:$A$82,MATCH($L$84,$B$76:$B$82,0))) -> 0.01123595506 | AS84: =INDEX(AS76:AS82,INDEX($A$76:$A$82,MATCH($L$84,$B$76:$B$82,0))) -> 0.01123595506 | AT84: =INDEX(AT76:AT82,INDEX($A$76:$A$82,MATCH($L$84,$B$76:$B$82,0))) -> 0.01123595506 | AU84: =INDEX(AU76:AU82,INDEX($A$76:$A$82,MATCH($L$84,$B$76:$B$82,0))) -> 0.01123595506 | AV84: =INDEX(AV76:AV82,INDEX($A$76:$A$82,MATCH($L$84,$B$76:$B$82,0))) -> 0.01123595506 | AW84: =INDEX(AW76:AW82,INDEX($A$76:$A$82,MATCH($L$84,$B$76:$B$82,0))) -> 0.01123595506 | AX84: =INDEX(AX76:AX82,INDEX($A$76:$A$82,MATCH($L$84,$B$76:$B$82,0))) -> 0.01123595506 | AY84: =INDEX(AY76:AY82,INDEX($A$76:$A$82,MATCH($L$84,$B$76:$B$82,0))) -> 0.01123595506 | AZ84: =INDEX(AZ76:AZ82,INDEX($A$76:$A$82,MATCH($L$84,$B$76:$B$82,0))) -> 0.01123595506 | BA84: =INDEX(BA76:BA82,INDEX($A$76:$A$82,MATCH($L$84,$B$76:$B$82,0))) -> 0.01123595506 | BB84: =INDEX(BB76:BB82,INDEX($A$76:$A$82,MATCH($L$84,$B$76:$B$82,0))) -> 0.01123595506 | BC84: =INDEX(BC76:BC82,INDEX($A$76:$A$82,MATCH($L$84,$B$76:$B$82,0))) -> 0.01123595506 | BD84: =INDEX(BD76:BD82,INDEX($A$76:$A$82,MATCH($L$84,$B$76:$B$82,0))) -> 0.01123595506 | BE84: =INDEX(BE76:BE82,INDEX($A$76:$A$82,MATCH($L$84,$B$76:$B$82,0))) -> 0.01123595506 | BF84: =INDEX(BF76:BF82,INDEX($A$76:$A$82,MATCH($L$84,$B$76:$B$82,0))) -> 0.01123595506 | BG84: =INDEX(BG76:BG82,INDEX($A$76:$A$82,MATCH($L$84,$B$76:$B$82,0))) -> 0.01123595506 | BH84: =INDEX(BH76:BH82,INDEX($A$76:$A$82,MATCH($L$84,$B$76:$B$82,0))) -> 0.01123595506 | BI84: =INDEX(BI76:BI82,INDEX($A$76:$A$82,MATCH($L$84,$B$76:$B$82,0))) -> 0.01123595506 | BJ84: =INDEX(BJ76:BJ82,INDEX($A$76:$A$82,MATCH($L$84,$B$76:$B$82,0))) -> 0.01123595506 | BK84: =INDEX(BK76:BK82,INDEX($A$76:$A$82,MATCH($L$84,$B$76:$B$82,0))) -> 0.01123595506 | BL84: =INDEX(BL76:BL82,INDEX($A$76:$A$82,MATCH($L$84,$B$76:$B$82,0))) -> 0.01123595506 | BM84: =INDEX(BM76:BM82,INDEX($A$76:$A$82,MATCH($L$84,$B$76:$B$82,0))) -> 0.01123595506 | BN84: =INDEX(BN76:BN82,INDEX($A$76:$A$82,MATCH($L$84,$B$76:$B$82,0))) -> 0.01123595506 | BO84: =INDEX(BO76:BO82,INDEX($A$76:$A$82,MATCH($L$84,$B$76:$B$82,0))) -> 0.01123595506 | BP84: =INDEX(BP76:BP82,INDEX($A$76:$A$82,MATCH($L$84,$B$76:$B$82,0))) -> 0.01123595506 | BQ84: =INDEX(BQ76:BQ82,INDEX($A$76:$A$82,MATCH($L$84,$B$76:$B$82,0))) -> 0.01123595506 | BR84: =INDEX(BR76:BR82,INDEX($A$76:$A$82,MATCH($L$84,$B$76:$B$82,0))) -> 0.01123595506 | BS84: =INDEX(BS76:BS82,INDEX($A$76:$A$82,MATCH($L$84,$B$76:$B$82,0))) -> 0.01123595506 | BT84: =INDEX(BT76:BT82,INDEX($A$76:$A$82,MATCH($L$84,$B$76:$B$82,0))) -> 0.01123595506 | BU84: =INDEX(BU76:BU82,INDEX($A$76:$A$82,MATCH($L$84,$B$76:$B$82,0))) -> 0.01123595506 | BV84: =INDEX(BV76:BV82,INDEX($A$76:$A$82,MATCH($L$84,$B$76:$B$82,0))) -> 0.01123595506 | BW84: =INDEX(BW76:BW82,INDEX($A$76:$A$82,MATCH($L$84,$B$76:$B$82,0))) -> 0.01123595506 | BX84: =INDEX(BX76:BX82,INDEX($A$76:$A$82,MATCH($L$84,$B$76:$B$82,0))) -> 0.01123595506 | BY84: =INDEX(BY76:BY82,INDEX($A$76:$A$82,MATCH($L$84,$B$76:$B$82,0))) -> 0.01123595506 | BZ84: =INDEX(BZ76:BZ82,INDEX($A$76:$A$82,MATCH($L$84,$B$76:$B$82,0))) -> 0.01123595506 | CA84: =INDEX(CA76:CA82,INDEX($A$76:$A$82,MATCH($L$84,$B$76:$B$82,0))) -> 0.01123595506 | CB84: =INDEX(CB76:CB82,INDEX($A$76:$A$82,MATCH($L$84,$B$76:$B$82,0))) -> 0.01123595506 | CC84: =INDEX(CC76:CC82,INDEX($A$76:$A$82,MATCH($L$84,$B$76:$B$82,0))) -> 0.01123595506 | CD84: =INDEX(CD76:CD82,INDEX($A$76:$A$82,MATCH($L$84,$B$76:$B$82,0))) -> 0.01123595506 | CE84: =INDEX(CE76:CE82,INDEX($A$76:$A$82,MATCH($L$84,$B$76:$B$82,0))) -> 0.01123595506 | CF84: =INDEX(CF76:CF82,INDEX($A$76:$A$82,MATCH($L$84,$B$76:$B$82,0))) -> 0.01123595506 | CG84: =INDEX(CG76:CG82,INDEX($A$76:$A$82,MATCH($L$84,$B$76:$B$82,0))) -> 0.01123595506 | CH84: =INDEX(CH76:CH82,INDEX($A$76:$A$82,MATCH($L$84,$B$76:$B$82,0))) -> 0.01123595506 | CI84: =INDEX(CI76:CI82,INDEX($A$76:$A$82,MATCH($L$84,$B$76:$B$82,0))) -> 0.01123595506 | CJ84: =INDEX(CJ76:CJ82,INDEX($A$76:$A$82,MATCH($L$84,$B$76:$B$82,0))) -> 0.01123595506 | CK84: =INDEX(CK76:CK82,INDEX($A$76:$A$82,MATCH($L$84,$B$76:$B$82,0))) -> 0.01123595506 | CL84: =INDEX(CL76:CL82,INDEX($A$76:$A$82,MATCH($L$84,$B$76:$B$82,0))) -> 0.01123595506 | CM84: =INDEX(CM76:CM82,INDEX($A$76:$A$82,MATCH($L$84,$B$76:$B$82,0))) -> 0.01123595506 | CN84: =INDEX(CN76:CN82,INDEX($A$76:$A$82,MATCH($L$84,$B$76:$B$82,0))) -> 0.01123595506 | CO84: =INDEX(CO76:CO82,INDEX($A$76:$A$82,MATCH($L$84,$B$76:$B$82,0))) -> 0.01123595506 | CP84: =INDEX(CP76:CP82,INDEX($A$76:$A$82,MATCH($L$84,$B$76:$B$82,0))) -> 0.01123595506 | CQ84: =INDEX(CQ76:CQ82,INDEX($A$76:$A$82,MATCH($L$84,$B$76:$B$82,0))) -> 0.01123595506 | CR84: =INDEX(CR76:CR82,INDEX($A$76:$A$82,MATCH($L$84,$B$76:$B$82,0))) -> 0.01123595506 | CS84: =INDEX(CS76:CS82,INDEX($A$76:$A$82,MATCH($L$84,$B$76:$B$82,0))) -> 0.01123595506 | CT84: =INDEX(CT76:CT82,INDEX($A$76:$A$82,MATCH($L$84,$B$76:$B$82,0))) -> 0.01123595506 | CU84: =INDEX(CU76:CU82,INDEX($A$76:$A$82,MATCH($L$84,$B$76:$B$82,0))) -> 0.01123595506 | CV84: =INDEX(CV76:CV82,INDEX($A$76:$A$82,MATCH($L$84,$B$76:$B$82,0))) -> 0.01123595506 | CW84: =INDEX(CW76:CW82,INDEX($A$76:$A$82,MATCH($L$84,$B$76:$B$82,0))) -> 0.01123595506 | CX84: =INDEX(CX76:CX82,INDEX($A$76:$A$82,MATCH($L$84,$B$76:$B$82,0))) -> 0.01123595506 | CY84: =INDEX(CY76:CY82,INDEX($A$76:$A$82,MATCH($L$84,$B$76:$B$82,0))) -> 0.01123595506 | CZ84: =INDEX(CZ76:CZ82,INDEX($A$76:$A$82,MATCH($L$84,$B$76:$B$82,0))) -> 0.01123595506 | DA84: =INDEX(DA76:DA82,INDEX($A$76:$A$82,MATCH($L$84,$B$76:$B$82,0))) -> 0.01123595506 | DB84: =INDEX(DB76:DB82,INDEX($A$76:$A$82,MATCH($L$84,$B$76:$B$82,0))) -> 0.01123595506 | DC84: =INDEX(DC76:DC82,INDEX($A$76:$A$82,MATCH($L$84,$B$76:$B$82,0))) -> 0.01123595506 | DD84: =INDEX(DD76:DD82,INDEX($A$76:$A$82,MATCH($L$84,$B$76:$B$82,0))) -> 0 | DE84: =INDEX(DE76:DE82,INDEX($A$76:$A$82,MATCH($L$84,$B$76:$B$82,0))) -> 0 | DF84: =INDEX(DF76:DF82,INDEX($A$76:$A$82,MATCH($L$84,$B$76:$B$82,0))) -> 0 | DG84: =INDEX(DG76:DG82,INDEX($A$76:$A$82,MATCH($L$84,$B$76:$B$82,0))) -> 0 | DH84: =INDEX(DH76:DH82,INDEX($A$76:$A$82,MATCH($L$84,$B$76:$B$82,0))) -> 0 | DI84: =INDEX(DI76:DI82,INDEX($A$76:$A$82,MATCH($L$84,$B$76:$B$82,0))) -> 0 | DJ84: =INDEX(DJ76:DJ82,INDEX($A$76:$A$82,MATCH($L$84,$B$76:$B$82,0))) -> 0 | DK84: =INDEX(DK76:DK82,INDEX($A$76:$A$82,MATCH($L$84,$B$76:$B$82,0))) -> 0 | DL84: =INDEX(DL76:DL82,INDEX($A$76:$A$82,MATCH($L$84,$B$76:$B$82,0))) -> 0 | DM84: =INDEX(DM76:DM82,INDEX($A$76:$A$82,MATCH($L$84,$B$76:$B$82,0))) -> 0 | DN84: =INDEX(DN76:DN82,INDEX($A$76:$A$82,MATCH($L$84,$B$76:$B$82,0))) -> 0 | DO84: =INDEX(DO76:DO82,INDEX($A$76:$A$82,MATCH($L$84,$B$76:$B$82,0))) -> 0 | DP84: =INDEX(DP76:DP82,INDEX($A$76:$A$82,MATCH($L$84,$B$76:$B$82,0))) -> 0 | DQ84: =INDEX(DQ76:DQ82,INDEX($A$76:$A$82,MATCH($L$84,$B$76:$B$82,0))) -> 0 | DR84: =INDEX(DR76:DR82,INDEX($A$76:$A$82,MATCH($L$84,$B$76:$B$82,0))) -> 0 | DS84: =INDEX(DS76:DS82,INDEX($A$76:$A$82,MATCH($L$84,$B$76:$B$82,0))) -> 0 | DT84: =INDEX(DT76:DT82,INDEX($A$76:$A$82,MATCH($L$84,$B$76:$B$82,0))) -> 0 | DU84: =INDEX(DU76:DU82,INDEX($A$76:$A$82,MATCH($L$84,$B$76:$B$82,0))) -> 0 | DV84: =INDEX(DV76:DV82,INDEX($A$76:$A$82,MATCH($L$84,$B$76:$B$82,0))) -> 0 | DW84: =INDEX(DW76:DW82,INDEX($A$76:$A$82,MATCH($L$84,$B$76:$B$82,0))) -> 0 | DX84: =INDEX(DX76:DX82,INDEX($A$76:$A$82,MATCH($L$84,$B$76:$B$82,0))) -> 0 | DY84: =INDEX(DY76:DY82,INDEX($A$76:$A$82,MATCH($L$84,$B$76:$B$82,0))) -> 0 | DZ84: =INDEX(DZ76:DZ82,INDEX($A$76:$A$82,MATCH($L$84,$B$76:$B$82,0))) -> 0 | EA84: =INDEX(EA76:EA82,INDEX($A$76:$A$82,MATCH($L$84,$B$76:$B$82,0))) -> 0 | EB84: =INDEX(EB76:EB82,INDEX($A$76:$A$82,MATCH($L$84,$B$76:$B$82,0))) -> 0 | EC84: =INDEX(EC76:EC82,INDEX($A$76:$A$82,MATCH($L$84,$B$76:$B$82,0))) -> 0 | ED84: =INDEX(ED76:ED82,INDEX($A$76:$A$82,MATCH($L$84,$B$76:$B$82,0))) -> 0 | EE84: =INDEX(EE76:EE82,INDEX($A$76:$A$82,MATCH($L$84,$B$76:$B$82,0))) -> 0 | EF84: =INDEX(EF76:EF82,INDEX($A$76:$A$82,MATCH($L$84,$B$76:$B$82,0))) -> 0 | EG84: =INDEX(EG76:EG82,INDEX($A$76:$A$82,MATCH($L$84,$B$76:$B$82,0))) -> 0 | EH84: =INDEX(EH76:EH82,INDEX($A$76:$A$82,MATCH($L$84,$B$76:$B$82,0))) -> 0 | EI84: =INDEX(EI76:EI82,INDEX($A$76:$A$82,MATCH($L$84,$B$76:$B$82,0))) -> 0 | EJ84: =INDEX(EJ76:EJ82,INDEX($A$76:$A$82,MATCH($L$84,$B$76:$B$82,0))) -> 0 | EK84: =INDEX(EK76:EK82,INDEX($A$76:$A$82,MATCH($L$84,$B$76:$B$82,0))) -> 0 | EL84: =INDEX(EL76:EL82,INDEX($A$76:$A$82,MATCH($L$84,$B$76:$B$82,0))) -> 0 | EM84: =INDEX(EM76:EM82,INDEX($A$76:$A$82,MATCH($L$84,$B$76:$B$82,0))) -> 0 | EN84: =INDEX(EN76:EN82,INDEX($A$76:$A$82,MATCH($L$84,$B$76:$B$82,0))) -> 0 | EO84: =INDEX(EO76:EO82,INDEX($A$76:$A$82,MATCH($L$84,$B$76:$B$82,0))) -> 0 | EP84: =INDEX(EP76:EP82,INDEX($A$76:$A$82,MATCH($L$84,$B$76:$B$82,0))) -> 0 | EQ84: =INDEX(EQ76:EQ82,INDEX($A$76:$A$82,MATCH($L$84,$B$76:$B$82,0))) -> 0 | ER84: =INDEX(ER76:ER82,INDEX($A$76:$A$82,MATCH($L$84,$B$76:$B$82,0))) -> 0 | ES84: =INDEX(ES76:ES82,INDEX($A$76:$A$82,MATCH($L$84,$B$76:$B$82,0))) -> 0 | ET84: =INDEX(ET76:ET82,INDEX($A$76:$A$82,MATCH($L$84,$B$76:$B$82,0))) -> 0 | EU84: =INDEX(EU76:EU82,INDEX($A$76:$A$82,MATCH($L$84,$B$76:$B$82,0))) -> 0 | EV84: =INDEX(EV76:EV82,INDEX($A$76:$A$82,MATCH($L$84,$B$76:$B$82,0))) -> 0 | EW84: =INDEX(EW76:EW82,INDEX($A$76:$A$82,MATCH($L$84,$B$76:$B$82,0))) -> 0 | EX84: =INDEX(EX76:EX82,INDEX($A$76:$A$82,MATCH($L$84,$B$76:$B$82,0))) -> 0 | EY84: =INDEX(EY76:EY82,INDEX($A$76:$A$82,MATCH($L$84,$B$76:$B$82,0))) -> 0 | EZ84: =INDEX(EZ76:EZ82,INDEX($A$76:$A$82,MATCH($L$84,$B$76:$B$82,0))) -> 0 | FA84: =INDEX(FA76:FA82,INDEX($A$76:$A$82,MATCH($L$84,$B$76:$B$82,0))) -> 0 | FB84: =INDEX(FB76:FB82,INDEX($A$76:$A$82,MATCH($L$84,$B$76:$B$82,0))) -> 0 | FC84: =INDEX(FC76:FC82,INDEX($A$76:$A$82,MATCH($L$84,$B$76:$B$82,0))) -> 0 | FD84: =INDEX(FD76:FD82,INDEX($A$76:$A$82,MATCH($L$84,$B$76:$B$82,0))) -> 0 | FE84: =INDEX(FE76:FE82,INDEX($A$76:$A$82,MATCH($L$84,$B$76:$B$82,0))) -> 0 | FF84: =INDEX(FF76:FF82,INDEX($A$76:$A$82,MATCH($L$84,$B$76:$B$82,0))) -> 0 | FG84: =INDEX(FG76:FG82,INDEX($A$76:$A$82,MATCH($L$84,$B$76:$B$82,0))) -> 0 | FH84: =INDEX(FH76:FH82,INDEX($A$76:$A$82,MATCH($L$84,$B$76:$B$82,0))) -> 0 | FI84: =INDEX(FI76:FI82,INDEX($A$76:$A$82,MATCH($L$84,$B$76:$B$82,0))) -> 0 | FJ84: =INDEX(FJ76:FJ82,INDEX($A$76:$A$82,MATCH($L$84,$B$76:$B$82,0))) -> 0 | FK84: =INDEX(FK76:FK82,INDEX($A$76:$A$82,MATCH($L$84,$B$76:$B$82,0))) -> 0 | FL84: =INDEX(FL76:FL82,INDEX($A$76:$A$82,MATCH($L$84,$B$76:$B$82,0))) -> 0 | FM84: =INDEX(FM76:FM82,INDEX($A$76:$A$82,MATCH($L$84,$B$76:$B$82,0))) -> 0
A87: End Sheet

Sheet Sens
F2: 1 | H2: 1 | I2: =H2+1 -> 2 | J2: 3 | K2: 4 | L2: 5 | M2: 6 | N2: 7 | O2: 8 | P2: 9 | Q2: 10 | R2: 11 | S2: 12 | T2: 13 | U2: 14 | V2: 15 | W2: 16 | X2: 17
F3: =INDEX(H3:X7,,F2) -> Base Case | H3: Base Case | I3: ="CAPEX "&IF(I13>0,"+ ","- ")&(ABS(I13)*100)&"%" -> CAPEX + 10% | J3: ="OPEX "&IF(J14>0,"+ ","- ")&(ABS(J14)*100)&"%" -> OPEX + 10% | K3: ="Generation "&IF(K15>0,"+ ","- ")&(ABS(K15)*100)&"%" -> Generation - 10% | L3: ="Availability "&IF(L16>0,"+ ","- ")&(ABS(L16)*100)&"%" -> Availability - 10% | M3: ="Power Price "&IF(M17>0,"+ ","- ")&(ABS(M17)*100)&"%" -> Power Price - 10% | N3: ="CfD Level "&IF(N18>0,"+ ","- ")&(ABS(N18)*100)&"%" -> CfD Level - 10% | O3: ="Cost of Debt "&IF(O19>0,"+ ","- ")&(ABS(O19)*100)&"%" -> Cost of Debt + 10% | P3: [spare] | Q3: [spare] | R3: [spare] | S3: [spare] | T3: Combined Downside | U3: Spare | V3: Spare | W3: Spare | X3: Spare
A9: Scenario Manager
B12: =TRANSPOSE(H3:T7) -> Base Case | E12: % | F12: =INDEX(H12:X12,,$F$2) -> 0 | H12: 0 | I12: 0 | J12: 0 | K12: 0 | L12: 0 | M12: 0 | N12: 0 | O12: 0 | P12: 0 | Q12: 0 | R12: 0 | S12: 0 | T12: 0 | U12: 0 | V12: 0 | W12: 0 | X12: 0
B13: CAPEX + 10% | E13: % | F13: 0 | H13: 0 | I13: 0.1 | J13: 0 | K13: 0 | L13: 0 | M13: 0 | N13: 0 | O13: 0 | P13: 0 | Q13: 0 | R13: 0 | S13: 0 | T13: =I13 -> 0.1 | U13: 0 | V13: 0 | W13: 0 | X13: 0
B14: OPEX + 10% | E14: % | F14: 0 | H14: 0 | I14: 0 | J14: 0.1 | K14: 0 | L14: 0 | M14: 0 | N14: 0 | O14: 0 | P14: 0 | Q14: 0 | R14: 0 | S14: 0 | T14: =J14 -> 0.1 | U14: 0 | V14: 0 | W14: 0 | X14: 0
B15: Generation - 10% | E15: % | F15: 0 | H15: 0 | I15: 0 | J15: 0 | K15: -0.1 | L15: 0 | M15: 0 | N15: 0 | O15: 0 | P15: 0 | Q15: 0 | R15: 0 | S15: 0 | T15: =K15 -> -0.1 | U15: 0 | V15: 0 | W15: 0 | X15: 0
B16: Availability - 10% | E16: % | F16: 0 | H16: 0 | I16: 0 | J16: 0 | K16: 0 | L16: -0.1 | M16: 0 | N16: 0 | O16: 0 | P16: 0 | Q16: 0 | R16: 0 | S16: 0 | T16: =L16 -> -0.1 | U16: 0 | V16: 0 | W16: 0 | X16: 0
B17: Power Price - 10% | E17: % | F17: 0 | H17: 0 | I17: 0 | J17: 0 | K17: 0 | L17: 0 | M17: -0.1 | N17: 0 | O17: 0 | P17: 0 | Q17: 0 | R17: 0 | S17: 0 | T17: =M17 -> -0.1 | U17: 0 | V17: 0 | W17: 0 | X17: 0
B18: CfD Level - 10% | E18: % | F18: 0 | H18: 0 | I18: 0 | J18: 0 | K18: 0 | L18: 0 | M18: 0 | N18: -0.1 | O18: 0 | P18: 0 | Q18: 0 | R18: 0 | S18: 0 | T18: =N18 -> -0.1 | U18: 0 | V18: 0 | W18: 0 | X18: 0
B19: Cost of Debt + 10% | E19: % | F19: 0 | H19: 0 | I19: 0 | J19: 0 | K19: 0 | L19: 0 | M19: 0 | N19: 0 | O19: 0.1 | P19: 0 | Q19: 0 | R19: 0 | S19: 0 | T19: =O19 -> 0.1 | U19: 0 | V19: 0 | W19: 0 | X19: 0
B20: [spare] | E20: % | F20: 0 | H20: 0 | I20: 0 | J20: 0 | K20: 0 | L20: 0 | M20: 0 | N20: 0 | O20: 0 | P20: 0 | Q20: 0 | R20: 0 | S20: 0 | T20: =P20 -> 0 | U20: 0 | V20: 0 | W20: 0 | X20: 0
B21: [spare] | E21: % | F21: 0 | H21: 0 | I21: 0 | J21: 0 | K21: 0 | L21: 0 | M21: 0 | N21: 0 | O21: 0 | P21: 0 | Q21: 0 | R21: 0 | S21: 0 | T21: =Q21 -> 0 | U21: 0 | V21: 0 | W21: 0 | X21: 0
B22: [spare] | E22: % | F22: 0 | H22: 0 | I22: 0 | J22: 0 | K22: 0 | L22: 0 | M22: 0 | N22: 0 | O22: 0 | P22: 0 | Q22: 0 | R22: 0 | S22: 0 | T22: =R22 -> 0 | U22: 0 | V22: 0 | W22: 0 | X22: 0
B23: [spare] | E23: % | F23: 0 | H23: 0 | I23: 0 | J23: 0 | K23: 0 | L23: 0 | M23: 0 | N23: 0 | O23: 0 | P23: 0 | Q23: 0 | R23: 0 | S23: 0 | T23: =S23 -> 0 | U23: 0 | V23: 0 | W23: 0 | X23: 0
B24: Combined Downside | E24: % | F24: 0 | H24: 0 | I24: 0 | J24: 0 | K24: 0 | L24: 0 | M24: 0 | N24: 0 | O24: 0 | P24: 0 | Q24: 0 | R24: 0 | S24: 0 | T24: 0 | U24: 0 | V24: 0 | W24: 0 | X24: 0
A27: Results
B29: Scenarios | E29: # | F29: =MAX(H2:T2) -> 13
B31: Checks
B32: Balance Sheet | F32: =BS!L52 -> FALSE
B33: Macro | F33: =Macro_Check -> FALSE
H35: Project IRR | I35: Equity IRR | J35: Project Value | K35: Equity Value | L35: Avg DSCR | M35: Min DSCR | N35: Avg LLCR | O35: Min LLCR | P35: Avg PLCR | Q35: Min PLCR
H36: % | I36: % | J36: $m | K36: $m | L36: x | M36: x | N36: x | O36: x | P36: x | Q36: x
B37: ="Live Case: "&F3 -> Live Case: Base Case | H37: =Valuation!L27 -> 0.169063729 | I37: =Valuation!L40 -> 5.190443277 | J37: =Valuation!L97 -> 228.5917681 | K37: =Valuation!L110 -> 77.7809129 | L37: =Ratio!I26 -> 5.068249372 | M37: =Ratio!J26 -> 1.285310114 | N37: =Ratio!I77 -> 38.74907964 | O37: =Ratio!J77 -> 2.807969045 | P37: =Ratio!I111 -> 66.22956998 | Q37: =Ratio!J111 -> 3.185857379
B38: =B12 -> Base Case | H38: 0.07044127285 | I38: 0.1274216592 | J38: 201.8073663 | K38: 7.903548064 | L38: 2.335149354 | M38: 1.86400958 | N38: 2.558770529 | O38: 2.323736078 | P38: 3.654663232 | Q38: 2.468278667
B39: =B13 -> CAPEX + 10% | H39: 0.06174294651 | I39: 0.1028209507 | J39: 142.7411006 | K39: -32.99617408 | L39: 2.145488959 | M39: 1.716709447 | N39: 2.350358155 | O39: 2.135171687 | P39: 3.355155239 | Q39: 2.267651842
B40: OPEX + 10% | H40: 0.06516723335 | I40: 0.113692838 | J40: 157.9000099 | K40: -13.4554977 | L40: 2.211350103 | M40: 1.747204758 | N40: 2.407534398 | O40: 2.190191007 | P40: 3.398049653 | Q40: 2.336785476
B41: Generation - 10% | H41: 0.05518320501 | I41: 0.08462777436 | J41: 78.38737865 | K41: -55.3393149 | L41: 2.001934096 | M41: 1.583369077 | N41: 2.177414646 | O41: 1.982043985 | P41: 3.067356003 | Q41: 2.115156931
B42: Availability - 10% | H42: 0.05518320501 | I42: 0.08462777436 | J42: 78.38737865 | K42: -55.3393149 | L42: 2.001934096 | M42: 1.583369077 | N42: 2.177414646 | O42: 1.982043985 | P42: 3.067356003 | Q42: 2.115156931
B43: Power Price - 10% | H43: 0.07105874717 | I43: 0.1286035359 | J43: 208.6465971 | K43: 9.944821238 | L43: 2.361885969 | M43: 1.879649117 | N43: 2.588875112 | O43: 2.350103852 | P43: 3.637857604 | Q43: 2.488713065
B44: CfD Level - 10% | H44: 0.05560080707 | I44: 0.08574078977 | J44: 80.10331252 | K44: -53.04078334 | L44: 1.998390918 | M44: 1.580148571 | N44: 2.173331511 | O44: 1.978366322 | P44: 3.119401986 | Q44: 2.119170839
B45: Cost of Debt + 10% | H45: 0.07047363222 | I45: 0.1235581815 | J45: 191.6752096 | K45: 1.796765406 | L45: 2.279550244 | M45: 1.805302279 | N45: 2.514733701 | O45: 2.259295981 | P45: 3.592848516 | Q45: 2.393158076
B46: [spare] | H46: 0.07044127285 | I46: 0.1274216592 | J46: 201.8073663 | K46: 7.903548064 | L46: 2.335149354 | M46: 1.86400958 | N46: 2.558770529 | O46: 2.323736078 | P46: 3.654663232 | Q46: 2.468278667
B47: [spare] | H47: 0.07044127285 | I47: 0.1274216592 | J47: 201.8073663 | K47: 7.903548064 | L47: 2.335149354 | M47: 1.86400958 | N47: 2.558770529 | O47: 2.323736078 | P47: 3.654663232 | Q47: 2.468278667
B48: [spare] | H48: 0.07044127285 | I48: 0.1274216592 | J48: 201.8073663 | K48: 7.903548064 | L48: 2.335149354 | M48: 1.86400958 | N48: 2.558770529 | O48: 2.323736078 | P48: 3.654663232 | Q48: 2.468278667
B49: [spare] | H49: 0.07044127285 | I49: 0.1274216592 | J49: 201.8073663 | K49: 7.903548064 | L49: 2.335149354 | M49: 1.86400958 | N49: 2.558770529 | O49: 2.323736078 | P49: 3.654663232 | Q49: 2.468278667
B50: Combined Downside | H50: 0.009277388453 | J50: -240.4448644 | K50: -234.8515654 | L50: 1.166616426 | M50: 0.7616242003 | N50: 1.235266475 | O50: 1.113772369 | P50: 1.628117117 | Q50: 1.186867553
A54: END SHEET
L278: -4.253478881e+27

Sheet WACC (hidden)
A9: Sovereign
B11: ="" ->  | C11: Senegal Sovereign Risk
C13: Senegal Government Bond | J13: % | L13: 0.105
C14: Add: 30 Year Spread | J14: % | L14: 0.011
C15: Less: 30 Year US Treasury Bond | J15: % | L15: 0.041
C16: Senegal Sovereign Risk | J16: % | L16: =L13+L14-L15 -> 0.075
B19: ="" ->  | C19: Risk Free Rate
C21: 30 Year US Treasury Bond | J21: % | L21: =L15 -> 0.041
C22: Add: Senegal Sovereign Risk | J22: % | L22: =L16 -> 0.075
C23: Risk Free Rate | J23: % | L23: =SUM(L21:L22) -> 0.116
A26: Beta Calculation
B28: Company | F28: Ticker | H28: Country | L28: Levered Beta | M28: Net Debt | N28: Market Cap | O28: Income Tax Rate | P28: Debt/Equity | Q28: Unlevered Beta
L29: x | M29: $m | N29: $m | O29: % | P29: % | Q29: x
B31: Wind Power Developer 1 | F31: XX | H31: SENEGAL | L31: 0.87 | M31: 1429 | N31: 1630.6 | O31: 0.28 | P31: =M31/N31 -> 0.8763645284 | Q31: =L31/(1+(1-O31)*P31) -> 0.5334208191
B32: Wind Power Developer 2 | F32: XX | H32: SOUTH AFRICA | L32: 1.09 | M32: 658 | N32: 1905.8 | O32: 0.27 | P32: =M32/N32 -> 0.3452618323 | Q32: =L32/(1+(1-O32)*P32) -> 0.8705784237
B33: Wind Power Developer 3 | F33: XX | H33: MOROCCO | L33: 1.13 | M33: 924 | N33: 661.8 | O33: 0.29 | P33: 1.396192203 | Q33: 0.5674694955
B34: Wind Power Developer 4 | F34: XX | H34: KENYA | L34: 0.9 | M34: 2412 | N34: 2120 | O34: 0.32 | P34: 1.137735849 | Q34: 0.5074252159
B35: Wind Power Developer 5 | F35: XX | H35: GHANA | L35: 0.4 | M35: 1565 | N35: 1940.1 | O35: 0.26 | P35: 0.8066594505 | Q35: 0.2504809244
B36: Wind Power Developer 6 | F36: XX | H36: CAMEROON | L36: 1.19 | M36: 382 | N36: 1550.9 | O36: 0.29 | P36: 0.246308595 | Q36: =L36/(1+(1-O36)*P36) -> 1.012870173
B39: ="" ->  | C39: Levered Beta
C41: Unlevered Beta - Median | J41: x | L41: =MEDIAN(Q31:Q36) -> 0.5504451573
C42: Market Risk Premium | J42: % | L42: 0.067
C43: Construction/Ramp Up Risk | J43: % | L43: 0.02
A46: End Sheet

Sheet Misc (hidden)

Sheet Macro
O3: Period Start: | Q3: =Time!R17 -> 2021-01-01 | R3: =Time!S17 -> 2021-02-01 | S3: =Time!T17 -> 2021-03-01 | T3: =Time!U17 -> 2021-04-01 | U3: =Time!V17 -> 2021-05-01 | V3: =Time!W17 -> 2021-06-01 | W3: =Time!X17 -> 2021-07-01 | X3: =Time!Y17 -> 2021-08-01 | Y3: =Time!Z17 -> 2021-09-01 | Z3: =Time!AA17 -> 2021-10-01 | AA3: =Time!AB17 -> 2021-11-01 | AB3: =Time!AC17 -> 2021-12-01 | AC3: =Time!AD17 -> 2022-01-01 | AD3: =Time!AE17 -> 2022-02-01 | AE3: =Time!AF17 -> 2022-03-01 | AF3: =Time!AG17 -> 2022-04-01 | AG3: =Time!AH17 -> 2022-05-01 | AH3: =Time!AI17 -> 2022-06-01 | AI3: =Time!AJ17 -> 2022-07-01 | AJ3: =Time!AK17 -> 2022-10-01 | AK3: =Time!AL17 -> 2023-01-01 | AL3: =Time!AM17 -> 2023-04-01 | AM3: =Time!AN17 -> 2023-07-01 | AN3: =Time!AO17 -> 2023-10-01 | AO3: =Time!AP17 -> 2024-01-01 | AP3: =Time!AQ17 -> 2024-04-01 | AQ3: =Time!AR17 -> 2024-07-01 | AR3: =Time!AS17 -> 2024-10-01 | AS3: =Time!AT17 -> 2025-01-01 | AT3: =Time!AU17 -> 2025-04-01 | AU3: =Time!AV17 -> 2025-07-01 | AV3: =Time!AW17 -> 2025-10-01 | AW3: =Time!AX17 -> 2026-01-01 | AX3: =Time!AY17 -> 2026-04-01 | AY3: =Time!AZ17 -> 2026-07-01 | AZ3: =Time!BA17 -> 2026-10-01 | BA3: =Time!BB17 -> 2027-01-01 | BB3: =Time!BC17 -> 2027-04-01 | BC3: =Time!BD17 -> 2027-07-01 | BD3: =Time!BE17 -> 2027-10-01 | BE3: =Time!BF17 -> 2028-01-01 | BF3: =Time!BG17 -> 2028-04-01 | BG3: =Time!BH17 -> 2028-07-01 | BH3: =Time!BI17 -> 2028-10-01 | BI3: =Time!BJ17 -> 2029-01-01 | BJ3: =Time!BK17 -> 2029-04-01 | BK3: =Time!BL17 -> 2029-07-01 | BL3: =Time!BM17 -> 2029-10-01 | BM3: =Time!BN17 -> 2030-01-01 | BN3: =Time!BO17 -> 2030-04-01 | BO3: =Time!BP17 -> 2030-07-01 | BP3: =Time!BQ17 -> 2030-10-01 | BQ3: =Time!BR17 -> 2031-01-01 | BR3: =Time!BS17 -> 2031-04-01 | BS3: =Time!BT17 -> 2031-07-01 | BT3: =Time!BU17 -> 2031-10-01 | BU3: =Time!BV17 -> 2032-01-01 | BV3: =Time!BW17 -> 2032-04-01 | BW3: =Time!BX17 -> 2032-07-01 | BX3: =Time!BY17 -> 2032-10-01 | BY3: =Time!BZ17 -> 2033-01-01 | BZ3: =Time!CA17 -> 2033-04-01 | CA3: =Time!CB17 -> 2033-07-01 | CB3: =Time!CC17 -> 2033-10-01 | CC3: =Time!CD17 -> 2034-01-01 | CD3: =Time!CE17 -> 2034-04-01 | CE3: =Time!CF17 -> 2034-07-01 | CF3: =Time!CG17 -> 2034-10-01 | CG3: =Time!CH17 -> 2035-01-01 | CH3: =Time!CI17 -> 2035-04-01 | CI3: =Time!CJ17 -> 2035-07-01 | CJ3: =Time!CK17 -> 2035-10-01 | CK3: =Time!CL17 -> 2036-01-01 | CL3: =Time!CM17 -> 2036-04-01 | CM3: =Time!CN17 -> 2036-07-01 | CN3: =Time!CO17 -> 2036-10-01 | CO3: =Time!CP17 -> 2037-01-01 | CP3: =Time!CQ17 -> 2037-04-01 | CQ3: =Time!CR17 -> 2037-07-01 | CR3: =Time!CS17 -> 2037-10-01 | CS3: =Time!CT17 -> 2038-01-01 | CT3: =Time!CU17 -> 2038-04-01 | CU3: =Time!CV17 -> 2038-07-01 | CV3: =Time!CW17 -> 2038-10-01 | CW3: =Time!CX17 -> 2039-01-01 | CX3: =Time!CY17 -> 2039-04-01 | CY3: =Time!CZ17 -> 2039-07-01 | CZ3: =Time!DA17 -> 2039-10-01 | DA3: =Time!DB17 -> 2040-01-01 | DB3: =Time!DC17 -> 2040-04-01 | DC3: =Time!DD17 -> 2040-07-01 | DD3: =Time!DE17 -> 2040-10-01 | DE3: =Time!DF17 -> 2041-01-01 | DF3: =Time!DG17 -> 2041-04-01 | DG3: =Time!DH17 -> 2041-07-01 | DH3: =Time!DI17 -> 2041-10-01 | DI3: =Time!DJ17 -> 2042-01-01 | DJ3: =Time!DK17 -> 2042-04-01 | DK3: =Time!DL17 -> 2042-07-01 | DL3: =Time!DM17 -> 2042-10-01 | DM3: =Time!DN17 -> 2043-01-01 | DN3: =Time!DO17 -> 2043-04-01 | DO3: =Time!DP17 -> 2043-07-01 | DP3: =Time!DQ17 -> 2043-10-01 | DQ3: =Time!DR17 -> 2044-01-01 | DR3: =Time!DS17 -> 2044-04-01 | DS3: =Time!DT17 -> 2044-07-01 | DT3: =Time!DU17 -> 2044-10-01 | DU3: =Time!DV17 -> 2045-01-01 | DV3: =Time!DW17 -> 2045-04-01 | DW3: =Time!DX17 -> 2045-07-01 | DX3: =Time!DY17 -> 2045-10-01 | DY3: =Time!DZ17 -> 2046-01-01 | DZ3: =Time!EA17 -> 2046-04-01 | EA3: =Time!EB17 -> 2046-07-01 | EB3: =Time!EC17 -> 2046-10-01 | EC3: =Time!ED17 -> 2047-01-01 | ED3: =Time!EE17 -> 2047-04-01 | EE3: =Time!EF17 -> 2047-07-01 | EF3: =Time!EG17 -> 2047-10-01 | EG3: =Time!EH17 -> 2048-01-01 | EH3: =Time!EI17 -> 2048-04-01 | EI3: =Time!EJ17 -> 2048-07-01 | EJ3: =Time!EK17 -> 2048-10-01 | EK3: =Time!EL17 -> 2049-01-01 | EL3: =Time!EM17 -> 2049-04-01 | EM3: =Time!EN17 -> 2049-07-01 | EN3: =Time!EO17 -> 2049-10-01 | EO3: =Time!EP17 -> 2050-01-01 | EP3: =Time!EQ17 -> 2050-04-01 | EQ3: =Time!ER17 -> 2050-07-01 | ER3: =Time!ES17 -> 2050-10-01 | ES3: =Time!ET17 -> 2051-01-01 | ET3: =Time!EU17 -> 2051-04-01 | EU3: =Time!EV17 -> 2051-07-01 | EV3: =Time!EW17 -> 2051-10-01 | EW3: =Time!EX17 -> 2052-01-01 | EX3: =Time!EY17 -> 2052-04-01 | EY3: =Time!EZ17 -> 2052-07-01 | EZ3: =Time!FA17 -> 2052-10-01 | FA3: =Time!FB17 -> 2053-01-01 | FB3: =Time!FC17 -> 2053-04-01 | FC3: =Time!FD17 -> 2053-07-01 | FD3: =Time!FE17 -> 2053-10-01 | FE3: =Time!FF17 -> 2054-01-01 | FF3: =Time!FG17 -> 2054-04-01 | FG3: =Time!FH17 -> 2054-07-01 | FH3: =Time!FI17 -> 2054-10-01 | FI3: =Time!FJ17 -> 2055-01-01 | FJ3: =Time!FK17 -> 2055-04-01 | FK3: =Time!FL17 -> 2055-07-01 | FL3: =Time!FM17 -> 2055-10-01 | FM3: =Time!FN17 -> 2056-01-01 | FN3: =Time!FO17 -> 2056-04-01 | FO3: =Time!FP17 -> 2056-07-01 | FP3: =Time!FQ17 -> 2056-10-01 | FQ3: =Time!FR17 -> 2057-01-01 | FR3: =Time!FS17 -> 2057-04-01 | FS3: =Time!FT17 -> 2057-07-01 | FT3: =Time!FU17 -> 2057-10-01 | FU3: =Time!FV17 -> 2058-01-01 | FV3: =Time!FW17 -> 2058-04-01 | FW3: =Time!FX17 -> 2058-07-01 | FX3: =Time!FY17 -> 2058-10-01 | FY3: =Time!FZ17 -> 2059-01-01 | FZ3: =Time!GA17 -> 2059-04-01 | GA3: =Time!GB17 -> 2059-07-01 | GB3: =Time!GC17 -> 2059-10-01 | GC3: =Time!GD17 -> 2060-01-01 | GD3: =Time!GE17 -> 2060-04-01 | GE3: =Time!GF17 -> 2060-07-01 | GF3: =Time!GG17 -> 2060-10-01 | GG3: =Time!GH17 -> 2061-01-01 | GH3: =Time!GI17 -> 2061-04-01 | GI3: =Time!GJ17 -> 2061-07-01 | GJ3: =Time!GK17 -> 2061-10-01 | GK3: =Time!GL17 -> 2062-01-01 | GL3: =Time!GM17 -> 2062-04-01 | GM3: =Time!GN17 -> 2062-07-01 | GN3: =Time!GO17 -> 2062-10-01 | GO3: =Time!GP17 -> 2063-01-01 | GP3: =Time!GQ17 -> 2063-04-01 | GQ3: =Time!GR17 -> 2063-07-01 | GR3: =Time!GS17 -> 2063-10-01 | GS3: =Time!GT17 -> 2064-01-01 | GT3: =Time!GU17 -> 2064-04-01 | GU3: =Time!GV17 -> 2064-07-01 | GV3: =Time!GW17 -> 2064-10-01 | GW3: =Time!GX17 -> 2065-01-01 | GX3: =Time!GY17 -> 2065-04-01 | GY3: =Time!GZ17 -> 2065-07-01 | GZ3: =Time!HA17 -> 2065-10-01 | HA3: =Time!HB17 -> 2066-01-01 | HB3: =Time!HC17 -> 2066-04-01 | HC3: =Time!HD17 -> 2066-07-01 | HD3: =Time!HE17 -> 2066-10-01 | HE3: =Time!HF17 -> 2067-01-01 | HF3: =Time!HG17 -> 2067-04-01 | HG3: =Time!HH17 -> 2067-07-01 | HH3: =Time!HI17 -> 2067-10-01 | HI3: =Time!HJ17 -> 2068-01-01 | HJ3: =Time!HK17 -> 2068-04-01 | HK3: =Time!HL17 -> 2068-07-01 | HL3: =Time!HM17 -> 2068-10-01 | HM3: =Time!HN17 -> 2069-01-01 | HN3: =Time!HO17 -> 2069-04-01 | HO3: =Time!HP17 -> 2069-07-01 | HP3: =Time!HQ17 -> 2069-10-01 | HQ3: =Time!HR17 -> 2070-01-01 | HR3: =Time!HS17 -> 2070-04-01 | HS3: =Time!HT17 -> 2070-07-01 | HT3: =Time!HU17 -> 2070-10-01 | HU3: =Time!HV17 -> 2071-01-01 | HV3: =Time!HW17 -> 2071-04-01 | HW3: =Time!HX17 -> 2071-07-01 | HX3: =Time!HY17 -> 2071-10-01 | HY3: =Time!HZ17 -> 2072-01-01 | HZ3: =Time!IA17 -> 2072-04-01 | IA3: =Time!IB17 -> 2072-07-01 | IB3: =Time!IC17 -> 2072-10-01 | IC3: =Time!ID17 -> 2073-01-01 | ID3: =Time!IE17 -> 2073-04-01
O4: Period End: | Q4: =Time!R18 -> 2021-01-31 | R4: =Time!S18 -> 2021-02-28 | S4: =Time!T18 -> 2021-03-31 | T4: =Time!U18 -> 2021-04-30 | U4: =Time!V18 -> 2021-05-31 | V4: =Time!W18 -> 2021-06-30 | W4: =Time!X18 -> 2021-07-31 | X4: =Time!Y18 -> 2021-08-31 | Y4: =Time!Z18 -> 2021-09-30 | Z4: =Time!AA18 -> 2021-10-31 | AA4: =Time!AB18 -> 2021-11-30 | AB4: =Time!AC18 -> 2021-12-31 | AC4: =Time!AD18 -> 2022-01-31 | AD4: =Time!AE18 -> 2022-02-28 | AE4: =Time!AF18 -> 2022-03-31 | AF4: =Time!AG18 -> 2022-04-30 | AG4: =Time!AH18 -> 2022-05-31 | AH4: =Time!AI18 -> 2022-06-30 | AI4: =Time!AJ18 -> 2022-09-30 | AJ4: =Time!AK18 -> 2022-12-31 | AK4: =Time!AL18 -> 2023-03-31 | AL4: =Time!AM18 -> 2023-06-30 | AM4: =Time!AN18 -> 2023-09-30 | AN4: =Time!AO18 -> 2023-12-31 | AO4: =Time!AP18 -> 2024-03-31 | AP4: =Time!AQ18 -> 2024-06-30 | AQ4: =Time!AR18 -> 2024-09-30 | AR4: =Time!AS18 -> 2024-12-31 | AS4: =Time!AT18 -> 2025-03-31 | AT4: =Time!AU18 -> 2025-06-30 | AU4: =Time!AV18 -> 2025-09-30 | AV4: =Time!AW18 -> 2025-12-31 | AW4: =Time!AX18 -> 2026-03-31 | AX4: =Time!AY18 -> 2026-06-30 | AY4: =Time!AZ18 -> 2026-09-30 | AZ4: =Time!BA18 -> 2026-12-31 | BA4: =Time!BB18 -> 2027-03-31 | BB4: =Time!BC18 -> 2027-06-30 | BC4: =Time!BD18 -> 2027-09-30 | BD4: =Time!BE18 -> 2027-12-31 | BE4: =Time!BF18 -> 2028-03-31 | BF4: =Time!BG18 -> 2028-06-30 | BG4: =Time!BH18 -> 2028-09-30 | BH4: =Time!BI18 -> 2028-12-31 | BI4: =Time!BJ18 -> 2029-03-31 | BJ4: =Time!BK18 -> 2029-06-30 | BK4: =Time!BL18 -> 2029-09-30 | BL4: =Time!BM18 -> 2029-12-31 | BM4: =Time!BN18 -> 2030-03-31 | BN4: =Time!BO18 -> 2030-06-30 | BO4: =Time!BP18 -> 2030-09-30 | BP4: =Time!BQ18 -> 2030-12-31 | BQ4: =Time!BR18 -> 2031-03-31 | BR4: =Time!BS18 -> 2031-06-30 | BS4: =Time!BT18 -> 2031-09-30 | BT4: =Time!BU18 -> 2031-12-31 | BU4: =Time!BV18 -> 2032-03-31 | BV4: =Time!BW18 -> 2032-06-30 | BW4: =Time!BX18 -> 2032-09-30 | BX4: =Time!BY18 -> 2032-12-31 | BY4: =Time!BZ18 -> 2033-03-31 | BZ4: =Time!CA18 -> 2033-06-30 | CA4: =Time!CB18 -> 2033-09-30 | CB4: =Time!CC18 -> 2033-12-31 | CC4: =Time!CD18 -> 2034-03-31 | CD4: =Time!CE18 -> 2034-06-30 | CE4: =Time!CF18 -> 2034-09-30 | CF4: =Time!CG18 -> 2034-12-31 | CG4: =Time!CH18 -> 2035-03-31 | CH4: =Time!CI18 -> 2035-06-30 | CI4: =Time!CJ18 -> 2035-09-30 | CJ4: =Time!CK18 -> 2035-12-31 | CK4: =Time!CL18 -> 2036-03-31 | CL4: =Time!CM18 -> 2036-06-30 | CM4: =Time!CN18 -> 2036-09-30 | CN4: =Time!CO18 -> 2036-12-31 | CO4: =Time!CP18 -> 2037-03-31 | CP4: =Time!CQ18 -> 2037-06-30 | CQ4: =Time!CR18 -> 2037-09-30 | CR4: =Time!CS18 -> 2037-12-31 | CS4: =Time!CT18 -> 2038-03-31 | CT4: =Time!CU18 -> 2038-06-30 | CU4: =Time!CV18 -> 2038-09-30 | CV4: =Time!CW18 -> 2038-12-31 | CW4: =Time!CX18 -> 2039-03-31 | CX4: =Time!CY18 -> 2039-06-30 | CY4: =Time!CZ18 -> 2039-09-30 | CZ4: =Time!DA18 -> 2039-12-31 | DA4: =Time!DB18 -> 2040-03-31 | DB4: =Time!DC18 -> 2040-06-30 | DC4: =Time!DD18 -> 2040-09-30 | DD4: =Time!DE18 -> 2040-12-31 | DE4: =Time!DF18 -> 2041-03-31 | DF4: =Time!DG18 -> 2041-06-30 | DG4: =Time!DH18 -> 2041-09-30 | DH4: =Time!DI18 -> 2041-12-31 | DI4: =Time!DJ18 -> 2042-03-31 | DJ4: =Time!DK18 -> 2042-06-30 | DK4: =Time!DL18 -> 2042-09-30 | DL4: =Time!DM18 -> 2042-12-31 | DM4: =Time!DN18 -> 2043-03-31 | DN4: =Time!DO18 -> 2043-06-30 | DO4: =Time!DP18 -> 2043-09-30 | DP4: =Time!DQ18 -> 2043-12-31 | DQ4: =Time!DR18 -> 2044-03-31 | DR4: =Time!DS18 -> 2044-06-30 | DS4: =Time!DT18 -> 2044-09-30 | DT4: =Time!DU18 -> 2044-12-31 | DU4: =Time!DV18 -> 2045-03-31 | DV4: =Time!DW18 -> 2045-06-30 | DW4: =Time!DX18 -> 2045-09-30 | DX4: =Time!DY18 -> 2045-12-31 | DY4: =Time!DZ18 -> 2046-03-31 | DZ4: =Time!EA18 -> 2046-06-30 | EA4: =Time!EB18 -> 2046-09-30 | EB4: =Time!EC18 -> 2046-12-31 | EC4: =Time!ED18 -> 2047-03-31 | ED4: =Time!EE18 -> 2047-06-30 | EE4: =Time!EF18 -> 2047-09-30 | EF4: =Time!EG18 -> 2047-12-31 | EG4: =Time!EH18 -> 2048-03-31 | EH4: =Time!EI18 -> 2048-06-30 | EI4: =Time!EJ18 -> 2048-09-30 | EJ4: =Time!EK18 -> 2048-12-31 | EK4: =Time!EL18 -> 2049-03-31 | EL4: =Time!EM18 -> 2049-06-30 | EM4: =Time!EN18 -> 2049-09-30 | EN4: =Time!EO18 -> 2049-12-31 | EO4: =Time!EP18 -> 2050-03-31 | EP4: =Time!EQ18 -> 2050-06-30 | EQ4: =Time!ER18 -> 2050-09-30 | ER4: =Time!ES18 -> 2050-12-31 | ES4: =Time!ET18 -> 2051-03-31 | ET4: =Time!EU18 -> 2051-06-30 | EU4: =Time!EV18 -> 2051-09-30 | EV4: =Time!EW18 -> 2051-12-31 | EW4: =Time!EX18 -> 2052-03-31 | EX4: =Time!EY18 -> 2052-06-30 | EY4: =Time!EZ18 -> 2052-09-30 | EZ4: =Time!FA18 -> 2052-12-31 | FA4: =Time!FB18 -> 2053-03-31 | FB4: =Time!FC18 -> 2053-06-30 | FC4: =Time!FD18 -> 2053-09-30 | FD4: =Time!FE18 -> 2053-12-31 | FE4: =Time!FF18 -> 2054-03-31 | FF4: =Time!FG18 -> 2054-06-30 | FG4: =Time!FH18 -> 2054-09-30 | FH4: =Time!FI18 -> 2054-12-31 | FI4: =Time!FJ18 -> 2055-03-31 | FJ4: =Time!FK18 -> 2055-06-30 | FK4: =Time!FL18 -> 2055-09-30 | FL4: =Time!FM18 -> 2055-12-31 | FM4: =Time!FN18 -> 2056-03-31 | FN4: =Time!FO18 -> 2056-06-30 | FO4: =Time!FP18 -> 2056-09-30 | FP4: =Time!FQ18 -> 2056-12-31 | FQ4: =Time!FR18 -> 2057-03-31 | FR4: =Time!FS18 -> 2057-06-30 | FS4: =Time!FT18 -> 2057-09-30 | FT4: =Time!FU18 -> 2057-12-31 | FU4: =Time!FV18 -> 2058-03-31 | FV4: =Time!FW18 -> 2058-06-30 | FW4: =Time!FX18 -> 2058-09-30 | FX4: =Time!FY18 -> 2058-12-31 | FY4: =Time!FZ18 -> 2059-03-31 | FZ4: =Time!GA18 -> 2059-06-30 | GA4: =Time!GB18 -> 2059-09-30 | GB4: =Time!GC18 -> 2059-12-31 | GC4: =Time!GD18 -> 2060-03-31 | GD4: =Time!GE18 -> 2060-06-30 | GE4: =Time!GF18 -> 2060-09-30 | GF4: =Time!GG18 -> 2060-12-31 | GG4: =Time!GH18 -> 2061-03-31 | GH4: =Time!GI18 -> 2061-06-30 | GI4: =Time!GJ18 -> 2061-09-30 | GJ4: =Time!GK18 -> 2061-12-31 | GK4: =Time!GL18 -> 2062-03-31 | GL4: =Time!GM18 -> 2062-06-30 | GM4: =Time!GN18 -> 2062-09-30 | GN4: =Time!GO18 -> 2062-12-31 | GO4: =Time!GP18 -> 2063-03-31 | GP4: =Time!GQ18 -> 2063-06-30 | GQ4: =Time!GR18 -> 2063-09-30 | GR4: =Time!GS18 -> 2063-12-31 | GS4: =Time!GT18 -> 2064-03-31 | GT4: =Time!GU18 -> 2064-06-30 | GU4: =Time!GV18 -> 2064-09-30 | GV4: =Time!GW18 -> 2064-12-31 | GW4: =Time!GX18 -> 2065-03-31 | GX4: =Time!GY18 -> 2065-06-30 | GY4: =Time!GZ18 -> 2065-09-30 | GZ4: =Time!HA18 -> 2065-12-31 | HA4: =Time!HB18 -> 2066-03-31 | HB4: =Time!HC18 -> 2066-06-30 | HC4: =Time!HD18 -> 2066-09-30 | HD4: =Time!HE18 -> 2066-12-31 | HE4: =Time!HF18 -> 2067-03-31 | HF4: =Time!HG18 -> 2067-06-30 | HG4: =Time!HH18 -> 2067-09-30 | HH4: =Time!HI18 -> 2067-12-31 | HI4: =Time!HJ18 -> 2068-03-31 | HJ4: =Time!HK18 -> 2068-06-30 | HK4: =Time!HL18 -> 2068-09-30 | HL4: =Time!HM18 -> 2068-12-31 | HM4: =Time!HN18 -> 2069-03-31 | HN4: =Time!HO18 -> 2069-06-30 | HO4: =Time!HP18 -> 2069-09-30 | HP4: =Time!HQ18 -> 2069-12-31 | HQ4: =Time!HR18 -> 2070-03-31 | HR4: =Time!HS18 -> 2070-06-30 | HS4: =Time!HT18 -> 2070-09-30 | HT4: =Time!HU18 -> 2070-12-31 | HU4: =Time!HV18 -> 2071-03-31 | HV4: =Time!HW18 -> 2071-06-30 | HW4: =Time!HX18 -> 2071-09-30 | HX4: =Time!HY18 -> 2071-12-31 | HY4: =Time!HZ18 -> 2072-03-31 | HZ4: =Time!IA18 -> 2072-06-30 | IA4: =Time!IB18 -> 2072-09-30 | IB4: =Time!IC18 -> 2072-12-31 | IC4: =Time!ID18 -> 2073-03-31 | ID4: =Time!IE18 -> 2073-06-30
O5: Year: | Q5: =Time!R19 -> 2021 | R5: =Time!S19 -> 2021 | S5: =Time!T19 -> 2021 | T5: =Time!U19 -> 2021 | U5: =Time!V19 -> 2021 | V5: =Time!W19 -> 2021 | W5: =Time!X19 -> 2021 | X5: =Time!Y19 -> 2021 | Y5: =Time!Z19 -> 2021 | Z5: =Time!AA19 -> 2021 | AA5: =Time!AB19 -> 2021 | AB5: =Time!AC19 -> 2021 | AC5: =Time!AD19 -> 2022 | AD5: =Time!AE19 -> 2022 | AE5: =Time!AF19 -> 2022 | AF5: =Time!AG19 -> 2022 | AG5: =Time!AH19 -> 2022 | AH5: =Time!AI19 -> 2022 | AI5: =Time!AJ19 -> 2022 | AJ5: =Time!AK19 -> 2022 | AK5: =Time!AL19 -> 2023 | AL5: =Time!AM19 -> 2023 | AM5: =Time!AN19 -> 2023 | AN5: =Time!AO19 -> 2023 | AO5: =Time!AP19 -> 2024 | AP5: =Time!AQ19 -> 2024 | AQ5: =Time!AR19 -> 2024 | AR5: =Time!AS19 -> 2024 | AS5: =Time!AT19 -> 2025 | AT5: =Time!AU19 -> 2025 | AU5: =Time!AV19 -> 2025 | AV5: =Time!AW19 -> 2025 | AW5: =Time!AX19 -> 2026 | AX5: =Time!AY19 -> 2026 | AY5: =Time!AZ19 -> 2026 | AZ5: =Time!BA19 -> 2026 | BA5: =Time!BB19 -> 2027 | BB5: =Time!BC19 -> 2027 | BC5: =Time!BD19 -> 2027 | BD5: =Time!BE19 -> 2027 | BE5: =Time!BF19 -> 2028 | BF5: =Time!BG19 -> 2028 | BG5: =Time!BH19 -> 2028 | BH5: =Time!BI19 -> 2028 | BI5: =Time!BJ19 -> 2029 | BJ5: =Time!BK19 -> 2029 | BK5: =Time!BL19 -> 2029 | BL5: =Time!BM19 -> 2029 | BM5: =Time!BN19 -> 2030 | BN5: =Time!BO19 -> 2030 | BO5: =Time!BP19 -> 2030 | BP5: =Time!BQ19 -> 2030 | BQ5: =Time!BR19 -> 2031 | BR5: =Time!BS19 -> 2031 | BS5: =Time!BT19 -> 2031 | BT5: =Time!BU19 -> 2031 | BU5: =Time!BV19 -> 2032 | BV5: =Time!BW19 -> 2032 | BW5: =Time!BX19 -> 2032 | BX5: =Time!BY19 -> 2032 | BY5: =Time!BZ19 -> 2033 | BZ5: =Time!CA19 -> 2033 | CA5: =Time!CB19 -> 2033 | CB5: =Time!CC19 -> 2033 | CC5: =Time!CD19 -> 2034 | CD5: =Time!CE19 -> 2034 | CE5: =Time!CF19 -> 2034 | CF5: =Time!CG19 -> 2034 | CG5: =Time!CH19 -> 2035 | CH5: =Time!CI19 -> 2035 | CI5: =Time!CJ19 -> 2035 | CJ5: =Time!CK19 -> 2035 | CK5: =Time!CL19 -> 2036 | CL5: =Time!CM19 -> 2036 | CM5: =Time!CN19 -> 2036 | CN5: =Time!CO19 -> 2036 | CO5: =Time!CP19 -> 2037 | CP5: =Time!CQ19 -> 2037 | CQ5: =Time!CR19 -> 2037 | CR5: =Time!CS19 -> 2037 | CS5: =Time!CT19 -> 2038 | CT5: =Time!CU19 -> 2038 | CU5: =Time!CV19 -> 2038 | CV5: =Time!CW19 -> 2038 | CW5: =Time!CX19 -> 2039 | CX5: =Time!CY19 -> 2039 | CY5: =Time!CZ19 -> 2039 | CZ5: =Time!DA19 -> 2039 | DA5: =Time!DB19 -> 2040 | DB5: =Time!DC19 -> 2040 | DC5: =Time!DD19 -> 2040 | DD5: =Time!DE19 -> 2040 | DE5: =Time!DF19 -> 2041 | DF5: =Time!DG19 -> 2041 | DG5: =Time!DH19 -> 2041 | DH5: =Time!DI19 -> 2041 | DI5: =Time!DJ19 -> 2042 | DJ5: =Time!DK19 -> 2042 | DK5: =Time!DL19 -> 2042 | DL5: =Time!DM19 -> 2042 | DM5: =Time!DN19 -> 2043 | DN5: =Time!DO19 -> 2043 | DO5: =Time!DP19 -> 2043 | DP5: =Time!DQ19 -> 2043 | DQ5: =Time!DR19 -> 2044 | DR5: =Time!DS19 -> 2044 | DS5: =Time!DT19 -> 2044 | DT5: =Time!DU19 -> 2044 | DU5: =Time!DV19 -> 2045 | DV5: =Time!DW19 -> 2045 | DW5: =Time!DX19 -> 2045 | DX5: =Time!DY19 -> 2045 | DY5: =Time!DZ19 -> 2046 | DZ5: =Time!EA19 -> 2046 | EA5: =Time!EB19 -> 2046 | EB5: =Time!EC19 -> 2046 | EC5: =Time!ED19 -> 2047 | ED5: =Time!EE19 -> 2047 | EE5: =Time!EF19 -> 2047 | EF5: =Time!EG19 -> 2047 | EG5: =Time!EH19 -> 2048 | EH5: =Time!EI19 -> 2048 | EI5: =Time!EJ19 -> 2048 | EJ5: =Time!EK19 -> 2048 | EK5: =Time!EL19 -> 2049 | EL5: =Time!EM19 -> 2049 | EM5: =Time!EN19 -> 2049 | EN5: =Time!EO19 -> 2049 | EO5: =Time!EP19 -> 2050 | EP5: =Time!EQ19 -> 2050 | EQ5: =Time!ER19 -> 2050 | ER5: =Time!ES19 -> 2050 | ES5: =Time!ET19 -> 2051 | ET5: =Time!EU19 -> 2051 | EU5: =Time!EV19 -> 2051 | EV5: =Time!EW19 -> 2051 | EW5: =Time!EX19 -> 2052 | EX5: =Time!EY19 -> 2052 | EY5: =Time!EZ19 -> 2052 | EZ5: =Time!FA19 -> 2052 | FA5: =Time!FB19 -> 2053 | FB5: =Time!FC19 -> 2053 | FC5: =Time!FD19 -> 2053 | FD5: =Time!FE19 -> 2053 | FE5: =Time!FF19 -> 2054 | FF5: =Time!FG19 -> 2054 | FG5: =Time!FH19 -> 2054 | FH5: =Time!FI19 -> 2054 | FI5: =Time!FJ19 -> 2055 | FJ5: =Time!FK19 -> 2055 | FK5: =Time!FL19 -> 2055 | FL5: =Time!FM19 -> 2055 | FM5: =Time!FN19 -> 2056 | FN5: =Time!FO19 -> 2056 | FO5: =Time!FP19 -> 2056 | FP5: =Time!FQ19 -> 2056 | FQ5: =Time!FR19 -> 2057 | FR5: =Time!FS19 -> 2057 | FS5: =Time!FT19 -> 2057 | FT5: =Time!FU19 -> 2057 | FU5: =Time!FV19 -> 2058 | FV5: =Time!FW19 -> 2058 | FW5: =Time!FX19 -> 2058 | FX5: =Time!FY19 -> 2058 | FY5: =Time!FZ19 -> 2059 | FZ5: =Time!GA19 -> 2059 | GA5: =Time!GB19 -> 2059 | GB5: =Time!GC19 -> 2059 | GC5: =Time!GD19 -> 2060 | GD5: =Time!GE19 -> 2060 | GE5: =Time!GF19 -> 2060 | GF5: =Time!GG19 -> 2060 | GG5: =Time!GH19 -> 2061 | GH5: =Time!GI19 -> 2061 | GI5: =Time!GJ19 -> 2061 | GJ5: =Time!GK19 -> 2061 | GK5: =Time!GL19 -> 2062 | GL5: =Time!GM19 -> 2062 | GM5: =Time!GN19 -> 2062 | GN5: =Time!GO19 -> 2062 | GO5: =Time!GP19 -> 2063 | GP5: =Time!GQ19 -> 2063 | GQ5: =Time!GR19 -> 2063 | GR5: =Time!GS19 -> 2063 | GS5: =Time!GT19 -> 2064 | GT5: =Time!GU19 -> 2064 | GU5: =Time!GV19 -> 2064 | GV5: =Time!GW19 -> 2064 | GW5: =Time!GX19 -> 2065 | GX5: =Time!GY19 -> 2065 | GY5: =Time!GZ19 -> 2065 | GZ5: =Time!HA19 -> 2065 | HA5: =Time!HB19 -> 2066 | HB5: =Time!HC19 -> 2066 | HC5: =Time!HD19 -> 2066 | HD5: =Time!HE19 -> 2066 | HE5: =Time!HF19 -> 2067 | HF5: =Time!HG19 -> 2067 | HG5: =Time!HH19 -> 2067 | HH5: =Time!HI19 -> 2067 | HI5: =Time!HJ19 -> 2068 | HJ5: =Time!HK19 -> 2068 | HK5: =Time!HL19 -> 2068 | HL5: =Time!HM19 -> 2068 | HM5: =Time!HN19 -> 2069 | HN5: =Time!HO19 -> 2069 | HO5: =Time!HP19 -> 2069 | HP5: =Time!HQ19 -> 2069 | HQ5: =Time!HR19 -> 2070 | HR5: =Time!HS19 -> 2070 | HS5: =Time!HT19 -> 2070 | HT5: =Time!HU19 -> 2070 | HU5: =Time!HV19 -> 2071 | HV5: =Time!HW19 -> 2071 | HW5: =Time!HX19 -> 2071 | HX5: =Time!HY19 -> 2071 | HY5: =Time!HZ19 -> 2072 | HZ5: =Time!IA19 -> 2072 | IA5: =Time!IB19 -> 2072 | IB5: =Time!IC19 -> 2072 | IC5: =Time!ID19 -> 2073 | ID5: =Time!IE19 -> 2073
O6: Year #: | Q6: =Time!R21 -> 1 | R6: =Time!S21 -> 1 | S6: =Time!T21 -> 1 | T6: =Time!U21 -> 1 | U6: =Time!V21 -> 1 | V6: =Time!W21 -> 1 | W6: =Time!X21 -> 1 | X6: =Time!Y21 -> 1 | Y6: =Time!Z21 -> 1 | Z6: =Time!AA21 -> 1 | AA6: =Time!AB21 -> 1 | AB6: =Time!AC21 -> 1 | AC6: =Time!AD21 -> 2 | AD6: =Time!AE21 -> 2 | AE6: =Time!AF21 -> 2 | AF6: =Time!AG21 -> 2 | AG6: =Time!AH21 -> 2 | AH6: =Time!AI21 -> 2 | AI6: =Time!AJ21 -> 2 | AJ6: =Time!AK21 -> 2 | AK6: =Time!AL21 -> 3 | AL6: =Time!AM21 -> 3 | AM6: =Time!AN21 -> 3 | AN6: =Time!AO21 -> 3 | AO6: =Time!AP21 -> 4 | AP6: =Time!AQ21 -> 4 | AQ6: =Time!AR21 -> 4 | AR6: =Time!AS21 -> 4 | AS6: =Time!AT21 -> 5 | AT6: =Time!AU21 -> 5 | AU6: =Time!AV21 -> 5 | AV6: =Time!AW21 -> 5 | AW6: =Time!AX21 -> 6 | AX6: =Time!AY21 -> 6 | AY6: =Time!AZ21 -> 6 | AZ6: =Time!BA21 -> 6 | BA6: =Time!BB21 -> 7 | BB6: =Time!BC21 -> 7 | BC6: =Time!BD21 -> 7 | BD6: =Time!BE21 -> 7 | BE6: =Time!BF21 -> 8 | BF6: =Time!BG21 -> 8 | BG6: =Time!BH21 -> 8 | BH6: =Time!BI21 -> 8 | BI6: =Time!BJ21 -> 9 | BJ6: =Time!BK21 -> 9 | BK6: =Time!BL21 -> 9 | BL6: =Time!BM21 -> 9 | BM6: =Time!BN21 -> 10 | BN6: =Time!BO21 -> 10 | BO6: =Time!BP21 -> 10 | BP6: =Time!BQ21 -> 10 | BQ6: =Time!BR21 -> 11 | BR6: =Time!BS21 -> 11 | BS6: =Time!BT21 -> 11 | BT6: =Time!BU21 -> 11 | BU6: =Time!BV21 -> 12 | BV6: =Time!BW21 -> 12 | BW6: =Time!BX21 -> 12 | BX6: =Time!BY21 -> 12 | BY6: =Time!BZ21 -> 13 | BZ6: =Time!CA21 -> 13 | CA6: =Time!CB21 -> 13 | CB6: =Time!CC21 -> 13 | CC6: =Time!CD21 -> 14 | CD6: =Time!CE21 -> 14 | CE6: =Time!CF21 -> 14 | CF6: =Time!CG21 -> 14 | CG6: =Time!CH21 -> 15 | CH6: =Time!CI21 -> 15 | CI6: =Time!CJ21 -> 15 | CJ6: =Time!CK21 -> 15 | CK6: =Time!CL21 -> 16 | CL6: =Time!CM21 -> 16 | CM6: =Time!CN21 -> 16 | CN6: =Time!CO21 -> 16 | CO6: =Time!CP21 -> 17 | CP6: =Time!CQ21 -> 17 | CQ6: =Time!CR21 -> 17 | CR6: =Time!CS21 -> 17 | CS6: =Time!CT21 -> 18 | CT6: =Time!CU21 -> 18 | CU6: =Time!CV21 -> 18 | CV6: =Time!CW21 -> 18 | CW6: =Time!CX21 -> 19 | CX6: =Time!CY21 -> 19 | CY6: =Time!CZ21 -> 19 | CZ6: =Time!DA21 -> 19 | DA6: =Time!DB21 -> 20 | DB6: =Time!DC21 -> 20 | DC6: =Time!DD21 -> 20 | DD6: =Time!DE21 -> 20 | DE6: =Time!DF21 -> 21 | DF6: =Time!DG21 -> 21 | DG6: =Time!DH21 -> 21 | DH6: =Time!DI21 -> 21 | DI6: =Time!DJ21 -> 22 | DJ6: =Time!DK21 -> 22 | DK6: =Time!DL21 -> 22 | DL6: =Time!DM21 -> 22 | DM6: =Time!DN21 -> 23 | DN6: =Time!DO21 -> 23 | DO6: =Time!DP21 -> 23 | DP6: =Time!DQ21 -> 23 | DQ6: =Time!DR21 -> 24 | DR6: =Time!DS21 -> 24 | DS6: =Time!DT21 -> 24 | DT6: =Time!DU21 -> 24 | DU6: =Time!DV21 -> 25 | DV6: =Time!DW21 -> 25 | DW6: =Time!DX21 -> 25 | DX6: =Time!DY21 -> 25 | DY6: =Time!DZ21 -> 26 | DZ6: =Time!EA21 -> 26 | EA6: =Time!EB21 -> 26 | EB6: =Time!EC21 -> 26 | EC6: =Time!ED21 -> 27 | ED6: =Time!EE21 -> 27 | EE6: =Time!EF21 -> 27 | EF6: =Time!EG21 -> 27 | EG6: =Time!EH21 -> 28 | EH6: =Time!EI21 -> 28 | EI6: =Time!EJ21 -> 28 | EJ6: =Time!EK21 -> 28 | EK6: =Time!EL21 -> 29 | EL6: =Time!EM21 -> 29 | EM6: =Time!EN21 -> 29 | EN6: =Time!EO21 -> 29 | EO6: =Time!EP21 -> 30 | EP6: =Time!EQ21 -> 30 | EQ6: =Time!ER21 -> 30 | ER6: =Time!ES21 -> 30 | ES6: =Time!ET21 -> 31 | ET6: =Time!EU21 -> 31 | EU6: =Time!EV21 -> 31 | EV6: =Time!EW21 -> 31 | EW6: =Time!EX21 -> 32 | EX6: =Time!EY21 -> 32 | EY6: =Time!EZ21 -> 32 | EZ6: =Time!FA21 -> 32 | FA6: =Time!FB21 -> 33 | FB6: =Time!FC21 -> 33 | FC6: =Time!FD21 -> 33 | FD6: =Time!FE21 -> 33 | FE6: =Time!FF21 -> 34 | FF6: =Time!FG21 -> 34 | FG6: =Time!FH21 -> 34 | FH6: =Time!FI21 -> 34 | FI6: =Time!FJ21 -> 35 | FJ6: =Time!FK21 -> 35 | FK6: =Time!FL21 -> 35 | FL6: =Time!FM21 -> 35 | FM6: =Time!FN21 -> 36 | FN6: =Time!FO21 -> 36 | FO6: =Time!FP21 -> 36 | FP6: =Time!FQ21 -> 36 | FQ6: =Time!FR21 -> 37 | FR6: =Time!FS21 -> 37 | FS6: =Time!FT21 -> 37 | FT6: =Time!FU21 -> 37 | FU6: =Time!FV21 -> 38 | FV6: =Time!FW21 -> 38 | FW6: =Time!FX21 -> 38 | FX6: =Time!FY21 -> 38 | FY6: =Time!FZ21 -> 39 | FZ6: =Time!GA21 -> 39 | GA6: =Time!GB21 -> 39 | GB6: =Time!GC21 -> 39 | GC6: =Time!GD21 -> 40 | GD6: =Time!GE21 -> 40 | GE6: =Time!GF21 -> 40 | GF6: =Time!GG21 -> 40 | GG6: =Time!GH21 -> 41 | GH6: =Time!GI21 -> 41 | GI6: =Time!GJ21 -> 41 | GJ6: =Time!GK21 -> 41 | GK6: =Time!GL21 -> 42 | GL6: =Time!GM21 -> 42 | GM6: =Time!GN21 -> 42 | GN6: =Time!GO21 -> 42 | GO6: =Time!GP21 -> 43 | GP6: =Time!GQ21 -> 43 | GQ6: =Time!GR21 -> 43 | GR6: =Time!GS21 -> 43 | GS6: =Time!GT21 -> 44 | GT6: =Time!GU21 -> 44 | GU6: =Time!GV21 -> 44 | GV6: =Time!GW21 -> 44 | GW6: =Time!GX21 -> 45 | GX6: =Time!GY21 -> 45 | GY6: =Time!GZ21 -> 45 | GZ6: =Time!HA21 -> 45 | HA6: =Time!HB21 -> 46 | HB6: =Time!HC21 -> 46 | HC6: =Time!HD21 -> 46 | HD6: =Time!HE21 -> 46 | HE6: =Time!HF21 -> 47 | HF6: =Time!HG21 -> 47 | HG6: =Time!HH21 -> 47 | HH6: =Time!HI21 -> 47 | HI6: =Time!HJ21 -> 48 | HJ6: =Time!HK21 -> 48 | HK6: =Time!HL21 -> 48 | HL6: =Time!HM21 -> 48 | HM6: =Time!HN21 -> 49 | HN6: =Time!HO21 -> 49 | HO6: =Time!HP21 -> 49 | HP6: =Time!HQ21 -> 49 | HQ6: =Time!HR21 -> 50 | HR6: =Time!HS21 -> 50 | HS6: =Time!HT21 -> 50 | HT6: =Time!HU21 -> 50 | HU6: =Time!HV21 -> 51 | HV6: =Time!HW21 -> 51 | HW6: =Time!HX21 -> 51 | HX6: =Time!HY21 -> 51 | HY6: =Time!HZ21 -> 52 | HZ6: =Time!IA21 -> 52 | IA6: =Time!IB21 -> 52 | IB6: =Time!IC21 -> 52 | IC6: =Time!ID21 -> 53 | ID6: =Time!IE21 -> 53
O7: Phase: | Q7: =Time!R26 -> Const | R7: =Time!S26 -> Const | S7: =Time!T26 -> Const | T7: =Time!U26 -> Const | U7: =Time!V26 -> Const | V7: =Time!W26 -> Const | W7: =Time!X26 -> Const | X7: =Time!Y26 -> Const | Y7: =Time!Z26 -> Const | Z7: =Time!AA26 -> Const | AA7: =Time!AB26 -> Const | AB7: =Time!AC26 -> Const | AC7: =Time!AD26 -> Const | AD7: =Time!AE26 -> Const | AE7: =Time!AF26 -> Const | AF7: =Time!AG26 -> Const | AG7: =Time!AH26 -> Const | AH7: =Time!AI26 -> Const | AI7: =Time!AJ26 -> Ops | AJ7: =Time!AK26 -> Ops | AK7: =Time!AL26 -> Ops | AL7: =Time!AM26 -> Ops | AM7: =Time!AN26 -> Ops | AN7: =Time!AO26 -> Ops | AO7: =Time!AP26 -> Ops | AP7: =Time!AQ26 -> Ops | AQ7: =Time!AR26 -> Ops | AR7: =Time!AS26 -> Ops | AS7: =Time!AT26 -> Ops | AT7: =Time!AU26 -> Ops | AU7: =Time!AV26 -> Ops | AV7: =Time!AW26 -> Ops | AW7: =Time!AX26 -> Ops | AX7: =Time!AY26 -> Ops | AY7: =Time!AZ26 -> Ops | AZ7: =Time!BA26 -> Ops | BA7: =Time!BB26 -> Ops | BB7: =Time!BC26 -> Ops | BC7: =Time!BD26 -> Ops | BD7: =Time!BE26 -> Ops | BE7: =Time!BF26 -> Ops | BF7: =Time!BG26 -> Ops | BG7: =Time!BH26 -> Ops | BH7: =Time!BI26 -> Ops | BI7: =Time!BJ26 -> Ops | BJ7: =Time!BK26 -> Ops | BK7: =Time!BL26 -> Ops | BL7: =Time!BM26 -> Ops | BM7: =Time!BN26 -> Ops | BN7: =Time!BO26 -> Ops | BO7: =Time!BP26 -> Ops | BP7: =Time!BQ26 -> Ops | BQ7: =Time!BR26 -> Ops | BR7: =Time!BS26 -> Ops | BS7: =Time!BT26 -> Ops | BT7: =Time!BU26 -> Ops | BU7: =Time!BV26 -> Ops | BV7: =Time!BW26 -> Ops | BW7: =Time!BX26 -> Ops | BX7: =Time!BY26 -> Ops | BY7: =Time!BZ26 -> Ops | BZ7: =Time!CA26 -> Ops | CA7: =Time!CB26 -> Ops | CB7: =Time!CC26 -> Ops | CC7: =Time!CD26 -> Ops | CD7: =Time!CE26 -> Ops | CE7: =Time!CF26 -> Ops | CF7: =Time!CG26 -> Ops | CG7: =Time!CH26 -> Ops | CH7: =Time!CI26 -> Ops | CI7: =Time!CJ26 -> Ops | CJ7: =Time!CK26 -> Ops | CK7: =Time!CL26 -> Ops | CL7: =Time!CM26 -> Ops | CM7: =Time!CN26 -> Ops | CN7: =Time!CO26 -> Ops | CO7: =Time!CP26 -> Ops | CP7: =Time!CQ26 -> Ops | CQ7: =Time!CR26 -> Ops | CR7: =Time!CS26 -> Ops | CS7: =Time!CT26 -> Ops | CT7: =Time!CU26 -> Ops | CU7: =Time!CV26 -> Ops | CV7: =Time!CW26 -> Ops | CW7: =Time!CX26 -> Ops | CX7: =Time!CY26 -> Ops | CY7: =Time!CZ26 -> Ops | CZ7: =Time!DA26 -> Ops | DA7: =Time!DB26 -> Ops | DB7: =Time!DC26 -> Ops | DC7: =Time!DD26 -> Ops | DD7: =Time!DE26 -> Ops | DE7: =Time!DF26 -> Ops | DF7: =Time!DG26 -> Ops | DG7: =Time!DH26 -> Ops | DH7: =Time!DI26 -> Ops | DI7: =Time!DJ26 -> Ops | DJ7: =Time!DK26 -> Ops | DK7: =Time!DL26 -> Ops | DL7: =Time!DM26 -> Ops | DM7: =Time!DN26 -> Ops | DN7: =Time!DO26 -> Ops | DO7: =Time!DP26 -> Ops | DP7: =Time!DQ26 -> Ops | DQ7: =Time!DR26 -> Ops | DR7: =Time!DS26 -> Ops | DS7: =Time!DT26 -> Ops | DT7: =Time!DU26 -> Ops | DU7: =Time!DV26 -> Ops | DV7: =Time!DW26 -> Ops | DW7: =Time!DX26 -> Ops | DX7: =Time!DY26 -> Ops | DY7: =Time!DZ26 -> Ops | DZ7: =Time!EA26 -> Ops | EA7: =Time!EB26 -> Ops | EB7: =Time!EC26 -> Ops | EC7: =Time!ED26 -> Ops | ED7: =Time!EE26 -> Ops | EE7: =Time!EF26 -> Ops | EF7: =Time!EG26 -> Ops | EG7: =Time!EH26 -> Ops | EH7: =Time!EI26 -> Ops | EI7: =Time!EJ26 -> Ops | EJ7: =Time!EK26 -> Ops | EK7: =Time!EL26 -> Ops | EL7: =Time!EM26 -> Ops | EM7: =Time!EN26 -> Ops | EN7: =Time!EO26 -> Ops | EO7: =Time!EP26 -> Ops | EP7: =Time!EQ26 -> Ops | EQ7: =Time!ER26 -> Ops | ER7: =Time!ES26 -> Ops | ES7: =Time!ET26 -> Ops | ET7: =Time!EU26 -> Ops | EU7: =Time!EV26 -> Ops | EV7: =Time!EW26 -> Ops | EW7: =Time!EX26 -> Ops | EX7: =Time!EY26 -> Ops | EY7: =Time!EZ26 -> Ops | EZ7: =Time!FA26 -> Ops | FA7: =Time!FB26 -> Ops | FB7: =Time!FC26 -> Ops | FC7: =Time!FD26 -> Ops | FD7: =Time!FE26 -> Ops | FE7: =Time!FF26 -> Ops | FF7: =Time!FG26 -> Ops | FG7: =Time!FH26 -> Ops | FH7: =Time!FI26 -> Ops | FI7: =Time!FJ26 -> Ops | FJ7: =Time!FK26 -> Ops | FK7: =Time!FL26 -> Ops | FL7: =Time!FM26 -> Ops | FM7: =Time!FN26 -> Ops | FN7: =Time!FO26 -> Ops | FO7: =Time!FP26 -> Ops | FP7: =Time!FQ26 -> Ops | FQ7: =Time!FR26 -> Ops | FR7: =Time!FS26 -> Ops | FS7: =Time!FT26 ->  | FT7: =Time!FU26 ->  | FU7: =Time!FV26 ->  | FV7: =Time!FW26 ->  | FW7: =Time!FX26 ->  | FX7: =Time!FY26 ->  | FY7: =Time!FZ26 ->  | FZ7: =Time!GA26 ->  | GA7: =Time!GB26 ->  | GB7: =Time!GC26 ->  | GC7: =Time!GD26 ->  | GD7: =Time!GE26 ->  | GE7: =Time!GF26 ->  | GF7: =Time!GG26 ->  | GG7: =Time!GH26 ->  | GH7: =Time!GI26 ->  | GI7: =Time!GJ26 ->  | GJ7: =Time!GK26 ->  | GK7: =Time!GL26 ->  | GL7: =Time!GM26 ->  | GM7: =Time!GN26 ->  | GN7: =Time!GO26 ->  | GO7: =Time!GP26 ->  | GP7: =Time!GQ26 ->  | GQ7: =Time!GR26 ->  | GR7: =Time!GS26 ->  | GS7: =Time!GT26 ->  | GT7: =Time!GU26 ->  | GU7: =Time!GV26 ->  | GV7: =Time!GW26 ->  | GW7: =Time!GX26 ->  | GX7: =Time!GY26 ->  | GY7: =Time!GZ26 ->  | GZ7: =Time!HA26 ->  | HA7: =Time!HB26 ->  | HB7: =Time!HC26 ->  | HC7: =Time!HD26 ->  | HD7: =Time!HE26 ->  | HE7: =Time!HF26 ->  | HF7: =Time!HG26 ->  | HG7: =Time!HH26 ->  | HH7: =Time!HI26 ->  | HI7: =Time!HJ26 ->  | HJ7: =Time!HK26 ->  | HK7: =Time!HL26 ->  | HL7: =Time!HM26 ->  | HM7: =Time!HN26 ->  | HN7: =Time!HO26 ->  | HO7: =Time!HP26 ->  | HP7: =Time!HQ26 ->  | HQ7: =Time!HR26 ->  | HR7: =Time!HS26 ->  | HS7: =Time!HT26 ->  | HT7: =Time!HU26 ->  | HU7: =Time!HV26 ->  | HV7: =Time!HW26 ->  | HW7: =Time!HX26 ->  | HX7: =Time!HY26 ->  | HY7: =Time!HZ26 ->  | HZ7: =Time!IA26 ->  | IA7: =Time!IB26 ->  | IB7: =Time!IC26 ->  | IC7: =Time!ID26 ->  | ID7: =Time!IE26 -> 
A9: Sources & Uses
B11: Funding Requirement - Copy | J11: $m | O11: =SUM(Q11:IE11) -> 296.3684033 | Q11: =Fund!R23 -> 21.06064884 | R11: =Fund!S23 -> 17.86064884 | S11: =Fund!T23 -> 17.86064884 | T11: =Fund!U23 -> 20.39064884 | U11: =Fund!V23 -> 20.39064884 | V11: =Fund!W23 -> 20.39064884 | W11: =Fund!X23 -> 20.39064884 | X11: =Fund!Y23 -> 20.23739587 | Y11: =Fund!Z23 -> 20.02472692 | Z11: =Fund!AA23 -> 12.39016507 | AA11: =Fund!AB23 -> 12.3461408 | AB11: =Fund!AC23 -> 12.30242986 | AC11: =Fund!AD23 -> 12.26314298 | AD11: =Fund!AE23 -> 12.0079527 | AE11: =Fund!AF23 -> 14.27813852 | AF11: =Fund!AG23 -> 14.09663236 | AG11: =Fund!AH23 -> 14.05848748 | AH11: =Fund!AI23 -> 14.0186488 | AI11: =Fund!AJ23 -> 0 | AJ11: =Fund!AK23 -> 0 | AK11: =Fund!AL23 -> 0 | AL11: =Fund!AM23 -> 0 | AM11: =Fund!AN23 -> 0 | AN11: =Fund!AO23 -> 0 | AO11: =Fund!AP23 -> 0 | AP11: =Fund!AQ23 -> 0 | AQ11: =Fund!AR23 -> 0 | AR11: =Fund!AS23 -> 0 | AS11: =Fund!AT23 -> 0 | AT11: =Fund!AU23 -> 0 | AU11: =Fund!AV23 -> 0 | AV11: =Fund!AW23 -> 0 | AW11: =Fund!AX23 -> 0 | AX11: =Fund!AY23 -> 0 | AY11: =Fund!AZ23 -> 0 | AZ11: =Fund!BA23 -> 0 | BA11: =Fund!BB23 -> 0 | BB11: =Fund!BC23 -> 0 | BC11: =Fund!BD23 -> 0 | BD11: =Fund!BE23 -> 0 | BE11: =Fund!BF23 -> 0 | BF11: =Fund!BG23 -> 0 | BG11: =Fund!BH23 -> 0 | BH11: =Fund!BI23 -> 0 | BI11: =Fund!BJ23 -> 0 | BJ11: =Fund!BK23 -> 0 | BK11: =Fund!BL23 -> 0 | BL11: =Fund!BM23 -> 0 | BM11: =Fund!BN23 -> 0 | BN11: =Fund!BO23 -> 0 | BO11: =Fund!BP23 -> 0 | BP11: =Fund!BQ23 -> 0 | BQ11: =Fund!BR23 -> 0 | BR11: =Fund!BS23 -> 0 | BS11: =Fund!BT23 -> 0 | BT11: =Fund!BU23 -> 0 | BU11: =Fund!BV23 -> 0 | BV11: =Fund!BW23 -> 0 | BW11: =Fund!BX23 -> 0 | BX11: =Fund!BY23 -> 0 | BY11: =Fund!BZ23 -> 0 | BZ11: =Fund!CA23 -> 0 | CA11: =Fund!CB23 -> 0 | CB11: =Fund!CC23 -> 0 | CC11: =Fund!CD23 -> 0 | CD11: =Fund!CE23 -> 0 | CE11: =Fund!CF23 -> 0 | CF11: =Fund!CG23 -> 0 | CG11: =Fund!CH23 -> 0 | CH11: =Fund!CI23 -> 0 | CI11: =Fund!CJ23 -> 0 | CJ11: =Fund!CK23 -> 0 | CK11: =Fund!CL23 -> 0 | CL11: =Fund!CM23 -> 0 | CM11: =Fund!CN23 -> 0 | CN11: =Fund!CO23 -> 0 | CO11: =Fund!CP23 -> 0 | CP11: =Fund!CQ23 -> 0 | CQ11: =Fund!CR23 -> 0 | CR11: =Fund!CS23 -> 0 | CS11: =Fund!CT23 -> 0 | CT11: =Fund!CU23 -> 0 | CU11: =Fund!CV23 -> 0 | CV11: =Fund!CW23 -> 0 | CW11: =Fund!CX23 -> 0 | CX11: =Fund!CY23 -> 0 | CY11: =Fund!CZ23 -> 0 | CZ11: =Fund!DA23 -> 0 | DA11: =Fund!DB23 -> 0 | DB11: =Fund!DC23 -> 0 | DC11: =Fund!DD23 -> 0 | DD11: =Fund!DE23 -> 0 | DE11: =Fund!DF23 -> 0 | DF11: =Fund!DG23 -> 0 | DG11: =Fund!DH23 -> 0 | DH11: =Fund!DI23 -> 0 | DI11: =Fund!DJ23 -> 0 | DJ11: =Fund!DK23 -> 0 | DK11: =Fund!DL23 -> 0 | DL11: =Fund!DM23 -> 0 | DM11: =Fund!DN23 -> 0 | DN11: =Fund!DO23 -> 0 | DO11: =Fund!DP23 -> 0 | DP11: =Fund!DQ23 -> 0 | DQ11: =Fund!DR23 -> 0 | DR11: =Fund!DS23 -> 0 | DS11: =Fund!DT23 -> 0 | DT11: =Fund!DU23 -> 0 | DU11: =Fund!DV23 -> 0 | DV11: =Fund!DW23 -> 0 | DW11: =Fund!DX23 -> 0 | DX11: =Fund!DY23 -> 0 | DY11: =Fund!DZ23 -> 0 | DZ11: =Fund!EA23 -> 0 | EA11: =Fund!EB23 -> 0 | EB11: =Fund!EC23 -> 0 | EC11: =Fund!ED23 -> 0 | ED11: =Fund!EE23 -> 0 | EE11: =Fund!EF23 -> 0 | EF11: =Fund!EG23 -> 0 | EG11: =Fund!EH23 -> 0 | EH11: =Fund!EI23 -> 0 | EI11: =Fund!EJ23 -> 0 | EJ11: =Fund!EK23 -> 0 | EK11: =Fund!EL23 -> 0 | EL11: =Fund!EM23 -> 0 | EM11: =Fund!EN23 -> 0 | EN11: =Fund!EO23 -> 0 | EO11: =Fund!EP23 -> 0 | EP11: =Fund!EQ23 -> 0 | EQ11: =Fund!ER23 -> 0 | ER11: =Fund!ES23 -> 0 | ES11: =Fund!ET23 -> 0 | ET11: =Fund!EU23 -> 0 | EU11: =Fund!EV23 -> 0 | EV11: =Fund!EW23 -> 0 | EW11: =Fund!EX23 -> 0 | EX11: =Fund!EY23 -> 0 | EY11: =Fund!EZ23 -> 0 | EZ11: =Fund!FA23 -> 0 | FA11: =Fund!FB23 -> 0 | FB11: =Fund!FC23 -> 0 | FC11: =Fund!FD23 -> 0 | FD11: =Fund!FE23 -> 0 | FE11: =Fund!FF23 -> 0 | FF11: =Fund!FG23 -> 0 | FG11: =Fund!FH23 -> 0 | FH11: =Fund!FI23 -> 0 | FI11: =Fund!FJ23 -> 0 | FJ11: =Fund!FK23 -> 0 | FK11: =Fund!FL23 -> 0 | FL11: =Fund!FM23 -> 0 | FM11: =Fund!FN23 -> 0 | FN11: =Fund!FO23 -> 0 | FO11: =Fund!FP23 -> 0 | FP11: =Fund!FQ23 -> 0 | FQ11: =Fund!FR23 -> 0 | FR11: =Fund!FS23 -> 0 | FS11: =Fund!FT23 -> 0 | FT11: =Fund!FU23 -> 0 | FU11: =Fund!FV23 -> 0 | FV11: =Fund!FW23 -> 0 | FW11: =Fund!FX23 -> 0 | FX11: =Fund!FY23 -> 0 | FY11: =Fund!FZ23 -> 0 | FZ11: =Fund!GA23 -> 0 | GA11: =Fund!GB23 -> 0 | GB11: =Fund!GC23 -> 0 | GC11: =Fund!GD23 -> 0 | GD11: =Fund!GE23 -> 0 | GE11: =Fund!GF23 -> 0 | GF11: =Fund!GG23 -> 0 | GG11: =Fund!GH23 -> 0 | GH11: =Fund!GI23 -> 0 | GI11: =Fund!GJ23 -> 0 | GJ11: =Fund!GK23 -> 0 | GK11: =Fund!GL23 -> 0 | GL11: =Fund!GM23 -> 0 | GM11: =Fund!GN23 -> 0 | GN11: =Fund!GO23 -> 0 | GO11: =Fund!GP23 -> 0 | GP11: =Fund!GQ23 -> 0 | GQ11: =Fund!GR23 -> 0 | GR11: =Fund!GS23 -> 0 | GS11: =Fund!GT23 -> 0 | GT11: =Fund!GU23 -> 0 | GU11: =Fund!GV23 -> 0 | GV11: =Fund!GW23 -> 0 | GW11: =Fund!GX23 -> 0 | GX11: =Fund!GY23 -> 0 | GY11: =Fund!GZ23 -> 0 | GZ11: =Fund!HA23 -> 0 | HA11: =Fund!HB23 -> 0 | HB11: =Fund!HC23 -> 0 | HC11: =Fund!HD23 -> 0 | HD11: =Fund!HE23 -> 0 | HE11: =Fund!HF23 -> 0 | HF11: =Fund!HG23 -> 0 | HG11: =Fund!HH23 -> 0 | HH11: =Fund!HI23 -> 0 | HI11: =Fund!HJ23 -> 0 | HJ11: =Fund!HK23 -> 0 | HK11: =Fund!HL23 -> 0 | HL11: =Fund!HM23 -> 0 | HM11: =Fund!HN23 -> 0 | HN11: =Fund!HO23 -> 0 | HO11: =Fund!HP23 -> 0 | HP11: =Fund!HQ23 -> 0 | HQ11: =Fund!HR23 -> 0 | HR11: =Fund!HS23 -> 0 | HS11: =Fund!HT23 -> 0 | HT11: =Fund!HU23 -> 0 | HU11: =Fund!HV23 -> 0 | HV11: =Fund!HW23 -> 0 | HW11: =Fund!HX23 -> 0 | HX11: =Fund!HY23 -> 0 | HY11: =Fund!HZ23 -> 0 | HZ11: =Fund!IA23 -> 0 | IA11: =Fund!IB23 -> 0 | IB11: =Fund!IC23 -> 0 | IC11: =Fund!ID23 -> 0 | ID11: =Fund!IE23 -> 0
B12: Debt Service - Copy | J12: $m | O12: 495.6179211 | Q12: =Debt!R64 -> 0 | R12: =Debt!S64 -> 0 | S12: =Debt!T64 -> 0 | T12: =Debt!U64 -> 0 | U12: =Debt!V64 -> 0 | V12: =Debt!W64 -> 0 | W12: =Debt!X64 -> 0 | X12: =Debt!Y64 -> 0 | Y12: =Debt!Z64 -> 0 | Z12: =Debt!AA64 -> 0 | AA12: =Debt!AB64 -> 0 | AB12: =Debt!AC64 -> 0 | AC12: =Debt!AD64 -> 0 | AD12: =Debt!AE64 -> 0 | AE12: =Debt!AF64 -> 0 | AF12: =Debt!AG64 -> 0 | AG12: =Debt!AH64 -> 0 | AH12: =Debt!AI64 -> 0 | AI12: =Debt!AJ64 -> 8.206633756 | AJ12: =Debt!AK64 -> 8.175008281 | AK12: =Debt!AL64 -> 8.143382281 | AL12: =Debt!AM64 -> 8.111756806 | AM12: =Debt!AN64 -> 8.080131331 | AN12: =Debt!AO64 -> 8.048505856 | AO12: =Debt!AP64 -> 8.016879856 | AP12: =Debt!AQ64 -> 7.985254381 | AQ12: =Debt!AR64 -> 7.953628906 | AR12: =Debt!AS64 -> 7.922002906 | AS12: =Debt!AT64 -> 7.890377431 | AT12: =Debt!AU64 -> 7.858751956 | AU12: =Debt!AV64 -> 7.827125956 | AV12: =Debt!AW64 -> 7.795500481 | AW12: =Debt!AX64 -> 7.846729531 | AX12: =Debt!AY64 -> 7.813598081 | AY12: =Debt!AZ64 -> 7.780466081 | AZ12: =Debt!BA64 -> 7.747334631 | BA12: =Debt!BB64 -> 7.714203181 | BB12: =Debt!BC64 -> 7.681071181 | BC12: =Debt!BD64 -> 7.647939731 | BD12: =Debt!BE64 -> 7.614808281 | BE12: =Debt!BF64 -> 7.581676281 | BF12: =Debt!BG64 -> 7.548544831 | BG12: =Debt!BH64 -> 7.515413381 | BH12: =Debt!BI64 -> 7.482281931 | BI12: =Debt!BJ64 -> 7.449149931 | BJ12: =Debt!BK64 -> 7.416018481 | BK12: =Debt!BL64 -> 7.382887031 | BL12: =Debt!BM64 -> 7.349755031 | BM12: =Debt!BN64 -> 7.316623581 | BN12: =Debt!BO64 -> 7.283492131 | BO12: =Debt!BP64 -> 7.250360131 | BP12: =Debt!BQ64 -> 7.217228681 | BQ12: =Debt!BR64 -> 7.236832106 | BR12: =Debt!BS64 -> 7.202194681 | BS12: =Debt!BT64 -> 7.167556681 | BT12: =Debt!BU64 -> 7.132919256 | BU12: =Debt!BV64 -> 7.098281831 | BV12: =Debt!BW64 -> 7.063643831 | BW12: =Debt!BX64 -> 7.029006406 | BX12: =Debt!BY64 -> 6.994368981 | BY12: =Debt!BZ64 -> 6.959730981 | BZ12: =Debt!CA64 -> 6.925093556 | CA12: =Debt!CB64 -> 6.890456131 | CB12: =Debt!CC64 -> 6.855818706 | CC12: =Debt!CD64 -> 6.821180706 | CD12: =Debt!CE64 -> 6.786543281 | CE12: =Debt!CF64 -> 6.751905856 | CF12: =Debt!CG64 -> 6.717267856 | CG12: =Debt!CH64 -> 6.682630431 | CH12: =Debt!CI64 -> 6.647993006 | CI12: =Debt!CJ64 -> 6.613355006 | CJ12: =Debt!CK64 -> 6.578717581 | CK12: =Debt!CL64 -> 6.566695381 | CL12: =Debt!CM64 -> 6.530551981 | CM12: =Debt!CN64 -> 6.494407981 | CN12: =Debt!CO64 -> 6.458264581 | CO12: =Debt!CP64 -> 6.422121181 | CP12: =Debt!CQ64 -> 6.385977181 | CQ12: =Debt!CR64 -> 6.349833781 | CR12: =Debt!CS64 -> 6.313690381 | CS12: =Debt!CT64 -> 6.277546381 | CT12: =Debt!CU64 -> 6.241402981 | CU12: =Debt!CV64 -> 6.205259581 | CV12: =Debt!CW64 -> 6.169116181 | CW12: =Debt!CX64 -> 6.132972181 | CX12: =Debt!CY64 -> 6.096828781 | CY12: =Debt!CZ64 -> 6.060685381 | CZ12: =Debt!DA64 -> 0.1025479956 | DA12: =Debt!DB64 -> 0 | DB12: =Debt!DC64 -> 0 | DC12: =Debt!DD64 -> 0 | DD12: =Debt!DE64 -> 0 | DE12: =Debt!DF64 -> 0 | DF12: =Debt!DG64 -> 0 | DG12: =Debt!DH64 -> 0 | DH12: =Debt!DI64 -> 0 | DI12: =Debt!DJ64 -> 0 | DJ12: =Debt!DK64 -> 0 | DK12: =Debt!DL64 -> 0 | DL12: =Debt!DM64 -> 0 | DM12: =Debt!DN64 -> 0 | DN12: =Debt!DO64 -> 0 | DO12: =Debt!DP64 -> 0 | DP12: =Debt!DQ64 -> 0 | DQ12: =Debt!DR64 -> 0 | DR12: =Debt!DS64 -> 0 | DS12: =Debt!DT64 -> 0 | DT12: =Debt!DU64 -> 0 | DU12: =Debt!DV64 -> 0 | DV12: =Debt!DW64 -> 0 | DW12: =Debt!DX64 -> 0 | DX12: =Debt!DY64 -> 0 | DY12: =Debt!DZ64 -> 0 | DZ12: =Debt!EA64 -> 0 | EA12: =Debt!EB64 -> 0 | EB12: =Debt!EC64 -> 0 | EC12: =Debt!ED64 -> 0 | ED12: =Debt!EE64 -> 0 | EE12: =Debt!EF64 -> 0 | EF12: =Debt!EG64 -> 0 | EG12: =Debt!EH64 -> 0 | EH12: =Debt!EI64 -> 0 | EI12: =Debt!EJ64 -> 0 | EJ12: =Debt!EK64 -> 0 | EK12: =Debt!EL64 -> 0 | EL12: =Debt!EM64 -> 0 | EM12: =Debt!EN64 -> 0 | EN12: =Debt!EO64 -> 0 | EO12: =Debt!EP64 -> 0 | EP12: =Debt!EQ64 -> 0 | EQ12: =Debt!ER64 -> 0 | ER12: =Debt!ES64 -> 0 | ES12: =Debt!ET64 -> 0 | ET12: =Debt!EU64 -> 0 | EU12: =Debt!EV64 -> 0 | EV12: =Debt!EW64 -> 0 | EW12: =Debt!EX64 -> 0 | EX12: =Debt!EY64 -> 0 | EY12: =Debt!EZ64 -> 0 | EZ12: =Debt!FA64 -> 0 | FA12: =Debt!FB64 -> 0 | FB12: =Debt!FC64 -> 0 | FC12: =Debt!FD64 -> 0 | FD12: =Debt!FE64 -> 0 | FE12: =Debt!FF64 -> 0 | FF12: =Debt!FG64 -> 0 | FG12: =Debt!FH64 -> 0 | FH12: =Debt!FI64 -> 0 | FI12: =Debt!FJ64 -> 0 | FJ12: =Debt!FK64 -> 0 | FK12: =Debt!FL64 -> 0 | FL12: =Debt!FM64 -> 0 | FM12: =Debt!FN64 -> 0 | FN12: =Debt!FO64 -> 0 | FO12: =Debt!FP64 -> 0 | FP12: =Debt!FQ64 -> 0 | FQ12: =Debt!FR64 -> 0 | FR12: =Debt!FS64 -> 0 | FS12: =Debt!FT64 -> 0 | FT12: =Debt!FU64 -> 0 | FU12: =Debt!FV64 -> 0 | FV12: =Debt!FW64 -> 0 | FW12: =Debt!FX64 -> 0 | FX12: =Debt!FY64 -> 0 | FY12: =Debt!FZ64 -> 0 | FZ12: =Debt!GA64 -> 0 | GA12: =Debt!GB64 -> 0 | GB12: =Debt!GC64 -> 0 | GC12: =Debt!GD64 -> 0 | GD12: =Debt!GE64 -> 0 | GE12: =Debt!GF64 -> 0 | GF12: =Debt!GG64 -> 0 | GG12: =Debt!GH64 -> 0 | GH12: =Debt!GI64 -> 0 | GI12: =Debt!GJ64 -> 0 | GJ12: =Debt!GK64 -> 0 | GK12: =Debt!GL64 -> 0 | GL12: =Debt!GM64 -> 0 | GM12: =Debt!GN64 -> 0 | GN12: =Debt!GO64 -> 0 | GO12: =Debt!GP64 -> 0 | GP12: =Debt!GQ64 -> 0 | GQ12: =Debt!GR64 -> 0 | GR12: =Debt!GS64 -> 0 | GS12: =Debt!GT64 -> 0 | GT12: =Debt!GU64 -> 0 | GU12: =Debt!GV64 -> 0 | GV12: =Debt!GW64 -> 0 | GW12: =Debt!GX64 -> 0 | GX12: =Debt!GY64 -> 0 | GY12: =Debt!GZ64 -> 0 | GZ12: =Debt!HA64 -> 0 | HA12: =Debt!HB64 -> 0 | HB12: =Debt!HC64 -> 0 | HC12: =Debt!HD64 -> 0 | HD12: =Debt!HE64 -> 0 | HE12: =Debt!HF64 -> 0 | HF12: =Debt!HG64 -> 0 | HG12: =Debt!HH64 -> 0 | HH12: =Debt!HI64 -> 0 | HI12: =Debt!HJ64 -> 0 | HJ12: =Debt!HK64 -> 0 | HK12: =Debt!HL64 -> 0 | HL12: =Debt!HM64 -> 0 | HM12: =Debt!HN64 -> 0 | HN12: =Debt!HO64 -> 0 | HO12: =Debt!HP64 -> 0 | HP12: =Debt!HQ64 -> 0 | HQ12: =Debt!HR64 -> 0 | HR12: =Debt!HS64 -> 0 | HS12: =Debt!HT64 -> 0 | HT12: =Debt!HU64 -> 0 | HU12: =Debt!HV64 -> 0 | HV12: =Debt!HW64 -> 0 | HW12: =Debt!HX64 -> 0 | HX12: =Debt!HY64 -> 0 | HY12: =Debt!HZ64 -> 0 | HZ12: =Debt!IA64 -> 0 | IA12: =Debt!IB64 -> 0 | IB12: =Debt!IC64 -> 0 | IC12: =Debt!ID64 -> 0 | ID12: =Debt!IE64 -> 0
B15: Funding Requirement - Paste | J15: $m | O15: =SUM(Q15:IE15) -> 765.8996691 | Q15: 8.90779368 | R15: 17.33169704 | S15: 46.99077103 | T15: 50.48468893 | U15: 38.08323069 | V15: 56.23423789 | W15: 58.73481236 | X15: 65.4366 | Y15: 13.71133921 | Z15: 13.54592848 | AA15: 13.44952071 | AB15: 12.08826943 | AC15: 78.52008686 | AD15: 79.94282525 | AE15: 55.84804763 | AF15: 11.73688872 | AG15: 12.25805339 | AH15: 12.21821472 | AI15: 11.06039805 | AJ15: 4.554288818 | AK15: 4.541414724 | AL15: 15.71880543 | AM15: 3.694965118 | AN15: 3.687613491 | AO15: 14.58686234 | AP15: 14.61223641 | AQ15: 9.445629847 | AR15: 14.5491442 | AS15: 9.448642733 | AT15: 14.47666187 | AU15: 0 | AV15: 0 | AW15: 0 | AX15: 0 | AY15: 0 | AZ15: 0 | BA15: 0 | BB15: 0 | BC15: 0 | BD15: 0 | BE15: 0 | BF15: 0 | BG15: 0 | BH15: 0 | BI15: 0 | BJ15: 0 | BK15: 0 | BL15: 0 | BM15: 0 | BN15: 0 | BO15: 0 | BP15: 0 | BQ15: 0 | BR15: 0 | BS15: 0 | BT15: 0 | BU15: 0 | BV15: 0 | BW15: 0 | BX15: 0 | BY15: 0 | BZ15: 0 | CA15: 0 | CB15: 0 | CC15: 0 | CD15: 0 | CE15: 0 | CF15: 0 | CG15: 0 | CH15: 0 | CI15: 0 | CJ15: 0 | CK15: 0 | CL15: 0 | CM15: 0 | CN15: 0 | CO15: 0 | CP15: 0 | CQ15: 0 | CR15: 0 | CS15: 0 | CT15: 0 | CU15: 0 | CV15: 0 | CW15: 0 | CX15: 0 | CY15: 0 | CZ15: 0 | DA15: 0 | DB15: 0 | DC15: 0 | DD15: 0 | DE15: 0 | DF15: 0 | DG15: 0 | DH15: 0 | DI15: 0 | DJ15: 0 | DK15: 0 | DL15: 0 | DM15: 0 | DN15: 0 | DO15: 0 | DP15: 0 | DQ15: 0 | DR15: 0 | DS15: 0 | DT15: 0 | DU15: 0 | DV15: 0 | DW15: 0 | DX15: 0 | DY15: 0 | DZ15: 0 | EA15: 0 | EB15: 0 | EC15: 0 | ED15: 0 | EE15: 0 | EF15: 0 | EG15: 0 | EH15: 0 | EI15: 0 | EJ15: 0 | EK15: 0 | EL15: 0 | EM15: 0 | EN15: 0 | EO15: 0 | EP15: 0 | EQ15: 0 | ER15: 0 | ES15: 0 | ET15: 0 | EU15: 0 | EV15: 0 | EW15: 0 | EX15: 0 | EY15: 0 | EZ15: 0 | FA15: 0 | FB15: 0 | FC15: 0 | FD15: 0 | FE15: 0 | FF15: 0 | FG15: 0 | FH15: 0 | FI15: 0 | FJ15: 0 | FK15: 0 | FL15: 0 | FM15: 0 | FN15: 0 | FO15: 0 | FP15: 0 | FQ15: 0 | FR15: 0 | FS15: 0 | FT15: 0 | FU15: 0 | FV15: 0 | FW15: 0 | FX15: 0 | FY15: 0 | FZ15: 0 | GA15: 0 | GB15: 0 | GC15: 0 | GD15: 0 | GE15: 0 | GF15: 0 | GG15: 0 | GH15: 0 | GI15: 0 | GJ15: 0 | GK15: 0 | GL15: 0 | GM15: 0 | GN15: 0 | GO15: 0 | GP15: 0 | GQ15: 0 | GR15: 0 | GS15: 0 | GT15: 0 | GU15: 0 | GV15: 0 | GW15: 0 | GX15: 0 | GY15: 0 | GZ15: 0 | HA15: 0 | HB15: 0 | HC15: 0 | HD15: 0 | HE15: 0 | HF15: 0 | HG15: 0 | HH15: 0 | HI15: 0 | HJ15: 0 | HK15: 0 | HL15: 0 | HM15: 0 | HN15: 0 | HO15: 0 | HP15: 0 | HQ15: 0 | HR15: 0 | HS15: 0 | HT15: 0 | HU15: 0 | HV15: 0 | HW15: 0 | HX15: 0 | HY15: 0 | HZ15: 0 | IA15: 0 | IB15: 0 | IC15: 0 | ID15: 0
B16: Debt Service - Paste | J16: $m | O16: 671.6757206 | Q16: 0 | R16: 0 | S16: 0 | T16: 0 | U16: 0 | V16: 0 | W16: 0 | X16: 0 | Y16: 0 | Z16: 0 | AA16: 0 | AB16: 0 | AC16: 0 | AD16: 0 | AE16: 0 | AF16: 0 | AG16: 0 | AH16: 0 | AI16: 0 | AJ16: 0 | AK16: 0 | AL16: 0 | AM16: 0 | AN16: 0 | AO16: 0 | AP16: 0 | AQ16: 0 | AR16: 0 | AS16: 0 | AT16: 0 | AU16: 8.838611431 | AV16: 8.806985431 | AW16: 8.775359956 | AX16: 8.743734481 | AY16: 8.712108481 | AZ16: 8.680483006 | BA16: 8.648857531 | BB16: 8.617232056 | BC16: 8.585606056 | BD16: 8.553980581 | BE16: 8.641327731 | BF16: 8.608195731 | BG16: 8.575064281 | BH16: 8.541932831 | BI16: 8.508800831 | BJ16: 8.475669381 | BK16: 8.442537931 | BL16: 8.409406481 | BM16: 8.376274481 | BN16: 8.343143031 | BO16: 8.310011581 | BP16: 8.276879581 | BQ16: 8.243748131 | BR16: 8.210616681 | BS16: 8.177484681 | BT16: 8.144353231 | BU16: 8.111221781 | BV16: 8.078090331 | BW16: 8.044958331 | BX16: 8.011826881 | BY16: 8.067548406 | BZ16: 8.032910406 | CA16: 7.998272981 | CB16: 7.963635556 | CC16: 7.928997556 | CD16: 7.894360131 | CE16: 7.859722706 | CF16: 7.825085281 | CG16: 7.790447281 | CH16: 7.755809856 | CI16: 7.721172431 | CJ16: 7.686534431 | CK16: 7.651897006 | CL16: 7.617259581 | CM16: 7.582621581 | CN16: 7.547984156 | CO16: 7.513346731 | CP16: 7.478709306 | CQ16: 7.444071306 | CR16: 7.409433881 | CS16: 7.433529781 | CT16: 7.397385781 | CU16: 7.361242381 | CV16: 7.325098981 | CW16: 7.288954981 | CX16: 7.252811581 | CY16: 7.216668181 | CZ16: 7.180524781 | DA16: 7.144380781 | DB16: 7.108237381 | DC16: 7.072093981 | DD16: 7.035949981 | DE16: 6.999806581 | DF16: 6.963663181 | DG16: 6.927519181 | DH16: 6.891375781 | DI16: 6.855232381 | DJ16: 6.819088981 | DK16: 6.782944981 | DL16: 6.746801581 | DM16: 6.739271856 | DN16: 6.701621856 | DO16: 6.663972481 | DP16: 6.626323106 | DQ16: 6.588673106 | DR16: 6.551023731 | DS16: 6.513374356 | DT16: 6.475724981 | DU16: 6.438074981 | DV16: 6.400425606 | DW16: 6.362776231 | DX16: 6.325126231 | DY16: 6.287476856 | DZ16: 6.249827481 | EA16: 6.212177481 | EB16: 6.174528106 | EC16: 6.136878731 | ED16: 6.099229356 | EE16: 6.061579356 | EF16: 0 | EG16: 0 | EH16: 0 | EI16: 0 | EJ16: 0 | EK16: 0 | EL16: 0 | EM16: 0 | EN16: 0 | EO16: 0 | EP16: 0 | EQ16: 0 | ER16: 0 | ES16: 0 | ET16: 0 | EU16: 0 | EV16: 0 | EW16: 0 | EX16: 0 | EY16: 0 | EZ16: 0 | FA16: 0 | FB16: 0 | FC16: 0 | FD16: 0 | FE16: 0 | FF16: 0 | FG16: 0 | FH16: 0 | FI16: 0 | FJ16: 0 | FK16: 0 | FL16: 0 | FM16: 0 | FN16: 0 | FO16: 0 | FP16: 0 | FQ16: 0 | FR16: 0 | FS16: 0 | FT16: 0 | FU16: 0 | FV16: 0 | FW16: 0 | FX16: 0 | FY16: 0 | FZ16: 0 | GA16: 0 | GB16: 0 | GC16: 0 | GD16: 0 | GE16: 0 | GF16: 0 | GG16: 0 | GH16: 0 | GI16: 0 | GJ16: 0 | GK16: 0 | GL16: 0 | GM16: 0 | GN16: 0 | GO16: 0 | GP16: 0 | GQ16: 0 | GR16: 0 | GS16: 0 | GT16: 0 | GU16: 0 | GV16: 0 | GW16: 0 | GX16: 0 | GY16: 0 | GZ16: 0 | HA16: 0 | HB16: 0 | HC16: 0 | HD16: 0 | HE16: 0 | HF16: 0 | HG16: 0 | HH16: 0 | HI16: 0 | HJ16: 0 | HK16: 0 | HL16: 0 | HM16: 0 | HN16: 0 | HO16: 0 | HP16: 0 | HQ16: 0 | HR16: 0 | HS16: 0 | HT16: 0 | HU16: 0 | HV16: 0 | HW16: 0 | HX16: 0 | HY16: 0 | HZ16: 0 | IA16: 0 | IB16: 0 | IC16: 0 | ID16: 0
B19: Checks
B20: Funding Requirement | J20: # | L20: =SUM(Q20:ID20) -> 30 | Q20: =IF(Q11=Q15,0,1) -> 1 | R20: 1 | S20: 1 | T20: 1 | U20: 1 | V20: 1 | W20: 1 | X20: 1 | Y20: 1 | Z20: 1 | AA20: 1 | AB20: 1 | AC20: 1 | AD20: 1 | AE20: 1 | AF20: 1 | AG20: 1 | AH20: 1 | AI20: 1 | AJ20: 1 | AK20: 1 | AL20: 1 | AM20: 1 | AN20: 1 | AO20: 1 | AP20: 1 | AQ20: 1 | AR20: 1 | AS20: 1 | AT20: 1 | AU20: 0 | AV20: 0 | AW20: 0 | AX20: 0 | AY20: 0 | AZ20: 0 | BA20: 0 | BB20: 0 | BC20: 0 | BD20: 0 | BE20: 0 | BF20: 0 | BG20: 0 | BH20: 0 | BI20: 0 | BJ20: 0 | BK20: 0 | BL20: 0 | BM20: 0 | BN20: 0 | BO20: 0 | BP20: 0 | BQ20: 0 | BR20: 0 | BS20: 0 | BT20: 0 | BU20: 0 | BV20: 0 | BW20: 0 | BX20: 0 | BY20: 0 | BZ20: 0 | CA20: 0 | CB20: 0 | CC20: =IF(CC11=CC15,0,1) -> 0 | CD20: 0 | CE20: 0 | CF20: 0 | CG20: 0 | CH20: 0 | CI20: 0 | CJ20: 0 | CK20: 0 | CL20: 0 | CM20: 0 | CN20: 0 | CO20: 0 | CP20: 0 | CQ20: 0 | CR20: 0 | CS20: 0 | CT20: 0 | CU20: 0 | CV20: 0 | CW20: 0 | CX20: 0 | CY20: 0 | CZ20: 0 | DA20: 0 | DB20: 0 | DC20: 0 | DD20: 0 | DE20: 0 | DF20: 0 | DG20: 0 | DH20: 0 | DI20: 0 | DJ20: 0 | DK20: 0 | DL20: 0 | DM20: 0 | DN20: 0 | DO20: 0 | DP20: 0 | DQ20: 0 | DR20: 0 | DS20: 0 | DT20: 0 | DU20: 0 | DV20: 0 | DW20: 0 | DX20: 0 | DY20: 0 | DZ20: 0 | EA20: 0 | EB20: 0 | EC20: 0 | ED20: 0 | EE20: 0 | EF20: 0 | EG20: 0 | EH20: 0 | EI20: 0 | EJ20: 0 | EK20: 0 | EL20: 0 | EM20: 0 | EN20: 0 | EO20: =IF(EO11=EO15,0,1) -> 0 | EP20: 0 | EQ20: 0 | ER20: 0 | ES20: 0 | ET20: 0 | EU20: 0 | EV20: 0 | EW20: 0 | EX20: 0 | EY20: 0 | EZ20: 0 | FA20: 0 | FB20: 0 | FC20: 0 | FD20: 0 | FE20: 0 | FF20: 0 | FG20: 0 | FH20: 0 | FI20: 0 | FJ20: 0 | FK20: 0 | FL20: 0 | FM20: 0 | FN20: 0 | FO20: 0 | FP20: 0 | FQ20: 0 | FR20: 0 | FS20: 0 | FT20: 0 | FU20: 0 | FV20: 0 | FW20: 0 | FX20: 0 | FY20: 0 | FZ20: 0 | GA20: 0 | GB20: 0 | GC20: 0 | GD20: 0 | GE20: 0 | GF20: 0 | GG20: 0 | GH20: 0 | GI20: 0 | GJ20: 0 | GK20: 0 | GL20: 0 | GM20: 0 | GN20: 0 | GO20: 0 | GP20: 0 | GQ20: 0 | GR20: 0 | GS20: 0 | GT20: 0 | GU20: 0 | GV20: 0 | GW20: 0 | GX20: 0 | GY20: 0 | GZ20: 0 | HA20: =IF(HA11=HA15,0,1) -> 0 | HB20: 0 | HC20: 0 | HD20: 0 | HE20: 0 | HF20: 0 | HG20: 0 | HH20: 0 | HI20: 0 | HJ20: 0 | HK20: 0 | HL20: 0 | HM20: 0 | HN20: 0 | HO20: 0 | HP20: 0 | HQ20: 0 | HR20: 0 | HS20: 0 | HT20: 0 | HU20: 0 | HV20: 0 | HW20: 0 | HX20: 0 | HY20: 0 | HZ20: 0 | IA20: 0 | IB20: 0 | IC20: 0 | ID20: 0
B21: Debt Service | J21: # | L21: =SUM(Q21:ID21) -> 101 | Q21: =IF(Q12=Q16,0,1) -> 0 | R21: 0 | S21: 0 | T21: 0 | U21: 0 | V21: 0 | W21: 0 | X21: 0 | Y21: 0 | Z21: 0 | AA21: 0 | AB21: 0 | AC21: 0 | AD21: 0 | AE21: 0 | AF21: 0 | AG21: 0 | AH21: 0 | AI21: 1 | AJ21: 1 | AK21: 1 | AL21: 1 | AM21: 1 | AN21: 1 | AO21: 1 | AP21: 1 | AQ21: 1 | AR21: 1 | AS21: 1 | AT21: 1 | AU21: 1 | AV21: 1 | AW21: 1 | AX21: 1 | AY21: 1 | AZ21: 1 | BA21: 1 | BB21: 1 | BC21: 1 | BD21: 1 | BE21: 1 | BF21: 1 | BG21: 1 | BH21: 1 | BI21: 1 | BJ21: 1 | BK21: 1 | BL21: 1 | BM21: 1 | BN21: 1 | BO21: 1 | BP21: 1 | BQ21: 1 | BR21: 1 | BS21: 1 | BT21: 1 | BU21: 1 | BV21: 1 | BW21: 1 | BX21: 1 | BY21: 1 | BZ21: 1 | CA21: 1 | CB21: 1 | CC21: =IF(CC12=CC16,0,1) -> 1 | CD21: 1 | CE21: 1 | CF21: 1 | CG21: 1 | CH21: 1 | CI21: 1 | CJ21: 1 | CK21: 1 | CL21: 1 | CM21: 1 | CN21: 1 | CO21: 1 | CP21: 1 | CQ21: 1 | CR21: 1 | CS21: 1 | CT21: 1 | CU21: 1 | CV21: 1 | CW21: 1 | CX21: 1 | CY21: 1 | CZ21: 1 | DA21: 1 | DB21: 1 | DC21: 1 | DD21: 1 | DE21: 1 | DF21: 1 | DG21: 1 | DH21: 1 | DI21: 1 | DJ21: 1 | DK21: 1 | DL21: 1 | DM21: 1 | DN21: 1 | DO21: 1 | DP21: 1 | DQ21: 1 | DR21: 1 | DS21: 1 | DT21: 1 | DU21: 1 | DV21: 1 | DW21: 1 | DX21: 1 | DY21: 1 | DZ21: 1 | EA21: 1 | EB21: 1 | EC21: 1 | ED21: 1 | EE21: 1 | EF21: 0 | EG21: 0 | EH21: 0 | EI21: 0 | EJ21: 0 | EK21: 0 | EL21: 0 | EM21: 0 | EN21: 0 | EO21: =IF(EO12=EO16,0,1) -> 0 | EP21: 0 | EQ21: 0 | ER21: 0 | ES21: 0 | ET21: 0 | EU21: 0 | EV21: 0 | EW21: 0 | EX21: 0 | EY21: 0 | EZ21: 0 | FA21: 0 | FB21: 0 | FC21: 0 | FD21: 0 | FE21: 0 | FF21: 0 | FG21: 0 | FH21: 0 | FI21: 0 | FJ21: 0 | FK21: 0 | FL21: 0 | FM21: 0 | FN21: 0 | FO21: 0 | FP21: 0 | FQ21: 0 | FR21: 0 | FS21: 0 | FT21: 0 | FU21: 0 | FV21: 0 | FW21: 0 | FX21: 0 | FY21: 0 | FZ21: 0 | GA21: 0 | GB21: 0 | GC21: 0 | GD21: 0 | GE21: 0 | GF21: 0 | GG21: 0 | GH21: 0 | GI21: 0 | GJ21: 0 | GK21: 0 | GL21: 0 | GM21: 0 | GN21: 0 | GO21: 0 | GP21: 0 | GQ21: 0 | GR21: 0 | GS21: 0 | GT21: 0 | GU21: 0 | GV21: 0 | GW21: 0 | GX21: 0 | GY21: 0 | GZ21: 0 | HA21: =IF(HA12=HA16,0,1) -> 0 | HB21: 0 | HC21: 0 | HD21: 0 | HE21: 0 | HF21: 0 | HG21: 0 | HH21: 0 | HI21: 0 | HJ21: 0 | HK21: 0 | HL21: 0 | HM21: 0 | HN21: 0 | HO21: 0 | HP21: 0 | HQ21: 0 | HR21: 0 | HS21: 0 | HT21: 0 | HU21: 0 | HV21: 0 | HW21: 0 | HX21: 0 | HY21: 0 | HZ21: 0 | IA21: 0 | IB21: 0 | IC21: 0 | ID21: 0
J22: # | L22: =SUM(L20:L21) -> 131 | Q22: =IF(SUM(Q20:Q21)<>0,1,0) -> 1 | R22: =IF(SUM(R20:R21)<>0,1,0) -> 1 | S22: 1 | T22: 1 | U22: 1 | V22: 1 | W22: 1 | X22: 1 | Y22: 1 | Z22: 1 | AA22: 1 | AB22: 1 | AC22: 1 | AD22: 1 | AE22: 1 | AF22: 1 | AG22: 1 | AH22: 1 | AI22: 1 | AJ22: 1 | AK22: 1 | AL22: 1 | AM22: 1 | AN22: 1 | AO22: 1 | AP22: 1 | AQ22: 1 | AR22: 1 | AS22: 1 | AT22: 1 | AU22: 1 | AV22: 1 | AW22: 1 | AX22: 1 | AY22: 1 | AZ22: 1 | BA22: 1 | BB22: 1 | BC22: 1 | BD22: 1 | BE22: 1 | BF22: 1 | BG22: 1 | BH22: 1 | BI22: 1 | BJ22: 1 | BK22: 1 | BL22: 1 | BM22: 1 | BN22: 1 | BO22: 1 | BP22: 1 | BQ22: 1 | BR22: 1 | BS22: 1 | BT22: 1 | BU22: 1 | BV22: 1 | BW22: 1 | BX22: 1 | BY22: 1 | BZ22: 1 | CA22: 1 | CB22: 1 | CC22: 1 | CD22: =IF(SUM(CD20:CD21)<>0,1,0) -> 1 | CE22: 1 | CF22: 1 | CG22: 1 | CH22: 1 | CI22: 1 | CJ22: 1 | CK22: 1 | CL22: 1 | CM22: 1 | CN22: 1 | CO22: 1 | CP22: 1 | CQ22: 1 | CR22: 1 | CS22: 1 | CT22: 1 | CU22: 1 | CV22: 1 | CW22: 1 | CX22: 1 | CY22: 1 | CZ22: 1 | DA22: 1 | DB22: 1 | DC22: 1 | DD22: 1 | DE22: 1 | DF22: 1 | DG22: 1 | DH22: 1 | DI22: 1 | DJ22: 1 | DK22: 1 | DL22: 1 | DM22: 1 | DN22: 1 | DO22: 1 | DP22: 1 | DQ22: 1 | DR22: 1 | DS22: 1 | DT22: 1 | DU22: 1 | DV22: 1 | DW22: 1 | DX22: 1 | DY22: 1 | DZ22: 1 | EA22: 1 | EB22: 1 | EC22: 1 | ED22: 1 | EE22: 1 | EF22: 0 | EG22: 0 | EH22: 0 | EI22: 0 | EJ22: 0 | EK22: 0 | EL22: 0 | EM22: 0 | EN22: 0 | EO22: 0 | EP22: =IF(SUM(EP20:EP21)<>0,1,0) -> 0 | EQ22: 0 | ER22: 0 | ES22: 0 | ET22: 0 | EU22: 0 | EV22: 0 | EW22: 0 | EX22: 0 | EY22: 0 | EZ22: 0 | FA22: 0 | FB22: 0 | FC22: 0 | FD22: 0 | FE22: 0 | FF22: 0 | FG22: 0 | FH22: 0 | FI22: 0 | FJ22: 0 | FK22: 0 | FL22: 0 | FM22: 0 | FN22: 0 | FO22: 0 | FP22: 0 | FQ22: 0 | FR22: 0 | FS22: 0 | FT22: 0 | FU22: 0 | FV22: 0 | FW22: 0 | FX22: 0 | FY22: 0 | FZ22: 0 | GA22: 0 | GB22: 0 | GC22: 0 | GD22: 0 | GE22: 0 | GF22: 0 | GG22: 0 | GH22: 0 | GI22: 0 | GJ22: 0 | GK22: 0 | GL22: 0 | GM22: 0 | GN22: 0 | GO22: 0 | GP22: 0 | GQ22: 0 | GR22: 0 | GS22: 0 | GT22: 0 | GU22: 0 | GV22: 0 | GW22: 0 | GX22: 0 | GY22: 0 | GZ22: 0 | HA22: 0 | HB22: =IF(SUM(HB20:HB21)<>0,1,0) -> 0 | HC22: 0 | HD22: 0 | HE22: 0 | HF22: 0 | HG22: 0 | HH22: 0 | HI22: 0 | HJ22: 0 | HK22: 0 | HL22: 0 | HM22: 0 | HN22: 0 | HO22: 0 | HP22: 0 | HQ22: 0 | HR22: 0 | HS22: 0 | HT22: 0 | HU22: 0 | HV22: 0 | HW22: 0 | HX22: 0 | HY22: 0 | HZ22: 0 | IA22: 0 | IB22: 0 | IC22: 0 | ID22: 0
B24: Sources = Uses | J24: check | L24: =L20=0 -> FALSE
A27: Check
B29: Sources & Uses | J29: check | L29: =L24 -> FALSE
B30: Aggregate | J30: check | L30: =AND(L29:L29) -> FALSE
A32: End Sheet

Sheet Time
A9: General
C11: Model Start | I11: date | K11: =InputC!J14 -> 2021-01-01
C12: Construction End | I12: date | K12: =InputC!L31 -> 2022-06-30
C13: Operations Start | I13: date | K13: =InputC!L37 -> 2022-07-01
B15: ="" ->  | C15: Base Model Timeline
C17: Period Start | I17: date | R17: =Q18+1 -> 2021-01-01 | S17: =R18+1 -> 2021-02-01 | T17: 2021-03-01 | U17: 2021-04-01 | V17: 2021-05-01 | W17: 2021-06-01 | X17: 2021-07-01 | Y17: 2021-08-01 | Z17: 2021-09-01 | AA17: 2021-10-01 | AB17: 2021-11-01 | AC17: 2021-12-01 | AD17: 2022-01-01 | AE17: 2022-02-01 | AF17: 2022-03-01 | AG17: 2022-04-01 | AH17: 2022-05-01 | AI17: 2022-06-01 | AJ17: 2022-07-01 | AK17: 2022-10-01 | AL17: 2023-01-01 | AM17: 2023-04-01 | AN17: 2023-07-01 | AO17: 2023-10-01 | AP17: 2024-01-01 | AQ17: 2024-04-01 | AR17: 2024-07-01 | AS17: 2024-10-01 | AT17: 2025-01-01 | AU17: 2025-04-01 | AV17: 2025-07-01 | AW17: 2025-10-01 | AX17: 2026-01-01 | AY17: 2026-04-01 | AZ17: 2026-07-01 | BA17: 2026-10-01 | BB17: 2027-01-01 | BC17: 2027-04-01 | BD17: 2027-07-01 | BE17: 2027-10-01 | BF17: 2028-01-01 | BG17: 2028-04-01 | BH17: 2028-07-01 | BI17: 2028-10-01 | BJ17: 2029-01-01 | BK17: 2029-04-01 | BL17: 2029-07-01 | BM17: 2029-10-01 | BN17: 2030-01-01 | BO17: 2030-04-01 | BP17: 2030-07-01 | BQ17: 2030-10-01 | BR17: 2031-01-01 | BS17: 2031-04-01 | BT17: 2031-07-01 | BU17: 2031-10-01 | BV17: 2032-01-01 | BW17: 2032-04-01 | BX17: 2032-07-01 | BY17: 2032-10-01 | BZ17: 2033-01-01 | CA17: 2033-04-01 | CB17: 2033-07-01 | CC17: 2033-10-01 | CD17: 2034-01-01 | CE17: =CD18+1 -> 2034-04-01 | CF17: 2034-07-01 | CG17: 2034-10-01 | CH17: 2035-01-01 | CI17: 2035-04-01 | CJ17: 2035-07-01 | CK17: 2035-10-01 | CL17: 2036-01-01 | CM17: 2036-04-01 | CN17: 2036-07-01 | CO17: 2036-10-01 | CP17: 2037-01-01 | CQ17: 2037-04-01 | CR17: 2037-07-01 | CS17: 2037-10-01 | CT17: 2038-01-01 | CU17: 2038-04-01 | CV17: 2038-07-01 | CW17: 2038-10-01 | CX17: 2039-01-01 | CY17: 2039-04-01 | CZ17: 2039-07-01 | DA17: 2039-10-01 | DB17: 2040-01-01 | DC17: 2040-04-01 | DD17: 2040-07-01 | DE17: 2040-10-01 | DF17: 2041-01-01 | DG17: 2041-04-01 | DH17: 2041-07-01 | DI17: 2041-10-01 | DJ17: 2042-01-01 | DK17: 2042-04-01 | DL17: 2042-07-01 | DM17: 2042-10-01 | DN17: 2043-01-01 | DO17: 2043-04-01 | DP17: 2043-07-01 | DQ17: 2043-10-01 | DR17: 2044-01-01 | DS17: 2044-04-01 | DT17: 2044-07-01 | DU17: 2044-10-01 | DV17: 2045-01-01 | DW17: 2045-04-01 | DX17: 2045-07-01 | DY17: 2045-10-01 | DZ17: 2046-01-01 | EA17: 2046-04-01 | EB17: 2046-07-01 | EC17: 2046-10-01 | ED17: 2047-01-01 | EE17: 2047-04-01 | EF17: 2047-07-01 | EG17: 2047-10-01 | EH17: 2048-01-01 | EI17: 2048-04-01 | EJ17: 2048-07-01 | EK17: 2048-10-01 | EL17: 2049-01-01 | EM17: 2049-04-01 | EN17: 2049-07-01 | EO17: 2049-10-01 | EP17: 2050-01-01 | EQ17: =EP18+1 -> 2050-04-01 | ER17: 2050-07-01 | ES17: 2050-10-01 | ET17: 2051-01-01 | EU17: 2051-04-01 | EV17: 2051-07-01 | EW17: 2051-10-01 | EX17: 2052-01-01 | EY17: 2052-04-01 | EZ17: 2052-07-01 | FA17: 2052-10-01 | FB17: 2053-01-01 | FC17: 2053-04-01 | FD17: 2053-07-01 | FE17: 2053-10-01 | FF17: 2054-01-01 | FG17: 2054-04-01 | FH17: 2054-07-01 | FI17: 2054-10-01 | FJ17: 2055-01-01 | FK17: 2055-04-01 | FL17: 2055-07-01 | FM17: 2055-10-01 | FN17: 2056-01-01 | FO17: 2056-04-01 | FP17: 2056-07-01 | FQ17: 2056-10-01 | FR17: 2057-01-01 | FS17: 2057-04-01 | FT17: 2057-07-01 | FU17: 2057-10-01 | FV17: 2058-01-01 | FW17: 2058-04-01 | FX17: 2058-07-01 | FY17: 2058-10-01 | FZ17: 2059-01-01 | GA17: 2059-04-01 | GB17: 2059-07-01 | GC17: 2059-10-01 | GD17: 2060-01-01 | GE17: 2060-04-01 | GF17: 2060-07-01 | GG17: 2060-10-01 | GH17: 2061-01-01 | GI17: 2061-04-01 | GJ17: 2061-07-01 | GK17: 2061-10-01 | GL17: 2062-01-01 | GM17: 2062-04-01 | GN17: 2062-07-01 | GO17: 2062-10-01 | GP17: 2063-01-01 | GQ17: 2063-04-01 | GR17: 2063-07-01 | GS17: 2063-10-01 | GT17: 2064-01-01 | GU17: 2064-04-01 | GV17: 2064-07-01 | GW17: 2064-10-01 | GX17: 2065-01-01 | GY17: 2065-04-01 | GZ17: 2065-07-01 | HA17: 2065-10-01 | HB17: 2066-01-01 | HC17: =HB18+1 -> 2066-04-01 | HD17: 2066-07-01 | HE17: 2066-10-01 | HF17: 2067-01-01 | HG17: 2067-04-01 | HH17: 2067-07-01 | HI17: 2067-10-01 | HJ17: 2068-01-01 | HK17: 2068-04-01 | HL17: 2068-07-01 | HM17: 2068-10-01 | HN17: 2069-01-01 | HO17: 2069-04-01 | HP17: 2069-07-01 | HQ17: 2069-10-01 | HR17: 2070-01-01 | HS17: 2070-04-01 | HT17: 2070-07-01 | HU17: 2070-10-01 | HV17: 2071-01-01 | HW17: 2071-04-01 | HX17: 2071-07-01 | HY17: 2071-10-01 | HZ17: 2072-01-01 | IA17: 2072-04-01 | IB17: 2072-07-01 | IC17: 2072-10-01 | ID17: 2073-01-01 | IE17: 2073-04-01
C18: Period End | I18: date | Q18: =K11-1 -> 2020-12-31 | R18: =EDATE(R17,IF(R17>$K$12,InputC!$L$40,1))-1 -> 2021-01-31 | S18: =EDATE(S17,IF(S17>$K$12,InputC!$L$40,1))-1 -> 2021-02-28 | T18: =EDATE(T17,IF(T17>$K$12,InputC!$L$40,1))-1 -> 2021-03-31 | U18: =EDATE(U17,IF(U17>$K$12,InputC!$L$40,1))-1 -> 2021-04-30 | V18: =EDATE(V17,IF(V17>$K$12,InputC!$L$40,1))-1 -> 2021-05-31 | W18: =EDATE(W17,IF(W17>$K$12,InputC!$L$40,1))-1 -> 2021-06-30 | X18: =EDATE(X17,IF(X17>$K$12,InputC!$L$40,1))-1 -> 2021-07-31 | Y18: =EDATE(Y17,IF(Y17>$K$12,InputC!$L$40,1))-1 -> 2021-08-31 | Z18: =EDATE(Z17,IF(Z17>$K$12,InputC!$L$40,1))-1 -> 2021-09-30 | AA18: =EDATE(AA17,IF(AA17>$K$12,InputC!$L$40,1))-1 -> 2021-10-31 | AB18: =EDATE(AB17,IF(AB17>$K$12,InputC!$L$40,1))-1 -> 2021-11-30 | AC18: =EDATE(AC17,IF(AC17>$K$12,InputC!$L$40,1))-1 -> 2021-12-31 | AD18: =EDATE(AD17,IF(AD17>$K$12,InputC!$L$40,1))-1 -> 2022-01-31 | AE18: =EDATE(AE17,IF(AE17>$K$12,InputC!$L$40,1))-1 -> 2022-02-28 | AF18: =EDATE(AF17,IF(AF17>$K$12,InputC!$L$40,1))-1 -> 2022-03-31 | AG18: =EDATE(AG17,IF(AG17>$K$12,InputC!$L$40,1))-1 -> 2022-04-30 | AH18: =EDATE(AH17,IF(AH17>$K$12,InputC!$L$40,1))-1 -> 2022-05-31 | AI18: =EDATE(AI17,IF(AI17>$K$12,InputC!$L$40,1))-1 -> 2022-06-30 | AJ18: =EDATE(AJ17,IF(AJ17>$K$12,InputC!$L$40,1))-1 -> 2022-09-30 | AK18: =EDATE(AK17,IF(AK17>$K$12,InputC!$L$40,1))-1 -> 2022-12-31 | AL18: =EDATE(AL17,IF(AL17>$K$12,InputC!$L$40,1))-1 -> 2023-03-31 | AM18: =EDATE(AM17,IF(AM17>$K$12,InputC!$L$40,1))-1 -> 2023-06-30 | AN18: =EDATE(AN17,IF(AN17>$K$12,InputC!$L$40,1))-1 -> 2023-09-30 | AO18: =EDATE(AO17,IF(AO17>$K$12,InputC!$L$40,1))-1 -> 2023-12-31 | AP18: =EDATE(AP17,IF(AP17>$K$12,InputC!$L$40,1))-1 -> 2024-03-31 | AQ18: =EDATE(AQ17,IF(AQ17>$K$12,InputC!$L$40,1))-1 -> 2024-06-30 | AR18: =EDATE(AR17,IF(AR17>$K$12,InputC!$L$40,1))-1 -> 2024-09-30 | AS18: =EDATE(AS17,IF(AS17>$K$12,InputC!$L$40,1))-1 -> 2024-12-31 | AT18: =EDATE(AT17,IF(AT17>$K$12,InputC!$L$40,1))-1 -> 2025-03-31 | AU18: =EDATE(AU17,IF(AU17>$K$12,InputC!$L$40,1))-1 -> 2025-06-30 | AV18: =EDATE(AV17,IF(AV17>$K$12,InputC!$L$40,1))-1 -> 2025-09-30 | AW18: =EDATE(AW17,IF(AW17>$K$12,InputC!$L$40,1))-1 -> 2025-12-31 | AX18: =EDATE(AX17,IF(AX17>$K$12,InputC!$L$40,1))-1 -> 2026-03-31 | AY18: =EDATE(AY17,IF(AY17>$K$12,InputC!$L$40,1))-1 -> 2026-06-30 | AZ18: =EDATE(AZ17,IF(AZ17>$K$12,InputC!$L$40,1))-1 -> 2026-09-30 | BA18: =EDATE(BA17,IF(BA17>$K$12,InputC!$L$40,1))-1 -> 2026-12-31 | BB18: =EDATE(BB17,IF(BB17>$K$12,InputC!$L$40,1))-1 -> 2027-03-31 | BC18: =EDATE(BC17,IF(BC17>$K$12,InputC!$L$40,1))-1 -> 2027-06-30 | BD18: =EDATE(BD17,IF(BD17>$K$12,InputC!$L$40,1))-1 -> 2027-09-30 | BE18: =EDATE(BE17,IF(BE17>$K$12,InputC!$L$40,1))-1 -> 2027-12-31 | BF18: =EDATE(BF17,IF(BF17>$K$12,InputC!$L$40,1))-1 -> 2028-03-31 | BG18: =EDATE(BG17,IF(BG17>$K$12,InputC!$L$40,1))-1 -> 2028-06-30 | BH18: =EDATE(BH17,IF(BH17>$K$12,InputC!$L$40,1))-1 -> 2028-09-30 | BI18: =EDATE(BI17,IF(BI17>$K$12,InputC!$L$40,1))-1 -> 2028-12-31 | BJ18: =EDATE(BJ17,IF(BJ17>$K$12,InputC!$L$40,1))-1 -> 2029-03-31 | BK18: =EDATE(BK17,IF(BK17>$K$12,InputC!$L$40,1))-1 -> 2029-06-30 | BL18: =EDATE(BL17,IF(BL17>$K$12,InputC!$L$40,1))-1 -> 2029-09-30 | BM18: =EDATE(BM17,IF(BM17>$K$12,InputC!$L$40,1))-1 -> 2029-12-31 | BN18: =EDATE(BN17,IF(BN17>$K$12,InputC!$L$40,1))-1 -> 2030-03-31 | BO18: =EDATE(BO17,IF(BO17>$K$12,InputC!$L$40,1))-1 -> 2030-06-30 | BP18: =EDATE(BP17,IF(BP17>$K$12,InputC!$L$40,1))-1 -> 2030-09-30 | BQ18: =EDATE(BQ17,IF(BQ17>$K$12,InputC!$L$40,1))-1 -> 2030-12-31 | BR18: =EDATE(BR17,IF(BR17>$K$12,InputC!$L$40,1))-1 -> 2031-03-31 | BS18: =EDATE(BS17,IF(BS17>$K$12,InputC!$L$40,1))-1 -> 2031-06-30 | BT18: =EDATE(BT17,IF(BT17>$K$12,InputC!$L$40,1))-1 -> 2031-09-30 | BU18: =EDATE(BU17,IF(BU17>$K$12,InputC!$L$40,1))-1 -> 2031-12-31 | BV18: =EDATE(BV17,IF(BV17>$K$12,InputC!$L$40,1))-1 -> 2032-03-31 | BW18: =EDATE(BW17,IF(BW17>$K$12,InputC!$L$40,1))-1 -> 2032-06-30 | BX18: =EDATE(BX17,IF(BX17>$K$12,InputC!$L$40,1))-1 -> 2032-09-30 | BY18: =EDATE(BY17,IF(BY17>$K$12,InputC!$L$40,1))-1 -> 2032-12-31 | BZ18: =EDATE(BZ17,IF(BZ17>$K$12,InputC!$L$40,1))-1 -> 2033-03-31 | CA18: =EDATE(CA17,IF(CA17>$K$12,InputC!$L$40,1))-1 -> 2033-06-30 | CB18: =EDATE(CB17,IF(CB17>$K$12,InputC!$L$40,1))-1 -> 2033-09-30 | CC18: =EDATE(CC17,IF(CC17>$K$12,InputC!$L$40,1))-1 -> 2033-12-31 | CD18: =EDATE(CD17,IF(CD17>$K$12,InputC!$L$40,1))-1 -> 2034-03-31 | CE18: =EDATE(CE17,IF(CE17>$K$12,InputC!$L$40,1))-1 -> 2034-06-30 | CF18: =EDATE(CF17,IF(CF17>$K$12,InputC!$L$40,1))-1 -> 2034-09-30 | CG18: =EDATE(CG17,IF(CG17>$K$12,InputC!$L$40,1))-1 -> 2034-12-31 | CH18: =EDATE(CH17,IF(CH17>$K$12,InputC!$L$40,1))-1 -> 2035-03-31 | CI18: =EDATE(CI17,IF(CI17>$K$12,InputC!$L$40,1))-1 -> 2035-06-30 | CJ18: =EDATE(CJ17,IF(CJ17>$K$12,InputC!$L$40,1))-1 -> 2035-09-30 | CK18: =EDATE(CK17,IF(CK17>$K$12,InputC!$L$40,1))-1 -> 2035-12-31 | CL18: =EDATE(CL17,IF(CL17>$K$12,InputC!$L$40,1))-1 -> 2036-03-31 | CM18: =EDATE(CM17,IF(CM17>$K$12,InputC!$L$40,1))-1 -> 2036-06-30 | CN18: =EDATE(CN17,IF(CN17>$K$12,InputC!$L$40,1))-1 -> 2036-09-30 | CO18: =EDATE(CO17,IF(CO17>$K$12,InputC!$L$40,1))-1 -> 2036-12-31 | CP18: =EDATE(CP17,IF(CP17>$K$12,InputC!$L$40,1))-1 -> 2037-03-31 | CQ18: =EDATE(CQ17,IF(CQ17>$K$12,InputC!$L$40,1))-1 -> 2037-06-30 | CR18: =EDATE(CR17,IF(CR17>$K$12,InputC!$L$40,1))-1 -> 2037-09-30 | CS18: =EDATE(CS17,IF(CS17>$K$12,InputC!$L$40,1))-1 -> 2037-12-31 | CT18: =EDATE(CT17,IF(CT17>$K$12,InputC!$L$40,1))-1 -> 2038-03-31 | CU18: =EDATE(CU17,IF(CU17>$K$12,InputC!$L$40,1))-1 -> 2038-06-30 | CV18: =EDATE(CV17,IF(CV17>$K$12,InputC!$L$40,1))-1 -> 2038-09-30 | CW18: =EDATE(CW17,IF(CW17>$K$12,InputC!$L$40,1))-1 -> 2038-12-31 | CX18: =EDATE(CX17,IF(CX17>$K$12,InputC!$L$40,1))-1 -> 2039-03-31 | CY18: =EDATE(CY17,IF(CY17>$K$12,InputC!$L$40,1))-1 -> 2039-06-30 | CZ18: =EDATE(CZ17,IF(CZ17>$K$12,InputC!$L$40,1))-1 -> 2039-09-30 | DA18: =EDATE(DA17,IF(DA17>$K$12,InputC!$L$40,1))-1 -> 2039-12-31 | DB18: =EDATE(DB17,IF(DB17>$K$12,InputC!$L$40,1))-1 -> 2040-03-31 | DC18: =EDATE(DC17,IF(DC17>$K$12,InputC!$L$40,1))-1 -> 2040-06-30 | DD18: =EDATE(DD17,IF(DD17>$K$12,InputC!$L$40,1))-1 -> 2040-09-30 | DE18: =EDATE(DE17,IF(DE17>$K$12,InputC!$L$40,1))-1 -> 2040-12-31 | DF18: =EDATE(DF17,IF(DF17>$K$12,InputC!$L$40,1))-1 -> 2041-03-31 | DG18: =EDATE(DG17,IF(DG17>$K$12,InputC!$L$40,1))-1 -> 2041-06-30 | DH18: =EDATE(DH17,IF(DH17>$K$12,InputC!$L$40,1))-1 -> 2041-09-30 | DI18: =EDATE(DI17,IF(DI17>$K$12,InputC!$L$40,1))-1 -> 2041-12-31 | DJ18: =EDATE(DJ17,IF(DJ17>$K$12,InputC!$L$40,1))-1 -> 2042-03-31 | DK18: =EDATE(DK17,IF(DK17>$K$12,InputC!$L$40,1))-1 -> 2042-06-30 | DL18: =EDATE(DL17,IF(DL17>$K$12,InputC!$L$40,1))-1 -> 2042-09-30 | DM18: =EDATE(DM17,IF(DM17>$K$12,InputC!$L$40,1))-1 -> 2042-12-31 | DN18: =EDATE(DN17,IF(DN17>$K$12,InputC!$L$40,1))-1 -> 2043-03-31 | DO18: =EDATE(DO17,IF(DO17>$K$12,InputC!$L$40,1))-1 -> 2043-06-30 | DP18: =EDATE(DP17,IF(DP17>$K$12,InputC!$L$40,1))-1 -> 2043-09-30 | DQ18: =EDATE(DQ17,IF(DQ17>$K$12,InputC!$L$40,1))-1 -> 2043-12-31 | DR18: =EDATE(DR17,IF(DR17>$K$12,InputC!$L$40,1))-1 -> 2044-03-31 | DS18: =EDATE(DS17,IF(DS17>$K$12,InputC!$L$40,1))-1 -> 2044-06-30 | DT18: =EDATE(DT17,IF(DT17>$K$12,InputC!$L$40,1))-1 -> 2044-09-30 | DU18: =EDATE(DU17,IF(DU17>$K$12,InputC!$L$40,1))-1 -> 2044-12-31 | DV18: =EDATE(DV17,IF(DV17>$K$12,InputC!$L$40,1))-1 -> 2045-03-31 | DW18: =EDATE(DW17,IF(DW17>$K$12,InputC!$L$40,1))-1 -> 2045-06-30 | DX18: =EDATE(DX17,IF(DX17>$K$12,InputC!$L$40,1))-1 -> 2045-09-30 | DY18: =EDATE(DY17,IF(DY17>$K$12,InputC!$L$40,1))-1 -> 2045-12-31 | DZ18: =EDATE(DZ17,IF(DZ17>$K$12,InputC!$L$40,1))-1 -> 2046-03-31 | EA18: =EDATE(EA17,IF(EA17>$K$12,InputC!$L$40,1))-1 -> 2046-06-30 | EB18: =EDATE(EB17,IF(EB17>$K$12,InputC!$L$40,1))-1 -> 2046-09-30 | EC18: =EDATE(EC17,IF(EC17>$K$12,InputC!$L$40,1))-1 -> 2046-12-31 | ED18: =EDATE(ED17,IF(ED17>$K$12,InputC!$L$40,1))-1 -> 2047-03-31 | EE18: =EDATE(EE17,IF(EE17>$K$12,InputC!$L$40,1))-1 -> 2047-06-30 | EF18: =EDATE(EF17,IF(EF17>$K$12,InputC!$L$40,1))-1 -> 2047-09-30 | EG18: =EDATE(EG17,IF(EG17>$K$12,InputC!$L$40,1))-1 -> 2047-12-31 | EH18: =EDATE(EH17,IF(EH17>$K$12,InputC!$L$40,1))-1 -> 2048-03-31 | EI18: =EDATE(EI17,IF(EI17>$K$12,InputC!$L$40,1))-1 -> 2048-06-30 | EJ18: =EDATE(EJ17,IF(EJ17>$K$12,InputC!$L$40,1))-1 -> 2048-09-30 | EK18: =EDATE(EK17,IF(EK17>$K$12,InputC!$L$40,1))-1 -> 2048-12-31 | EL18: =EDATE(EL17,IF(EL17>$K$12,InputC!$L$40,1))-1 -> 2049-03-31 | EM18: =EDATE(EM17,IF(EM17>$K$12,InputC!$L$40,1))-1 -> 2049-06-30 | EN18: =EDATE(EN17,IF(EN17>$K$12,InputC!$L$40,1))-1 -> 2049-09-30 | EO18: =EDATE(EO17,IF(EO17>$K$12,InputC!$L$40,1))-1 -> 2049-12-31 | EP18: =EDATE(EP17,IF(EP17>$K$12,InputC!$L$40,1))-1 -> 2050-03-31 | EQ18: =EDATE(EQ17,IF(EQ17>$K$12,InputC!$L$40,1))-1 -> 2050-06-30 | ER18: =EDATE(ER17,IF(ER17>$K$12,InputC!$L$40,1))-1 -> 2050-09-30 | ES18: =EDATE(ES17,IF(ES17>$K$12,InputC!$L$40,1))-1 -> 2050-12-31 | ET18: =EDATE(ET17,IF(ET17>$K$12,InputC!$L$40,1))-1 -> 2051-03-31 | EU18: =EDATE(EU17,IF(EU17>$K$12,InputC!$L$40,1))-1 -> 2051-06-30 | EV18: =EDATE(EV17,IF(EV17>$K$12,InputC!$L$40,1))-1 -> 2051-09-30 | EW18: =EDATE(EW17,IF(EW17>$K$12,InputC!$L$40,1))-1 -> 2051-12-31 | EX18: =EDATE(EX17,IF(EX17>$K$12,InputC!$L$40,1))-1 -> 2052-03-31 | EY18: =EDATE(EY17,IF(EY17>$K$12,InputC!$L$40,1))-1 -> 2052-06-30 | EZ18: =EDATE(EZ17,IF(EZ17>$K$12,InputC!$L$40,1))-1 -> 2052-09-30 | FA18: =EDATE(FA17,IF(FA17>$K$12,InputC!$L$40,1))-1 -> 2052-12-31 | FB18: =EDATE(FB17,IF(FB17>$K$12,InputC!$L$40,1))-1 -> 2053-03-31 | FC18: =EDATE(FC17,IF(FC17>$K$12,InputC!$L$40,1))-1 -> 2053-06-30 | FD18: =EDATE(FD17,IF(FD17>$K$12,InputC!$L$40,1))-1 -> 2053-09-30 | FE18: =EDATE(FE17,IF(FE17>$K$12,InputC!$L$40,1))-1 -> 2053-12-31 | FF18: =EDATE(FF17,IF(FF17>$K$12,InputC!$L$40,1))-1 -> 2054-03-31 | FG18: =EDATE(FG17,IF(FG17>$K$12,InputC!$L$40,1))-1 -> 2054-06-30 | FH18: =EDATE(FH17,IF(FH17>$K$12,InputC!$L$40,1))-1 -> 2054-09-30 | FI18: =EDATE(FI17,IF(FI17>$K$12,InputC!$L$40,1))-1 -> 2054-12-31 | FJ18: =EDATE(FJ17,IF(FJ17>$K$12,InputC!$L$40,1))-1 -> 2055-03-31 | FK18: =EDATE(FK17,IF(FK17>$K$12,InputC!$L$40,1))-1 -> 2055-06-30 | FL18: =EDATE(FL17,IF(FL17>$K$12,InputC!$L$40,1))-1 -> 2055-09-30 | FM18: =EDATE(FM17,IF(FM17>$K$12,InputC!$L$40,1))-1 -> 2055-12-31 | FN18: =EDATE(FN17,IF(FN17>$K$12,InputC!$L$40,1))-1 -> 2056-03-31 | FO18: =EDATE(FO17,IF(FO17>$K$12,InputC!$L$40,1))-1 -> 2056-06-30 | FP18: =EDATE(FP17,IF(FP17>$K$12,InputC!$L$40,1))-1 -> 2056-09-30 | FQ18: =EDATE(FQ17,IF(FQ17>$K$12,InputC!$L$40,1))-1 -> 2056-12-31 | FR18: =EDATE(FR17,IF(FR17>$K$12,InputC!$L$40,1))-1 -> 2057-03-31 | FS18: =EDATE(FS17,IF(FS17>$K$12,InputC!$L$40,1))-1 -> 2057-06-30 | FT18: =EDATE(FT17,IF(FT17>$K$12,InputC!$L$40,1))-1 -> 2057-09-30 | FU18: =EDATE(FU17,IF(FU17>$K$12,InputC!$L$40,1))-1 -> 2057-12-31 | FV18: =EDATE(FV17,IF(FV17>$K$12,InputC!$L$40,1))-1 -> 2058-03-31 | FW18: =EDATE(FW17,IF(FW17>$K$12,InputC!$L$40,1))-1 -> 2058-06-30 | FX18: =EDATE(FX17,IF(FX17>$K$12,InputC!$L$40,1))-1 -> 2058-09-30 | FY18: =EDATE(FY17,IF(FY17>$K$12,InputC!$L$40,1))-1 -> 2058-12-31 | FZ18: =EDATE(FZ17,IF(FZ17>$K$12,InputC!$L$40,1))-1 -> 2059-03-31 | GA18: =EDATE(GA17,IF(GA17>$K$12,InputC!$L$40,1))-1 -> 2059-06-30 | GB18: =EDATE(GB17,IF(GB17>$K$12,InputC!$L$40,1))-1 -> 2059-09-30 | GC18: =EDATE(GC17,IF(GC17>$K$12,InputC!$L$40,1))-1 -> 2059-12-31 | GD18: =EDATE(GD17,IF(GD17>$K$12,InputC!$L$40,1))-1 -> 2060-03-31 | GE18: =EDATE(GE17,IF(GE17>$K$12,InputC!$L$40,1))-1 -> 2060-06-30 | GF18: =EDATE(GF17,IF(GF17>$K$12,InputC!$L$40,1))-1 -> 2060-09-30 | GG18: =EDATE(GG17,IF(GG17>$K$12,InputC!$L$40,1))-1 -> 2060-12-31 | GH18: =EDATE(GH17,IF(GH17>$K$12,InputC!$L$40,1))-1 -> 2061-03-31 | GI18: =EDATE(GI17,IF(GI17>$K$12,InputC!$L$40,1))-1 -> 2061-06-30 | GJ18: =EDATE(GJ17,IF(GJ17>$K$12,InputC!$L$40,1))-1 -> 2061-09-30 | GK18: =EDATE(GK17,IF(GK17>$K$12,InputC!$L$40,1))-1 -> 2061-12-31 | GL18: =EDATE(GL17,IF(GL17>$K$12,InputC!$L$40,1))-1 -> 2062-03-31 | GM18: =EDATE(GM17,IF(GM17>$K$12,InputC!$L$40,1))-1 -> 2062-06-30 | GN18: =EDATE(GN17,IF(GN17>$K$12,InputC!$L$40,1))-1 -> 2062-09-30 | GO18: =EDATE(GO17,IF(GO17>$K$12,InputC!$L$40,1))-1 -> 2062-12-31 | GP18: =EDATE(GP17,IF(GP17>$K$12,InputC!$L$40,1))-1 -> 2063-03-31 | GQ18: =EDATE(GQ17,IF(GQ17>$K$12,InputC!$L$40,1))-1 -> 2063-06-30 | GR18: =EDATE(GR17,IF(GR17>$K$12,InputC!$L$40,1))-1 -> 2063-09-30 | GS18: =EDATE(GS17,IF(GS17>$K$12,InputC!$L$40,1))-1 -> 2063-12-31 | GT18: =EDATE(GT17,IF(GT17>$K$12,InputC!$L$40,1))-1 -> 2064-03-31 | GU18: =EDATE(GU17,IF(GU17>$K$12,InputC!$L$40,1))-1 -> 2064-06-30 | GV18: =EDATE(GV17,IF(GV17>$K$12,InputC!$L$40,1))-1 -> 2064-09-30 | GW18: =EDATE(GW17,IF(GW17>$K$12,InputC!$L$40,1))-1 -> 2064-12-31 | GX18: =EDATE(GX17,IF(GX17>$K$12,InputC!$L$40,1))-1 -> 2065-03-31 | GY18: =EDATE(GY17,IF(GY17>$K$12,InputC!$L$40,1))-1 -> 2065-06-30 | GZ18: =EDATE(GZ17,IF(GZ17>$K$12,InputC!$L$40,1))-1 -> 2065-09-30 | HA18: =EDATE(HA17,IF(HA17>$K$12,InputC!$L$40,1))-1 -> 2065-12-31 | HB18: =EDATE(HB17,IF(HB17>$K$12,InputC!$L$40,1))-1 -> 2066-03-31 | HC18: =EDATE(HC17,IF(HC17>$K$12,InputC!$L$40,1))-1 -> 2066-06-30 | HD18: =EDATE(HD17,IF(HD17>$K$12,InputC!$L$40,1))-1 -> 2066-09-30 | HE18: =EDATE(HE17,IF(HE17>$K$12,InputC!$L$40,1))-1 -> 2066-12-31 | HF18: =EDATE(HF17,IF(HF17>$K$12,InputC!$L$40,1))-1 -> 2067-03-31 | HG18: =EDATE(HG17,IF(HG17>$K$12,InputC!$L$40,1))-1 -> 2067-06-30 | HH18: =EDATE(HH17,IF(HH17>$K$12,InputC!$L$40,1))-1 -> 2067-09-30 | HI18: =EDATE(HI17,IF(HI17>$K$12,InputC!$L$40,1))-1 -> 2067-12-31 | HJ18: =EDATE(HJ17,IF(HJ17>$K$12,InputC!$L$40,1))-1 -> 2068-03-31 | HK18: =EDATE(HK17,IF(HK17>$K$12,InputC!$L$40,1))-1 -> 2068-06-30 | HL18: =EDATE(HL17,IF(HL17>$K$12,InputC!$L$40,1))-1 -> 2068-09-30 | HM18: =EDATE(HM17,IF(HM17>$K$12,InputC!$L$40,1))-1 -> 2068-12-31 | HN18: =EDATE(HN17,IF(HN17>$K$12,InputC!$L$40,1))-1 -> 2069-03-31 | HO18: =EDATE(HO17,IF(HO17>$K$12,InputC!$L$40,1))-1 -> 2069-06-30 | HP18: =EDATE(HP17,IF(HP17>$K$12,InputC!$L$40,1))-1 -> 2069-09-30 | HQ18: =EDATE(HQ17,IF(HQ17>$K$12,InputC!$L$40,1))-1 -> 2069-12-31 | HR18: =EDATE(HR17,IF(HR17>$K$12,InputC!$L$40,1))-1 -> 2070-03-31 | HS18: =EDATE(HS17,IF(HS17>$K$12,InputC!$L$40,1))-1 -> 2070-06-30 | HT18: =EDATE(HT17,IF(HT17>$K$12,InputC!$L$40,1))-1 -> 2070-09-30 | HU18: =EDATE(HU17,IF(HU17>$K$12,InputC!$L$40,1))-1 -> 2070-12-31 | HV18: =EDATE(HV17,IF(HV17>$K$12,InputC!$L$40,1))-1 -> 2071-03-31 | HW18: =EDATE(HW17,IF(HW17>$K$12,InputC!$L$40,1))-1 -> 2071-06-30 | HX18: =EDATE(HX17,IF(HX17>$K$12,InputC!$L$40,1))-1 -> 2071-09-30 | HY18: =EDATE(HY17,IF(HY17>$K$12,InputC!$L$40,1))-1 -> 2071-12-31 | HZ18: =EDATE(HZ17,IF(HZ17>$K$12,InputC!$L$40,1))-1 -> 2072-03-31 | IA18: =EDATE(IA17,IF(IA17>$K$12,InputC!$L$40,1))-1 -> 2072-06-30 | IB18: =EDATE(IB17,IF(IB17>$K$12,InputC!$L$40,1))-1 -> 2072-09-30 | IC18: =EDATE(IC17,IF(IC17>$K$12,InputC!$L$40,1))-1 -> 2072-12-31 | ID18: =EDATE(ID17,IF(ID17>$K$12,InputC!$L$40,1))-1 -> 2073-03-31 | IE18: =EDATE(IE17,IF(IE17>$K$12,InputC!$L$40,1))-1 -> 2073-06-30
C19: Year | I19: year | R19: =YEAR(R18) -> 2021 | S19: =YEAR(S18) -> 2021 | T19: 2021 | U19: 2021 | V19: 2021 | W19: 2021 | X19: 2021 | Y19: 2021 | Z19: 2021 | AA19: 2021 | AB19: 2021 | AC19: 2021 | AD19: 2022 | AE19: 2022 | AF19: 2022 | AG19: 2022 | AH19: 2022 | AI19: 2022 | AJ19: 2022 | AK19: 2022 | AL19: 2023 | AM19: 2023 | AN19: 2023 | AO19: 2023 | AP19: 2024 | AQ19: 2024 | AR19: 2024 | AS19: 2024 | AT19: 2025 | AU19: 2025 | AV19: 2025 | AW19: 2025 | AX19: 2026 | AY19: 2026 | AZ19: 2026 | BA19: 2026 | BB19: 2027 | BC19: 2027 | BD19: 2027 | BE19: 2027 | BF19: 2028 | BG19: 2028 | BH19: 2028 | BI19: 2028 | BJ19: 2029 | BK19: 2029 | BL19: 2029 | BM19: 2029 | BN19: 2030 | BO19: 2030 | BP19: 2030 | BQ19: 2030 | BR19: 2031 | BS19: 2031 | BT19: 2031 | BU19: 2031 | BV19: 2032 | BW19: 2032 | BX19: 2032 | BY19: 2032 | BZ19: 2033 | CA19: 2033 | CB19: 2033 | CC19: 2033 | CD19: 2034 | CE19: =YEAR(CE18) -> 2034 | CF19: 2034 | CG19: 2034 | CH19: 2035 | CI19: 2035 | CJ19: 2035 | CK19: 2035 | CL19: 2036 | CM19: 2036 | CN19: 2036 | CO19: 2036 | CP19: 2037 | CQ19: 2037 | CR19: 2037 | CS19: 2037 | CT19: 2038 | CU19: 2038 | CV19: 2038 | CW19: 2038 | CX19: 2039 | CY19: 2039 | CZ19: 2039 | DA19: 2039 | DB19: 2040 | DC19: 2040 | DD19: 2040 | DE19: 2040 | DF19: 2041 | DG19: 2041 | DH19: 2041 | DI19: 2041 | DJ19: 2042 | DK19: 2042 | DL19: 2042 | DM19: 2042 | DN19: 2043 | DO19: 2043 | DP19: 2043 | DQ19: 2043 | DR19: 2044 | DS19: 2044 | DT19: 2044 | DU19: 2044 | DV19: 2045 | DW19: 2045 | DX19: 2045 | DY19: 2045 | DZ19: 2046 | EA19: 2046 | EB19: 2046 | EC19: 2046 | ED19: 2047 | EE19: 2047 | EF19: 2047 | EG19: 2047 | EH19: 2048 | EI19: 2048 | EJ19: 2048 | EK19: 2048 | EL19: 2049 | EM19: 2049 | EN19: 2049 | EO19: 2049 | EP19: 2050 | EQ19: =YEAR(EQ18) -> 2050 | ER19: 2050 | ES19: 2050 | ET19: 2051 | EU19: 2051 | EV19: 2051 | EW19: 2051 | EX19: 2052 | EY19: 2052 | EZ19: 2052 | FA19: 2052 | FB19: 2053 | FC19: 2053 | FD19: 2053 | FE19: 2053 | FF19: 2054 | FG19: 2054 | FH19: 2054 | FI19: 2054 | FJ19: 2055 | FK19: 2055 | FL19: 2055 | FM19: 2055 | FN19: 2056 | FO19: 2056 | FP19: 2056 | FQ19: 2056 | FR19: 2057 | FS19: 2057 | FT19: 2057 | FU19: 2057 | FV19: 2058 | FW19: 2058 | FX19: 2058 | FY19: 2058 | FZ19: 2059 | GA19: 2059 | GB19: 2059 | GC19: 2059 | GD19: 2060 | GE19: 2060 | GF19: 2060 | GG19: 2060 | GH19: 2061 | GI19: 2061 | GJ19: 2061 | GK19: 2061 | GL19: 2062 | GM19: 2062 | GN19: 2062 | GO19: 2062 | GP19: 2063 | GQ19: 2063 | GR19: 2063 | GS19: 2063 | GT19: 2064 | GU19: 2064 | GV19: 2064 | GW19: 2064 | GX19: 2065 | GY19: 2065 | GZ19: 2065 | HA19: 2065 | HB19: 2066 | HC19: =YEAR(HC18) -> 2066 | HD19: 2066 | HE19: 2066 | HF19: 2067 | HG19: 2067 | HH19: 2067 | HI19: 2067 | HJ19: 2068 | HK19: 2068 | HL19: 2068 | HM19: 2068 | HN19: 2069 | HO19: 2069 | HP19: 2069 | HQ19: 2069 | HR19: 2070 | HS19: 2070 | HT19: 2070 | HU19: 2070 | HV19: 2071 | HW19: 2071 | HX19: 2071 | HY19: 2071 | HZ19: 2072 | IA19: 2072 | IB19: 2072 | IC19: 2072 | ID19: 2073 | IE19: 2073
C21: Annual Counter | I21: # | P21: =SUM(R21:IE21) -> 5634 | R21: =Q21+(R19<>Q19)*1 -> 1 | S21: =R21+(S19<>R19)*1 -> 1 | T21: 1 | U21: 1 | V21: 1 | W21: 1 | X21: 1 | Y21: 1 | Z21: 1 | AA21: 1 | AB21: 1 | AC21: 1 | AD21: 2 | AE21: 2 | AF21: 2 | AG21: 2 | AH21: 2 | AI21: 2 | AJ21: 2 | AK21: 2 | AL21: 3 | AM21: 3 | AN21: 3 | AO21: 3 | AP21: 4 | AQ21: 4 | AR21: 4 | AS21: 4 | AT21: 5 | AU21: 5 | AV21: 5 | AW21: 5 | AX21: 6 | AY21: 6 | AZ21: 6 | BA21: 6 | BB21: 7 | BC21: 7 | BD21: 7 | BE21: 7 | BF21: 8 | BG21: 8 | BH21: 8 | BI21: 8 | BJ21: 9 | BK21: 9 | BL21: 9 | BM21: 9 | BN21: 10 | BO21: 10 | BP21: 10 | BQ21: 10 | BR21: 11 | BS21: 11 | BT21: 11 | BU21: 11 | BV21: 12 | BW21: 12 | BX21: 12 | BY21: 12 | BZ21: 13 | CA21: 13 | CB21: 13 | CC21: 13 | CD21: 14 | CE21: =CD21+(CE19<>CD19)*1 -> 14 | CF21: 14 | CG21: 14 | CH21: 15 | CI21: 15 | CJ21: 15 | CK21: 15 | CL21: 16 | CM21: 16 | CN21: 16 | CO21: 16 | CP21: 17 | CQ21: 17 | CR21: 17 | CS21: 17 | CT21: 18 | CU21: 18 | CV21: 18 | CW21: 18 | CX21: 19 | CY21: 19 | CZ21: 19 | DA21: 19 | DB21: 20 | DC21: 20 | DD21: 20 | DE21: 20 | DF21: 21 | DG21: 21 | DH21: 21 | DI21: 21 | DJ21: 22 | DK21: 22 | DL21: 22 | DM21: 22 | DN21: 23 | DO21: 23 | DP21: 23 | DQ21: 23 | DR21: 24 | DS21: 24 | DT21: 24 | DU21: 24 | DV21: 25 | DW21: 25 | DX21: 25 | DY21: 25 | DZ21: 26 | EA21: 26 | EB21: 26 | EC21: 26 | ED21: 27 | EE21: 27 | EF21: 27 | EG21: 27 | EH21: 28 | EI21: 28 | EJ21: 28 | EK21: 28 | EL21: 29 | EM21: 29 | EN21: 29 | EO21: 29 | EP21: 30 | EQ21: =EP21+(EQ19<>EP19)*1 -> 30 | ER21: 30 | ES21: 30 | ET21: 31 | EU21: 31 | EV21: 31 | EW21: 31 | EX21: 32 | EY21: 32 | EZ21: 32 | FA21: 32 | FB21: 33 | FC21: 33 | FD21: 33 | FE21: 33 | FF21: 34 | FG21: 34 | FH21: 34 | FI21: 34 | FJ21: 35 | FK21: 35 | FL21: 35 | FM21: 35 | FN21: 36 | FO21: 36 | FP21: 36 | FQ21: 36 | FR21: 37 | FS21: 37 | FT21: 37 | FU21: 37 | FV21: 38 | FW21: 38 | FX21: 38 | FY21: 38 | FZ21: 39 | GA21: 39 | GB21: 39 | GC21: 39 | GD21: 40 | GE21: 40 | GF21: 40 | GG21: 40 | GH21: 41 | GI21: 41 | GJ21: 41 | GK21: 41 | GL21: 42 | GM21: 42 | GN21: 42 | GO21: 42 | GP21: 43 | GQ21: 43 | GR21: 43 | GS21: 43 | GT21: 44 | GU21: 44 | GV21: 44 | GW21: 44 | GX21: 45 | GY21: 45 | GZ21: 45 | HA21: 45 | HB21: 46 | HC21: =HB21+(HC19<>HB19)*1 -> 46 | HD21: 46 | HE21: 46 | HF21: 47 | HG21: 47 | HH21: 47 | HI21: 47 | HJ21: 48 | HK21: 48 | HL21: 48 | HM21: 48 | HN21: 49 | HO21: 49 | HP21: 49 | HQ21: 49 | HR21: 50 | HS21: 50 | HT21: 50 | HU21: 50 | HV21: 51 | HW21: 51 | HX21: 51 | HY21: 51 | HZ21: 52 | IA21: 52 | IB21: 52 | IC21: 52 | ID21: 53 | IE21: 53
C22: Calendar Year End | I22: flag | R22: =(R21<>S21)*1 -> 0 | S22: =(S21<>T21)*1 -> 0 | T22: 0 | U22: 0 | V22: 0 | W22: 0 | X22: 0 | Y22: 0 | Z22: 0 | AA22: 0 | AB22: 0 | AC22: 1 | AD22: 0 | AE22: 0 | AF22: 0 | AG22: 0 | AH22: 0 | AI22: 0 | AJ22: 0 | AK22: 1 | AL22: 0 | AM22: 0 | AN22: 0 | AO22: 1 | AP22: 0 | AQ22: 0 | AR22: 0 | AS22: 1 | AT22: 0 | AU22: 0 | AV22: 0 | AW22: 1 | AX22: 0 | AY22: 0 | AZ22: 0 | BA22: 1 | BB22: 0 | BC22: 0 | BD22: 0 | BE22: 1 | BF22: 0 | BG22: 0 | BH22: 0 | BI22: 1 | BJ22: 0 | BK22: 0 | BL22: 0 | BM22: 1 | BN22: 0 | BO22: 0 | BP22: 0 | BQ22: 1 | BR22: 0 | BS22: 0 | BT22: 0 | BU22: 1 | BV22: 0 | BW22: 0 | BX22: 0 | BY22: 1 | BZ22: 0 | CA22: 0 | CB22: 0 | CC22: 1 | CD22: 0 | CE22: =(CE21<>CF21)*1 -> 0 | CF22: 0 | CG22: 1 | CH22: 0 | CI22: 0 | CJ22: 0 | CK22: 1 | CL22: 0 | CM22: 0 | CN22: 0 | CO22: 1 | CP22: 0 | CQ22: 0 | CR22: 0 | CS22: 1 | CT22: 0 | CU22: 0 | CV22: 0 | CW22: 1 | CX22: 0 | CY22: 0 | CZ22: 0 | DA22: 1 | DB22: 0 | DC22: 0 | DD22: 0 | DE22: 1 | DF22: 0 | DG22: 0 | DH22: 0 | DI22: 1 | DJ22: 0 | DK22: 0 | DL22: 0 | DM22: 1 | DN22: 0 | DO22: 0 | DP22: 0 | DQ22: 1 | DR22: 0 | DS22: 0 | DT22: 0 | DU22: 1 | DV22: 0 | DW22: 0 | DX22: 0 | DY22: 1 | DZ22: 0 | EA22: 0 | EB22: 0 | EC22: 1 | ED22: 0 | EE22: 0 | EF22: 0 | EG22: 1 | EH22: 0 | EI22: 0 | EJ22: 0 | EK22: 1 | EL22: 0 | EM22: 0 | EN22: 0 | EO22: 1 | EP22: 0 | EQ22: =(EQ21<>ER21)*1 -> 0 | ER22: 0 | ES22: 1 | ET22: 0 | EU22: 0 | EV22: 0 | EW22: 1 | EX22: 0 | EY22: 0 | EZ22: 0 | FA22: 1 | FB22: 0 | FC22: 0 | FD22: 0 | FE22: 1 | FF22: 0 | FG22: 0 | FH22: 0 | FI22: 1 | FJ22: 0 | FK22: 0 | FL22: 0 | FM22: 1 | FN22: 0 | FO22: 0 | FP22: 0 | FQ22: 1 | FR22: 0 | FS22: 0 | FT22: 0 | FU22: 1 | FV22: 0 | FW22: 0 | FX22: 0 | FY22: 1 | FZ22: 0 | GA22: 0 | GB22: 0 | GC22: 1 | GD22: 0 | GE22: 0 | GF22: 0 | GG22: 1 | GH22: 0 | GI22: 0 | GJ22: 0 | GK22: 1 | GL22: 0 | GM22: 0 | GN22: 0 | GO22: 1 | GP22: 0 | GQ22: 0 | GR22: 0 | GS22: 1 | GT22: 0 | GU22: 0 | GV22: 0 | GW22: 1 | GX22: 0 | GY22: 0 | GZ22: 0 | HA22: 1 | HB22: 0 | HC22: =(HC21<>HD21)*1 -> 0 | HD22: 0 | HE22: 1 | HF22: 0 | HG22: 0 | HH22: 0 | HI22: 1 | HJ22: 0 | HK22: 0 | HL22: 0 | HM22: 1 | HN22: 0 | HO22: 0 | HP22: 0 | HQ22: 1 | HR22: 0 | HS22: 0 | HT22: 0 | HU22: 1 | HV22: 0 | HW22: 0 | HX22: 0 | HY22: 1 | HZ22: 0 | IA22: 0 | IB22: 0 | IC22: 1 | ID22: 0 | IE22: 1
C23: Days in Period | I23: days | P23: =SUM(R23:IE23) -> 19174 | R23: =R18-R17+1 -> 31 | S23: =S18-S17+1 -> 28 | T23: 31 | U23: 30 | V23: 31 | W23: 30 | X23: 31 | Y23: 31 | Z23: 30 | AA23: 31 | AB23: 30 | AC23: 31 | AD23: 31 | AE23: 28 | AF23: 31 | AG23: 30 | AH23: 31 | AI23: 30 | AJ23: 92 | AK23: 92 | AL23: 90 | AM23: 91 | AN23: 92 | AO23: 92 | AP23: 91 | AQ23: 91 | AR23: 92 | AS23: 92 | AT23: 90 | AU23: 91 | AV23: 92 | AW23: 92 | AX23: 90 | AY23: 91 | AZ23: 92 | BA23: 92 | BB23: 90 | BC23: 91 | BD23: 92 | BE23: 92 | BF23: 91 | BG23: 91 | BH23: 92 | BI23: 92 | BJ23: 90 | BK23: 91 | BL23: 92 | BM23: 92 | BN23: 90 | BO23: 91 | BP23: 92 | BQ23: 92 | BR23: 90 | BS23: 91 | BT23: 92 | BU23: 92 | BV23: 91 | BW23: 91 | BX23: 92 | BY23: 92 | BZ23: 90 | CA23: 91 | CB23: 92 | CC23: 92 | CD23: 90 | CE23: =CE18-CE17+1 -> 91 | CF23: 92 | CG23: 92 | CH23: 90 | CI23: 91 | CJ23: 92 | CK23: 92 | CL23: 91 | CM23: 91 | CN23: 92 | CO23: 92 | CP23: 90 | CQ23: 91 | CR23: 92 | CS23: 92 | CT23: 90 | CU23: 91 | CV23: 92 | CW23: 92 | CX23: 90 | CY23: 91 | CZ23: 92 | DA23: 92 | DB23: 91 | DC23: 91 | DD23: 92 | DE23: 92 | DF23: 90 | DG23: 91 | DH23: 92 | DI23: 92 | DJ23: 90 | DK23: 91 | DL23: 92 | DM23: 92 | DN23: 90 | DO23: 91 | DP23: 92 | DQ23: 92 | DR23: 91 | DS23: 91 | DT23: 92 | DU23: 92 | DV23: 90 | DW23: 91 | DX23: 92 | DY23: 92 | DZ23: 90 | EA23: 91 | EB23: 92 | EC23: 92 | ED23: 90 | EE23: 91 | EF23: 92 | EG23: 92 | EH23: 91 | EI23: 91 | EJ23: 92 | EK23: 92 | EL23: 90 | EM23: 91 | EN23: 92 | EO23: 92 | EP23: 90 | EQ23: =EQ18-EQ17+1 -> 91 | ER23: 92 | ES23: 92 | ET23: 90 | EU23: 91 | EV23: 92 | EW23: 92 | EX23: 91 | EY23: 91 | EZ23: 92 | FA23: 92 | FB23: 90 | FC23: 91 | FD23: 92 | FE23: 92 | FF23: 90 | FG23: 91 | FH23: 92 | FI23: 92 | FJ23: 90 | FK23: 91 | FL23: 92 | FM23: 92 | FN23: 91 | FO23: 91 | FP23: 92 | FQ23: 92 | FR23: 90 | FS23: 91 | FT23: 92 | FU23: 92 | FV23: 90 | FW23: 91 | FX23: 92 | FY23: 92 | FZ23: 90 | GA23: 91 | GB23: 92 | GC23: 92 | GD23: 91 | GE23: 91 | GF23: 92 | GG23: 92 | GH23: 90 | GI23: 91 | GJ23: 92 | GK23: 92 | GL23: 90 | GM23: 91 | GN23: 92 | GO23: 92 | GP23: 90 | GQ23: 91 | GR23: 92 | GS23: 92 | GT23: 91 | GU23: 91 | GV23: 92 | GW23: 92 | GX23: 90 | GY23: 91 | GZ23: 92 | HA23: 92 | HB23: 90 | HC23: =HC18-HC17+1 -> 91 | HD23: 92 | HE23: 92 | HF23: 90 | HG23: 91 | HH23: 92 | HI23: 92 | HJ23: 91 | HK23: 91 | HL23: 92 | HM23: 92 | HN23: 90 | HO23: 91 | HP23: 92 | HQ23: 92 | HR23: 90 | HS23: 91 | HT23: 92 | HU23: 92 | HV23: 90 | HW23: 91 | HX23: 92 | HY23: 92 | HZ23: 91 | IA23: 91 | IB23: 92 | IC23: 92 | ID23: 90 | IE23: 91
C24: Months in Period | I24: months | P24: =SUM(R24:IE24) -> 630 | R24: =ROUNDDOWN(R23/28,0) -> 1 | S24: =ROUNDDOWN(S23/28,0) -> 1 | T24: 1 | U24: 1 | V24: 1 | W24: 1 | X24: 1 | Y24: 1 | Z24: 1 | AA24: 1 | AB24: 1 | AC24: 1 | AD24: 1 | AE24: 1 | AF24: 1 | AG24: 1 | AH24: 1 | AI24: 1 | AJ24: 3 | AK24: 3 | AL24: 3 | AM24: 3 | AN24: 3 | AO24: 3 | AP24: 3 | AQ24: 3 | AR24: 3 | AS24: 3 | AT24: 3 | AU24: 3 | AV24: 3 | AW24: 3 | AX24: 3 | AY24: 3 | AZ24: 3 | BA24: 3 | BB24: 3 | BC24: 3 | BD24: 3 | BE24: 3 | BF24: 3 | BG24: 3 | BH24: 3 | BI24: 3 | BJ24: 3 | BK24: 3 | BL24: 3 | BM24: 3 | BN24: 3 | BO24: 3 | BP24: 3 | BQ24: 3 | BR24: 3 | BS24: 3 | BT24: 3 | BU24: 3 | BV24: 3 | BW24: 3 | BX24: 3 | BY24: 3 | BZ24: 3 | CA24: 3 | CB24: 3 | CC24: 3 | CD24: 3 | CE24: =ROUNDDOWN(CE23/28,0) -> 3 | CF24: 3 | CG24: 3 | CH24: 3 | CI24: 3 | CJ24: 3 | CK24: 3 | CL24: 3 | CM24: 3 | CN24: 3 | CO24: 3 | CP24: 3 | CQ24: 3 | CR24: 3 | CS24: 3 | CT24: 3 | CU24: 3 | CV24: 3 | CW24: 3 | CX24: 3 | CY24: 3 | CZ24: 3 | DA24: 3 | DB24: 3 | DC24: 3 | DD24: 3 | DE24: 3 | DF24: 3 | DG24: 3 | DH24: 3 | DI24: 3 | DJ24: 3 | DK24: 3 | DL24: 3 | DM24: 3 | DN24: 3 | DO24: 3 | DP24: 3 | DQ24: 3 | DR24: 3 | DS24: 3 | DT24: 3 | DU24: 3 | DV24: 3 | DW24: 3 | DX24: 3 | DY24: 3 | DZ24: 3 | EA24: 3 | EB24: 3 | EC24: 3 | ED24: 3 | EE24: 3 | EF24: 3 | EG24: 3 | EH24: 3 | EI24: 3 | EJ24: 3 | EK24: 3 | EL24: 3 | EM24: 3 | EN24: 3 | EO24: 3 | EP24: 3 | EQ24: =ROUNDDOWN(EQ23/28,0) -> 3 | ER24: 3 | ES24: 3 | ET24: 3 | EU24: 3 | EV24: 3 | EW24: 3 | EX24: 3 | EY24: 3 | EZ24: 3 | FA24: 3 | FB24: 3 | FC24: 3 | FD24: 3 | FE24: 3 | FF24: 3 | FG24: 3 | FH24: 3 | FI24: 3 | FJ24: 3 | FK24: 3 | FL24: 3 | FM24: 3 | FN24: 3 | FO24: 3 | FP24: 3 | FQ24: 3 | FR24: 3 | FS24: 3 | FT24: 3 | FU24: 3 | FV24: 3 | FW24: 3 | FX24: 3 | FY24: 3 | FZ24: 3 | GA24: 3 | GB24: 3 | GC24: 3 | GD24: 3 | GE24: 3 | GF24: 3 | GG24: 3 | GH24: 3 | GI24: 3 | GJ24: 3 | GK24: 3 | GL24: 3 | GM24: 3 | GN24: 3 | GO24: 3 | GP24: 3 | GQ24: 3 | GR24: 3 | GS24: 3 | GT24: 3 | GU24: 3 | GV24: 3 | GW24: 3 | GX24: 3 | GY24: 3 | GZ24: 3 | HA24: 3 | HB24: 3 | HC24: =ROUNDDOWN(HC23/28,0) -> 3 | HD24: 3 | HE24: 3 | HF24: 3 | HG24: 3 | HH24: 3 | HI24: 3 | HJ24: 3 | HK24: 3 | HL24: 3 | HM24: 3 | HN24: 3 | HO24: 3 | HP24: 3 | HQ24: 3 | HR24: 3 | HS24: 3 | HT24: 3 | HU24: 3 | HV24: 3 | HW24: 3 | HX24: 3 | HY24: 3 | HZ24: 3 | IA24: 3 | IB24: 3 | IC24: 3 | ID24: 3 | IE24: 3
C25: Periods in Year | I25: # | P25: =SUM(R25:IE25) -> 1032 | R25: =12/R24 -> 12 | S25: =12/S24 -> 12 | T25: 12 | U25: 12 | V25: 12 | W25: 12 | X25: 12 | Y25: 12 | Z25: 12 | AA25: 12 | AB25: 12 | AC25: 12 | AD25: 12 | AE25: 12 | AF25: 12 | AG25: 12 | AH25: 12 | AI25: 12 | AJ25: 4 | AK25: 4 | AL25: 4 | AM25: 4 | AN25: 4 | AO25: 4 | AP25: 4 | AQ25: 4 | AR25: 4 | AS25: 4 | AT25: 4 | AU25: 4 | AV25: 4 | AW25: 4 | AX25: 4 | AY25: 4 | AZ25: 4 | BA25: 4 | BB25: 4 | BC25: 4 | BD25: 4 | BE25: 4 | BF25: 4 | BG25: 4 | BH25: 4 | BI25: 4 | BJ25: 4 | BK25: 4 | BL25: 4 | BM25: 4 | BN25: 4 | BO25: 4 | BP25: 4 | BQ25: 4 | BR25: 4 | BS25: 4 | BT25: 4 | BU25: 4 | BV25: 4 | BW25: 4 | BX25: 4 | BY25: 4 | BZ25: 4 | CA25: 4 | CB25: 4 | CC25: 4 | CD25: 4 | CE25: =12/CE24 -> 4 | CF25: 4 | CG25: 4 | CH25: 4 | CI25: 4 | CJ25: 4 | CK25: 4 | CL25: 4 | CM25: 4 | CN25: 4 | CO25: 4 | CP25: 4 | CQ25: 4 | CR25: 4 | CS25: 4 | CT25: 4 | CU25: 4 | CV25: 4 | CW25: 4 | CX25: 4 | CY25: 4 | CZ25: 4 | DA25: 4 | DB25: 4 | DC25: 4 | DD25: 4 | DE25: 4 | DF25: 4 | DG25: 4 | DH25: 4 | DI25: 4 | DJ25: 4 | DK25: 4 | DL25: 4 | DM25: 4 | DN25: 4 | DO25: 4 | DP25: 4 | DQ25: 4 | DR25: 4 | DS25: 4 | DT25: 4 | DU25: 4 | DV25: 4 | DW25: 4 | DX25: 4 | DY25: 4 | DZ25: 4 | EA25: 4 | EB25: 4 | EC25: 4 | ED25: 4 | EE25: 4 | EF25: 4 | EG25: 4 | EH25: 4 | EI25: 4 | EJ25: 4 | EK25: 4 | EL25: 4 | EM25: 4 | EN25: 4 | EO25: 4 | EP25: 4 | EQ25: =12/EQ24 -> 4 | ER25: 4 | ES25: 4 | ET25: 4 | EU25: 4 | EV25: 4 | EW25: 4 | EX25: 4 | EY25: 4 | EZ25: 4 | FA25: 4 | FB25: 4 | FC25: 4 | FD25: 4 | FE25: 4 | FF25: 4 | FG25: 4 | FH25: 4 | FI25: 4 | FJ25: 4 | FK25: 4 | FL25: 4 | FM25: 4 | FN25: 4 | FO25: 4 | FP25: 4 | FQ25: 4 | FR25: 4 | FS25: 4 | FT25: 4 | FU25: 4 | FV25: 4 | FW25: 4 | FX25: 4 | FY25: 4 | FZ25: 4 | GA25: 4 | GB25: 4 | GC25: 4 | GD25: 4 | GE25: 4 | GF25: 4 | GG25: 4 | GH25: 4 | GI25: 4 | GJ25: 4 | GK25: 4 | GL25: 4 | GM25: 4 | GN25: 4 | GO25: 4 | GP25: 4 | GQ25: 4 | GR25: 4 | GS25: 4 | GT25: 4 | GU25: 4 | GV25: 4 | GW25: 4 | GX25: 4 | GY25: 4 | GZ25: 4 | HA25: 4 | HB25: 4 | HC25: =12/HC24 -> 4 | HD25: 4 | HE25: 4 | HF25: 4 | HG25: 4 | HH25: 4 | HI25: 4 | HJ25: 4 | HK25: 4 | HL25: 4 | HM25: 4 | HN25: 4 | HO25: 4 | HP25: 4 | HQ25: 4 | HR25: 4 | HS25: 4 | HT25: 4 | HU25: 4 | HV25: 4 | HW25: 4 | HX25: 4 | HY25: 4 | HZ25: 4 | IA25: 4 | IB25: 4 | IC25: 4 | ID25: 4 | IE25: 4
C26: Phase | I26: switch | R26: =IF(R$65=1,"Const",IF(R$75=1,"Ops","")) -> Const | S26: Const | T26: Const | U26: Const | V26: Const | W26: Const | X26: Const | Y26: Const | Z26: Const | AA26: Const | AB26: Const | AC26: Const | AD26: Const | AE26: Const | AF26: Const | AG26: Const | AH26: Const | AI26: Const | AJ26: Ops | AK26: Ops | AL26: Ops | AM26: Ops | AN26: Ops | AO26: Ops | AP26: Ops | AQ26: Ops | AR26: Ops | AS26: Ops | AT26: Ops | AU26: Ops | AV26: Ops | AW26: Ops | AX26: Ops | AY26: Ops | AZ26: Ops | BA26: Ops | BB26: Ops | BC26: Ops | BD26: Ops | BE26: Ops | BF26: Ops | BG26: Ops | BH26: Ops | BI26: Ops | BJ26: Ops | BK26: Ops | BL26: Ops | BM26: Ops | BN26: Ops | BO26: Ops | BP26: Ops | BQ26: Ops | BR26: Ops | BS26: Ops | BT26: Ops | BU26: Ops | BV26: Ops | BW26: Ops | BX26: Ops | BY26: Ops | BZ26: Ops | CA26: Ops | CB26: Ops | CC26: Ops | CD26: =IF(CD$65=1,"Const",IF(CD$75=1,"Ops","")) -> Ops | CE26: Ops | CF26: Ops | CG26: Ops | CH26: Ops | CI26: Ops | CJ26: Ops | CK26: Ops | CL26: Ops | CM26: Ops | CN26: Ops | CO26: Ops | CP26: Ops | CQ26: Ops | CR26: Ops | CS26: Ops | CT26: Ops | CU26: Ops | CV26: Ops | CW26: Ops | CX26: Ops | CY26: Ops | CZ26: Ops | DA26: Ops | DB26: Ops | DC26: Ops | DD26: Ops | DE26: Ops | DF26: Ops | DG26: Ops | DH26: Ops | DI26: Ops | DJ26: Ops | DK26: Ops | DL26: Ops | DM26: Ops | DN26: Ops | DO26: Ops | DP26: Ops | DQ26: Ops | DR26: Ops | DS26: Ops | DT26: Ops | DU26: Ops | DV26: Ops | DW26: Ops | DX26: Ops | DY26: Ops | DZ26: Ops | EA26: Ops | EB26: Ops | EC26: Ops | ED26: Ops | EE26: Ops | EF26: Ops | EG26: Ops | EH26: Ops | EI26: Ops | EJ26: Ops | EK26: Ops | EL26: Ops | EM26: Ops | EN26: Ops | EO26: Ops | EP26: =IF(EP$65=1,"Const",IF(EP$75=1,"Ops","")) -> Ops | EQ26: Ops | ER26: Ops | ES26: Ops | ET26: Ops | EU26: Ops | EV26: Ops | EW26: Ops | EX26: Ops | EY26: Ops | EZ26: Ops | FA26: Ops | FB26: Ops | FC26: Ops | FD26: Ops | FE26: Ops | FF26: Ops | FG26: Ops | FH26: Ops | FI26: Ops | FJ26: Ops | FK26: Ops | FL26: Ops | FM26: Ops | FN26: Ops | FO26: Ops | FP26: Ops | FQ26: Ops | FR26: Ops | FS26: Ops | HB26: =IF(HB$65=1,"Const",IF(HB$75=1,"Ops","")) -> 
C28: Quarterly
C29: Quarter Number | I29: # | R29: =ROUNDUP(MONTH(R18)/InputC!$J$16,0) -> 1 | S29: =ROUNDUP(MONTH(S18)/InputC!$J$16,0) -> 1 | T29: =ROUNDUP(MONTH(T18)/InputC!$J$16,0) -> 1 | U29: =ROUNDUP(MONTH(U18)/InputC!$J$16,0) -> 2 | V29: =ROUNDUP(MONTH(V18)/InputC!$J$16,0) -> 2 | W29: =ROUNDUP(MONTH(W18)/InputC!$J$16,0) -> 2 | X29: =ROUNDUP(MONTH(X18)/InputC!$J$16,0) -> 3 | Y29: =ROUNDUP(MONTH(Y18)/InputC!$J$16,0) -> 3 | Z29: =ROUNDUP(MONTH(Z18)/InputC!$J$16,0) -> 3 | AA29: =ROUNDUP(MONTH(AA18)/InputC!$J$16,0) -> 4 | AB29: =ROUNDUP(MONTH(AB18)/InputC!$J$16,0) -> 4 | AC29: =ROUNDUP(MONTH(AC18)/InputC!$J$16,0) -> 4 | AD29: =ROUNDUP(MONTH(AD18)/InputC!$J$16,0) -> 1 | AE29: =ROUNDUP(MONTH(AE18)/InputC!$J$16,0) -> 1 | AF29: =ROUNDUP(MONTH(AF18)/InputC!$J$16,0) -> 1 | AG29: =ROUNDUP(MONTH(AG18)/InputC!$J$16,0) -> 2 | AH29: =ROUNDUP(MONTH(AH18)/InputC!$J$16,0) -> 2 | AI29: =ROUNDUP(MONTH(AI18)/InputC!$J$16,0) -> 2 | AJ29: =ROUNDUP(MONTH(AJ18)/InputC!$J$16,0) -> 3 | AK29: =ROUNDUP(MONTH(AK18)/InputC!$J$16,0) -> 4 | AL29: =ROUNDUP(MONTH(AL18)/InputC!$J$16,0) -> 1 | AM29: =ROUNDUP(MONTH(AM18)/InputC!$J$16,0) -> 2 | AN29: =ROUNDUP(MONTH(AN18)/InputC!$J$16,0) -> 3 | AO29: =ROUNDUP(MONTH(AO18)/InputC!$J$16,0) -> 4 | AP29: =ROUNDUP(MONTH(AP18)/InputC!$J$16,0) -> 1 | AQ29: =ROUNDUP(MONTH(AQ18)/InputC!$J$16,0) -> 2 | AR29: =ROUNDUP(MONTH(AR18)/InputC!$J$16,0) -> 3 | AS29: =ROUNDUP(MONTH(AS18)/InputC!$J$16,0) -> 4 | AT29: =ROUNDUP(MONTH(AT18)/InputC!$J$16,0) -> 1 | AU29: =ROUNDUP(MONTH(AU18)/InputC!$J$16,0) -> 2 | AV29: =ROUNDUP(MONTH(AV18)/InputC!$J$16,0) -> 3 | AW29: =ROUNDUP(MONTH(AW18)/InputC!$J$16,0) -> 4 | AX29: =ROUNDUP(MONTH(AX18)/InputC!$J$16,0) -> 1 | AY29: =ROUNDUP(MONTH(AY18)/InputC!$J$16,0) -> 2 | AZ29: =ROUNDUP(MONTH(AZ18)/InputC!$J$16,0) -> 3 | BA29: =ROUNDUP(MONTH(BA18)/InputC!$J$16,0) -> 4 | BB29: =ROUNDUP(MONTH(BB18)/InputC!$J$16,0) -> 1 | BC29: =ROUNDUP(MONTH(BC18)/InputC!$J$16,0) -> 2 | BD29: =ROUNDUP(MONTH(BD18)/InputC!$J$16,0) -> 3 | BE29: =ROUNDUP(MONTH(BE18)/InputC!$J$16,0) -> 4 | BF29: =ROUNDUP(MONTH(BF18)/InputC!$J$16,0) -> 1 | BG29: =ROUNDUP(MONTH(BG18)/InputC!$J$16,0) -> 2 | BH29: =ROUNDUP(MONTH(BH18)/InputC!$J$16,0) -> 3 | BI29: =ROUNDUP(MONTH(BI18)/InputC!$J$16,0) -> 4 | BJ29: =ROUNDUP(MONTH(BJ18)/InputC!$J$16,0) -> 1 | BK29: =ROUNDUP(MONTH(BK18)/InputC!$J$16,0) -> 2 | BL29: =ROUNDUP(MONTH(BL18)/InputC!$J$16,0) -> 3 | BM29: =ROUNDUP(MONTH(BM18)/InputC!$J$16,0) -> 4 | BN29: =ROUNDUP(MONTH(BN18)/InputC!$J$16,0) -> 1 | BO29: =ROUNDUP(MONTH(BO18)/InputC!$J$16,0) -> 2 | BP29: =ROUNDUP(MONTH(BP18)/InputC!$J$16,0) -> 3 | BQ29: =ROUNDUP(MONTH(BQ18)/InputC!$J$16,0) -> 4 | BR29: =ROUNDUP(MONTH(BR18)/InputC!$J$16,0) -> 1 | BS29: =ROUNDUP(MONTH(BS18)/InputC!$J$16,0) -> 2 | BT29: =ROUNDUP(MONTH(BT18)/InputC!$J$16,0) -> 3 | BU29: =ROUNDUP(MONTH(BU18)/InputC!$J$16,0) -> 4 | BV29: =ROUNDUP(MONTH(BV18)/InputC!$J$16,0) -> 1 | BW29: =ROUNDUP(MONTH(BW18)/InputC!$J$16,0) -> 2 | BX29: =ROUNDUP(MONTH(BX18)/InputC!$J$16,0) -> 3 | BY29: =ROUNDUP(MONTH(BY18)/InputC!$J$16,0) -> 4 | BZ29: =ROUNDUP(MONTH(BZ18)/InputC!$J$16,0) -> 1 | CA29: =ROUNDUP(MONTH(CA18)/InputC!$J$16,0) -> 2 | CB29: =ROUNDUP(MONTH(CB18)/InputC!$J$16,0) -> 3 | CC29: =ROUNDUP(MONTH(CC18)/InputC!$J$16,0) -> 4 | CD29: =ROUNDUP(MONTH(CD18)/InputC!$J$16,0) -> 1 | CE29: =ROUNDUP(MONTH(CE18)/InputC!$J$16,0) -> 2 | CF29: =ROUNDUP(MONTH(CF18)/InputC!$J$16,0) -> 3 | CG29: =ROUNDUP(MONTH(CG18)/InputC!$J$16,0) -> 4 | CH29: =ROUNDUP(MONTH(CH18)/InputC!$J$16,0) -> 1 | CI29: =ROUNDUP(MONTH(CI18)/InputC!$J$16,0) -> 2 | CJ29: =ROUNDUP(MONTH(CJ18)/InputC!$J$16,0) -> 3 | CK29: =ROUNDUP(MONTH(CK18)/InputC!$J$16,0) -> 4 | CL29: =ROUNDUP(MONTH(CL18)/InputC!$J$16,0) -> 1 | CM29: =ROUNDUP(MONTH(CM18)/InputC!$J$16,0) -> 2 | CN29: =ROUNDUP(MONTH(CN18)/InputC!$J$16,0) -> 3 | CO29: =ROUNDUP(MONTH(CO18)/InputC!$J$16,0) -> 4 | CP29: =ROUNDUP(MONTH(CP18)/InputC!$J$16,0) -> 1 | CQ29: =ROUNDUP(MONTH(CQ18)/InputC!$J$16,0) -> 2 | CR29: =ROUNDUP(MONTH(CR18)/InputC!$J$16,0) -> 3 | CS29: =ROUNDUP(MONTH(CS18)/InputC!$J$16,0) -> 4 | CT29: =ROUNDUP(MONTH(CT18)/InputC!$J$16,0) -> 1 | CU29: =ROUNDUP(MONTH(CU18)/InputC!$J$16,0) -> 2 | CV29: =ROUNDUP(MONTH(CV18)/InputC!$J$16,0) -> 3 | CW29: =ROUNDUP(MONTH(CW18)/InputC!$J$16,0) -> 4 | CX29: =ROUNDUP(MONTH(CX18)/InputC!$J$16,0) -> 1 | CY29: =ROUNDUP(MONTH(CY18)/InputC!$J$16,0) -> 2 | CZ29: =ROUNDUP(MONTH(CZ18)/InputC!$J$16,0) -> 3 | DA29: =ROUNDUP(MONTH(DA18)/InputC!$J$16,0) -> 4 | DB29: =ROUNDUP(MONTH(DB18)/InputC!$J$16,0) -> 1 | DC29: =ROUNDUP(MONTH(DC18)/InputC!$J$16,0) -> 2 | DD29: =ROUNDUP(MONTH(DD18)/InputC!$J$16,0) -> 3 | DE29: =ROUNDUP(MONTH(DE18)/InputC!$J$16,0) -> 4 | DF29: =ROUNDUP(MONTH(DF18)/InputC!$J$16,0) -> 1 | DG29: =ROUNDUP(MONTH(DG18)/InputC!$J$16,0) -> 2 | DH29: =ROUNDUP(MONTH(DH18)/InputC!$J$16,0) -> 3 | DI29: =ROUNDUP(MONTH(DI18)/InputC!$J$16,0) -> 4 | DJ29: =ROUNDUP(MONTH(DJ18)/InputC!$J$16,0) -> 1 | DK29: =ROUNDUP(MONTH(DK18)/InputC!$J$16,0) -> 2 | DL29: =ROUNDUP(MONTH(DL18)/InputC!$J$16,0) -> 3 | DM29: =ROUNDUP(MONTH(DM18)/InputC!$J$16,0) -> 4 | DN29: =ROUNDUP(MONTH(DN18)/InputC!$J$16,0) -> 1 | DO29: =ROUNDUP(MONTH(DO18)/InputC!$J$16,0) -> 2 | DP29: =ROUNDUP(MONTH(DP18)/InputC!$J$16,0) -> 3 | DQ29: =ROUNDUP(MONTH(DQ18)/InputC!$J$16,0) -> 4 | DR29: =ROUNDUP(MONTH(DR18)/InputC!$J$16,0) -> 1 | DS29: =ROUNDUP(MONTH(DS18)/InputC!$J$16,0) -> 2 | DT29: =ROUNDUP(MONTH(DT18)/InputC!$J$16,0) -> 3 | DU29: =ROUNDUP(MONTH(DU18)/InputC!$J$16,0) -> 4 | DV29: =ROUNDUP(MONTH(DV18)/InputC!$J$16,0) -> 1 | DW29: =ROUNDUP(MONTH(DW18)/InputC!$J$16,0) -> 2 | DX29: =ROUNDUP(MONTH(DX18)/InputC!$J$16,0) -> 3 | DY29: =ROUNDUP(MONTH(DY18)/InputC!$J$16,0) -> 4 | DZ29: =ROUNDUP(MONTH(DZ18)/InputC!$J$16,0) -> 1 | EA29: =ROUNDUP(MONTH(EA18)/InputC!$J$16,0) -> 2 | EB29: =ROUNDUP(MONTH(EB18)/InputC!$J$16,0) -> 3 | EC29: =ROUNDUP(MONTH(EC18)/InputC!$J$16,0) -> 4 | ED29: =ROUNDUP(MONTH(ED18)/InputC!$J$16,0) -> 1 | EE29: =ROUNDUP(MONTH(EE18)/InputC!$J$16,0) -> 2 | EF29: =ROUNDUP(MONTH(EF18)/InputC!$J$16,0) -> 3 | EG29: =ROUNDUP(MONTH(EG18)/InputC!$J$16,0) -> 4 | EH29: =ROUNDUP(MONTH(EH18)/InputC!$J$16,0) -> 1 | EI29: =ROUNDUP(MONTH(EI18)/InputC!$J$16,0) -> 2 | EJ29: =ROUNDUP(MONTH(EJ18)/InputC!$J$16,0) -> 3 | EK29: =ROUNDUP(MONTH(EK18)/InputC!$J$16,0) -> 4 | EL29: =ROUNDUP(MONTH(EL18)/InputC!$J$16,0) -> 1 | EM29: =ROUNDUP(MONTH(EM18)/InputC!$J$16,0) -> 2 | EN29: =ROUNDUP(MONTH(EN18)/InputC!$J$16,0) -> 3 | EO29: =ROUNDUP(MONTH(EO18)/InputC!$J$16,0) -> 4 | EP29: =ROUNDUP(MONTH(EP18)/InputC!$J$16,0) -> 1 | EQ29: =ROUNDUP(MONTH(EQ18)/InputC!$J$16,0) -> 2 | ER29: =ROUNDUP(MONTH(ER18)/InputC!$J$16,0) -> 3 | ES29: =ROUNDUP(MONTH(ES18)/InputC!$J$16,0) -> 4 | ET29: =ROUNDUP(MONTH(ET18)/InputC!$J$16,0) -> 1 | EU29: =ROUNDUP(MONTH(EU18)/InputC!$J$16,0) -> 2 | EV29: =ROUNDUP(MONTH(EV18)/InputC!$J$16,0) -> 3 | EW29: =ROUNDUP(MONTH(EW18)/InputC!$J$16,0) -> 4 | EX29: =ROUNDUP(MONTH(EX18)/InputC!$J$16,0) -> 1 | EY29: =ROUNDUP(MONTH(EY18)/InputC!$J$16,0) -> 2 | EZ29: =ROUNDUP(MONTH(EZ18)/InputC!$J$16,0) -> 3 | FA29: =ROUNDUP(MONTH(FA18)/InputC!$J$16,0) -> 4 | FB29: =ROUNDUP(MONTH(FB18)/InputC!$J$16,0) -> 1 | FC29: =ROUNDUP(MONTH(FC18)/InputC!$J$16,0) -> 2 | FD29: =ROUNDUP(MONTH(FD18)/InputC!$J$16,0) -> 3 | FE29: =ROUNDUP(MONTH(FE18)/InputC!$J$16,0) -> 4 | FF29: =ROUNDUP(MONTH(FF18)/InputC!$J$16,0) -> 1 | FG29: =ROUNDUP(MONTH(FG18)/InputC!$J$16,0) -> 2 | FH29: =ROUNDUP(MONTH(FH18)/InputC!$J$16,0) -> 3 | FI29: =ROUNDUP(MONTH(FI18)/InputC!$J$16,0) -> 4 | FJ29: =ROUNDUP(MONTH(FJ18)/InputC!$J$16,0) -> 1 | FK29: =ROUNDUP(MONTH(FK18)/InputC!$J$16,0) -> 2 | FL29: =ROUNDUP(MONTH(FL18)/InputC!$J$16,0) -> 3 | FM29: =ROUNDUP(MONTH(FM18)/InputC!$J$16,0) -> 4 | FN29: =ROUNDUP(MONTH(FN18)/InputC!$J$16,0) -> 1 | FO29: =ROUNDUP(MONTH(FO18)/InputC!$J$16,0) -> 2 | FP29: =ROUNDUP(MONTH(FP18)/InputC!$J$16,0) -> 3 | FQ29: =ROUNDUP(MONTH(FQ18)/InputC!$J$16,0) -> 4 | FR29: =ROUNDUP(MONTH(FR18)/InputC!$J$16,0) -> 1 | FS29: =ROUNDUP(MONTH(FS18)/InputC!$J$16,0) -> 2 | FT29: =ROUNDUP(MONTH(FT18)/InputC!$J$16,0) -> 3 | FU29: =ROUNDUP(MONTH(FU18)/InputC!$J$16,0) -> 4 | FV29: =ROUNDUP(MONTH(FV18)/InputC!$J$16,0) -> 1 | FW29: =ROUNDUP(MONTH(FW18)/InputC!$J$16,0) -> 2 | FX29: =ROUNDUP(MONTH(FX18)/InputC!$J$16,0) -> 3 | FY29: =ROUNDUP(MONTH(FY18)/InputC!$J$16,0) -> 4 | FZ29: =ROUNDUP(MONTH(FZ18)/InputC!$J$16,0) -> 1 | GA29: =ROUNDUP(MONTH(GA18)/InputC!$J$16,0) -> 2 | GB29: =ROUNDUP(MONTH(GB18)/InputC!$J$16,0) -> 3 | GC29: =ROUNDUP(MONTH(GC18)/InputC!$J$16,0) -> 4 | GD29: =ROUNDUP(MONTH(GD18)/InputC!$J$16,0) -> 1 | GE29: =ROUNDUP(MONTH(GE18)/InputC!$J$16,0) -> 2 | GF29: =ROUNDUP(MONTH(GF18)/InputC!$J$16,0) -> 3 | GG29: =ROUNDUP(MONTH(GG18)/InputC!$J$16,0) -> 4 | GH29: =ROUNDUP(MONTH(GH18)/InputC!$J$16,0) -> 1 | GI29: =ROUNDUP(MONTH(GI18)/InputC!$J$16,0) -> 2 | GJ29: =ROUNDUP(MONTH(GJ18)/InputC!$J$16,0) -> 3 | GK29: =ROUNDUP(MONTH(GK18)/InputC!$J$16,0) -> 4 | GL29: =ROUNDUP(MONTH(GL18)/InputC!$J$16,0) -> 1 | GM29: =ROUNDUP(MONTH(GM18)/InputC!$J$16,0) -> 2 | GN29: =ROUNDUP(MONTH(GN18)/InputC!$J$16,0) -> 3 | GO29: =ROUNDUP(MONTH(GO18)/InputC!$J$16,0) -> 4 | GP29: =ROUNDUP(MONTH(GP18)/InputC!$J$16,0) -> 1 | GQ29: =ROUNDUP(MONTH(GQ18)/InputC!$J$16,0) -> 2 | GR29: =ROUNDUP(MONTH(GR18)/InputC!$J$16,0) -> 3 | GS29: =ROUNDUP(MONTH(GS18)/InputC!$J$16,0) -> 4 | GT29: =ROUNDUP(MONTH(GT18)/InputC!$J$16,0) -> 1 | GU29: =ROUNDUP(MONTH(GU18)/InputC!$J$16,0) -> 2 | GV29: =ROUNDUP(MONTH(GV18)/InputC!$J$16,0) -> 3 | GW29: =ROUNDUP(MONTH(GW18)/InputC!$J$16,0) -> 4 | GX29: =ROUNDUP(MONTH(GX18)/InputC!$J$16,0) -> 1 | GY29: =ROUNDUP(MONTH(GY18)/InputC!$J$16,0) -> 2 | GZ29: =ROUNDUP(MONTH(GZ18)/InputC!$J$16,0) -> 3 | HA29: =ROUNDUP(MONTH(HA18)/InputC!$J$16,0) -> 4 | HB29: =ROUNDUP(MONTH(HB18)/InputC!$J$16,0) -> 1 | HC29: =ROUNDUP(MONTH(HC18)/InputC!$J$16,0) -> 2 | HD29: =ROUNDUP(MONTH(HD18)/InputC!$J$16,0) -> 3 | HE29: =ROUNDUP(MONTH(HE18)/InputC!$J$16,0) -> 4 | HF29: =ROUNDUP(MONTH(HF18)/InputC!$J$16,0) -> 1 | HG29: =ROUNDUP(MONTH(HG18)/InputC!$J$16,0) -> 2 | HH29: =ROUNDUP(MONTH(HH18)/InputC!$J$16,0) -> 3 | HI29: =ROUNDUP(MONTH(HI18)/InputC!$J$16,0) -> 4 | HJ29: =ROUNDUP(MONTH(HJ18)/InputC!$J$16,0) -> 1 | HK29: =ROUNDUP(MONTH(HK18)/InputC!$J$16,0) -> 2 | HL29: =ROUNDUP(MONTH(HL18)/InputC!$J$16,0) -> 3 | HM29: =ROUNDUP(MONTH(HM18)/InputC!$J$16,0) -> 4 | HN29: =ROUNDUP(MONTH(HN18)/InputC!$J$16,0) -> 1 | HO29: =ROUNDUP(MONTH(HO18)/InputC!$J$16,0) -> 2 | HP29: =ROUNDUP(MONTH(HP18)/InputC!$J$16,0) -> 3 | HQ29: =ROUNDUP(MONTH(HQ18)/InputC!$J$16,0) -> 4 | HR29: =ROUNDUP(MONTH(HR18)/InputC!$J$16,0) -> 1 | HS29: =ROUNDUP(MONTH(HS18)/InputC!$J$16,0) -> 2 | HT29: =ROUNDUP(MONTH(HT18)/InputC!$J$16,0) -> 3 | HU29: =ROUNDUP(MONTH(HU18)/InputC!$J$16,0) -> 4 | HV29: =ROUNDUP(MONTH(HV18)/InputC!$J$16,0) -> 1 | HW29: =ROUNDUP(MONTH(HW18)/InputC!$J$16,0) -> 2 | HX29: =ROUNDUP(MONTH(HX18)/InputC!$J$16,0) -> 3 | HY29: =ROUNDUP(MONTH(HY18)/InputC!$J$16,0) -> 4 | HZ29: =ROUNDUP(MONTH(HZ18)/InputC!$J$16,0) -> 1 | IA29: =ROUNDUP(MONTH(IA18)/InputC!$J$16,0) -> 2 | IB29: =ROUNDUP(MONTH(IB18)/InputC!$J$16,0) -> 3 | IC29: =ROUNDUP(MONTH(IC18)/InputC!$J$16,0) -> 4 | ID29: =ROUNDUP(MONTH(ID18)/InputC!$J$16,0) -> 1 | IE29: =ROUNDUP(MONTH(IE18)/InputC!$J$16,0) -> 2
C30: Quarter Flag | I30: flag | R30: =IF(R29<>Q29,1,0) -> 1 | S30: 0 | T30: 0 | U30: 1 | V30: 0 | W30: 0 | X30: 1 | Y30: 0 | Z30: 0 | AA30: 1 | AB30: 0 | AC30: 0 | AD30: 1 | AE30: 0 | AF30: 0 | AG30: 1 | AH30: 0 | AI30: 0 | AJ30: 1 | AK30: 1 | AL30: 1 | AM30: 1 | AN30: 1 | AO30: 1 | AP30: 1 | AQ30: 1 | AR30: 1 | AS30: 1 | AT30: 1 | AU30: 1 | AV30: 1 | AW30: 1 | AX30: 1 | AY30: 1 | AZ30: 1 | BA30: 1 | BB30: 1 | BC30: 1 | BD30: 1 | BE30: 1 | BF30: 1 | BG30: 1 | BH30: 1 | BI30: 1 | BJ30: 1 | BK30: 1 | BL30: 1 | BM30: 1 | BN30: 1 | BO30: 1 | BP30: 1 | BQ30: 1 | BR30: 1 | BS30: 1 | BT30: 1 | BU30: 1 | BV30: 1 | BW30: 1 | BX30: 1 | BY30: 1 | BZ30: 1 | CA30: 1 | CB30: 1 | CC30: 1 | CD30: =IF(CD29<>CC29,1,0) -> 1 | CE30: 1 | CF30: 1 | CG30: 1 | CH30: 1 | CI30: 1 | CJ30: 1 | CK30: 1 | CL30: 1 | CM30: 1 | CN30: 1 | CO30: 1 | CP30: 1 | CQ30: 1 | CR30: 1 | CS30: 1 | CT30: 1 | CU30: 1 | CV30: 1 | CW30: 1 | CX30: 1 | CY30: 1 | CZ30: 1 | DA30: 1 | DB30: 1 | DC30: 1 | DD30: 1 | DE30: 1 | DF30: 1 | DG30: 1 | DH30: 1 | DI30: 1 | DJ30: 1 | DK30: 1 | DL30: 1 | DM30: 1 | DN30: 1 | DO30: 1 | DP30: 1 | DQ30: 1 | DR30: 1 | DS30: 1 | DT30: 1 | DU30: 1 | DV30: 1 | DW30: 1 | DX30: 1 | DY30: 1 | DZ30: 1 | EA30: 1 | EB30: 1 | EC30: 1 | ED30: 1 | EE30: 1 | EF30: 1 | EG30: 1 | EH30: 1 | EI30: 1 | EJ30: 1 | EK30: 1 | EL30: 1 | EM30: 1 | EN30: 1 | EO30: 1 | EP30: =IF(EP29<>EO29,1,0) -> 1 | EQ30: 1 | ER30: 1 | ES30: 1 | ET30: 1 | EU30: 1 | EV30: 1 | EW30: 1 | EX30: 1 | EY30: 1 | EZ30: 1 | FA30: 1 | FB30: 1 | FC30: 1 | FD30: 1 | FE30: 1 | FF30: 1 | FG30: 1 | FH30: 1 | FI30: 1 | FJ30: 1 | FK30: 1 | FL30: 1 | FM30: 1 | FN30: 1 | FO30: 1 | FP30: 1 | FQ30: 1 | FR30: 1 | FS30: 1 | FT30: 1 | FU30: 1 | FV30: 1 | FW30: 1 | FX30: 1 | FY30: 1 | FZ30: 1 | GA30: 1 | GB30: 1 | GC30: 1 | GD30: 1 | GE30: 1 | GF30: 1 | GG30: 1 | GH30: 1 | GI30: 1 | GJ30: 1 | GK30: 1 | GL30: 1 | GM30: 1 | GN30: 1 | GO30: 1 | GP30: 1 | GQ30: 1 | GR30: 1 | GS30: 1 | GT30: 1 | GU30: 1 | GV30: 1 | GW30: 1 | GX30: 1 | GY30: 1 | GZ30: 1 | HA30: 1 | HB30: =IF(HB29<>HA29,1,0) -> 1 | HC30: 1 | HD30: 1 | HE30: 1 | HF30: 1 | HG30: 1 | HH30: 1 | HI30: 1 | HJ30: 1 | HK30: 1 | HL30: 1 | HM30: 1 | HN30: 1 | HO30: 1 | HP30: 1 | HQ30: 1 | HR30: 1 | HS30: 1 | HT30: 1 | HU30: 1 | HV30: 1 | HW30: 1 | HX30: 1 | HY30: 1 | HZ30: 1 | IA30: 1 | IB30: 1 | IC30: 1 | ID30: 1 | IE30: 1
C31: Quarter Counter | I31: # | R31: =SUM($R$30:R30) -> 1 | S31: =SUM($R$30:S30) -> 1 | T31: =SUM($R$30:T30) -> 1 | U31: =SUM($R$30:U30) -> 2 | V31: =SUM($R$30:V30) -> 2 | W31: =SUM($R$30:W30) -> 2 | X31: =SUM($R$30:X30) -> 3 | Y31: =SUM($R$30:Y30) -> 3 | Z31: =SUM($R$30:Z30) -> 3 | AA31: =SUM($R$30:AA30) -> 4 | AB31: =SUM($R$30:AB30) -> 4 | AC31: =SUM($R$30:AC30) -> 4 | AD31: =SUM($R$30:AD30) -> 5 | AE31: =SUM($R$30:AE30) -> 5 | AF31: =SUM($R$30:AF30) -> 5 | AG31: =SUM($R$30:AG30) -> 6 | AH31: =SUM($R$30:AH30) -> 6 | AI31: =SUM($R$30:AI30) -> 6 | AJ31: =SUM($R$30:AJ30) -> 7 | AK31: =SUM($R$30:AK30) -> 8 | AL31: =SUM($R$30:AL30) -> 9 | AM31: =SUM($R$30:AM30) -> 10 | AN31: =SUM($R$30:AN30) -> 11 | AO31: =SUM($R$30:AO30) -> 12 | AP31: =SUM($R$30:AP30) -> 13 | AQ31: =SUM($R$30:AQ30) -> 14 | AR31: =SUM($R$30:AR30) -> 15 | AS31: =SUM($R$30:AS30) -> 16 | AT31: =SUM($R$30:AT30) -> 17 | AU31: =SUM($R$30:AU30) -> 18 | AV31: =SUM($R$30:AV30) -> 19 | AW31: =SUM($R$30:AW30) -> 20 | AX31: =SUM($R$30:AX30) -> 21 | AY31: =SUM($R$30:AY30) -> 22 | AZ31: =SUM($R$30:AZ30) -> 23 | BA31: =SUM($R$30:BA30) -> 24 | BB31: =SUM($R$30:BB30) -> 25 | BC31: =SUM($R$30:BC30) -> 26 | BD31: =SUM($R$30:BD30) -> 27 | BE31: =SUM($R$30:BE30) -> 28 | BF31: =SUM($R$30:BF30) -> 29 | BG31: =SUM($R$30:BG30) -> 30 | BH31: =SUM($R$30:BH30) -> 31 | BI31: =SUM($R$30:BI30) -> 32 | BJ31: =SUM($R$30:BJ30) -> 33 | BK31: =SUM($R$30:BK30) -> 34 | BL31: =SUM($R$30:BL30) -> 35 | BM31: =SUM($R$30:BM30) -> 36 | BN31: =SUM($R$30:BN30) -> 37 | BO31: =SUM($R$30:BO30) -> 38 | BP31: =SUM($R$30:BP30) -> 39 | BQ31: =SUM($R$30:BQ30) -> 40 | BR31: =SUM($R$30:BR30) -> 41 | BS31: =SUM($R$30:BS30) -> 42 | BT31: =SUM($R$30:BT30) -> 43 | BU31: =SUM($R$30:BU30) -> 44 | BV31: =SUM($R$30:BV30) -> 45 | BW31: =SUM($R$30:BW30) -> 46 | BX31: =SUM($R$30:BX30) -> 47 | BY31: =SUM($R$30:BY30) -> 48 | BZ31: =SUM($R$30:BZ30) -> 49 | CA31: =SUM($R$30:CA30) -> 50 | CB31: =SUM($R$30:CB30) -> 51 | CC31: =SUM($R$30:CC30) -> 52 | CD31: =SUM($R$30:CD30) -> 53 | CE31: =SUM($R$30:CE30) -> 54 | CF31: =SUM($R$30:CF30) -> 55 | CG31: =SUM($R$30:CG30) -> 56 | CH31: =SUM($R$30:CH30) -> 57 | CI31: =SUM($R$30:CI30) -> 58 | CJ31: =SUM($R$30:CJ30) -> 59 | CK31: =SUM($R$30:CK30) -> 60 | CL31: =SUM($R$30:CL30) -> 61 | CM31: =SUM($R$30:CM30) -> 62 | CN31: =SUM($R$30:CN30) -> 63 | CO31: =SUM($R$30:CO30) -> 64 | CP31: =SUM($R$30:CP30) -> 65 | CQ31: =SUM($R$30:CQ30) -> 66 | CR31: =SUM($R$30:CR30) -> 67 | CS31: =SUM($R$30:CS30) -> 68 | CT31: =SUM($R$30:CT30) -> 69 | CU31: =SUM($R$30:CU30) -> 70 | CV31: =SUM($R$30:CV30) -> 71 | CW31: =SUM($R$30:CW30) -> 72 | CX31: =SUM($R$30:CX30) -> 73 | CY31: =SUM($R$30:CY30) -> 74 | CZ31: =SUM($R$30:CZ30) -> 75 | DA31: =SUM($R$30:DA30) -> 76 | DB31: =SUM($R$30:DB30) -> 77 | DC31: =SUM($R$30:DC30) -> 78 | DD31: =SUM($R$30:DD30) -> 79 | DE31: =SUM($R$30:DE30) -> 80 | DF31: =SUM($R$30:DF30) -> 81 | DG31: =SUM($R$30:DG30) -> 82 | DH31: =SUM($R$30:DH30) -> 83 | DI31: =SUM($R$30:DI30) -> 84 | DJ31: =SUM($R$30:DJ30) -> 85 | DK31: =SUM($R$30:DK30) -> 86 | DL31: =SUM($R$30:DL30) -> 87 | DM31: =SUM($R$30:DM30) -> 88 | DN31: =SUM($R$30:DN30) -> 89 | DO31: =SUM($R$30:DO30) -> 90 | DP31: =SUM($R$30:DP30) -> 91 | DQ31: =SUM($R$30:DQ30) -> 92 | DR31: =SUM($R$30:DR30) -> 93 | DS31: =SUM($R$30:DS30) -> 94 | DT31: =SUM($R$30:DT30) -> 95 | DU31: =SUM($R$30:DU30) -> 96 | DV31: =SUM($R$30:DV30) -> 97 | DW31: =SUM($R$30:DW30) -> 98 | DX31: =SUM($R$30:DX30) -> 99 | DY31: =SUM($R$30:DY30) -> 100 | DZ31: =SUM($R$30:DZ30) -> 101 | EA31: =SUM($R$30:EA30) -> 102 | EB31: =SUM($R$30:EB30) -> 103 | EC31: =SUM($R$30:EC30) -> 104 | ED31: =SUM($R$30:ED30) -> 105 | EE31: =SUM($R$30:EE30) -> 106 | EF31: =SUM($R$30:EF30) -> 107 | EG31: =SUM($R$30:EG30) -> 108 | EH31: =SUM($R$30:EH30) -> 109 | EI31: =SUM($R$30:EI30) -> 110 | EJ31: =SUM($R$30:EJ30) -> 111 | EK31: =SUM($R$30:EK30) -> 112 | EL31: =SUM($R$30:EL30) -> 113 | EM31: =SUM($R$30:EM30) -> 114 | EN31: =SUM($R$30:EN30) -> 115 | EO31: =SUM($R$30:EO30) -> 116 | EP31: =SUM($R$30:EP30) -> 117 | EQ31: =SUM($R$30:EQ30) -> 118 | ER31: =SUM($R$30:ER30) -> 119 | ES31: =SUM($R$30:ES30) -> 120 | ET31: =SUM($R$30:ET30) -> 121 | EU31: =SUM($R$30:EU30) -> 122 | EV31: =SUM($R$30:EV30) -> 123 | EW31: =SUM($R$30:EW30) -> 124 | EX31: =SUM($R$30:EX30) -> 125 | EY31: =SUM($R$30:EY30) -> 126 | EZ31: =SUM($R$30:EZ30) -> 127 | FA31: =SUM($R$30:FA30) -> 128 | FB31: =SUM($R$30:FB30) -> 129 | FC31: =SUM($R$30:FC30) -> 130 | FD31: =SUM($R$30:FD30) -> 131 | FE31: =SUM($R$30:FE30) -> 132 | FF31: =SUM($R$30:FF30) -> 133 | FG31: =SUM($R$30:FG30) -> 134 | FH31: =SUM($R$30:FH30) -> 135 | FI31: =SUM($R$30:FI30) -> 136 | FJ31: =SUM($R$30:FJ30) -> 137 | FK31: =SUM($R$30:FK30) -> 138 | FL31: =SUM($R$30:FL30) -> 139 | FM31: =SUM($R$30:FM30) -> 140 | FN31: =SUM($R$30:FN30) -> 141 | FO31: =SUM($R$30:FO30) -> 142 | FP31: =SUM($R$30:FP30) -> 143 | FQ31: =SUM($R$30:FQ30) -> 144 | FR31: =SUM($R$30:FR30) -> 145 | FS31: =SUM($R$30:FS30) -> 146 | FT31: =SUM($R$30:FT30) -> 147 | FU31: =SUM($R$30:FU30) -> 148 | FV31: =SUM($R$30:FV30) -> 149 | FW31: =SUM($R$30:FW30) -> 150 | FX31: =SUM($R$30:FX30) -> 151 | FY31: =SUM($R$30:FY30) -> 152 | FZ31: =SUM($R$30:FZ30) -> 153 | GA31: =SUM($R$30:GA30) -> 154 | GB31: =SUM($R$30:GB30) -> 155 | GC31: =SUM($R$30:GC30) -> 156 | GD31: =SUM($R$30:GD30) -> 157 | GE31: =SUM($R$30:GE30) -> 158 | GF31: =SUM($R$30:GF30) -> 159 | GG31: =SUM($R$30:GG30) -> 160 | GH31: =SUM($R$30:GH30) -> 161 | GI31: =SUM($R$30:GI30) -> 162 | GJ31: =SUM($R$30:GJ30) -> 163 | GK31: =SUM($R$30:GK30) -> 164 | GL31: =SUM($R$30:GL30) -> 165 | GM31: =SUM($R$30:GM30) -> 166 | GN31: =SUM($R$30:GN30) -> 167 | GO31: =SUM($R$30:GO30) -> 168 | GP31: =SUM($R$30:GP30) -> 169 | GQ31: =SUM($R$30:GQ30) -> 170 | GR31: =SUM($R$30:GR30) -> 171 | GS31: =SUM($R$30:GS30) -> 172 | GT31: =SUM($R$30:GT30) -> 173 | GU31: =SUM($R$30:GU30) -> 174 | GV31: =SUM($R$30:GV30) -> 175 | GW31: =SUM($R$30:GW30) -> 176 | GX31: =SUM($R$30:GX30) -> 177 | GY31: =SUM($R$30:GY30) -> 178 | GZ31: =SUM($R$30:GZ30) -> 179 | HA31: =SUM($R$30:HA30) -> 180 | HB31: =SUM($R$30:HB30) -> 181 | HC31: =SUM($R$30:HC30) -> 182 | HD31: =SUM($R$30:HD30) -> 183 | HE31: =SUM($R$30:HE30) -> 184 | HF31: =SUM($R$30:HF30) -> 185 | HG31: =SUM($R$30:HG30) -> 186 | HH31: =SUM($R$30:HH30) -> 187 | HI31: =SUM($R$30:HI30) -> 188 | HJ31: =SUM($R$30:HJ30) -> 189 | HK31: =SUM($R$30:HK30) -> 190 | HL31: =SUM($R$30:HL30) -> 191 | HM31: =SUM($R$30:HM30) -> 192 | HN31: =SUM($R$30:HN30) -> 193 | HO31: =SUM($R$30:HO30) -> 194 | HP31: =SUM($R$30:HP30) -> 195 | HQ31: =SUM($R$30:HQ30) -> 196 | HR31: =SUM($R$30:HR30) -> 197 | HS31: =SUM($R$30:HS30) -> 198 | HT31: =SUM($R$30:HT30) -> 199 | HU31: =SUM($R$30:HU30) -> 200 | HV31: =SUM($R$30:HV30) -> 201 | HW31: =SUM($R$30:HW30) -> 202 | HX31: =SUM($R$30:HX30) -> 203 | HY31: =SUM($R$30:HY30) -> 204 | HZ31: =SUM($R$30:HZ30) -> 205 | IA31: =SUM($R$30:IA30) -> 206 | IB31: =SUM($R$30:IB30) -> 207 | IC31: =SUM($R$30:IC30) -> 208 | ID31: =SUM($R$30:ID30) -> 209 | IE31: =SUM($R$30:IE30) -> 210
C33: Number of Days in Current Year | I33: # | R33: =DATE(R19,12,31)-DATE(R19,1,1)+1 -> 365 | S33: 365 | T33: 365 | U33: 365 | V33: 365 | W33: 365 | X33: 365 | Y33: 365 | Z33: 365 | AA33: 365 | AB33: 365 | AC33: 365 | AD33: 365 | AE33: 365 | AF33: 365 | AG33: 365 | AH33: 365 | AI33: 365 | AJ33: 365 | AK33: 365 | AL33: 365 | AM33: 365 | AN33: 365 | AO33: 365 | AP33: 366 | AQ33: 366 | AR33: 366 | AS33: 366 | AT33: 365 | AU33: 365 | AV33: 365 | AW33: 365 | AX33: 365 | AY33: 365 | AZ33: 365 | BA33: 365 | BB33: 365 | BC33: 365 | BD33: 365 | BE33: 365 | BF33: 366 | BG33: 366 | BH33: 366 | BI33: 366 | BJ33: 365 | BK33: 365 | BL33: 365 | BM33: 365 | BN33: 365 | BO33: 365 | BP33: 365 | BQ33: 365 | BR33: 365 | BS33: 365 | BT33: 365 | BU33: 365 | BV33: 366 | BW33: 366 | BX33: 366 | BY33: 366 | BZ33: 365 | CA33: 365 | CB33: 365 | CC33: 365 | CD33: =DATE(CD19,12,31)-DATE(CD19,1,1)+1 -> 365 | CE33: 365 | CF33: 365 | CG33: 365 | CH33: 365 | CI33: 365 | CJ33: 365 | CK33: 365 | CL33: 366 | CM33: 366 | CN33: 366 | CO33: 366 | CP33: 365 | CQ33: 365 | CR33: 365 | CS33: 365 | CT33: 365 | CU33: 365 | CV33: 365 | CW33: 365 | CX33: 365 | CY33: 365 | CZ33: 365 | DA33: 365 | DB33: 366 | DC33: 366 | DD33: 366 | DE33: 366 | DF33: 365 | DG33: 365 | DH33: 365 | DI33: 365 | DJ33: 365 | DK33: 365 | DL33: 365 | DM33: 365 | DN33: 365 | DO33: 365 | DP33: 365 | DQ33: 365 | DR33: 366 | DS33: 366 | DT33: 366 | DU33: 366 | DV33: 365 | DW33: 365 | DX33: 365 | DY33: 365 | DZ33: 365 | EA33: 365 | EB33: 365 | EC33: 365 | ED33: 365 | EE33: 365 | EF33: 365 | EG33: 365 | EH33: 366 | EI33: 366 | EJ33: 366 | EK33: 366 | EL33: 365 | EM33: 365 | EN33: 365 | EO33: 365 | EP33: =DATE(EP19,12,31)-DATE(EP19,1,1)+1 -> 365 | EQ33: 365 | ER33: 365 | ES33: 365 | ET33: 365 | EU33: 365 | EV33: 365 | EW33: 365 | EX33: 366 | EY33: 366 | EZ33: 366 | FA33: 366 | FB33: 365 | FC33: 365 | FD33: 365 | FE33: 365 | FF33: 365 | FG33: 365 | FH33: 365 | FI33: 365 | FJ33: 365 | FK33: 365 | FL33: 365 | FM33: 365 | FN33: 366 | FO33: 366 | FP33: 366 | FQ33: 366 | FR33: 365 | FS33: 365 | FT33: 365 | FU33: 365 | FV33: 365 | FW33: 365 | FX33: 365 | FY33: 365 | FZ33: 365 | GA33: 365 | GB33: 365 | GC33: 365 | GD33: 366 | GE33: 366 | GF33: 366 | GG33: 366 | GH33: 365 | GI33: 365 | GJ33: 365 | GK33: 365 | GL33: 365 | GM33: 365 | GN33: 365 | GO33: 365 | GP33: 365 | GQ33: 365 | GR33: 365 | GS33: 365 | GT33: 366 | GU33: 366 | GV33: 366 | GW33: 366 | GX33: 365 | GY33: 365 | GZ33: 365 | HA33: 365 | HB33: =DATE(HB19,12,31)-DATE(HB19,1,1)+1 -> 365 | HC33: 365 | HD33: 365 | HE33: 365 | HF33: 365 | HG33: 365 | HH33: 365 | HI33: 365 | HJ33: 366 | HK33: 366 | HL33: 366 | HM33: 366 | HN33: 365 | HO33: 365 | HP33: 365 | HQ33: 365 | HR33: 365 | HS33: 365 | HT33: 365 | HU33: 365 | HV33: 365 | HW33: 365 | HX33: 365 | HY33: 365 | HZ33: 366 | IA33: 366 | IB33: 366 | IC33: 366 | ID33: 365 | IE33: 365
B35: ="" ->  | C35: Monthly Timeline (Construction)
C37: Period Start | I37: date | R37: =R17 -> 2021-01-01 | S37: =R38+1 -> 2021-02-01 | T37: =S38+1 -> 2021-03-01 | U37: 2021-04-01 | V37: 2021-05-01 | W37: 2021-06-01 | X37: 2021-07-01 | Y37: 2021-08-01 | Z37: 2021-09-01 | AA37: 2021-10-01 | AB37: 2021-11-01 | AC37: 2021-12-01 | AD37: 2022-01-01 | AE37: 2022-02-01 | AF37: 2022-03-01 | AG37: 2022-04-01 | AH37: 2022-05-01 | AI37: 2022-06-01 | AJ37: 2022-07-01 | AK37: 2022-08-01 | AL37: 2022-09-01 | AM37: 2022-10-01 | AN37: 2022-11-01 | AO37: 2022-12-01 | AP37: 2023-01-01 | AQ37: 2023-02-01 | AR37: 2023-03-01 | AS37: 2023-04-01 | AT37: 2023-05-01 | AU37: 2023-06-01 | AV37: 2023-07-01 | AW37: 2023-08-01 | AX37: 2023-09-01 | AY37: 2023-10-01 | AZ37: 2023-11-01 | BA37: 2023-12-01 | BB37: 2024-01-01 | BC37: 2024-02-01 | BD37: 2024-03-01 | BE37: 2024-04-01 | BF37: 2024-05-01 | BG37: 2024-06-01 | BH37: 2024-07-01 | BI37: 2024-08-01 | BJ37: 2024-09-01 | BK37: 2024-10-01 | BL37: 2024-11-01 | BM37: 2024-12-01 | BN37: 2025-01-01 | BO37: 2025-02-01 | BP37: 2025-03-01 | BQ37: 2025-04-01 | BR37: 2025-05-01 | BS37: 2025-06-01 | BT37: 2025-07-01 | BU37: 2025-08-01 | BV37: 2025-09-01 | BW37: 2025-10-01 | BX37: 2025-11-01 | BY37: 2025-12-01 | BZ37: 2026-01-01 | CA37: 2026-02-01 | CB37: 2026-03-01 | CC37: 2026-04-01 | CD37: 2026-05-01 | CE37: 2026-06-01 | CF37: =CE38+1 -> 2026-07-01 | CG37: 2026-08-01 | CH37: 2026-09-01 | CI37: 2026-10-01 | CJ37: 2026-11-01 | CK37: 2026-12-01 | CL37: 2027-01-01 | CM37: 2027-02-01 | CN37: 2027-03-01 | CO37: 2027-04-01 | CP37: 2027-05-01 | CQ37: 2027-06-01 | CR37: 2027-07-01 | CS37: 2027-08-01 | CT37: 2027-09-01 | CU37: 2027-10-01 | CV37: 2027-11-01 | CW37: 2027-12-01 | CX37: 2028-01-01 | CY37: 2028-02-01 | CZ37: 2028-03-01 | DA37: 2028-04-01 | DB37: 2028-05-01 | DC37: 2028-06-01 | DD37: 2028-07-01 | DE37: 2028-08-01 | DF37: 2028-09-01 | DG37: 2028-10-01 | DH37: 2028-11-01 | DI37: 2028-12-01 | DJ37: 2029-01-01 | DK37: 2029-02-01 | DL37: 2029-03-01 | DM37: 2029-04-01 | DN37: 2029-05-01 | DO37: 2029-06-01 | DP37: 2029-07-01 | DQ37: 2029-08-01 | DR37: 2029-09-01 | DS37: 2029-10-01 | DT37: 2029-11-01 | DU37: 2029-12-01 | DV37: 2030-01-01 | DW37: 2030-02-01 | DX37: 2030-03-01 | DY37: 2030-04-01 | DZ37: 2030-05-01 | EA37: 2030-06-01 | EB37: 2030-07-01 | EC37: 2030-08-01 | ED37: 2030-09-01 | EE37: 2030-10-01 | EF37: 2030-11-01 | EG37: 2030-12-01 | EH37: 2031-01-01 | EI37: 2031-02-01 | EJ37: 2031-03-01 | EK37: 2031-04-01 | EL37: 2031-05-01 | EM37: 2031-06-01 | EN37: 2031-07-01 | EO37: 2031-08-01 | EP37: 2031-09-01 | EQ37: 2031-10-01 | ER37: =EQ38+1 -> 2031-11-01 | ES37: 2031-12-01 | ET37: 2032-01-01 | EU37: 2032-02-01 | EV37: 2032-03-01 | EW37: 2032-04-01 | EX37: 2032-05-01 | EY37: 2032-06-01 | EZ37: 2032-07-01 | FA37: 2032-08-01 | FB37: 2032-09-01 | FC37: 2032-10-01 | FD37: 2032-11-01 | FE37: 2032-12-01 | FF37: 2033-01-01 | FG37: 2033-02-01 | FH37: 2033-03-01 | FI37: 2033-04-01 | FJ37: 2033-05-01 | FK37: 2033-06-01 | FL37: 2033-07-01 | FM37: 2033-08-01 | FN37: 2033-09-01 | FO37: 2033-10-01 | FP37: 2033-11-01 | FQ37: 2033-12-01 | FR37: 2034-01-01 | FS37: 2034-02-01 | FT37: 2034-03-01 | FU37: 2034-04-01 | FV37: 2034-05-01 | FW37: 2034-06-01 | FX37: 2034-07-01 | FY37: 2034-08-01 | FZ37: 2034-09-01 | GA37: 2034-10-01 | GB37: 2034-11-01 | GC37: 2034-12-01 | GD37: 2035-01-01 | GE37: 2035-02-01 | GF37: 2035-03-01 | GG37: 2035-04-01 | GH37: 2035-05-01 | GI37: 2035-06-01 | GJ37: 2035-07-01 | GK37: 2035-08-01 | GL37: 2035-09-01 | GM37: 2035-10-01 | GN37: 2035-11-01 | GO37: 2035-12-01 | GP37: 2036-01-01 | GQ37: 2036-02-01 | GR37: 2036-03-01 | GS37: 2036-04-01 | GT37: 2036-05-01 | GU37: 2036-06-01 | GV37: 2036-07-01 | GW37: 2036-08-01 | GX37: 2036-09-01 | GY37: 2036-10-01 | GZ37: 2036-11-01 | HA37: 2036-12-01 | HB37: 2037-01-01 | HC37: 2037-02-01 | HD37: =HC38+1 -> 2037-03-01 | HE37: 2037-04-01 | HF37: 2037-05-01 | HG37: 2037-06-01 | HH37: 2037-07-01 | HI37: 2037-08-01 | HJ37: 2037-09-01 | HK37: 2037-10-01 | HL37: 2037-11-01 | HM37: 2037-12-01 | HN37: 2038-01-01 | HO37: 2038-02-01 | HP37: 2038-03-01 | HQ37: 2038-04-01 | HR37: 2038-05-01 | HS37: 2038-06-01 | HT37: 2038-07-01 | HU37: 2038-08-01 | HV37: 2038-09-01 | HW37: 2038-10-01 | HX37: 2038-11-01 | HY37: 2038-12-01 | HZ37: 2039-01-01 | IA37: 2039-02-01 | IB37: 2039-03-01 | IC37: 2039-04-01 | ID37: 2039-05-01 | IE37: 2039-06-01
C38: Period End | I38: date | R38: =EDATE(R37,1)-1 -> 2021-01-31 | S38: =EDATE(S37,1)-1 -> 2021-02-28 | T38: 2021-03-31 | U38: 2021-04-30 | V38: 2021-05-31 | W38: 2021-06-30 | X38: 2021-07-31 | Y38: 2021-08-31 | Z38: 2021-09-30 | AA38: 2021-10-31 | AB38: 2021-11-30 | AC38: 2021-12-31 | AD38: 2022-01-31 | AE38: 2022-02-28 | AF38: 2022-03-31 | AG38: 2022-04-30 | AH38: 2022-05-31 | AI38: 2022-06-30 | AJ38: 2022-07-31 | AK38: 2022-08-31 | AL38: 2022-09-30 | AM38: 2022-10-31 | AN38: 2022-11-30 | AO38: 2022-12-31 | AP38: 2023-01-31 | AQ38: 2023-02-28 | AR38: 2023-03-31 | AS38: 2023-04-30 | AT38: 2023-05-31 | AU38: 2023-06-30 | AV38: 2023-07-31 | AW38: 2023-08-31 | AX38: 2023-09-30 | AY38: 2023-10-31 | AZ38: 2023-11-30 | BA38: 2023-12-31 | BB38: 2024-01-31 | BC38: 2024-02-29 | BD38: 2024-03-31 | BE38: 2024-04-30 | BF38: 2024-05-31 | BG38: 2024-06-30 | BH38: 2024-07-31 | BI38: 2024-08-31 | BJ38: 2024-09-30 | BK38: 2024-10-31 | BL38: 2024-11-30 | BM38: 2024-12-31 | BN38: 2025-01-31 | BO38: 2025-02-28 | BP38: 2025-03-31 | BQ38: 2025-04-30 | BR38: 2025-05-31 | BS38: 2025-06-30 | BT38: 2025-07-31 | BU38: 2025-08-31 | BV38: 2025-09-30 | BW38: 2025-10-31 | BX38: 2025-11-30 | BY38: 2025-12-31 | BZ38: 2026-01-31 | CA38: 2026-02-28 | CB38: 2026-03-31 | CC38: 2026-04-30 | CD38: 2026-05-31 | CE38: =EDATE(CE37,1)-1 -> 2026-06-30 | CF38: 2026-07-31 | CG38: 2026-08-31 | CH38: 2026-09-30 | CI38: 2026-10-31 | CJ38: 2026-11-30 | CK38: 2026-12-31 | CL38: 2027-01-31 | CM38: 2027-02-28 | CN38: 2027-03-31 | CO38: 2027-04-30 | CP38: 2027-05-31 | CQ38: 2027-06-30 | CR38: 2027-07-31 | CS38: 2027-08-31 | CT38: 2027-09-30 | CU38: 2027-10-31 | CV38: 2027-11-30 | CW38: 2027-12-31 | CX38: 2028-01-31 | CY38: 2028-02-29 | CZ38: 2028-03-31 | DA38: 2028-04-30 | DB38: 2028-05-31 | DC38: 2028-06-30 | DD38: 2028-07-31 | DE38: 2028-08-31 | DF38: 2028-09-30 | DG38: 2028-10-31 | DH38: 2028-11-30 | DI38: 2028-12-31 | DJ38: 2029-01-31 | DK38: 2029-02-28 | DL38: 2029-03-31 | DM38: 2029-04-30 | DN38: 2029-05-31 | DO38: 2029-06-30 | DP38: 2029-07-31 | DQ38: 2029-08-31 | DR38: 2029-09-30 | DS38: 2029-10-31 | DT38: 2029-11-30 | DU38: 2029-12-31 | DV38: 2030-01-31 | DW38: 2030-02-28 | DX38: 2030-03-31 | DY38: 2030-04-30 | DZ38: 2030-05-31 | EA38: 2030-06-30 | EB38: 2030-07-31 | EC38: 2030-08-31 | ED38: 2030-09-30 | EE38: 2030-10-31 | EF38: 2030-11-30 | EG38: 2030-12-31 | EH38: 2031-01-31 | EI38: 2031-02-28 | EJ38: 2031-03-31 | EK38: 2031-04-30 | EL38: 2031-05-31 | EM38: 2031-06-30 | EN38: 2031-07-31 | EO38: 2031-08-31 | EP38: 2031-09-30 | EQ38: =EDATE(EQ37,1)-1 -> 2031-10-31 | ER38: 2031-11-30 | ES38: 2031-12-31 | ET38: 2032-01-31 | EU38: 2032-02-29 | EV38: 2032-03-31 | EW38: 2032-04-30 | EX38: 2032-05-31 | EY38: 2032-06-30 | EZ38: 2032-07-31 | FA38: 2032-08-31 | FB38: 2032-09-30 | FC38: 2032-10-31 | FD38: 2032-11-30 | FE38: 2032-12-31 | FF38: 2033-01-31 | FG38: 2033-02-28 | FH38: 2033-03-31 | FI38: 2033-04-30 | FJ38: 2033-05-31 | FK38: 2033-06-30 | FL38: 2033-07-31 | FM38: 2033-08-31 | FN38: 2033-09-30 | FO38: 2033-10-31 | FP38: 2033-11-30 | FQ38: 2033-12-31 | FR38: 2034-01-31 | FS38: 2034-02-28 | FT38: 2034-03-31 | FU38: 2034-04-30 | FV38: 2034-05-31 | FW38: 2034-06-30 | FX38: 2034-07-31 | FY38: 2034-08-31 | FZ38: 2034-09-30 | GA38: 2034-10-31 | GB38: 2034-11-30 | GC38: 2034-12-31 | GD38: 2035-01-31 | GE38: 2035-02-28 | GF38: 2035-03-31 | GG38: 2035-04-30 | GH38: 2035-05-31 | GI38: 2035-06-30 | GJ38: 2035-07-31 | GK38: 2035-08-31 | GL38: 2035-09-30 | GM38: 2035-10-31 | GN38: 2035-11-30 | GO38: 2035-12-31 | GP38: 2036-01-31 | GQ38: 2036-02-29 | GR38: 2036-03-31 | GS38: 2036-04-30 | GT38: 2036-05-31 | GU38: 2036-06-30 | GV38: 2036-07-31 | GW38: 2036-08-31 | GX38: 2036-09-30 | GY38: 2036-10-31 | GZ38: 2036-11-30 | HA38: 2036-12-31 | HB38: 2037-01-31 | HC38: =EDATE(HC37,1)-1 -> 2037-02-28 | HD38: 2037-03-31 | HE38: 2037-04-30 | HF38: 2037-05-31 | HG38: 2037-06-30 | HH38: 2037-07-31 | HI38: 2037-08-31 | HJ38: 2037-09-30 | HK38: 2037-10-31 | HL38: 2037-11-30 | HM38: 2037-12-31 | HN38: 2038-01-31 | HO38: 2038-02-28 | HP38: 2038-03-31 | HQ38: 2038-04-30 | HR38: 2038-05-31 | HS38: 2038-06-30 | HT38: 2038-07-31 | HU38: 2038-08-31 | HV38: 2038-09-30 | HW38: 2038-10-31 | HX38: 2038-11-30 | HY38: 2038-12-31 | HZ38: 2039-01-31 | IA38: 2039-02-28 | IB38: 2039-03-31 | IC38: 2039-04-30 | ID38: 2039-05-31 | IE38: 2039-06-30
C39: Year | I39: year | R39: =YEAR(R38) -> 2021 | S39: =YEAR(S38) -> 2021 | T39: 2021 | U39: 2021 | V39: 2021 | W39: 2021 | X39: 2021 | Y39: 2021 | Z39: 2021 | AA39: 2021 | AB39: 2021 | AC39: 2021 | AD39: 2022 | AE39: 2022 | AF39: 2022 | AG39: 2022 | AH39: 2022 | AI39: 2022 | AJ39: 2022 | AK39: 2022 | AL39: 2022 | AM39: 2022 | AN39: 2022 | AO39: 2022 | AP39: 2023 | AQ39: 2023 | AR39: 2023 | AS39: 2023 | AT39: 2023 | AU39: 2023 | AV39: 2023 | AW39: 2023 | AX39: 2023 | AY39: 2023 | AZ39: 2023 | BA39: 2023 | BB39: 2024 | BC39: 2024 | BD39: 2024 | BE39: 2024 | BF39: 2024 | BG39: 2024 | BH39: 2024 | BI39: 2024 | BJ39: 2024 | BK39: 2024 | BL39: 2024 | BM39: 2024 | BN39: 2025 | BO39: 2025 | BP39: 2025 | BQ39: 2025 | BR39: 2025 | BS39: 2025 | BT39: 2025 | BU39: 2025 | BV39: 2025 | BW39: 2025 | BX39: 2025 | BY39: 2025 | BZ39: 2026 | CA39: 2026 | CB39: 2026 | CC39: 2026 | CD39: 2026 | CE39: =YEAR(CE38) -> 2026 | CF39: 2026 | CG39: 2026 | CH39: 2026 | CI39: 2026 | CJ39: 2026 | CK39: 2026 | CL39: 2027 | CM39: 2027 | CN39: 2027 | CO39: 2027 | CP39: 2027 | CQ39: 2027 | CR39: 2027 | CS39: 2027 | CT39: 2027 | CU39: 2027 | CV39: 2027 | CW39: 2027 | CX39: 2028 | CY39: 2028 | CZ39: 2028 | DA39: 2028 | DB39: 2028 | DC39: 2028 | DD39: 2028 | DE39: 2028 | DF39: 2028 | DG39: 2028 | DH39: 2028 | DI39: 2028 | DJ39: 2029 | DK39: 2029 | DL39: 2029 | DM39: 2029 | DN39: 2029 | DO39: 2029 | DP39: 2029 | DQ39: 2029 | DR39: 2029 | DS39: 2029 | DT39: 2029 | DU39: 2029 | DV39: 2030 | DW39: 2030 | DX39: 2030 | DY39: 2030 | DZ39: 2030 | EA39: 2030 | EB39: 2030 | EC39: 2030 | ED39: 2030 | EE39: 2030 | EF39: 2030 | EG39: 2030 | EH39: 2031 | EI39: 2031 | EJ39: 2031 | EK39: 2031 | EL39: 2031 | EM39: 2031 | EN39: 2031 | EO39: 2031 | EP39: 2031 | EQ39: =YEAR(EQ38) -> 2031 | ER39: 2031 | ES39: 2031 | ET39: 2032 | EU39: 2032 | EV39: 2032 | EW39: 2032 | EX39: 2032 | EY39: 2032 | EZ39: 2032 | FA39: 2032 | FB39: 2032 | FC39: 2032 | FD39: 2032 | FE39: 2032 | FF39: 2033 | FG39: 2033 | FH39: 2033 | FI39: 2033 | FJ39: 2033 | FK39: 2033 | FL39: 2033 | FM39: 2033 | FN39: 2033 | FO39: 2033 | FP39: 2033 | FQ39: 2033 | FR39: 2034 | FS39: 2034 | FT39: 2034 | FU39: 2034 | FV39: 2034 | FW39: 2034 | FX39: 2034 | FY39: 2034 | FZ39: 2034 | GA39: 2034 | GB39: 2034 | GC39: 2034 | GD39: 2035 | GE39: 2035 | GF39: 2035 | GG39: 2035 | GH39: 2035 | GI39: 2035 | GJ39: 2035 | GK39: 2035 | GL39: 2035 | GM39: 2035 | GN39: 2035 | GO39: 2035 | GP39: 2036 | GQ39: 2036 | GR39: 2036 | GS39: 2036 | GT39: 2036 | GU39: 2036 | GV39: 2036 | GW39: 2036 | GX39: 2036 | GY39: 2036 | GZ39: 2036 | HA39: 2036 | HB39: 2037 | HC39: =YEAR(HC38) -> 2037 | HD39: 2037 | HE39: 2037 | HF39: 2037 | HG39: 2037 | HH39: 2037 | HI39: 2037 | HJ39: 2037 | HK39: 2037 | HL39: 2037 | HM39: 2037 | HN39: 2038 | HO39: 2038 | HP39: 2038 | HQ39: 2038 | HR39: 2038 | HS39: 2038 | HT39: 2038 | HU39: 2038 | HV39: 2038 | HW39: 2038 | HX39: 2038 | HY39: 2038 | HZ39: 2039 | IA39: 2039 | IB39: 2039 | IC39: 2039 | ID39: 2039 | IE39: 2039
C41: Quarter | I41: # | R41: =MONTH(R37)/InputC!$J$16+1 -> 1.333333333 | S41: =MONTH(S37)/InputC!$J$16+1 -> 1.666666667 | T41: =MONTH(T37)/InputC!$J$16+1 -> 2 | U41: =MONTH(U37)/InputC!$J$16+1 -> 2.333333333 | V41: =MONTH(V37)/InputC!$J$16+1 -> 2.666666667 | W41: =MONTH(W37)/InputC!$J$16+1 -> 3 | X41: =MONTH(X37)/InputC!$J$16+1 -> 3.333333333 | Y41: =MONTH(Y37)/InputC!$J$16+1 -> 3.666666667 | Z41: =MONTH(Z37)/InputC!$J$16+1 -> 4 | AA41: =MONTH(AA37)/InputC!$J$16+1 -> 4.333333333 | AB41: =MONTH(AB37)/InputC!$J$16+1 -> 4.666666667 | AC41: =MONTH(AC37)/InputC!$J$16+1 -> 5 | AD41: =MONTH(AD37)/InputC!$J$16+1 -> 1.333333333 | AE41: =MONTH(AE37)/InputC!$J$16+1 -> 1.666666667 | AF41: =MONTH(AF37)/InputC!$J$16+1 -> 2 | AG41: =MONTH(AG37)/InputC!$J$16+1 -> 2.333333333 | AH41: =MONTH(AH37)/InputC!$J$16+1 -> 2.666666667 | AI41: =MONTH(AI37)/InputC!$J$16+1 -> 3 | AJ41: =MONTH(AJ37)/InputC!$J$16+1 -> 3.333333333 | AK41: =MONTH(AK37)/InputC!$J$16+1 -> 3.666666667 | AL41: =MONTH(AL37)/InputC!$J$16+1 -> 4 | AM41: =MONTH(AM37)/InputC!$J$16+1 -> 4.333333333 | AN41: =MONTH(AN37)/InputC!$J$16+1 -> 4.666666667 | AO41: =MONTH(AO37)/InputC!$J$16+1 -> 5 | AP41: =MONTH(AP37)/InputC!$J$16+1 -> 1.333333333 | AQ41: =MONTH(AQ37)/InputC!$J$16+1 -> 1.666666667 | AR41: =MONTH(AR37)/InputC!$J$16+1 -> 2 | AS41: =MONTH(AS37)/InputC!$J$16+1 -> 2.333333333 | AT41: =MONTH(AT37)/InputC!$J$16+1 -> 2.666666667 | AU41: =MONTH(AU37)/InputC!$J$16+1 -> 3 | AV41: =MONTH(AV37)/InputC!$J$16+1 -> 3.333333333 | AW41: =MONTH(AW37)/InputC!$J$16+1 -> 3.666666667 | AX41: =MONTH(AX37)/InputC!$J$16+1 -> 4 | AY41: =MONTH(AY37)/InputC!$J$16+1 -> 4.333333333 | AZ41: =MONTH(AZ37)/InputC!$J$16+1 -> 4.666666667 | BA41: =MONTH(BA37)/InputC!$J$16+1 -> 5 | BB41: =MONTH(BB37)/InputC!$J$16+1 -> 1.333333333 | BC41: =MONTH(BC37)/InputC!$J$16+1 -> 1.666666667 | BD41: =MONTH(BD37)/InputC!$J$16+1 -> 2 | BE41: =MONTH(BE37)/InputC!$J$16+1 -> 2.333333333 | BF41: =MONTH(BF37)/InputC!$J$16+1 -> 2.666666667 | BG41: =MONTH(BG37)/InputC!$J$16+1 -> 3 | BH41: =MONTH(BH37)/InputC!$J$16+1 -> 3.333333333 | BI41: =MONTH(BI37)/InputC!$J$16+1 -> 3.666666667 | BJ41: =MONTH(BJ37)/InputC!$J$16+1 -> 4 | BK41: =MONTH(BK37)/InputC!$J$16+1 -> 4.333333333 | BL41: =MONTH(BL37)/InputC!$J$16+1 -> 4.666666667 | BM41: =MONTH(BM37)/InputC!$J$16+1 -> 5 | BN41: =MONTH(BN37)/InputC!$J$16+1 -> 1.333333333 | BO41: =MONTH(BO37)/InputC!$J$16+1 -> 1.666666667 | BP41: =MONTH(BP37)/InputC!$J$16+1 -> 2 | BQ41: =MONTH(BQ37)/InputC!$J$16+1 -> 2.333333333 | BR41: =MONTH(BR37)/InputC!$J$16+1 -> 2.666666667 | BS41: =MONTH(BS37)/InputC!$J$16+1 -> 3 | BT41: =MONTH(BT37)/InputC!$J$16+1 -> 3.333333333 | BU41: =MONTH(BU37)/InputC!$J$16+1 -> 3.666666667 | BV41: =MONTH(BV37)/InputC!$J$16+1 -> 4 | BW41: =MONTH(BW37)/InputC!$J$16+1 -> 4.333333333 | BX41: =MONTH(BX37)/InputC!$J$16+1 -> 4.666666667 | BY41: =MONTH(BY37)/InputC!$J$16+1 -> 5 | BZ41: =MONTH(BZ37)/InputC!$J$16+1 -> 1.333333333 | CA41: =MONTH(CA37)/InputC!$J$16+1 -> 1.666666667 | CB41: =MONTH(CB37)/InputC!$J$16+1 -> 2 | CC41: =MONTH(CC37)/InputC!$J$16+1 -> 2.333333333 | CD41: =MONTH(CD37)/InputC!$J$16+1 -> 2.666666667 | CE41: =MONTH(CE37)/InputC!$J$16+1 -> 3 | CF41: =MONTH(CF37)/InputC!$J$16+1 -> 3.333333333 | CG41: =MONTH(CG37)/InputC!$J$16+1 -> 3.666666667 | CH41: =MONTH(CH37)/InputC!$J$16+1 -> 4 | CI41: =MONTH(CI37)/InputC!$J$16+1 -> 4.333333333 | CJ41: =MONTH(CJ37)/InputC!$J$16+1 -> 4.666666667 | CK41: =MONTH(CK37)/InputC!$J$16+1 -> 5 | CL41: =MONTH(CL37)/InputC!$J$16+1 -> 1.333333333 | CM41: =MONTH(CM37)/InputC!$J$16+1 -> 1.666666667 | CN41: =MONTH(CN37)/InputC!$J$16+1 -> 2 | CO41: =MONTH(CO37)/InputC!$J$16+1 -> 2.333333333 | CP41: =MONTH(CP37)/InputC!$J$16+1 -> 2.666666667 | CQ41: =MONTH(CQ37)/InputC!$J$16+1 -> 3 | CR41: =MONTH(CR37)/InputC!$J$16+1 -> 3.333333333 | CS41: =MONTH(CS37)/InputC!$J$16+1 -> 3.666666667 | CT41: =MONTH(CT37)/InputC!$J$16+1 -> 4 | CU41: =MONTH(CU37)/InputC!$J$16+1 -> 4.333333333 | CV41: =MONTH(CV37)/InputC!$J$16+1 -> 4.666666667 | CW41: =MONTH(CW37)/InputC!$J$16+1 -> 5 | CX41: =MONTH(CX37)/InputC!$J$16+1 -> 1.333333333 | CY41: =MONTH(CY37)/InputC!$J$16+1 -> 1.666666667 | CZ41: =MONTH(CZ37)/InputC!$J$16+1 -> 2 | DA41: =MONTH(DA37)/InputC!$J$16+1 -> 2.333333333 | DB41: =MONTH(DB37)/InputC!$J$16+1 -> 2.666666667 | DC41: =MONTH(DC37)/InputC!$J$16+1 -> 3 | DD41: =MONTH(DD37)/InputC!$J$16+1 -> 3.333333333 | DE41: =MONTH(DE37)/InputC!$J$16+1 -> 3.666666667 | DF41: =MONTH(DF37)/InputC!$J$16+1 -> 4 | DG41: =MONTH(DG37)/InputC!$J$16+1 -> 4.333333333 | DH41: =MONTH(DH37)/InputC!$J$16+1 -> 4.666666667 | DI41: =MONTH(DI37)/InputC!$J$16+1 -> 5 | DJ41: =MONTH(DJ37)/InputC!$J$16+1 -> 1.333333333 | DK41: =MONTH(DK37)/InputC!$J$16+1 -> 1.666666667 | DL41: =MONTH(DL37)/InputC!$J$16+1 -> 2 | DM41: =MONTH(DM37)/InputC!$J$16+1 -> 2.333333333 | DN41: =MONTH(DN37)/InputC!$J$16+1 -> 2.666666667 | DO41: =MONTH(DO37)/InputC!$J$16+1 -> 3 | DP41: =MONTH(DP37)/InputC!$J$16+1 -> 3.333333333 | DQ41: =MONTH(DQ37)/InputC!$J$16+1 -> 3.666666667 | DR41: =MONTH(DR37)/InputC!$J$16+1 -> 4 | DS41: =MONTH(DS37)/InputC!$J$16+1 -> 4.333333333 | DT41: =MONTH(DT37)/InputC!$J$16+1 -> 4.666666667 | DU41: =MONTH(DU37)/InputC!$J$16+1 -> 5 | DV41: =MONTH(DV37)/InputC!$J$16+1 -> 1.333333333 | DW41: =MONTH(DW37)/InputC!$J$16+1 -> 1.666666667 | DX41: =MONTH(DX37)/InputC!$J$16+1 -> 2 | DY41: =MONTH(DY37)/InputC!$J$16+1 -> 2.333333333 | DZ41: =MONTH(DZ37)/InputC!$J$16+1 -> 2.666666667 | EA41: =MONTH(EA37)/InputC!$J$16+1 -> 3 | EB41: =MONTH(EB37)/InputC!$J$16+1 -> 3.333333333 | EC41: =MONTH(EC37)/InputC!$J$16+1 -> 3.666666667 | ED41: =MONTH(ED37)/InputC!$J$16+1 -> 4 | EE41: =MONTH(EE37)/InputC!$J$16+1 -> 4.333333333 | EF41: =MONTH(EF37)/InputC!$J$16+1 -> 4.666666667 | EG41: =MONTH(EG37)/InputC!$J$16+1 -> 5 | EH41: =MONTH(EH37)/InputC!$J$16+1 -> 1.333333333 | EI41: =MONTH(EI37)/InputC!$J$16+1 -> 1.666666667 | EJ41: =MONTH(EJ37)/InputC!$J$16+1 -> 2 | EK41: =MONTH(EK37)/InputC!$J$16+1 -> 2.333333333 | EL41: =MONTH(EL37)/InputC!$J$16+1 -> 2.666666667 | EM41: =MONTH(EM37)/InputC!$J$16+1 -> 3 | EN41: =MONTH(EN37)/InputC!$J$16+1 -> 3.333333333 | EO41: =MONTH(EO37)/InputC!$J$16+1 -> 3.666666667 | EP41: =MONTH(EP37)/InputC!$J$16+1 -> 4 | EQ41: =MONTH(EQ37)/InputC!$J$16+1 -> 4.333333333 | ER41: =MONTH(ER37)/InputC!$J$16+1 -> 4.666666667 | ES41: =MONTH(ES37)/InputC!$J$16+1 -> 5 | ET41: =MONTH(ET37)/InputC!$J$16+1 -> 1.333333333 | EU41: =MONTH(EU37)/InputC!$J$16+1 -> 1.666666667 | EV41: =MONTH(EV37)/InputC!$J$16+1 -> 2 | EW41: =MONTH(EW37)/InputC!$J$16+1 -> 2.333333333 | EX41: =MONTH(EX37)/InputC!$J$16+1 -> 2.666666667 | EY41: =MONTH(EY37)/InputC!$J$16+1 -> 3 | EZ41: =MONTH(EZ37)/InputC!$J$16+1 -> 3.333333333 | FA41: =MONTH(FA37)/InputC!$J$16+1 -> 3.666666667 | FB41: =MONTH(FB37)/InputC!$J$16+1 -> 4 | FC41: =MONTH(FC37)/InputC!$J$16+1 -> 4.333333333 | FD41: =MONTH(FD37)/InputC!$J$16+1 -> 4.666666667 | FE41: =MONTH(FE37)/InputC!$J$16+1 -> 5 | FF41: =MONTH(FF37)/InputC!$J$16+1 -> 1.333333333 | FG41: =MONTH(FG37)/InputC!$J$16+1 -> 1.666666667 | FH41: =MONTH(FH37)/InputC!$J$16+1 -> 2 | FI41: =MONTH(FI37)/InputC!$J$16+1 -> 2.333333333 | FJ41: =MONTH(FJ37)/InputC!$J$16+1 -> 2.666666667 | FK41: =MONTH(FK37)/InputC!$J$16+1 -> 3 | FL41: =MONTH(FL37)/InputC!$J$16+1 -> 3.333333333 | FM41: =MONTH(FM37)/InputC!$J$16+1 -> 3.666666667 | FN41: =MONTH(FN37)/InputC!$J$16+1 -> 4 | FO41: =MONTH(FO37)/InputC!$J$16+1 -> 4.333333333 | FP41: =MONTH(FP37)/InputC!$J$16+1 -> 4.666666667 | FQ41: =MONTH(FQ37)/InputC!$J$16+1 -> 5 | FR41: =MONTH(FR37)/InputC!$J$16+1 -> 1.333333333 | FS41: =MONTH(FS37)/InputC!$J$16+1 -> 1.666666667 | FT41: =MONTH(FT37)/InputC!$J$16+1 -> 2 | FU41: =MONTH(FU37)/InputC!$J$16+1 -> 2.333333333 | FV41: =MONTH(FV37)/InputC!$J$16+1 -> 2.666666667 | FW41: =MONTH(FW37)/InputC!$J$16+1 -> 3 | FX41: =MONTH(FX37)/InputC!$J$16+1 -> 3.333333333 | FY41: =MONTH(FY37)/InputC!$J$16+1 -> 3.666666667 | FZ41: =MONTH(FZ37)/InputC!$J$16+1 -> 4 | GA41: =MONTH(GA37)/InputC!$J$16+1 -> 4.333333333 | GB41: =MONTH(GB37)/InputC!$J$16+1 -> 4.666666667 | GC41: =MONTH(GC37)/InputC!$J$16+1 -> 5 | GD41: =MONTH(GD37)/InputC!$J$16+1 -> 1.333333333 | GE41: =MONTH(GE37)/InputC!$J$16+1 -> 1.666666667 | GF41: =MONTH(GF37)/InputC!$J$16+1 -> 2 | GG41: =MONTH(GG37)/InputC!$J$16+1 -> 2.333333333 | GH41: =MONTH(GH37)/InputC!$J$16+1 -> 2.666666667 | GI41: =MONTH(GI37)/InputC!$J$16+1 -> 3 | GJ41: =MONTH(GJ37)/InputC!$J$16+1 -> 3.333333333 | GK41: =MONTH(GK37)/InputC!$J$16+1 -> 3.666666667 | GL41: =MONTH(GL37)/InputC!$J$16+1 -> 4 | GM41: =MONTH(GM37)/InputC!$J$16+1 -> 4.333333333 | GN41: =MONTH(GN37)/InputC!$J$16+1 -> 4.666666667 | GO41: =MONTH(GO37)/InputC!$J$16+1 -> 5 | GP41: =MONTH(GP37)/InputC!$J$16+1 -> 1.333333333 | GQ41: =MONTH(GQ37)/InputC!$J$16+1 -> 1.666666667 | GR41: =MONTH(GR37)/InputC!$J$16+1 -> 2 | GS41: =MONTH(GS37)/InputC!$J$16+1 -> 2.333333333 | GT41: =MONTH(GT37)/InputC!$J$16+1 -> 2.666666667 | GU41: =MONTH(GU37)/InputC!$J$16+1 -> 3 | GV41: =MONTH(GV37)/InputC!$J$16+1 -> 3.333333333 | GW41: =MONTH(GW37)/InputC!$J$16+1 -> 3.666666667 | GX41: =MONTH(GX37)/InputC!$J$16+1 -> 4 | GY41: =MONTH(GY37)/InputC!$J$16+1 -> 4.333333333 | GZ41: =MONTH(GZ37)/InputC!$J$16+1 -> 4.666666667 | HA41: =MONTH(HA37)/InputC!$J$16+1 -> 5 | HB41: =MONTH(HB37)/InputC!$J$16+1 -> 1.333333333 | HC41: =MONTH(HC37)/InputC!$J$16+1 -> 1.666666667 | HD41: =MONTH(HD37)/InputC!$J$16+1 -> 2 | HE41: =MONTH(HE37)/InputC!$J$16+1 -> 2.333333333 | HF41: =MONTH(HF37)/InputC!$J$16+1 -> 2.666666667 | HG41: =MONTH(HG37)/InputC!$J$16+1 -> 3 | HH41: =MONTH(HH37)/InputC!$J$16+1 -> 3.333333333 | HI41: =MONTH(HI37)/InputC!$J$16+1 -> 3.666666667 | HJ41: =MONTH(HJ37)/InputC!$J$16+1 -> 4 | HK41: =MONTH(HK37)/InputC!$J$16+1 -> 4.333333333 | HL41: =MONTH(HL37)/InputC!$J$16+1 -> 4.666666667 | HM41: =MONTH(HM37)/InputC!$J$16+1 -> 5 | HN41: =MONTH(HN37)/InputC!$J$16+1 -> 1.333333333 | HO41: =MONTH(HO37)/InputC!$J$16+1 -> 1.666666667 | HP41: =MONTH(HP37)/InputC!$J$16+1 -> 2 | HQ41: =MONTH(HQ37)/InputC!$J$16+1 -> 2.333333333 | HR41: =MONTH(HR37)/InputC!$J$16+1 -> 2.666666667 | HS41: =MONTH(HS37)/InputC!$J$16+1 -> 3 | HT41: =MONTH(HT37)/InputC!$J$16+1 -> 3.333333333 | HU41: =MONTH(HU37)/InputC!$J$16+1 -> 3.666666667 | HV41: =MONTH(HV37)/InputC!$J$16+1 -> 4 | HW41: =MONTH(HW37)/InputC!$J$16+1 -> 4.333333333 | HX41: =MONTH(HX37)/InputC!$J$16+1 -> 4.666666667 | HY41: =MONTH(HY37)/InputC!$J$16+1 -> 5 | HZ41: =MONTH(HZ37)/InputC!$J$16+1 -> 1.333333333 | IA41: =MONTH(IA37)/InputC!$J$16+1 -> 1.666666667 | IB41: =MONTH(IB37)/InputC!$J$16+1 -> 2 | IC41: =MONTH(IC37)/InputC!$J$16+1 -> 2.333333333 | ID41: =MONTH(ID37)/InputC!$J$16+1 -> 2.666666667 | IE41: =MONTH(IE37)/InputC!$J$16+1 -> 3
C43: Annual Counter | I43: # | R43: =Q43+(R39<>Q39)*1 -> 1 | S43: =R43+(S39<>R39)*1 -> 1 | T43: 1 | U43: 1 | V43: 1 | W43: 1 | X43: 1 | Y43: 1 | Z43: 1 | AA43: 1 | AB43: 1 | AC43: 1 | AD43: 2 | AE43: 2 | AF43: 2 | AG43: 2 | AH43: 2 | AI43: 2 | AJ43: 2 | AK43: 2 | AL43: 2 | AM43: 2 | AN43: 2 | AO43: 2 | AP43: 3 | AQ43: 3 | AR43: 3 | AS43: 3 | AT43: 3 | AU43: 3 | AV43: 3 | AW43: 3 | AX43: 3 | AY43: 3 | AZ43: 3 | BA43: 3 | BB43: 4 | BC43: 4 | BD43: 4 | BE43: 4 | BF43: 4 | BG43: 4 | BH43: 4 | BI43: 4 | BJ43: 4 | BK43: 4 | BL43: 4 | BM43: 4 | BN43: 5 | BO43: 5 | BP43: 5 | BQ43: 5 | BR43: 5 | BS43: 5 | BT43: 5 | BU43: 5 | BV43: 5 | BW43: 5 | BX43: 5 | BY43: 5 | BZ43: 6 | CA43: 6 | CB43: 6 | CC43: 6 | CD43: 6 | CE43: =CD43+(CE39<>CD39)*1 -> 6 | CF43: 6 | CG43: 6 | CH43: 6 | CI43: 6 | CJ43: 6 | CK43: 6 | CL43: 7 | CM43: 7 | CN43: 7 | CO43: 7 | CP43: 7 | CQ43: 7 | CR43: 7 | CS43: 7 | CT43: 7 | CU43: 7 | CV43: 7 | CW43: 7 | CX43: 8 | CY43: 8 | CZ43: 8 | DA43: 8 | DB43: 8 | DC43: 8 | DD43: 8 | DE43: 8 | DF43: 8 | DG43: 8 | DH43: 8 | DI43: 8 | DJ43: 9 | DK43: 9 | DL43: 9 | DM43: 9 | DN43: 9 | DO43: 9 | DP43: 9 | DQ43: 9 | DR43: 9 | DS43: 9 | DT43: 9 | DU43: 9 | DV43: 10 | DW43: 10 | DX43: 10 | DY43: 10 | DZ43: 10 | EA43: 10 | EB43: 10 | EC43: 10 | ED43: 10 | EE43: 10 | EF43: 10 | EG43: 10 | EH43: 11 | EI43: 11 | EJ43: 11 | EK43: 11 | EL43: 11 | EM43: 11 | EN43: 11 | EO43: 11 | EP43: 11 | EQ43: =EP43+(EQ39<>EP39)*1 -> 11 | ER43: 11 | ES43: 11 | ET43: 12 | EU43: 12 | EV43: 12 | EW43: 12 | EX43: 12 | EY43: 12 | EZ43: 12 | FA43: 12 | FB43: 12 | FC43: 12 | FD43: 12 | FE43: 12 | FF43: 13 | FG43: 13 | FH43: 13 | FI43: 13 | FJ43: 13 | FK43: 13 | FL43: 13 | FM43: 13 | FN43: 13 | FO43: 13 | FP43: 13 | FQ43: 13 | FR43: 14 | FS43: 14 | FT43: 14 | FU43: 14 | FV43: 14 | FW43: 14 | FX43: 14 | FY43: 14 | FZ43: 14 | GA43: 14 | GB43: 14 | GC43: 14 | GD43: 15 | GE43: 15 | GF43: 15 | GG43: 15 | GH43: 15 | GI43: 15 | GJ43: 15 | GK43: 15 | GL43: 15 | GM43: 15 | GN43: 15 | GO43: 15 | GP43: 16 | GQ43: 16 | GR43: 16 | GS43: 16 | GT43: 16 | GU43: 16 | GV43: 16 | GW43: 16 | GX43: 16 | GY43: 16 | GZ43: 16 | HA43: 16 | HB43: 17 | HC43: =HB43+(HC39<>HB39)*1 -> 17 | HD43: 17 | HE43: 17 | HF43: 17 | HG43: 17 | HH43: 17 | HI43: 17 | HJ43: 17 | HK43: 17 | HL43: 17 | HM43: 17 | HN43: 18 | HO43: 18 | HP43: 18 | HQ43: 18 | HR43: 18 | HS43: 18 | HT43: 18 | HU43: 18 | HV43: 18 | HW43: 18 | HX43: 18 | HY43: 18 | HZ43: 19 | IA43: 19 | IB43: 19 | IC43: 19 | ID43: 19 | IE43: 19
C44: Calendar Year End | I44: flag | R44: =(R43<>S43)*1 -> 0 | S44: =(S43<>T43)*1 -> 0 | T44: 0 | U44: 0 | V44: 0 | W44: 0 | X44: 0 | Y44: 0 | Z44: 0 | AA44: 0 | AB44: 0 | AC44: 1 | AD44: 0 | AE44: 0 | AF44: 0 | AG44: 0 | AH44: 0 | AI44: 0 | AJ44: 0 | AK44: 0 | AL44: 0 | AM44: 0 | AN44: 0 | AO44: 1 | AP44: 0 | AQ44: 0 | AR44: 0 | AS44: 0 | AT44: 0 | AU44: 0 | AV44: 0 | AW44: 0 | AX44: 0 | AY44: 0 | AZ44: 0 | BA44: 1 | BB44: 0 | BC44: 0 | BD44: 0 | BE44: 0 | BF44: 0 | BG44: 0 | BH44: 0 | BI44: 0 | BJ44: 0 | BK44: 0 | BL44: 0 | BM44: 1 | BN44: 0 | BO44: 0 | BP44: 0 | BQ44: 0 | BR44: 0 | BS44: 0 | BT44: 0 | BU44: 0 | BV44: 0 | BW44: 0 | BX44: 0 | BY44: 1 | BZ44: 0 | CA44: 0 | CB44: 0 | CC44: 0 | CD44: 0 | CE44: =(CE43<>CF43)*1 -> 0 | CF44: 0 | CG44: 0 | CH44: 0 | CI44: 0 | CJ44: 0 | CK44: 1 | CL44: 0 | CM44: 0 | CN44: 0 | CO44: 0 | CP44: 0 | CQ44: 0 | CR44: 0 | CS44: 0 | CT44: 0 | CU44: 0 | CV44: 0 | CW44: 1 | CX44: 0 | CY44: 0 | CZ44: 0 | DA44: 0 | DB44: 0 | DC44: 0 | DD44: 0 | DE44: 0 | DF44: 0 | DG44: 0 | DH44: 0 | DI44: 1 | DJ44: 0 | DK44: 0 | DL44: 0 | DM44: 0 | DN44: 0 | DO44: 0 | DP44: 0 | DQ44: 0 | DR44: 0 | DS44: 0 | DT44: 0 | DU44: 1 | DV44: 0 | DW44: 0 | DX44: 0 | DY44: 0 | DZ44: 0 | EA44: 0 | EB44: 0 | EC44: 0 | ED44: 0 | EE44: 0 | EF44: 0 | EG44: 1 | EH44: 0 | EI44: 0 | EJ44: 0 | EK44: 0 | EL44: 0 | EM44: 0 | EN44: 0 | EO44: 0 | EP44: 0 | EQ44: =(EQ43<>ER43)*1 -> 0 | ER44: 0 | ES44: 1 | ET44: 0 | EU44: 0 | EV44: 0 | EW44: 0 | EX44: 0 | EY44: 0 | EZ44: 0 | FA44: 0 | FB44: 0 | FC44: 0 | FD44: 0 | FE44: 1 | FF44: 0 | FG44: 0 | FH44: 0 | FI44: 0 | FJ44: 0 | FK44: 0 | FL44: 0 | FM44: 0 | FN44: 0 | FO44: 0 | FP44: 0 | FQ44: 1 | FR44: 0 | FS44: 0 | FT44: 0 | FU44: 0 | FV44: 0 | FW44: 0 | FX44: 0 | FY44: 0 | FZ44: 0 | GA44: 0 | GB44: 0 | GC44: 1 | GD44: 0 | GE44: 0 | GF44: 0 | GG44: 0 | GH44: 0 | GI44: 0 | GJ44: 0 | GK44: 0 | GL44: 0 | GM44: 0 | GN44: 0 | GO44: 1 | GP44: 0 | GQ44: 0 | GR44: 0 | GS44: 0 | GT44: 0 | GU44: 0 | GV44: 0 | GW44: 0 | GX44: 0 | GY44: 0 | GZ44: 0 | HA44: 1 | HB44: 0 | HC44: =(HC43<>HD43)*1 -> 0 | HD44: 0 | HE44: 0 | HF44: 0 | HG44: 0 | HH44: 0 | HI44: 0 | HJ44: 0 | HK44: 0 | HL44: 0 | HM44: 1 | HN44: 0 | HO44: 0 | HP44: 0 | HQ44: 0 | HR44: 0 | HS44: 0 | HT44: 0 | HU44: 0 | HV44: 0 | HW44: 0 | HX44: 0 | HY44: 1 | HZ44: 0 | IA44: 0 | IB44: 0 | IC44: 0 | ID44: 0 | IE44: 1
C45: Days in Period | I45: days | R45: =R38-R37+1 -> 31 | S45: =S38-S37+1 -> 28 | T45: 31 | U45: 30 | V45: 31 | W45: 30 | X45: 31 | Y45: 31 | Z45: 30 | AA45: 31 | AB45: 30 | AC45: 31 | AD45: 31 | AE45: 28 | AF45: 31 | AG45: 30 | AH45: 31 | AI45: 30 | AJ45: 31 | AK45: 31 | AL45: 30 | AM45: 31 | AN45: 30 | AO45: 31 | AP45: 31 | AQ45: 28 | AR45: 31 | AS45: 30 | AT45: 31 | AU45: 30 | AV45: 31 | AW45: 31 | AX45: 30 | AY45: 31 | AZ45: 30 | BA45: 31 | BB45: 31 | BC45: 29 | BD45: 31 | BE45: 30 | BF45: 31 | BG45: 30 | BH45: 31 | BI45: 31 | BJ45: 30 | BK45: 31 | BL45: 30 | BM45: 31 | BN45: 31 | BO45: 28 | BP45: 31 | BQ45: 30 | BR45: 31 | BS45: 30 | BT45: 31 | BU45: 31 | BV45: 30 | BW45: 31 | BX45: 30 | BY45: 31 | BZ45: 31 | CA45: 28 | CB45: 31 | CC45: 30 | CD45: 31 | CE45: =CE38-CE37+1 -> 30 | CF45: 31 | CG45: 31 | CH45: 30 | CI45: 31 | CJ45: 30 | CK45: 31 | CL45: 31 | CM45: 28 | CN45: 31 | CO45: 30 | CP45: 31 | CQ45: 30 | CR45: 31 | CS45: 31 | CT45: 30 | CU45: 31 | CV45: 30 | CW45: 31 | CX45: 31 | CY45: 29 | CZ45: 31 | DA45: 30 | DB45: 31 | DC45: 30 | DD45: 31 | DE45: 31 | DF45: 30 | DG45: 31 | DH45: 30 | DI45: 31 | DJ45: 31 | DK45: 28 | DL45: 31 | DM45: 30 | DN45: 31 | DO45: 30 | DP45: 31 | DQ45: 31 | DR45: 30 | DS45: 31 | DT45: 30 | DU45: 31 | DV45: 31 | DW45: 28 | DX45: 31 | DY45: 30 | DZ45: 31 | EA45: 30 | EB45: 31 | EC45: 31 | ED45: 30 | EE45: 31 | EF45: 30 | EG45: 31 | EH45: 31 | EI45: 28 | EJ45: 31 | EK45: 30 | EL45: 31 | EM45: 30 | EN45: 31 | EO45: 31 | EP45: 30 | EQ45: =EQ38-EQ37+1 -> 31 | ER45: 30 | ES45: 31 | ET45: 31 | EU45: 29 | EV45: 31 | EW45: 30 | EX45: 31 | EY45: 30 | EZ45: 31 | FA45: 31 | FB45: 30 | FC45: 31 | FD45: 30 | FE45: 31 | FF45: 31 | FG45: 28 | FH45: 31 | FI45: 30 | FJ45: 31 | FK45: 30 | FL45: 31 | FM45: 31 | FN45: 30 | FO45: 31 | FP45: 30 | FQ45: 31 | FR45: 31 | FS45: 28 | FT45: 31 | FU45: 30 | FV45: 31 | FW45: 30 | FX45: 31 | FY45: 31 | FZ45: 30 | GA45: 31 | GB45: 30 | GC45: 31 | GD45: 31 | GE45: 28 | GF45: 31 | GG45: 30 | GH45: 31 | GI45: 30 | GJ45: 31 | GK45: 31 | GL45: 30 | GM45: 31 | GN45: 30 | GO45: 31 | GP45: 31 | GQ45: 29 | GR45: 31 | GS45: 30 | GT45: 31 | GU45: 30 | GV45: 31 | GW45: 31 | GX45: 30 | GY45: 31 | GZ45: 30 | HA45: 31 | HB45: 31 | HC45: =HC38-HC37+1 -> 28 | HD45: 31 | HE45: 30 | HF45: 31 | HG45: 30 | HH45: 31 | HI45: 31 | HJ45: 30 | HK45: 31 | HL45: 30 | HM45: 31 | HN45: 31 | HO45: 28 | HP45: 31 | HQ45: 30 | HR45: 31 | HS45: 30 | HT45: 31 | HU45: 31 | HV45: 30 | HW45: 31 | HX45: 30 | HY45: 31 | HZ45: 31 | IA45: 28 | IB45: 31 | IC45: 30 | ID45: 31 | IE45: 30
C46: Months in Period | I46: months | R46: =ROUNDDOWN(R45/28,0) -> 1 | S46: =ROUNDDOWN(S45/28,0) -> 1 | T46: 1 | U46: 1 | V46: 1 | W46: 1 | X46: 1 | Y46: 1 | Z46: 1 | AA46: 1 | AB46: 1 | AC46: 1 | AD46: 1 | AE46: 1 | AF46: 1 | AG46: 1 | AH46: 1 | AI46: 1 | AJ46: 1 | AK46: 1 | AL46: 1 | AM46: 1 | AN46: 1 | AO46: 1 | AP46: 1 | AQ46: 1 | AR46: 1 | AS46: 1 | AT46: 1 | AU46: 1 | AV46: 1 | AW46: 1 | AX46: 1 | AY46: 1 | AZ46: 1 | BA46: 1 | BB46: 1 | BC46: 1 | BD46: 1 | BE46: 1 | BF46: 1 | BG46: 1 | BH46: 1 | BI46: 1 | BJ46: 1 | BK46: 1 | BL46: 1 | BM46: 1 | BN46: 1 | BO46: 1 | BP46: 1 | BQ46: 1 | BR46: 1 | BS46: 1 | BT46: 1 | BU46: 1 | BV46: 1 | BW46: 1 | BX46: 1 | BY46: 1 | BZ46: 1 | CA46: 1 | CB46: 1 | CC46: 1 | CD46: 1 | CE46: =ROUNDDOWN(CE45/28,0) -> 1 | CF46: 1 | CG46: 1 | CH46: 1 | CI46: 1 | CJ46: 1 | CK46: 1 | CL46: 1 | CM46: 1 | CN46: 1 | CO46: 1 | CP46: 1 | CQ46: 1 | CR46: 1 | CS46: 1 | CT46: 1 | CU46: 1 | CV46: 1 | CW46: 1 | CX46: 1 | CY46: 1 | CZ46: 1 | DA46: 1 | DB46: 1 | DC46: 1 | DD46: 1 | DE46: 1 | DF46: 1 | DG46: 1 | DH46: 1 | DI46: 1 | DJ46: 1 | DK46: 1 | DL46: 1 | DM46: 1 | DN46: 1 | DO46: 1 | DP46: 1 | DQ46: 1 | DR46: 1 | DS46: 1 | DT46: 1 | DU46: 1 | DV46: 1 | DW46: 1 | DX46: 1 | DY46: 1 | DZ46: 1 | EA46: 1 | EB46: 1 | EC46: 1 | ED46: 1 | EE46: 1 | EF46: 1 | EG46: 1 | EH46: 1 | EI46: 1 | EJ46: 1 | EK46: 1 | EL46: 1 | EM46: 1 | EN46: 1 | EO46: 1 | EP46: 1 | EQ46: =ROUNDDOWN(EQ45/28,0) -> 1 | ER46: 1 | ES46: 1 | ET46: 1 | EU46: 1 | EV46: 1 | EW46: 1 | EX46: 1 | EY46: 1 | EZ46: 1 | FA46: 1 | FB46: 1 | FC46: 1 | FD46: 1 | FE46: 1 | FF46: 1 | FG46: 1 | FH46: 1 | FI46: 1 | FJ46: 1 | FK46: 1 | FL46: 1 | FM46: 1 | FN46: 1 | FO46: 1 | FP46: 1 | FQ46: 1 | FR46: 1 | FS46: 1 | FT46: 1 | FU46: 1 | FV46: 1 | FW46: 1 | FX46: 1 | FY46: 1 | FZ46: 1 | GA46: 1 | GB46: 1 | GC46: 1 | GD46: 1 | GE46: 1 | GF46: 1 | GG46: 1 | GH46: 1 | GI46: 1 | GJ46: 1 | GK46: 1 | GL46: 1 | GM46: 1 | GN46: 1 | GO46: 1 | GP46: 1 | GQ46: 1 | GR46: 1 | GS46: 1 | GT46: 1 | GU46: 1 | GV46: 1 | GW46: 1 | GX46: 1 | GY46: 1 | GZ46: 1 | HA46: 1 | HB46: 1 | HC46: =ROUNDDOWN(HC45/28,0) -> 1 | HD46: 1 | HE46: 1 | HF46: 1 | HG46: 1 | HH46: 1 | HI46: 1 | HJ46: 1 | HK46: 1 | HL46: 1 | HM46: 1 | HN46: 1 | HO46: 1 | HP46: 1 | HQ46: 1 | HR46: 1 | HS46: 1 | HT46: 1 | HU46: 1 | HV46: 1 | HW46: 1 | HX46: 1 | HY46: 1 | HZ46: 1 | IA46: 1 | IB46: 1 | IC46: 1 | ID46: 1 | IE46: 1
B48: ="" ->  | C48: Quarterly Timeline (Operation)
C50: Period Start | I50: date | R50: =DATE(YEAR(K11),MONTH(K11)-MOD(MONTH(K11)-1,InputC!$J$16),1) -> 2021-01-01 | S50: =R51+1 -> 2021-04-01 | T50: =S51+1 -> 2021-07-01 | U50: 2021-10-01 | V50: 2022-01-01 | W50: 2022-04-01 | X50: 2022-07-01 | Y50: 2022-10-01 | Z50: 2023-01-01 | AA50: 2023-04-01 | AB50: 2023-07-01 | AC50: 2023-10-01 | AD50: 2024-01-01 | AE50: 2024-04-01 | AF50: 2024-07-01 | AG50: 2024-10-01 | AH50: 2025-01-01 | AI50: 2025-04-01 | AJ50: 2025-07-01 | AK50: 2025-10-01 | AL50: 2026-01-01 | AM50: 2026-04-01 | AN50: 2026-07-01 | AO50: 2026-10-01 | AP50: 2027-01-01 | AQ50: 2027-04-01 | AR50: 2027-07-01 | AS50: 2027-10-01 | AT50: 2028-01-01 | AU50: 2028-04-01 | AV50: 2028-07-01 | AW50: 2028-10-01 | AX50: 2029-01-01 | AY50: 2029-04-01 | AZ50: 2029-07-01 | BA50: 2029-10-01 | BB50: 2030-01-01 | BC50: 2030-04-01 | BD50: 2030-07-01 | BE50: 2030-10-01 | BF50: 2031-01-01 | BG50: 2031-04-01 | BH50: 2031-07-01 | BI50: 2031-10-01 | BJ50: 2032-01-01 | BK50: 2032-04-01 | BL50: 2032-07-01 | BM50: 2032-10-01 | BN50: 2033-01-01 | BO50: 2033-04-01 | BP50: 2033-07-01 | BQ50: 2033-10-01 | BR50: 2034-01-01 | BS50: 2034-04-01 | BT50: 2034-07-01 | BU50: 2034-10-01 | BV50: 2035-01-01 | BW50: 2035-04-01 | BX50: 2035-07-01 | BY50: 2035-10-01 | BZ50: 2036-01-01 | CA50: 2036-04-01 | CB50: 2036-07-01 | CC50: 2036-10-01 | CD50: 2037-01-01 | CE50: 2037-04-01 | CF50: =CE51+1 -> 2037-07-01 | CG50: 2037-10-01 | CH50: 2038-01-01 | CI50: 2038-04-01 | CJ50: 2038-07-01 | CK50: 2038-10-01 | CL50: 2039-01-01 | CM50: 2039-04-01 | CN50: 2039-07-01 | CO50: 2039-10-01 | CP50: 2040-01-01 | CQ50: 2040-04-01 | CR50: 2040-07-01 | CS50: 2040-10-01 | CT50: 2041-01-01 | CU50: 2041-04-01 | CV50: 2041-07-01 | CW50: 2041-10-01 | CX50: 2042-01-01 | CY50: 2042-04-01 | CZ50: 2042-07-01 | DA50: 2042-10-01 | DB50: 2043-01-01 | DC50: 2043-04-01 | DD50: 2043-07-01 | DE50: 2043-10-01 | DF50: 2044-01-01 | DG50: 2044-04-01 | DH50: 2044-07-01 | DI50: 2044-10-01 | DJ50: 2045-01-01 | DK50: 2045-04-01 | DL50: 2045-07-01 | DM50: 2045-10-01 | DN50: 2046-01-01 | DO50: 2046-04-01 | DP50: 2046-07-01 | DQ50: 2046-10-01 | DR50: 2047-01-01 | DS50: 2047-04-01 | DT50: 2047-07-01 | DU50: 2047-10-01 | DV50: 2048-01-01 | DW50: 2048-04-01 | DX50: 2048-07-01 | DY50: 2048-10-01 | DZ50: 2049-01-01 | EA50: 2049-04-01 | EB50: 2049-07-01 | EC50: 2049-10-01 | ED50: 2050-01-01 | EE50: 2050-04-01 | EF50: 2050-07-01 | EG50: 2050-10-01 | EH50: 2051-01-01 | EI50: 2051-04-01 | EJ50: 2051-07-01 | EK50: 2051-10-01 | EL50: 2052-01-01 | EM50: 2052-04-01 | EN50: 2052-07-01 | EO50: 2052-10-01 | EP50: 2053-01-01 | EQ50: 2053-04-01 | ER50: =EQ51+1 -> 2053-07-01 | ES50: 2053-10-01 | ET50: 2054-01-01 | EU50: 2054-04-01 | EV50: 2054-07-01 | EW50: 2054-10-01 | EX50: 2055-01-01 | EY50: 2055-04-01 | EZ50: 2055-07-01 | FA50: 2055-10-01 | FB50: 2056-01-01 | FC50: 2056-04-01 | FD50: 2056-07-01 | FE50: 2056-10-01 | FF50: 2057-01-01 | FG50: 2057-04-01 | FH50: 2057-07-01 | FI50: 2057-10-01 | FJ50: 2058-01-01 | FK50: 2058-04-01 | FL50: 2058-07-01 | FM50: 2058-10-01 | FN50: 2059-01-01 | FO50: 2059-04-01 | FP50: 2059-07-01 | FQ50: 2059-10-01 | FR50: 2060-01-01 | FS50: 2060-04-01 | FT50: 2060-07-01 | FU50: 2060-10-01 | FV50: 2061-01-01 | FW50: 2061-04-01 | FX50: 2061-07-01 | FY50: 2061-10-01 | FZ50: 2062-01-01 | GA50: 2062-04-01 | GB50: 2062-07-01 | GC50: 2062-10-01 | GD50: 2063-01-01 | GE50: 2063-04-01 | GF50: 2063-07-01 | GG50: 2063-10-01 | GH50: 2064-01-01 | GI50: 2064-04-01 | GJ50: 2064-07-01 | GK50: 2064-10-01 | GL50: 2065-01-01 | GM50: 2065-04-01 | GN50: 2065-07-01 | GO50: 2065-10-01 | GP50: 2066-01-01 | GQ50: 2066-04-01 | GR50: 2066-07-01 | GS50: 2066-10-01 | GT50: 2067-01-01 | GU50: 2067-04-01 | GV50: 2067-07-01 | GW50: 2067-10-01 | GX50: 2068-01-01 | GY50: 2068-04-01 | GZ50: 2068-07-01 | HA50: 2068-10-01 | HB50: 2069-01-01 | HC50: 2069-04-01 | HD50: =HC51+1 -> 2069-07-01 | HE50: 2069-10-01 | HF50: 2070-01-01 | HG50: 2070-04-01 | HH50: 2070-07-01 | HI50: 2070-10-01 | HJ50: 2071-01-01 | HK50: 2071-04-01 | HL50: 2071-07-01 | HM50: 2071-10-01 | HN50: 2072-01-01 | HO50: 2072-04-01 | HP50: 2072-07-01 | HQ50: 2072-10-01 | HR50: 2073-01-01 | HS50: 2073-04-01 | HT50: 2073-07-01 | HU50: 2073-10-01 | HV50: 2074-01-01 | HW50: 2074-04-01 | HX50: 2074-07-01 | HY50: 2074-10-01 | HZ50: 2075-01-01 | IA50: 2075-04-01 | IB50: 2075-07-01 | IC50: 2075-10-01 | ID50: 2076-01-01 | IE50: 2076-04-01
C51: Period End | I51: date | R51: =EDATE(R50,InputC!$J$16)-1 -> 2021-03-31 | S51: =EDATE(S50,InputC!$J$16)-1 -> 2021-06-30 | T51: =EDATE(T50,InputC!$J$16)-1 -> 2021-09-30 | U51: =EDATE(U50,InputC!$J$16)-1 -> 2021-12-31 | V51: =EDATE(V50,InputC!$J$16)-1 -> 2022-03-31 | W51: =EDATE(W50,InputC!$J$16)-1 -> 2022-06-30 | X51: =EDATE(X50,InputC!$J$16)-1 -> 2022-09-30 | Y51: =EDATE(Y50,InputC!$J$16)-1 -> 2022-12-31 | Z51: =EDATE(Z50,InputC!$J$16)-1 -> 2023-03-31 | AA51: =EDATE(AA50,InputC!$J$16)-1 -> 2023-06-30 | AB51: =EDATE(AB50,InputC!$J$16)-1 -> 2023-09-30 | AC51: =EDATE(AC50,InputC!$J$16)-1 -> 2023-12-31 | AD51: =EDATE(AD50,InputC!$J$16)-1 -> 2024-03-31 | AE51: =EDATE(AE50,InputC!$J$16)-1 -> 2024-06-30 | AF51: =EDATE(AF50,InputC!$J$16)-1 -> 2024-09-30 | AG51: =EDATE(AG50,InputC!$J$16)-1 -> 2024-12-31 | AH51: =EDATE(AH50,InputC!$J$16)-1 -> 2025-03-31 | AI51: =EDATE(AI50,InputC!$J$16)-1 -> 2025-06-30 | AJ51: =EDATE(AJ50,InputC!$J$16)-1 -> 2025-09-30 | AK51: =EDATE(AK50,InputC!$J$16)-1 -> 2025-12-31 | AL51: =EDATE(AL50,InputC!$J$16)-1 -> 2026-03-31 | AM51: =EDATE(AM50,InputC!$J$16)-1 -> 2026-06-30 | AN51: =EDATE(AN50,InputC!$J$16)-1 -> 2026-09-30 | AO51: =EDATE(AO50,InputC!$J$16)-1 -> 2026-12-31 | AP51: =EDATE(AP50,InputC!$J$16)-1 -> 2027-03-31 | AQ51: =EDATE(AQ50,InputC!$J$16)-1 -> 2027-06-30 | AR51: =EDATE(AR50,InputC!$J$16)-1 -> 2027-09-30 | AS51: =EDATE(AS50,InputC!$J$16)-1 -> 2027-12-31 | AT51: =EDATE(AT50,InputC!$J$16)-1 -> 2028-03-31 | AU51: =EDATE(AU50,InputC!$J$16)-1 -> 2028-06-30 | AV51: =EDATE(AV50,InputC!$J$16)-1 -> 2028-09-30 | AW51: =EDATE(AW50,InputC!$J$16)-1 -> 2028-12-31 | AX51: =EDATE(AX50,InputC!$J$16)-1 -> 2029-03-31 | AY51: =EDATE(AY50,InputC!$J$16)-1 -> 2029-06-30 | AZ51: =EDATE(AZ50,InputC!$J$16)-1 -> 2029-09-30 | BA51: =EDATE(BA50,InputC!$J$16)-1 -> 2029-12-31 | BB51: =EDATE(BB50,InputC!$J$16)-1 -> 2030-03-31 | BC51: =EDATE(BC50,InputC!$J$16)-1 -> 2030-06-30 | BD51: =EDATE(BD50,InputC!$J$16)-1 -> 2030-09-30 | BE51: =EDATE(BE50,InputC!$J$16)-1 -> 2030-12-31 | BF51: =EDATE(BF50,InputC!$J$16)-1 -> 2031-03-31 | BG51: =EDATE(BG50,InputC!$J$16)-1 -> 2031-06-30 | BH51: =EDATE(BH50,InputC!$J$16)-1 -> 2031-09-30 | BI51: =EDATE(BI50,InputC!$J$16)-1 -> 2031-12-31 | BJ51: =EDATE(BJ50,InputC!$J$16)-1 -> 2032-03-31 | BK51: =EDATE(BK50,InputC!$J$16)-1 -> 2032-06-30 | BL51: =EDATE(BL50,InputC!$J$16)-1 -> 2032-09-30 | BM51: =EDATE(BM50,InputC!$J$16)-1 -> 2032-12-31 | BN51: =EDATE(BN50,InputC!$J$16)-1 -> 2033-03-31 | BO51: =EDATE(BO50,InputC!$J$16)-1 -> 2033-06-30 | BP51: =EDATE(BP50,InputC!$J$16)-1 -> 2033-09-30 | BQ51: =EDATE(BQ50,InputC!$J$16)-1 -> 2033-12-31 | BR51: =EDATE(BR50,InputC!$J$16)-1 -> 2034-03-31 | BS51: =EDATE(BS50,InputC!$J$16)-1 -> 2034-06-30 | BT51: =EDATE(BT50,InputC!$J$16)-1 -> 2034-09-30 | BU51: =EDATE(BU50,InputC!$J$16)-1 -> 2034-12-31 | BV51: =EDATE(BV50,InputC!$J$16)-1 -> 2035-03-31 | BW51: =EDATE(BW50,InputC!$J$16)-1 -> 2035-06-30 | BX51: =EDATE(BX50,InputC!$J$16)-1 -> 2035-09-30 | BY51: =EDATE(BY50,InputC!$J$16)-1 -> 2035-12-31 | BZ51: =EDATE(BZ50,InputC!$J$16)-1 -> 2036-03-31 | CA51: =EDATE(CA50,InputC!$J$16)-1 -> 2036-06-30 | CB51: =EDATE(CB50,InputC!$J$16)-1 -> 2036-09-30 | CC51: =EDATE(CC50,InputC!$J$16)-1 -> 2036-12-31 | CD51: =EDATE(CD50,InputC!$J$16)-1 -> 2037-03-31 | CE51: =EDATE(CE50,InputC!$J$16)-1 -> 2037-06-30 | CF51: =EDATE(CF50,InputC!$J$16)-1 -> 2037-09-30 | CG51: =EDATE(CG50,InputC!$J$16)-1 -> 2037-12-31 | CH51: =EDATE(CH50,InputC!$J$16)-1 -> 2038-03-31 | CI51: =EDATE(CI50,InputC!$J$16)-1 -> 2038-06-30 | CJ51: =EDATE(CJ50,InputC!$J$16)-1 -> 2038-09-30 | CK51: =EDATE(CK50,InputC!$J$16)-1 -> 2038-12-31 | CL51: =EDATE(CL50,InputC!$J$16)-1 -> 2039-03-31 | CM51: =EDATE(CM50,InputC!$J$16)-1 -> 2039-06-30 | CN51: =EDATE(CN50,InputC!$J$16)-1 -> 2039-09-30 | CO51: =EDATE(CO50,InputC!$J$16)-1 -> 2039-12-31 | CP51: =EDATE(CP50,InputC!$J$16)-1 -> 2040-03-31 | CQ51: =EDATE(CQ50,InputC!$J$16)-1 -> 2040-06-30 | CR51: =EDATE(CR50,InputC!$J$16)-1 -> 2040-09-30 | CS51: =EDATE(CS50,InputC!$J$16)-1 -> 2040-12-31 | CT51: =EDATE(CT50,InputC!$J$16)-1 -> 2041-03-31 | CU51: =EDATE(CU50,InputC!$J$16)-1 -> 2041-06-30 | CV51: =EDATE(CV50,InputC!$J$16)-1 -> 2041-09-30 | CW51: =EDATE(CW50,InputC!$J$16)-1 -> 2041-12-31 | CX51: =EDATE(CX50,InputC!$J$16)-1 -> 2042-03-31 | CY51: =EDATE(CY50,InputC!$J$16)-1 -> 2042-06-30 | CZ51: =EDATE(CZ50,InputC!$J$16)-1 -> 2042-09-30 | DA51: =EDATE(DA50,InputC!$J$16)-1 -> 2042-12-31 | DB51: =EDATE(DB50,InputC!$J$16)-1 -> 2043-03-31 | DC51: =EDATE(DC50,InputC!$J$16)-1 -> 2043-06-30 | DD51: =EDATE(DD50,InputC!$J$16)-1 -> 2043-09-30 | DE51: =EDATE(DE50,InputC!$J$16)-1 -> 2043-12-31 | DF51: =EDATE(DF50,InputC!$J$16)-1 -> 2044-03-31 | DG51: =EDATE(DG50,InputC!$J$16)-1 -> 2044-06-30 | DH51: =EDATE(DH50,InputC!$J$16)-1 -> 2044-09-30 | DI51: =EDATE(DI50,InputC!$J$16)-1 -> 2044-12-31 | DJ51: =EDATE(DJ50,InputC!$J$16)-1 -> 2045-03-31 | DK51: =EDATE(DK50,InputC!$J$16)-1 -> 2045-06-30 | DL51: =EDATE(DL50,InputC!$J$16)-1 -> 2045-09-30 | DM51: =EDATE(DM50,InputC!$J$16)-1 -> 2045-12-31 | DN51: =EDATE(DN50,InputC!$J$16)-1 -> 2046-03-31 | DO51: =EDATE(DO50,InputC!$J$16)-1 -> 2046-06-30 | DP51: =EDATE(DP50,InputC!$J$16)-1 -> 2046-09-30 | DQ51: =EDATE(DQ50,InputC!$J$16)-1 -> 2046-12-31 | DR51: =EDATE(DR50,InputC!$J$16)-1 -> 2047-03-31 | DS51: =EDATE(DS50,InputC!$J$16)-1 -> 2047-06-30 | DT51: =EDATE(DT50,InputC!$J$16)-1 -> 2047-09-30 | DU51: =EDATE(DU50,InputC!$J$16)-1 -> 2047-12-31 | DV51: =EDATE(DV50,InputC!$J$16)-1 -> 2048-03-31 | DW51: =EDATE(DW50,InputC!$J$16)-1 -> 2048-06-30 | DX51: =EDATE(DX50,InputC!$J$16)-1 -> 2048-09-30 | DY51: =EDATE(DY50,InputC!$J$16)-1 -> 2048-12-31 | DZ51: =EDATE(DZ50,InputC!$J$16)-1 -> 2049-03-31 | EA51: =EDATE(EA50,InputC!$J$16)-1 -> 2049-06-30 | EB51: =EDATE(EB50,InputC!$J$16)-1 -> 2049-09-30 | EC51: =EDATE(EC50,InputC!$J$16)-1 -> 2049-12-31 | ED51: =EDATE(ED50,InputC!$J$16)-1 -> 2050-03-31 | EE51: =EDATE(EE50,InputC!$J$16)-1 -> 2050-06-30 | EF51: =EDATE(EF50,InputC!$J$16)-1 -> 2050-09-30 | EG51: =EDATE(EG50,InputC!$J$16)-1 -> 2050-12-31 | EH51: =EDATE(EH50,InputC!$J$16)-1 -> 2051-03-31 | EI51: =EDATE(EI50,InputC!$J$16)-1 -> 2051-06-30 | EJ51: =EDATE(EJ50,InputC!$J$16)-1 -> 2051-09-30 | EK51: =EDATE(EK50,InputC!$J$16)-1 -> 2051-12-31 | EL51: =EDATE(EL50,InputC!$J$16)-1 -> 2052-03-31 | EM51: =EDATE(EM50,InputC!$J$16)-1 -> 2052-06-30 | EN51: =EDATE(EN50,InputC!$J$16)-1 -> 2052-09-30 | EO51: =EDATE(EO50,InputC!$J$16)-1 -> 2052-12-31 | EP51: =EDATE(EP50,InputC!$J$16)-1 -> 2053-03-31 | EQ51: =EDATE(EQ50,InputC!$J$16)-1 -> 2053-06-30 | ER51: =EDATE(ER50,InputC!$J$16)-1 -> 2053-09-30 | ES51: =EDATE(ES50,InputC!$J$16)-1 -> 2053-12-31 | ET51: =EDATE(ET50,InputC!$J$16)-1 -> 2054-03-31 | EU51: =EDATE(EU50,InputC!$J$16)-1 -> 2054-06-30 | EV51: =EDATE(EV50,InputC!$J$16)-1 -> 2054-09-30 | EW51: =EDATE(EW50,InputC!$J$16)-1 -> 2054-12-31 | EX51: =EDATE(EX50,InputC!$J$16)-1 -> 2055-03-31 | EY51: =EDATE(EY50,InputC!$J$16)-1 -> 2055-06-30 | EZ51: =EDATE(EZ50,InputC!$J$16)-1 -> 2055-09-30 | FA51: =EDATE(FA50,InputC!$J$16)-1 -> 2055-12-31 | FB51: =EDATE(FB50,InputC!$J$16)-1 -> 2056-03-31 | FC51: =EDATE(FC50,InputC!$J$16)-1 -> 2056-06-30 | FD51: =EDATE(FD50,InputC!$J$16)-1 -> 2056-09-30 | FE51: =EDATE(FE50,InputC!$J$16)-1 -> 2056-12-31 | FF51: =EDATE(FF50,InputC!$J$16)-1 -> 2057-03-31 | FG51: =EDATE(FG50,InputC!$J$16)-1 -> 2057-06-30 | FH51: =EDATE(FH50,InputC!$J$16)-1 -> 2057-09-30 | FI51: =EDATE(FI50,InputC!$J$16)-1 -> 2057-12-31 | FJ51: =EDATE(FJ50,InputC!$J$16)-1 -> 2058-03-31 | FK51: =EDATE(FK50,InputC!$J$16)-1 -> 2058-06-30 | FL51: =EDATE(FL50,InputC!$J$16)-1 -> 2058-09-30 | FM51: =EDATE(FM50,InputC!$J$16)-1 -> 2058-12-31 | FN51: =EDATE(FN50,InputC!$J$16)-1 -> 2059-03-31 | FO51: =EDATE(FO50,InputC!$J$16)-1 -> 2059-06-30 | FP51: =EDATE(FP50,InputC!$J$16)-1 -> 2059-09-30 | FQ51: =EDATE(FQ50,InputC!$J$16)-1 -> 2059-12-31 | FR51: =EDATE(FR50,InputC!$J$16)-1 -> 2060-03-31 | FS51: =EDATE(FS50,InputC!$J$16)-1 -> 2060-06-30 | FT51: =EDATE(FT50,InputC!$J$16)-1 -> 2060-09-30 | FU51: =EDATE(FU50,InputC!$J$16)-1 -> 2060-12-31 | FV51: =EDATE(FV50,InputC!$J$16)-1 -> 2061-03-31 | FW51: =EDATE(FW50,InputC!$J$16)-1 -> 2061-06-30 | FX51: =EDATE(FX50,InputC!$J$16)-1 -> 2061-09-30 | FY51: =EDATE(FY50,InputC!$J$16)-1 -> 2061-12-31 | FZ51: =EDATE(FZ50,InputC!$J$16)-1 -> 2062-03-31 | GA51: =EDATE(GA50,InputC!$J$16)-1 -> 2062-06-30 | GB51: =EDATE(GB50,InputC!$J$16)-1 -> 2062-09-30 | GC51: =EDATE(GC50,InputC!$J$16)-1 -> 2062-12-31 | GD51: =EDATE(GD50,InputC!$J$16)-1 -> 2063-03-31 | GE51: =EDATE(GE50,InputC!$J$16)-1 -> 2063-06-30 | GF51: =EDATE(GF50,InputC!$J$16)-1 -> 2063-09-30 | GG51: =EDATE(GG50,InputC!$J$16)-1 -> 2063-12-31 | GH51: =EDATE(GH50,InputC!$J$16)-1 -> 2064-03-31 | GI51: =EDATE(GI50,InputC!$J$16)-1 -> 2064-06-30 | GJ51: =EDATE(GJ50,InputC!$J$16)-1 -> 2064-09-30 | GK51: =EDATE(GK50,InputC!$J$16)-1 -> 2064-12-31 | GL51: =EDATE(GL50,InputC!$J$16)-1 -> 2065-03-31 | GM51: =EDATE(GM50,InputC!$J$16)-1 -> 2065-06-30 | GN51: =EDATE(GN50,InputC!$J$16)-1 -> 2065-09-30 | GO51: =EDATE(GO50,InputC!$J$16)-1 -> 2065-12-31 | GP51: =EDATE(GP50,InputC!$J$16)-1 -> 2066-03-31 | GQ51: =EDATE(GQ50,InputC!$J$16)-1 -> 2066-06-30 | GR51: =EDATE(GR50,InputC!$J$16)-1 -> 2066-09-30 | GS51: =EDATE(GS50,InputC!$J$16)-1 -> 2066-12-31 | GT51: =EDATE(GT50,InputC!$J$16)-1 -> 2067-03-31 | GU51: =EDATE(GU50,InputC!$J$16)-1 -> 2067-06-30 | GV51: =EDATE(GV50,InputC!$J$16)-1 -> 2067-09-30 | GW51: =EDATE(GW50,InputC!$J$16)-1 -> 2067-12-31 | GX51: =EDATE(GX50,InputC!$J$16)-1 -> 2068-03-31 | GY51: =EDATE(GY50,InputC!$J$16)-1 -> 2068-06-30 | GZ51: =EDATE(GZ50,InputC!$J$16)-1 -> 2068-09-30 | HA51: =EDATE(HA50,InputC!$J$16)-1 -> 2068-12-31 | HB51: =EDATE(HB50,InputC!$J$16)-1 -> 2069-03-31 | HC51: =EDATE(HC50,InputC!$J$16)-1 -> 2069-06-30 | HD51: =EDATE(HD50,InputC!$J$16)-1 -> 2069-09-30 | HE51: =EDATE(HE50,InputC!$J$16)-1 -> 2069-12-31 | HF51: =EDATE(HF50,InputC!$J$16)-1 -> 2070-03-31 | HG51: =EDATE(HG50,InputC!$J$16)-1 -> 2070-06-30 | HH51: =EDATE(HH50,InputC!$J$16)-1 -> 2070-09-30 | HI51: =EDATE(HI50,InputC!$J$16)-1 -> 2070-12-31 | HJ51: =EDATE(HJ50,InputC!$J$16)-1 -> 2071-03-31 | HK51: =EDATE(HK50,InputC!$J$16)-1 -> 2071-06-30 | HL51: =EDATE(HL50,InputC!$J$16)-1 -> 2071-09-30 | HM51: =EDATE(HM50,InputC!$J$16)-1 -> 2071-12-31 | HN51: =EDATE(HN50,InputC!$J$16)-1 -> 2072-03-31 | HO51: =EDATE(HO50,InputC!$J$16)-1 -> 2072-06-30 | HP51: =EDATE(HP50,InputC!$J$16)-1 -> 2072-09-30 | HQ51: =EDATE(HQ50,InputC!$J$16)-1 -> 2072-12-31 | HR51: =EDATE(HR50,InputC!$J$16)-1 -> 2073-03-31 | HS51: =EDATE(HS50,InputC!$J$16)-1 -> 2073-06-30 | HT51: =EDATE(HT50,InputC!$J$16)-1 -> 2073-09-30 | HU51: =EDATE(HU50,InputC!$J$16)-1 -> 2073-12-31 | HV51: =EDATE(HV50,InputC!$J$16)-1 -> 2074-03-31 | HW51: =EDATE(HW50,InputC!$J$16)-1 -> 2074-06-30 | HX51: =EDATE(HX50,InputC!$J$16)-1 -> 2074-09-30 | HY51: =EDATE(HY50,InputC!$J$16)-1 -> 2074-12-31 | HZ51: =EDATE(HZ50,InputC!$J$16)-1 -> 2075-03-31 | IA51: =EDATE(IA50,InputC!$J$16)-1 -> 2075-06-30 | IB51: =EDATE(IB50,InputC!$J$16)-1 -> 2075-09-30 | IC51: =EDATE(IC50,InputC!$J$16)-1 -> 2075-12-31 | ID51: =EDATE(ID50,InputC!$J$16)-1 -> 2076-03-31 | IE51: =EDATE(IE50,InputC!$J$16)-1 -> 2076-06-30
C52: Year | I52: year | R52: =YEAR(R51) -> 2021 | S52: =YEAR(S51) -> 2021 | T52: 2021 | U52: 2021 | V52: 2022 | W52: 2022 | X52: 2022 | Y52: 2022 | Z52: 2023 | AA52: 2023 | AB52: 2023 | AC52: 2023 | AD52: 2024 | AE52: 2024 | AF52: 2024 | AG52: 2024 | AH52: 2025 | AI52: 2025 | AJ52: 2025 | AK52: 2025 | AL52: 2026 | AM52: 2026 | AN52: 2026 | AO52: 2026 | AP52: 2027 | AQ52: 2027 | AR52: 2027 | AS52: 2027 | AT52: 2028 | AU52: 2028 | AV52: 2028 | AW52: 2028 | AX52: 2029 | AY52: 2029 | AZ52: 2029 | BA52: 2029 | BB52: 2030 | BC52: 2030 | BD52: 2030 | BE52: 2030 | BF52: 2031 | BG52: 2031 | BH52: 2031 | BI52: 2031 | BJ52: 2032 | BK52: 2032 | BL52: 2032 | BM52: 2032 | BN52: 2033 | BO52: 2033 | BP52: 2033 | BQ52: 2033 | BR52: 2034 | BS52: 2034 | BT52: 2034 | BU52: 2034 | BV52: 2035 | BW52: 2035 | BX52: 2035 | BY52: 2035 | BZ52: 2036 | CA52: 2036 | CB52: 2036 | CC52: 2036 | CD52: 2037 | CE52: =YEAR(CE51) -> 2037 | CF52: 2037 | CG52: 2037 | CH52: 2038 | CI52: 2038 | CJ52: 2038 | CK52: 2038 | CL52: 2039 | CM52: 2039 | CN52: 2039 | CO52: 2039 | CP52: 2040 | CQ52: 2040 | CR52: 2040 | CS52: 2040 | CT52: 2041 | CU52: 2041 | CV52: 2041 | CW52: 2041 | CX52: 2042 | CY52: 2042 | CZ52: 2042 | DA52: 2042 | DB52: 2043 | DC52: 2043 | DD52: 2043 | DE52: 2043 | DF52: 2044 | DG52: 2044 | DH52: 2044 | DI52: 2044 | DJ52: 2045 | DK52: 2045 | DL52: 2045 | DM52: 2045 | DN52: 2046 | DO52: 2046 | DP52: 2046 | DQ52: 2046 | DR52: 2047 | DS52: 2047 | DT52: 2047 | DU52: 2047 | DV52: 2048 | DW52: 2048 | DX52: 2048 | DY52: 2048 | DZ52: 2049 | EA52: 2049 | EB52: 2049 | EC52: 2049 | ED52: 2050 | EE52: 2050 | EF52: 2050 | EG52: 2050 | EH52: 2051 | EI52: 2051 | EJ52: 2051 | EK52: 2051 | EL52: 2052 | EM52: 2052 | EN52: 2052 | EO52: 2052 | EP52: 2053 | EQ52: =YEAR(EQ51) -> 2053 | ER52: 2053 | ES52: 2053 | ET52: 2054 | EU52: 2054 | EV52: 2054 | EW52: 2054 | EX52: 2055 | EY52: 2055 | EZ52: 2055 | FA52: 2055 | FB52: 2056 | FC52: 2056 | FD52: 2056 | FE52: 2056 | FF52: 2057 | FG52: 2057 | FH52: 2057 | FI52: 2057 | FJ52: 2058 | FK52: 2058 | FL52: 2058 | FM52: 2058 | FN52: 2059 | FO52: 2059 | FP52: 2059 | FQ52: 2059 | FR52: 2060 | FS52: 2060 | FT52: 2060 | FU52: 2060 | FV52: 2061 | FW52: 2061 | FX52: 2061 | FY52: 2061 | FZ52: 2062 | GA52: 2062 | GB52: 2062 | GC52: 2062 | GD52: 2063 | GE52: 2063 | GF52: 2063 | GG52: 2063 | GH52: 2064 | GI52: 2064 | GJ52: 2064 | GK52: 2064 | GL52: 2065 | GM52: 2065 | GN52: 2065 | GO52: 2065 | GP52: 2066 | GQ52: 2066 | GR52: 2066 | GS52: 2066 | GT52: 2067 | GU52: 2067 | GV52: 2067 | GW52: 2067 | GX52: 2068 | GY52: 2068 | GZ52: 2068 | HA52: 2068 | HB52: 2069 | HC52: =YEAR(HC51) -> 2069 | HD52: 2069 | HE52: 2069 | HF52: 2070 | HG52: 2070 | HH52: 2070 | HI52: 2070 | HJ52: 2071 | HK52: 2071 | HL52: 2071 | HM52: 2071 | HN52: 2072 | HO52: 2072 | HP52: 2072 | HQ52: 2072 | HR52: 2073 | HS52: 2073 | HT52: 2073 | HU52: 2073 | HV52: 2074 | HW52: 2074 | HX52: 2074 | HY52: 2074 | HZ52: 2075 | IA52: 2075 | IB52: 2075 | IC52: 2075 | ID52: 2076 | IE52: 2076
C54: Quarter | I54: # | R54: =MONTH(R50)/InputC!$J$16+1 -> 1.333333333 | S54: =MONTH(S50)/InputC!$J$16+1 -> 2.333333333 | T54: =MONTH(T50)/InputC!$J$16+1 -> 3.333333333 | U54: =MONTH(U50)/InputC!$J$16+1 -> 4.333333333 | V54: =MONTH(V50)/InputC!$J$16+1 -> 1.333333333 | W54: =MONTH(W50)/InputC!$J$16+1 -> 2.333333333 | X54: =MONTH(X50)/InputC!$J$16+1 -> 3.333333333 | Y54: =MONTH(Y50)/InputC!$J$16+1 -> 4.333333333 | Z54: =MONTH(Z50)/InputC!$J$16+1 -> 1.333333333 | AA54: =MONTH(AA50)/InputC!$J$16+1 -> 2.333333333 | AB54: =MONTH(AB50)/InputC!$J$16+1 -> 3.333333333 | AC54: =MONTH(AC50)/InputC!$J$16+1 -> 4.333333333 | AD54: =MONTH(AD50)/InputC!$J$16+1 -> 1.333333333 | AE54: =MONTH(AE50)/InputC!$J$16+1 -> 2.333333333 | AF54: =MONTH(AF50)/InputC!$J$16+1 -> 3.333333333 | AG54: =MONTH(AG50)/InputC!$J$16+1 -> 4.333333333 | AH54: =MONTH(AH50)/InputC!$J$16+1 -> 1.333333333 | AI54: =MONTH(AI50)/InputC!$J$16+1 -> 2.333333333 | AJ54: =MONTH(AJ50)/InputC!$J$16+1 -> 3.333333333 | AK54: =MONTH(AK50)/InputC!$J$16+1 -> 4.333333333 | AL54: =MONTH(AL50)/InputC!$J$16+1 -> 1.333333333 | AM54: =MONTH(AM50)/InputC!$J$16+1 -> 2.333333333 | AN54: =MONTH(AN50)/InputC!$J$16+1 -> 3.333333333 | AO54: =MONTH(AO50)/InputC!$J$16+1 -> 4.333333333 | AP54: =MONTH(AP50)/InputC!$J$16+1 -> 1.333333333 | AQ54: =MONTH(AQ50)/InputC!$J$16+1 -> 2.333333333 | AR54: =MONTH(AR50)/InputC!$J$16+1 -> 3.333333333 | AS54: =MONTH(AS50)/InputC!$J$16+1 -> 4.333333333 | AT54: =MONTH(AT50)/InputC!$J$16+1 -> 1.333333333 | AU54: =MONTH(AU50)/InputC!$J$16+1 -> 2.333333333 | AV54: =MONTH(AV50)/InputC!$J$16+1 -> 3.333333333 | AW54: =MONTH(AW50)/InputC!$J$16+1 -> 4.333333333 | AX54: =MONTH(AX50)/InputC!$J$16+1 -> 1.333333333 | AY54: =MONTH(AY50)/InputC!$J$16+1 -> 2.333333333 | AZ54: =MONTH(AZ50)/InputC!$J$16+1 -> 3.333333333 | BA54: =MONTH(BA50)/InputC!$J$16+1 -> 4.333333333 | BB54: =MONTH(BB50)/InputC!$J$16+1 -> 1.333333333 | BC54: =MONTH(BC50)/InputC!$J$16+1 -> 2.333333333 | BD54: =MONTH(BD50)/InputC!$J$16+1 -> 3.333333333 | BE54: =MONTH(BE50)/InputC!$J$16+1 -> 4.333333333 | BF54: =MONTH(BF50)/InputC!$J$16+1 -> 1.333333333 | BG54: =MONTH(BG50)/InputC!$J$16+1 -> 2.333333333 | BH54: =MONTH(BH50)/InputC!$J$16+1 -> 3.333333333 | BI54: =MONTH(BI50)/InputC!$J$16+1 -> 4.333333333 | BJ54: =MONTH(BJ50)/InputC!$J$16+1 -> 1.333333333 | BK54: =MONTH(BK50)/InputC!$J$16+1 -> 2.333333333 | BL54: =MONTH(BL50)/InputC!$J$16+1 -> 3.333333333 | BM54: =MONTH(BM50)/InputC!$J$16+1 -> 4.333333333 | BN54: =MONTH(BN50)/InputC!$J$16+1 -> 1.333333333 | BO54: =MONTH(BO50)/InputC!$J$16+1 -> 2.333333333 | BP54: =MONTH(BP50)/InputC!$J$16+1 -> 3.333333333 | BQ54: =MONTH(BQ50)/InputC!$J$16+1 -> 4.333333333 | BR54: =MONTH(BR50)/InputC!$J$16+1 -> 1.333333333 | BS54: =MONTH(BS50)/InputC!$J$16+1 -> 2.333333333 | BT54: =MONTH(BT50)/InputC!$J$16+1 -> 3.333333333 | BU54: =MONTH(BU50)/InputC!$J$16+1 -> 4.333333333 | BV54: =MONTH(BV50)/InputC!$J$16+1 -> 1.333333333 | BW54: =MONTH(BW50)/InputC!$J$16+1 -> 2.333333333 | BX54: =MONTH(BX50)/InputC!$J$16+1 -> 3.333333333 | BY54: =MONTH(BY50)/InputC!$J$16+1 -> 4.333333333 | BZ54: =MONTH(BZ50)/InputC!$J$16+1 -> 1.333333333 | CA54: =MONTH(CA50)/InputC!$J$16+1 -> 2.333333333 | CB54: =MONTH(CB50)/InputC!$J$16+1 -> 3.333333333 | CC54: =MONTH(CC50)/InputC!$J$16+1 -> 4.333333333 | CD54: =MONTH(CD50)/InputC!$J$16+1 -> 1.333333333 | CE54: =MONTH(CE50)/InputC!$J$16+1 -> 2.333333333 | CF54: =MONTH(CF50)/InputC!$J$16+1 -> 3.333333333 | CG54: =MONTH(CG50)/InputC!$J$16+1 -> 4.333333333 | CH54: =MONTH(CH50)/InputC!$J$16+1 -> 1.333333333 | CI54: =MONTH(CI50)/InputC!$J$16+1 -> 2.333333333 | CJ54: =MONTH(CJ50)/InputC!$J$16+1 -> 3.333333333 | CK54: =MONTH(CK50)/InputC!$J$16+1 -> 4.333333333 | CL54: =MONTH(CL50)/InputC!$J$16+1 -> 1.333333333 | CM54: =MONTH(CM50)/InputC!$J$16+1 -> 2.333333333 | CN54: =MONTH(CN50)/InputC!$J$16+1 -> 3.333333333 | CO54: =MONTH(CO50)/InputC!$J$16+1 -> 4.333333333 | CP54: =MONTH(CP50)/InputC!$J$16+1 -> 1.333333333 | CQ54: =MONTH(CQ50)/InputC!$J$16+1 -> 2.333333333 | CR54: =MONTH(CR50)/InputC!$J$16+1 -> 3.333333333 | CS54: =MONTH(CS50)/InputC!$J$16+1 -> 4.333333333 | CT54: =MONTH(CT50)/InputC!$J$16+1 -> 1.333333333 | CU54: =MONTH(CU50)/InputC!$J$16+1 -> 2.333333333 | CV54: =MONTH(CV50)/InputC!$J$16+1 -> 3.333333333 | CW54: =MONTH(CW50)/InputC!$J$16+1 -> 4.333333333 | CX54: =MONTH(CX50)/InputC!$J$16+1 -> 1.333333333 | CY54: =MONTH(CY50)/InputC!$J$16+1 -> 2.333333333 | CZ54: =MONTH(CZ50)/InputC!$J$16+1 -> 3.333333333 | DA54: =MONTH(DA50)/InputC!$J$16+1 -> 4.333333333 | DB54: =MONTH(DB50)/InputC!$J$16+1 -> 1.333333333 | DC54: =MONTH(DC50)/InputC!$J$16+1 -> 2.333333333 | DD54: =MONTH(DD50)/InputC!$J$16+1 -> 3.333333333 | DE54: =MONTH(DE50)/InputC!$J$16+1 -> 4.333333333 | DF54: =MONTH(DF50)/InputC!$J$16+1 -> 1.333333333 | DG54: =MONTH(DG50)/InputC!$J$16+1 -> 2.333333333 | DH54: =MONTH(DH50)/InputC!$J$16+1 -> 3.333333333 | DI54: =MONTH(DI50)/InputC!$J$16+1 -> 4.333333333 | DJ54: =MONTH(DJ50)/InputC!$J$16+1 -> 1.333333333 | DK54: =MONTH(DK50)/InputC!$J$16+1 -> 2.333333333 | DL54: =MONTH(DL50)/InputC!$J$16+1 -> 3.333333333 | DM54: =MONTH(DM50)/InputC!$J$16+1 -> 4.333333333 | DN54: =MONTH(DN50)/InputC!$J$16+1 -> 1.333333333 | DO54: =MONTH(DO50)/InputC!$J$16+1 -> 2.333333333 | DP54: =MONTH(DP50)/InputC!$J$16+1 -> 3.333333333 | DQ54: =MONTH(DQ50)/InputC!$J$16+1 -> 4.333333333 | DR54: =MONTH(DR50)/InputC!$J$16+1 -> 1.333333333 | DS54: =MONTH(DS50)/InputC!$J$16+1 -> 2.333333333 | DT54: =MONTH(DT50)/InputC!$J$16+1 -> 3.333333333 | DU54: =MONTH(DU50)/InputC!$J$16+1 -> 4.333333333 | DV54: =MONTH(DV50)/InputC!$J$16+1 -> 1.333333333 | DW54: =MONTH(DW50)/InputC!$J$16+1 -> 2.333333333 | DX54: =MONTH(DX50)/InputC!$J$16+1 -> 3.333333333 | DY54: =MONTH(DY50)/InputC!$J$16+1 -> 4.333333333 | DZ54: =MONTH(DZ50)/InputC!$J$16+1 -> 1.333333333 | EA54: =MONTH(EA50)/InputC!$J$16+1 -> 2.333333333 | EB54: =MONTH(EB50)/InputC!$J$16+1 -> 3.333333333 | EC54: =MONTH(EC50)/InputC!$J$16+1 -> 4.333333333 | ED54: =MONTH(ED50)/InputC!$J$16+1 -> 1.333333333 | EE54: =MONTH(EE50)/InputC!$J$16+1 -> 2.333333333 | EF54: =MONTH(EF50)/InputC!$J$16+1 -> 3.333333333 | EG54: =MONTH(EG50)/InputC!$J$16+1 -> 4.333333333 | EH54: =MONTH(EH50)/InputC!$J$16+1 -> 1.333333333 | EI54: =MONTH(EI50)/InputC!$J$16+1 -> 2.333333333 | EJ54: =MONTH(EJ50)/InputC!$J$16+1 -> 3.333333333 | EK54: =MONTH(EK50)/InputC!$J$16+1 -> 4.333333333 | EL54: =MONTH(EL50)/InputC!$J$16+1 -> 1.333333333 | EM54: =MONTH(EM50)/InputC!$J$16+1 -> 2.333333333 | EN54: =MONTH(EN50)/InputC!$J$16+1 -> 3.333333333 | EO54: =MONTH(EO50)/InputC!$J$16+1 -> 4.333333333 | EP54: =MONTH(EP50)/InputC!$J$16+1 -> 1.333333333 | EQ54: =MONTH(EQ50)/InputC!$J$16+1 -> 2.333333333 | ER54: =MONTH(ER50)/InputC!$J$16+1 -> 3.333333333 | ES54: =MONTH(ES50)/InputC!$J$16+1 -> 4.333333333 | ET54: =MONTH(ET50)/InputC!$J$16+1 -> 1.333333333 | EU54: =MONTH(EU50)/InputC!$J$16+1 -> 2.333333333 | EV54: =MONTH(EV50)/InputC!$J$16+1 -> 3.333333333 | EW54: =MONTH(EW50)/InputC!$J$16+1 -> 4.333333333 | EX54: =MONTH(EX50)/InputC!$J$16+1 -> 1.333333333 | EY54: =MONTH(EY50)/InputC!$J$16+1 -> 2.333333333 | EZ54: =MONTH(EZ50)/InputC!$J$16+1 -> 3.333333333 | FA54: =MONTH(FA50)/InputC!$J$16+1 -> 4.333333333 | FB54: =MONTH(FB50)/InputC!$J$16+1 -> 1.333333333 | FC54: =MONTH(FC50)/InputC!$J$16+1 -> 2.333333333 | FD54: =MONTH(FD50)/InputC!$J$16+1 -> 3.333333333 | FE54: =MONTH(FE50)/InputC!$J$16+1 -> 4.333333333 | FF54: =MONTH(FF50)/InputC!$J$16+1 -> 1.333333333 | FG54: =MONTH(FG50)/InputC!$J$16+1 -> 2.333333333 | FH54: =MONTH(FH50)/InputC!$J$16+1 -> 3.333333333 | FI54: =MONTH(FI50)/InputC!$J$16+1 -> 4.333333333 | FJ54: =MONTH(FJ50)/InputC!$J$16+1 -> 1.333333333 | FK54: =MONTH(FK50)/InputC!$J$16+1 -> 2.333333333 | FL54: =MONTH(FL50)/InputC!$J$16+1 -> 3.333333333 | FM54: =MONTH(FM50)/InputC!$J$16+1 -> 4.333333333 | FN54: =MONTH(FN50)/InputC!$J$16+1 -> 1.333333333 | FO54: =MONTH(FO50)/InputC!$J$16+1 -> 2.333333333 | FP54: =MONTH(FP50)/InputC!$J$16+1 -> 3.333333333 | FQ54: =MONTH(FQ50)/InputC!$J$16+1 -> 4.333333333 | FR54: =MONTH(FR50)/InputC!$J$16+1 -> 1.333333333 | FS54: =MONTH(FS50)/InputC!$J$16+1 -> 2.333333333 | FT54: =MONTH(FT50)/InputC!$J$16+1 -> 3.333333333 | FU54: =MONTH(FU50)/InputC!$J$16+1 -> 4.333333333 | FV54: =MONTH(FV50)/InputC!$J$16+1 -> 1.333333333 | FW54: =MONTH(FW50)/InputC!$J$16+1 -> 2.333333333 | FX54: =MONTH(FX50)/InputC!$J$16+1 -> 3.333333333 | FY54: =MONTH(FY50)/InputC!$J$16+1 -> 4.333333333 | FZ54: =MONTH(FZ50)/InputC!$J$16+1 -> 1.333333333 | GA54: =MONTH(GA50)/InputC!$J$16+1 -> 2.333333333 | GB54: =MONTH(GB50)/InputC!$J$16+1 -> 3.333333333 | GC54: =MONTH(GC50)/InputC!$J$16+1 -> 4.333333333 | GD54: =MONTH(GD50)/InputC!$J$16+1 -> 1.333333333 | GE54: =MONTH(GE50)/InputC!$J$16+1 -> 2.333333333 | GF54: =MONTH(GF50)/InputC!$J$16+1 -> 3.333333333 | GG54: =MONTH(GG50)/InputC!$J$16+1 -> 4.333333333 | GH54: =MONTH(GH50)/InputC!$J$16+1 -> 1.333333333 | GI54: =MONTH(GI50)/InputC!$J$16+1 -> 2.333333333 | GJ54: =MONTH(GJ50)/InputC!$J$16+1 -> 3.333333333 | GK54: =MONTH(GK50)/InputC!$J$16+1 -> 4.333333333 | GL54: =MONTH(GL50)/InputC!$J$16+1 -> 1.333333333 | GM54: =MONTH(GM50)/InputC!$J$16+1 -> 2.333333333 | GN54: =MONTH(GN50)/InputC!$J$16+1 -> 3.333333333 | GO54: =MONTH(GO50)/InputC!$J$16+1 -> 4.333333333 | GP54: =MONTH(GP50)/InputC!$J$16+1 -> 1.333333333 | GQ54: =MONTH(GQ50)/InputC!$J$16+1 -> 2.333333333 | GR54: =MONTH(GR50)/InputC!$J$16+1 -> 3.333333333 | GS54: =MONTH(GS50)/InputC!$J$16+1 -> 4.333333333 | GT54: =MONTH(GT50)/InputC!$J$16+1 -> 1.333333333 | GU54: =MONTH(GU50)/InputC!$J$16+1 -> 2.333333333 | GV54: =MONTH(GV50)/InputC!$J$16+1 -> 3.333333333 | GW54: =MONTH(GW50)/InputC!$J$16+1 -> 4.333333333 | GX54: =MONTH(GX50)/InputC!$J$16+1 -> 1.333333333 | GY54: =MONTH(GY50)/InputC!$J$16+1 -> 2.333333333 | GZ54: =MONTH(GZ50)/InputC!$J$16+1 -> 3.333333333 | HA54: =MONTH(HA50)/InputC!$J$16+1 -> 4.333333333 | HB54: =MONTH(HB50)/InputC!$J$16+1 -> 1.333333333 | HC54: =MONTH(HC50)/InputC!$J$16+1 -> 2.333333333 | HD54: =MONTH(HD50)/InputC!$J$16+1 -> 3.333333333 | HE54: =MONTH(HE50)/InputC!$J$16+1 -> 4.333333333 | HF54: =MONTH(HF50)/InputC!$J$16+1 -> 1.333333333 | HG54: =MONTH(HG50)/InputC!$J$16+1 -> 2.333333333 | HH54: =MONTH(HH50)/InputC!$J$16+1 -> 3.333333333 | HI54: =MONTH(HI50)/InputC!$J$16+1 -> 4.333333333 | HJ54: =MONTH(HJ50)/InputC!$J$16+1 -> 1.333333333 | HK54: =MONTH(HK50)/InputC!$J$16+1 -> 2.333333333 | HL54: =MONTH(HL50)/InputC!$J$16+1 -> 3.333333333 | HM54: =MONTH(HM50)/InputC!$J$16+1 -> 4.333333333 | HN54: =MONTH(HN50)/InputC!$J$16+1 -> 1.333333333 | HO54: =MONTH(HO50)/InputC!$J$16+1 -> 2.333333333 | HP54: =MONTH(HP50)/InputC!$J$16+1 -> 3.333333333 | HQ54: =MONTH(HQ50)/InputC!$J$16+1 -> 4.333333333 | HR54: =MONTH(HR50)/InputC!$J$16+1 -> 1.333333333 | HS54: =MONTH(HS50)/InputC!$J$16+1 -> 2.333333333 | HT54: =MONTH(HT50)/InputC!$J$16+1 -> 3.333333333 | HU54: =MONTH(HU50)/InputC!$J$16+1 -> 4.333333333 | HV54: =MONTH(HV50)/InputC!$J$16+1 -> 1.333333333 | HW54: =MONTH(HW50)/InputC!$J$16+1 -> 2.333333333 | HX54: =MONTH(HX50)/InputC!$J$16+1 -> 3.333333333 | HY54: =MONTH(HY50)/InputC!$J$16+1 -> 4.333333333 | HZ54: =MONTH(HZ50)/InputC!$J$16+1 -> 1.333333333 | IA54: =MONTH(IA50)/InputC!$J$16+1 -> 2.333333333 | IB54: =MONTH(IB50)/InputC!$J$16+1 -> 3.333333333 | IC54: =MONTH(IC50)/InputC!$J$16+1 -> 4.333333333 | ID54: =MONTH(ID50)/InputC!$J$16+1 -> 1.333333333 | IE54: =MONTH(IE50)/InputC!$J$16+1 -> 2.333333333
C56: Annual Counter | I56: # | R56: =Q56+(R52<>Q52)*1 -> 1 | S56: =R56+(S52<>R52)*1 -> 1 | T56: =S56+(T52<>S52)*1 -> 1 | U56: =T56+(U52<>T52)*1 -> 1 | V56: =U56+(V52<>U52)*1 -> 2 | W56: =V56+(W52<>V52)*1 -> 2 | X56: =W56+(X52<>W52)*1 -> 2 | Y56: =X56+(Y52<>X52)*1 -> 2 | Z56: =Y56+(Z52<>Y52)*1 -> 3 | AA56: =Z56+(AA52<>Z52)*1 -> 3 | AB56: =AA56+(AB52<>AA52)*1 -> 3 | AC56: =AB56+(AC52<>AB52)*1 -> 3 | AD56: =AC56+(AD52<>AC52)*1 -> 4 | AE56: =AD56+(AE52<>AD52)*1 -> 4 | AF56: =AE56+(AF52<>AE52)*1 -> 4 | AG56: =AF56+(AG52<>AF52)*1 -> 4 | AH56: =AG56+(AH52<>AG52)*1 -> 5 | AI56: =AH56+(AI52<>AH52)*1 -> 5 | AJ56: =AI56+(AJ52<>AI52)*1 -> 5 | AK56: =AJ56+(AK52<>AJ52)*1 -> 5 | AL56: =AK56+(AL52<>AK52)*1 -> 6 | AM56: =AL56+(AM52<>AL52)*1 -> 6 | AN56: =AM56+(AN52<>AM52)*1 -> 6 | AO56: =AN56+(AO52<>AN52)*1 -> 6 | AP56: =AO56+(AP52<>AO52)*1 -> 7 | AQ56: =AP56+(AQ52<>AP52)*1 -> 7 | AR56: =AQ56+(AR52<>AQ52)*1 -> 7 | AS56: =AR56+(AS52<>AR52)*1 -> 7 | AT56: =AS56+(AT52<>AS52)*1 -> 8 | AU56: =AT56+(AU52<>AT52)*1 -> 8 | AV56: =AU56+(AV52<>AU52)*1 -> 8 | AW56: =AV56+(AW52<>AV52)*1 -> 8 | AX56: =AW56+(AX52<>AW52)*1 -> 9 | AY56: =AX56+(AY52<>AX52)*1 -> 9 | AZ56: =AY56+(AZ52<>AY52)*1 -> 9 | BA56: =AZ56+(BA52<>AZ52)*1 -> 9 | BB56: =BA56+(BB52<>BA52)*1 -> 10 | BC56: =BB56+(BC52<>BB52)*1 -> 10 | BD56: =BC56+(BD52<>BC52)*1 -> 10 | BE56: =BD56+(BE52<>BD52)*1 -> 10 | BF56: =BE56+(BF52<>BE52)*1 -> 11 | BG56: =BF56+(BG52<>BF52)*1 -> 11 | BH56: =BG56+(BH52<>BG52)*1 -> 11 | BI56: =BH56+(BI52<>BH52)*1 -> 11 | BJ56: =BI56+(BJ52<>BI52)*1 -> 12 | BK56: =BJ56+(BK52<>BJ52)*1 -> 12 | BL56: =BK56+(BL52<>BK52)*1 -> 12 | BM56: =BL56+(BM52<>BL52)*1 -> 12 | BN56: =BM56+(BN52<>BM52)*1 -> 13 | BO56: =BN56+(BO52<>BN52)*1 -> 13 | BP56: =BO56+(BP52<>BO52)*1 -> 13 | BQ56: =BP56+(BQ52<>BP52)*1 -> 13 | BR56: =BQ56+(BR52<>BQ52)*1 -> 14 | BS56: =BR56+(BS52<>BR52)*1 -> 14 | BT56: =BS56+(BT52<>BS52)*1 -> 14 | BU56: =BT56+(BU52<>BT52)*1 -> 14 | BV56: =BU56+(BV52<>BU52)*1 -> 15 | BW56: =BV56+(BW52<>BV52)*1 -> 15 | BX56: =BW56+(BX52<>BW52)*1 -> 15 | BY56: =BX56+(BY52<>BX52)*1 -> 15 | BZ56: =BY56+(BZ52<>BY52)*1 -> 16 | CA56: =BZ56+(CA52<>BZ52)*1 -> 16 | CB56: =CA56+(CB52<>CA52)*1 -> 16 | CC56: =CB56+(CC52<>CB52)*1 -> 16 | CD56: =CC56+(CD52<>CC52)*1 -> 17 | CE56: =CD56+(CE52<>CD52)*1 -> 17 | CF56: =CE56+(CF52<>CE52)*1 -> 17 | CG56: =CF56+(CG52<>CF52)*1 -> 17 | CH56: =CG56+(CH52<>CG52)*1 -> 18 | CI56: =CH56+(CI52<>CH52)*1 -> 18 | CJ56: =CI56+(CJ52<>CI52)*1 -> 18 | CK56: =CJ56+(CK52<>CJ52)*1 -> 18 | CL56: =CK56+(CL52<>CK52)*1 -> 19 | CM56: =CL56+(CM52<>CL52)*1 -> 19 | CN56: =CM56+(CN52<>CM52)*1 -> 19 | CO56: =CN56+(CO52<>CN52)*1 -> 19 | CP56: =CO56+(CP52<>CO52)*1 -> 20 | CQ56: =CP56+(CQ52<>CP52)*1 -> 20 | CR56: =CQ56+(CR52<>CQ52)*1 -> 20 | CS56: =CR56+(CS52<>CR52)*1 -> 20 | CT56: =CS56+(CT52<>CS52)*1 -> 21 | CU56: =CT56+(CU52<>CT52)*1 -> 21 | CV56: =CU56+(CV52<>CU52)*1 -> 21 | CW56: =CV56+(CW52<>CV52)*1 -> 21 | CX56: =CW56+(CX52<>CW52)*1 -> 22 | CY56: =CX56+(CY52<>CX52)*1 -> 22 | CZ56: =CY56+(CZ52<>CY52)*1 -> 22 | DA56: =CZ56+(DA52<>CZ52)*1 -> 22 | DB56: =DA56+(DB52<>DA52)*1 -> 23 | DC56: =DB56+(DC52<>DB52)*1 -> 23 | DD56: =DC56+(DD52<>DC52)*1 -> 23 | DE56: =DD56+(DE52<>DD52)*1 -> 23 | DF56: =DE56+(DF52<>DE52)*1 -> 24 | DG56: =DF56+(DG52<>DF52)*1 -> 24 | DH56: =DG56+(DH52<>DG52)*1 -> 24 | DI56: =DH56+(DI52<>DH52)*1 -> 24 | DJ56: =DI56+(DJ52<>DI52)*1 -> 25 | DK56: =DJ56+(DK52<>DJ52)*1 -> 25 | DL56: =DK56+(DL52<>DK52)*1 -> 25 | DM56: =DL56+(DM52<>DL52)*1 -> 25 | DN56: =DM56+(DN52<>DM52)*1 -> 26 | DO56: =DN56+(DO52<>DN52)*1 -> 26 | DP56: =DO56+(DP52<>DO52)*1 -> 26 | DQ56: =DP56+(DQ52<>DP52)*1 -> 26 | DR56: =DQ56+(DR52<>DQ52)*1 -> 27 | DS56: =DR56+(DS52<>DR52)*1 -> 27 | DT56: =DS56+(DT52<>DS52)*1 -> 27 | DU56: =DT56+(DU52<>DT52)*1 -> 27 | DV56: =DU56+(DV52<>DU52)*1 -> 28 | DW56: =DV56+(DW52<>DV52)*1 -> 28 | DX56: =DW56+(DX52<>DW52)*1 -> 28 | DY56: =DX56+(DY52<>DX52)*1 -> 28 | DZ56: =DY56+(DZ52<>DY52)*1 -> 29 | EA56: =DZ56+(EA52<>DZ52)*1 -> 29 | EB56: =EA56+(EB52<>EA52)*1 -> 29 | EC56: =EB56+(EC52<>EB52)*1 -> 29 | ED56: =EC56+(ED52<>EC52)*1 -> 30 | EE56: =ED56+(EE52<>ED52)*1 -> 30 | EF56: =EE56+(EF52<>EE52)*1 -> 30 | EG56: =EF56+(EG52<>EF52)*1 -> 30 | EH56: =EG56+(EH52<>EG52)*1 -> 31 | EI56: =EH56+(EI52<>EH52)*1 -> 31 | EJ56: =EI56+(EJ52<>EI52)*1 -> 31 | EK56: =EJ56+(EK52<>EJ52)*1 -> 31 | EL56: =EK56+(EL52<>EK52)*1 -> 32 | EM56: =EL56+(EM52<>EL52)*1 -> 32 | EN56: =EM56+(EN52<>EM52)*1 -> 32 | EO56: =EN56+(EO52<>EN52)*1 -> 32 | EP56: =EO56+(EP52<>EO52)*1 -> 33 | EQ56: =EP56+(EQ52<>EP52)*1 -> 33 | ER56: =EQ56+(ER52<>EQ52)*1 -> 33 | ES56: =ER56+(ES52<>ER52)*1 -> 33 | ET56: =ES56+(ET52<>ES52)*1 -> 34 | EU56: =ET56+(EU52<>ET52)*1 -> 34 | EV56: =EU56+(EV52<>EU52)*1 -> 34 | EW56: =EV56+(EW52<>EV52)*1 -> 34 | EX56: =EW56+(EX52<>EW52)*1 -> 35 | EY56: =EX56+(EY52<>EX52)*1 -> 35 | EZ56: =EY56+(EZ52<>EY52)*1 -> 35 | FA56: =EZ56+(FA52<>EZ52)*1 -> 35 | FB56: =FA56+(FB52<>FA52)*1 -> 36 | FC56: =FB56+(FC52<>FB52)*1 -> 36 | FD56: =FC56+(FD52<>FC52)*1 -> 36 | FE56: =FD56+(FE52<>FD52)*1 -> 36 | FF56: =FE56+(FF52<>FE52)*1 -> 37 | FG56: =FF56+(FG52<>FF52)*1 -> 37 | FH56: =FG56+(FH52<>FG52)*1 -> 37 | FI56: =FH56+(FI52<>FH52)*1 -> 37 | FJ56: =FI56+(FJ52<>FI52)*1 -> 38 | FK56: =FJ56+(FK52<>FJ52)*1 -> 38 | FL56: =FK56+(FL52<>FK52)*1 -> 38 | FM56: =FL56+(FM52<>FL52)*1 -> 38 | FN56: =FM56+(FN52<>FM52)*1 -> 39 | FO56: =FN56+(FO52<>FN52)*1 -> 39 | FP56: =FO56+(FP52<>FO52)*1 -> 39 | FQ56: =FP56+(FQ52<>FP52)*1 -> 39 | FR56: =FQ56+(FR52<>FQ52)*1 -> 40 | FS56: =FR56+(FS52<>FR52)*1 -> 40 | FT56: =FS56+(FT52<>FS52)*1 -> 40 | FU56: =FT56+(FU52<>FT52)*1 -> 40 | FV56: =FU56+(FV52<>FU52)*1 -> 41 | FW56: =FV56+(FW52<>FV52)*1 -> 41 | FX56: =FW56+(FX52<>FW52)*1 -> 41 | FY56: =FX56+(FY52<>FX52)*1 -> 41 | FZ56: =FY56+(FZ52<>FY52)*1 -> 42 | GA56: =FZ56+(GA52<>FZ52)*1 -> 42 | GB56: =GA56+(GB52<>GA52)*1 -> 42 | GC56: =GB56+(GC52<>GB52)*1 -> 42 | GD56: =GC56+(GD52<>GC52)*1 -> 43 | GE56: =GD56+(GE52<>GD52)*1 -> 43 | GF56: =GE56+(GF52<>GE52)*1 -> 43 | GG56: =GF56+(GG52<>GF52)*1 -> 43 | GH56: =GG56+(GH52<>GG52)*1 -> 44 | GI56: =GH56+(GI52<>GH52)*1 -> 44 | GJ56: =GI56+(GJ52<>GI52)*1 -> 44 | GK56: =GJ56+(GK52<>GJ52)*1 -> 44 | GL56: =GK56+(GL52<>GK52)*1 -> 45 | GM56: =GL56+(GM52<>GL52)*1 -> 45 | GN56: =GM56+(GN52<>GM52)*1 -> 45 | GO56: =GN56+(GO52<>GN52)*1 -> 45 | GP56: =GO56+(GP52<>GO52)*1 -> 46 | GQ56: =GP56+(GQ52<>GP52)*1 -> 46 | GR56: =GQ56+(GR52<>GQ52)*1 -> 46 | GS56: =GR56+(GS52<>GR52)*1 -> 46 | GT56: =GS56+(GT52<>GS52)*1 -> 47 | GU56: =GT56+(GU52<>GT52)*1 -> 47 | GV56: =GU56+(GV52<>GU52)*1 -> 47 | GW56: =GV56+(GW52<>GV52)*1 -> 47 | GX56: =GW56+(GX52<>GW52)*1 -> 48 | GY56: =GX56+(GY52<>GX52)*1 -> 48 | GZ56: =GY56+(GZ52<>GY52)*1 -> 48 | HA56: =GZ56+(HA52<>GZ52)*1 -> 48 | HB56: =HA56+(HB52<>HA52)*1 -> 49 | HC56: =HB56+(HC52<>HB52)*1 -> 49 | HD56: =HC56+(HD52<>HC52)*1 -> 49 | HE56: =HD56+(HE52<>HD52)*1 -> 49 | HF56: =HE56+(HF52<>HE52)*1 -> 50 | HG56: =HF56+(HG52<>HF52)*1 -> 50 | HH56: =HG56+(HH52<>HG52)*1 -> 50 | HI56: =HH56+(HI52<>HH52)*1 -> 50 | HJ56: =HI56+(HJ52<>HI52)*1 -> 51 | HK56: =HJ56+(HK52<>HJ52)*1 -> 51 | HL56: =HK56+(HL52<>HK52)*1 -> 51 | HM56: =HL56+(HM52<>HL52)*1 -> 51 | HN56: =HM56+(HN52<>HM52)*1 -> 52 | HO56: =HN56+(HO52<>HN52)*1 -> 52 | HP56: =HO56+(HP52<>HO52)*1 -> 52 | HQ56: =HP56+(HQ52<>HP52)*1 -> 52 | HR56: =HQ56+(HR52<>HQ52)*1 -> 53 | HS56: =HR56+(HS52<>HR52)*1 -> 53 | HT56: =HS56+(HT52<>HS52)*1 -> 53 | HU56: =HT56+(HU52<>HT52)*1 -> 53 | HV56: =HU56+(HV52<>HU52)*1 -> 54 | HW56: =HV56+(HW52<>HV52)*1 -> 54 | HX56: =HW56+(HX52<>HW52)*1 -> 54 | HY56: =HX56+(HY52<>HX52)*1 -> 54 | HZ56: =HY56+(HZ52<>HY52)*1 -> 55 | IA56: =HZ56+(IA52<>HZ52)*1 -> 55 | IB56: =IA56+(IB52<>IA52)*1 -> 55 | IC56: =IB56+(IC52<>IB52)*1 -> 55 | ID56: =IC56+(ID52<>IC52)*1 -> 56 | IE56: =ID56+(IE52<>ID52)*1 -> 56
C57: Calendar Year End | I57: flag | R57: =(R56<>S56)*1 -> 0 | S57: =(S56<>T56)*1 -> 0 | T57: =(T56<>U56)*1 -> 0 | U57: =(U56<>V56)*1 -> 1 | V57: =(V56<>W56)*1 -> 0 | W57: =(W56<>X56)*1 -> 0 | X57: =(X56<>Y56)*1 -> 0 | Y57: =(Y56<>Z56)*1 -> 1 | Z57: =(Z56<>AA56)*1 -> 0 | AA57: =(AA56<>AB56)*1 -> 0 | AB57: =(AB56<>AC56)*1 -> 0 | AC57: =(AC56<>AD56)*1 -> 1 | AD57: =(AD56<>AE56)*1 -> 0 | AE57: =(AE56<>AF56)*1 -> 0 | AF57: =(AF56<>AG56)*1 -> 0 | AG57: =(AG56<>AH56)*1 -> 1 | AH57: =(AH56<>AI56)*1 -> 0 | AI57: =(AI56<>AJ56)*1 -> 0 | AJ57: =(AJ56<>AK56)*1 -> 0 | AK57: =(AK56<>AL56)*1 -> 1 | AL57: =(AL56<>AM56)*1 -> 0 | AM57: =(AM56<>AN56)*1 -> 0 | AN57: =(AN56<>AO56)*1 -> 0 | AO57: =(AO56<>AP56)*1 -> 1 | AP57: =(AP56<>AQ56)*1 -> 0 | AQ57: =(AQ56<>AR56)*1 -> 0 | AR57: =(AR56<>AS56)*1 -> 0 | AS57: =(AS56<>AT56)*1 -> 1 | AT57: =(AT56<>AU56)*1 -> 0 | AU57: =(AU56<>AV56)*1 -> 0 | AV57: =(AV56<>AW56)*1 -> 0 | AW57: =(AW56<>AX56)*1 -> 1 | AX57: =(AX56<>AY56)*1 -> 0 | AY57: =(AY56<>AZ56)*1 -> 0 | AZ57: =(AZ56<>BA56)*1 -> 0 | BA57: =(BA56<>BB56)*1 -> 1 | BB57: =(BB56<>BC56)*1 -> 0 | BC57: =(BC56<>BD56)*1 -> 0 | BD57: =(BD56<>BE56)*1 -> 0 | BE57: =(BE56<>BF56)*1 -> 1 | BF57: =(BF56<>BG56)*1 -> 0 | BG57: =(BG56<>BH56)*1 -> 0 | BH57: =(BH56<>BI56)*1 -> 0 | BI57: =(BI56<>BJ56)*1 -> 1 | BJ57: =(BJ56<>BK56)*1 -> 0 | BK57: =(BK56<>BL56)*1 -> 0 | BL57: =(BL56<>BM56)*1 -> 0 | BM57: =(BM56<>BN56)*1 -> 1 | BN57: =(BN56<>BO56)*1 -> 0 | BO57: =(BO56<>BP56)*1 -> 0 | BP57: =(BP56<>BQ56)*1 -> 0 | BQ57: =(BQ56<>BR56)*1 -> 1 | BR57: =(BR56<>BS56)*1 -> 0 | BS57: =(BS56<>BT56)*1 -> 0 | BT57: =(BT56<>BU56)*1 -> 0 | BU57: =(BU56<>BV56)*1 -> 1 | BV57: =(BV56<>BW56)*1 -> 0 | BW57: =(BW56<>BX56)*1 -> 0 | BX57: =(BX56<>BY56)*1 -> 0 | BY57: =(BY56<>BZ56)*1 -> 1 | BZ57: =(BZ56<>CA56)*1 -> 0 | CA57: =(CA56<>CB56)*1 -> 0 | CB57: =(CB56<>CC56)*1 -> 0 | CC57: =(CC56<>CD56)*1 -> 1 | CD57: =(CD56<>CE56)*1 -> 0 | CE57: =(CE56<>CF56)*1 -> 0 | CF57: =(CF56<>CG56)*1 -> 0 | CG57: =(CG56<>CH56)*1 -> 1 | CH57: =(CH56<>CI56)*1 -> 0 | CI57: =(CI56<>CJ56)*1 -> 0 | CJ57: =(CJ56<>CK56)*1 -> 0 | CK57: =(CK56<>CL56)*1 -> 1 | CL57: =(CL56<>CM56)*1 -> 0 | CM57: =(CM56<>CN56)*1 -> 0 | CN57: =(CN56<>CO56)*1 -> 0 | CO57: =(CO56<>CP56)*1 -> 1 | CP57: =(CP56<>CQ56)*1 -> 0 | CQ57: =(CQ56<>CR56)*1 -> 0 | CR57: =(CR56<>CS56)*1 -> 0 | CS57: =(CS56<>CT56)*1 -> 1 | CT57: =(CT56<>CU56)*1 -> 0 | CU57: =(CU56<>CV56)*1 -> 0 | CV57: =(CV56<>CW56)*1 -> 0 | CW57: =(CW56<>CX56)*1 -> 1 | CX57: =(CX56<>CY56)*1 -> 0 | CY57: =(CY56<>CZ56)*1 -> 0 | CZ57: =(CZ56<>DA56)*1 -> 0 | DA57: =(DA56<>DB56)*1 -> 1 | DB57: =(DB56<>DC56)*1 -> 0 | DC57: =(DC56<>DD56)*1 -> 0 | DD57: =(DD56<>DE56)*1 -> 0 | DE57: =(DE56<>DF56)*1 -> 1 | DF57: =(DF56<>DG56)*1 -> 0 | DG57: =(DG56<>DH56)*1 -> 0 | DH57: =(DH56<>DI56)*1 -> 0 | DI57: =(DI56<>DJ56)*1 -> 1 | DJ57: =(DJ56<>DK56)*1 -> 0 | DK57: =(DK56<>DL56)*1 -> 0 | DL57: =(DL56<>DM56)*1 -> 0 | DM57: =(DM56<>DN56)*1 -> 1 | DN57: =(DN56<>DO56)*1 -> 0 | DO57: =(DO56<>DP56)*1 -> 0 | DP57: =(DP56<>DQ56)*1 -> 0 | DQ57: =(DQ56<>DR56)*1 -> 1 | DR57: =(DR56<>DS56)*1 -> 0 | DS57: =(DS56<>DT56)*1 -> 0 | DT57: =(DT56<>DU56)*1 -> 0 | DU57: =(DU56<>DV56)*1 -> 1 | DV57: =(DV56<>DW56)*1 -> 0 | DW57: =(DW56<>DX56)*1 -> 0 | DX57: =(DX56<>DY56)*1 -> 0 | DY57: =(DY56<>DZ56)*1 -> 1 | DZ57: =(DZ56<>EA56)*1 -> 0 | EA57: =(EA56<>EB56)*1 -> 0 | EB57: =(EB56<>EC56)*1 -> 0 | EC57: =(EC56<>ED56)*1 -> 1 | ED57: =(ED56<>EE56)*1 -> 0 | EE57: =(EE56<>EF56)*1 -> 0 | EF57: =(EF56<>EG56)*1 -> 0 | EG57: =(EG56<>EH56)*1 -> 1 | EH57: =(EH56<>EI56)*1 -> 0 | EI57: =(EI56<>EJ56)*1 -> 0 | EJ57: =(EJ56<>EK56)*1 -> 0 | EK57: =(EK56<>EL56)*1 -> 1 | EL57: =(EL56<>EM56)*1 -> 0 | EM57: =(EM56<>EN56)*1 -> 0 | EN57: =(EN56<>EO56)*1 -> 0 | EO57: =(EO56<>EP56)*1 -> 1 | EP57: =(EP56<>EQ56)*1 -> 0 | EQ57: =(EQ56<>ER56)*1 -> 0 | ER57: =(ER56<>ES56)*1 -> 0 | ES57: =(ES56<>ET56)*1 -> 1 | ET57: =(ET56<>EU56)*1 -> 0 | EU57: =(EU56<>EV56)*1 -> 0 | EV57: =(EV56<>EW56)*1 -> 0 | EW57: =(EW56<>EX56)*1 -> 1 | EX57: =(EX56<>EY56)*1 -> 0 | EY57: =(EY56<>EZ56)*1 -> 0 | EZ57: =(EZ56<>FA56)*1 -> 0 | FA57: =(FA56<>FB56)*1 -> 1 | FB57: =(FB56<>FC56)*1 -> 0 | FC57: =(FC56<>FD56)*1 -> 0 | FD57: =(FD56<>FE56)*1 -> 0 | FE57: =(FE56<>FF56)*1 -> 1 | FF57: =(FF56<>FG56)*1 -> 0 | FG57: =(FG56<>FH56)*1 -> 0 | FH57: =(FH56<>FI56)*1 -> 0 | FI57: =(FI56<>FJ56)*1 -> 1 | FJ57: =(FJ56<>FK56)*1 -> 0 | FK57: =(FK56<>FL56)*1 -> 0 | FL57: =(FL56<>FM56)*1 -> 0 | FM57: =(FM56<>FN56)*1 -> 1 | FN57: =(FN56<>FO56)*1 -> 0 | FO57: =(FO56<>FP56)*1 -> 0 | FP57: =(FP56<>FQ56)*1 -> 0 | FQ57: =(FQ56<>FR56)*1 -> 1 | FR57: =(FR56<>FS56)*1 -> 0 | FS57: =(FS56<>FT56)*1 -> 0 | FT57: =(FT56<>FU56)*1 -> 0 | FU57: =(FU56<>FV56)*1 -> 1 | FV57: =(FV56<>FW56)*1 -> 0 | FW57: =(FW56<>FX56)*1 -> 0 | FX57: =(FX56<>FY56)*1 -> 0 | FY57: =(FY56<>FZ56)*1 -> 1 | FZ57: =(FZ56<>GA56)*1 -> 0 | GA57: =(GA56<>GB56)*1 -> 0 | GB57: =(GB56<>GC56)*1 -> 0 | GC57: =(GC56<>GD56)*1 -> 1 | GD57: =(GD56<>GE56)*1 -> 0 | GE57: =(GE56<>GF56)*1 -> 0 | GF57: =(GF56<>GG56)*1 -> 0 | GG57: =(GG56<>GH56)*1 -> 1 | GH57: =(GH56<>GI56)*1 -> 0 | GI57: =(GI56<>GJ56)*1 -> 0 | GJ57: =(GJ56<>GK56)*1 -> 0 | GK57: =(GK56<>GL56)*1 -> 1 | GL57: =(GL56<>GM56)*1 -> 0 | GM57: =(GM56<>GN56)*1 -> 0 | GN57: =(GN56<>GO56)*1 -> 0 | GO57: =(GO56<>GP56)*1 -> 1 | GP57: =(GP56<>GQ56)*1 -> 0 | GQ57: =(GQ56<>GR56)*1 -> 0 | GR57: =(GR56<>GS56)*1 -> 0 | GS57: =(GS56<>GT56)*1 -> 1 | GT57: =(GT56<>GU56)*1 -> 0 | GU57: =(GU56<>GV56)*1 -> 0 | GV57: =(GV56<>GW56)*1 -> 0 | GW57: =(GW56<>GX56)*1 -> 1 | GX57: =(GX56<>GY56)*1 -> 0 | GY57: =(GY56<>GZ56)*1 -> 0 | GZ57: =(GZ56<>HA56)*1 -> 0 | HA57: =(HA56<>HB56)*1 -> 1 | HB57: =(HB56<>HC56)*1 -> 0 | HC57: =(HC56<>HD56)*1 -> 0 | HD57: =(HD56<>HE56)*1 -> 0 | HE57: =(HE56<>HF56)*1 -> 1 | HF57: =(HF56<>HG56)*1 -> 0 | HG57: =(HG56<>HH56)*1 -> 0 | HH57: =(HH56<>HI56)*1 -> 0 | HI57: =(HI56<>HJ56)*1 -> 1 | HJ57: =(HJ56<>HK56)*1 -> 0 | HK57: =(HK56<>HL56)*1 -> 0 | HL57: =(HL56<>HM56)*1 -> 0 | HM57: =(HM56<>HN56)*1 -> 1 | HN57: =(HN56<>HO56)*1 -> 0 | HO57: =(HO56<>HP56)*1 -> 0 | HP57: =(HP56<>HQ56)*1 -> 0 | HQ57: =(HQ56<>HR56)*1 -> 1 | HR57: =(HR56<>HS56)*1 -> 0 | HS57: =(HS56<>HT56)*1 -> 0 | HT57: =(HT56<>HU56)*1 -> 0 | HU57: =(HU56<>HV56)*1 -> 1 | HV57: =(HV56<>HW56)*1 -> 0 | HW57: =(HW56<>HX56)*1 -> 0 | HX57: =(HX56<>HY56)*1 -> 0 | HY57: =(HY56<>HZ56)*1 -> 1 | HZ57: =(HZ56<>IA56)*1 -> 0 | IA57: =(IA56<>IB56)*1 -> 0 | IB57: =(IB56<>IC56)*1 -> 0 | IC57: =(IC56<>ID56)*1 -> 1 | ID57: =(ID56<>IE56)*1 -> 0 | IE57: =(IE56<>IF56)*1 -> 1
C58: Days in Period | I58: days | R58: =R51-R50+1 -> 90 | S58: =S51-S50+1 -> 91 | T58: 92 | U58: 92 | V58: 90 | W58: 91 | X58: 92 | Y58: 92 | Z58: 90 | AA58: 91 | AB58: 92 | AC58: 92 | AD58: 91 | AE58: 91 | AF58: 92 | AG58: 92 | AH58: 90 | AI58: 91 | AJ58: 92 | AK58: 92 | AL58: 90 | AM58: 91 | AN58: 92 | AO58: 92 | AP58: 90 | AQ58: 91 | AR58: 92 | AS58: 92 | AT58: 91 | AU58: 91 | AV58: 92 | AW58: 92 | AX58: 90 | AY58: 91 | AZ58: 92 | BA58: 92 | BB58: 90 | BC58: 91 | BD58: 92 | BE58: 92 | BF58: 90 | BG58: 91 | BH58: 92 | BI58: 92 | BJ58: 91 | BK58: 91 | BL58: 92 | BM58: 92 | BN58: 90 | BO58: 91 | BP58: 92 | BQ58: 92 | BR58: 90 | BS58: 91 | BT58: 92 | BU58: 92 | BV58: 90 | BW58: 91 | BX58: 92 | BY58: 92 | BZ58: 91 | CA58: 91 | CB58: 92 | CC58: 92 | CD58: 90 | CE58: =CE51-CE50+1 -> 91 | CF58: 92 | CG58: 92 | CH58: 90 | CI58: 91 | CJ58: 92 | CK58: 92 | CL58: 90 | CM58: 91 | CN58: 92 | CO58: 92 | CP58: 91 | CQ58: 91 | CR58: 92 | CS58: 92 | CT58: 90 | CU58: 91 | CV58: 92 | CW58: 92 | CX58: 90 | CY58: 91 | CZ58: 92 | DA58: 92 | DB58: 90 | DC58: 91 | DD58: 92 | DE58: 92 | DF58: 91 | DG58: 91 | DH58: 92 | DI58: 92 | DJ58: 90 | DK58: 91 | DL58: 92 | DM58: 92 | DN58: 90 | DO58: 91 | DP58: 92 | DQ58: 92 | DR58: 90 | DS58: 91 | DT58: 92 | DU58: 92 | DV58: 91 | DW58: 91 | DX58: 92 | DY58: 92 | DZ58: 90 | EA58: 91 | EB58: 92 | EC58: 92 | ED58: 90 | EE58: 91 | EF58: 92 | EG58: 92 | EH58: 90 | EI58: 91 | EJ58: 92 | EK58: 92 | EL58: 91 | EM58: 91 | EN58: 92 | EO58: 92 | EP58: 90 | EQ58: =EQ51-EQ50+1 -> 91 | ER58: 92 | ES58: 92 | ET58: 90 | EU58: 91 | EV58: 92 | EW58: 92 | EX58: 90 | EY58: 91 | EZ58: 92 | FA58: 92 | FB58: 91 | FC58: 91 | FD58: 92 | FE58: 92 | FF58: 90 | FG58: 91 | FH58: 92 | FI58: 92 | FJ58: 90 | FK58: 91 | FL58: 92 | FM58: 92 | FN58: 90 | FO58: 91 | FP58: 92 | FQ58: 92 | FR58: 91 | FS58: 91 | FT58: 92 | FU58: 92 | FV58: 90 | FW58: 91 | FX58: 92 | FY58: 92 | FZ58: 90 | GA58: 91 | GB58: 92 | GC58: 92 | GD58: 90 | GE58: 91 | GF58: 92 | GG58: 92 | GH58: 91 | GI58: 91 | GJ58: 92 | GK58: 92 | GL58: 90 | GM58: 91 | GN58: 92 | GO58: 92 | GP58: 90 | GQ58: 91 | GR58: 92 | GS58: 92 | GT58: 90 | GU58: 91 | GV58: 92 | GW58: 92 | GX58: 91 | GY58: 91 | GZ58: 92 | HA58: 92 | HB58: 90 | HC58: =HC51-HC50+1 -> 91 | HD58: 92 | HE58: 92 | HF58: 90 | HG58: 91 | HH58: 92 | HI58: 92 | HJ58: 90 | HK58: 91 | HL58: 92 | HM58: 92 | HN58: 91 | HO58: 91 | HP58: 92 | HQ58: 92 | HR58: 90 | HS58: 91 | HT58: 92 | HU58: 92 | HV58: 90 | HW58: 91 | HX58: 92 | HY58: 92 | HZ58: 90 | IA58: 91 | IB58: 92 | IC58: 92 | ID58: 91 | IE58: 91
C59: Months in Period | I59: months | R59: =ROUNDDOWN(R58/28,0) -> 3 | S59: =ROUNDDOWN(S58/28,0) -> 3 | T59: 3 | U59: 3 | V59: 3 | W59: 3 | X59: 3 | Y59: 3 | Z59: 3 | AA59: 3 | AB59: 3 | AC59: 3 | AD59: 3 | AE59: 3 | AF59: 3 | AG59: 3 | AH59: 3 | AI59: 3 | AJ59: 3 | AK59: 3 | AL59: 3 | AM59: 3 | AN59: 3 | AO59: 3 | AP59: 3 | AQ59: 3 | AR59: 3 | AS59: 3 | AT59: 3 | AU59: 3 | AV59: 3 | AW59: 3 | AX59: 3 | AY59: 3 | AZ59: 3 | BA59: 3 | BB59: 3 | BC59: 3 | BD59: 3 | BE59: 3 | BF59: 3 | BG59: 3 | BH59: 3 | BI59: 3 | BJ59: 3 | BK59: 3 | BL59: 3 | BM59: 3 | BN59: 3 | BO59: 3 | BP59: 3 | BQ59: 3 | BR59: 3 | BS59: 3 | BT59: 3 | BU59: 3 | BV59: 3 | BW59: 3 | BX59: 3 | BY59: 3 | BZ59: 3 | CA59: 3 | CB59: 3 | CC59: 3 | CD59: 3 | CE59: =ROUNDDOWN(CE58/28,0) -> 3 | CF59: 3 | CG59: 3 | CH59: 3 | CI59: 3 | CJ59: 3 | CK59: 3 | CL59: 3 | CM59: 3 | CN59: 3 | CO59: 3 | CP59: 3 | CQ59: 3 | CR59: 3 | CS59: 3 | CT59: 3 | CU59: 3 | CV59: 3 | CW59: 3 | CX59: 3 | CY59: 3 | CZ59: 3 | DA59: 3 | DB59: 3 | DC59: 3 | DD59: 3 | DE59: 3 | DF59: 3 | DG59: 3 | DH59: 3 | DI59: 3 | DJ59: 3 | DK59: 3 | DL59: 3 | DM59: 3 | DN59: 3 | DO59: 3 | DP59: 3 | DQ59: 3 | DR59: 3 | DS59: 3 | DT59: 3 | DU59: 3 | DV59: 3 | DW59: 3 | DX59: 3 | DY59: 3 | DZ59: 3 | EA59: 3 | EB59: 3 | EC59: 3 | ED59: 3 | EE59: 3 | EF59: 3 | EG59: 3 | EH59: 3 | EI59: 3 | EJ59: 3 | EK59: 3 | EL59: 3 | EM59: 3 | EN59: 3 | EO59: 3 | EP59: 3 | EQ59: =ROUNDDOWN(EQ58/28,0) -> 3 | ER59: 3 | ES59: 3 | ET59: 3 | EU59: 3 | EV59: 3 | EW59: 3 | EX59: 3 | EY59: 3 | EZ59: 3 | FA59: 3 | FB59: 3 | FC59: 3 | FD59: 3 | FE59: 3 | FF59: 3 | FG59: 3 | FH59: 3 | FI59: 3 | FJ59: 3 | FK59: 3 | FL59: 3 | FM59: 3 | FN59: 3 | FO59: 3 | FP59: 3 | FQ59: 3 | FR59: 3 | FS59: 3 | FT59: 3 | FU59: 3 | FV59: 3 | FW59: 3 | FX59: 3 | FY59: 3 | FZ59: 3 | GA59: 3 | GB59: 3 | GC59: 3 | GD59: 3 | GE59: 3 | GF59: 3 | GG59: 3 | GH59: 3 | GI59: 3 | GJ59: 3 | GK59: 3 | GL59: 3 | GM59: 3 | GN59: 3 | GO59: 3 | GP59: 3 | GQ59: 3 | GR59: 3 | GS59: 3 | GT59: 3 | GU59: 3 | GV59: 3 | GW59: 3 | GX59: 3 | GY59: 3 | GZ59: 3 | HA59: 3 | HB59: 3 | HC59: =ROUNDDOWN(HC58/28,0) -> 3 | HD59: 3 | HE59: 3 | HF59: 3 | HG59: 3 | HH59: 3 | HI59: 3 | HJ59: 3 | HK59: 3 | HL59: 3 | HM59: 3 | HN59: 3 | HO59: 3 | HP59: 3 | HQ59: 3 | HR59: 3 | HS59: 3 | HT59: 3 | HU59: 3 | HV59: 3 | HW59: 3 | HX59: 3 | HY59: 3 | HZ59: 3 | IA59: 3 | IB59: 3 | IC59: 3 | ID59: 3 | IE59: 3
A62: Construction
C64: Construction Start | I64: flag | K64: =InputC!L27 -> 2021-01-01 | P64: =SUM(R64:IE64) -> 1 | R64: =AND($K64>=R$17,$K64<=R$18)*1 -> 1 | S64: 0 | T64: 0 | U64: 0 | V64: 0 | W64: 0 | X64: 0 | Y64: 0 | Z64: 0 | AA64: 0 | AB64: 0 | AC64: 0 | AD64: 0 | AE64: 0 | AF64: 0 | AG64: 0 | AH64: 0 | AI64: 0 | AJ64: 0 | AK64: 0 | AL64: 0 | AM64: 0 | AN64: 0 | AO64: 0 | AP64: 0 | AQ64: 0 | AR64: 0 | AS64: 0 | AT64: 0 | AU64: 0 | AV64: 0 | AW64: 0 | AX64: 0 | AY64: 0 | AZ64: 0 | BA64: 0 | BB64: 0 | BC64: 0 | BD64: 0 | BE64: 0 | BF64: 0 | BG64: 0 | BH64: 0 | BI64: 0 | BJ64: 0 | BK64: 0 | BL64: 0 | BM64: 0 | BN64: 0 | BO64: 0 | BP64: 0 | BQ64: 0 | BR64: 0 | BS64: 0 | BT64: 0 | BU64: 0 | BV64: 0 | BW64: 0 | BX64: 0 | BY64: 0 | BZ64: 0 | CA64: 0 | CB64: 0 | CC64: 0 | CD64: =AND($K64>=CD$17,$K64<=CD$18)*1 -> 0 | CE64: 0 | CF64: 0 | CG64: 0 | CH64: 0 | CI64: 0 | CJ64: 0 | CK64: 0 | CL64: 0 | CM64: 0 | CN64: 0 | CO64: 0 | CP64: 0 | CQ64: 0 | CR64: 0 | CS64: 0 | CT64: 0 | CU64: 0 | CV64: 0 | CW64: 0 | CX64: 0 | CY64: 0 | CZ64: 0 | DA64: 0 | DB64: 0 | DC64: 0 | DD64: 0 | DE64: 0 | DF64: 0 | DG64: 0 | DH64: 0 | DI64: 0 | DJ64: 0 | DK64: 0 | DL64: 0 | DM64: 0 | DN64: 0 | DO64: 0 | DP64: 0 | DQ64: 0 | DR64: 0 | DS64: 0 | DT64: 0 | DU64: 0 | DV64: 0 | DW64: 0 | DX64: 0 | DY64: 0 | DZ64: 0 | EA64: 0 | EB64: 0 | EC64: 0 | ED64: 0 | EE64: 0 | EF64: 0 | EG64: 0 | EH64: 0 | EI64: 0 | EJ64: 0 | EK64: 0 | EL64: 0 | EM64: 0 | EN64: 0 | EO64: 0 | EP64: =AND($K64>=EP$17,$K64<=EP$18)*1 -> 0 | EQ64: 0 | ER64: 0 | ES64: 0 | ET64: 0 | EU64: 0 | EV64: 0 | EW64: 0 | EX64: 0 | EY64: 0 | EZ64: 0 | FA64: 0 | FB64: 0 | FC64: 0 | FD64: 0 | FE64: 0 | FF64: 0 | FG64: 0 | FH64: 0 | FI64: 0 | FJ64: 0 | FK64: 0 | FL64: 0 | FM64: 0 | FN64: 0 | FO64: 0 | FP64: 0 | FQ64: 0 | FR64: 0 | FS64: 0 | FT64: 0 | FU64: 0 | FV64: 0 | FW64: 0 | FX64: 0 | FY64: 0 | FZ64: 0 | GA64: 0 | GB64: 0 | GC64: 0 | GD64: 0 | GE64: 0 | GF64: 0 | GG64: 0 | GH64: 0 | GI64: 0 | GJ64: 0 | GK64: 0 | GL64: 0 | GM64: 0 | GN64: 0 | GO64: 0 | GP64: 0 | GQ64: 0 | GR64: 0 | GS64: 0 | GT64: 0 | GU64: 0 | GV64: 0 | GW64: 0 | GX64: 0 | GY64: 0 | GZ64: 0 | HA64: 0 | HB64: =AND($K64>=HB$17,$K64<=HB$18)*1 -> 0 | HC64: 0 | HD64: 0 | HE64: 0 | HF64: 0 | HG64: 0 | HH64: 0 | HI64: 0 | HJ64: 0 | HK64: 0 | HL64: 0 | HM64: 0 | HN64: 0 | HO64: 0 | HP64: 0 | HQ64: 0 | HR64: 0 | HS64: 0 | HT64: 0 | HU64: 0 | HV64: 0 | HW64: 0 | HX64: 0 | HY64: 0 | HZ64: 0 | IA64: 0 | IB64: 0 | IC64: 0 | ID64: 0 | IE64: 0
C65: Construction Period | I65: flag | P65: =SUM(R65:IE65) -> 18 | R65: =IF(AND(R$17>=$K64,R$18<=$K66),1,0) -> 1 | S65: 1 | T65: 1 | U65: 1 | V65: 1 | W65: 1 | X65: 1 | Y65: 1 | Z65: 1 | AA65: 1 | AB65: 1 | AC65: 1 | AD65: 1 | AE65: 1 | AF65: 1 | AG65: 1 | AH65: 1 | AI65: 1 | AJ65: 0 | AK65: 0 | AL65: 0 | AM65: 0 | AN65: 0 | AO65: 0 | AP65: 0 | AQ65: 0 | AR65: 0 | AS65: 0 | AT65: 0 | AU65: 0 | AV65: 0 | AW65: 0 | AX65: 0 | AY65: 0 | AZ65: 0 | BA65: 0 | BB65: 0 | BC65: 0 | BD65: 0 | BE65: 0 | BF65: 0 | BG65: 0 | BH65: 0 | BI65: 0 | BJ65: 0 | BK65: 0 | BL65: 0 | BM65: 0 | BN65: 0 | BO65: 0 | BP65: 0 | BQ65: 0 | BR65: 0 | BS65: 0 | BT65: 0 | BU65: 0 | BV65: 0 | BW65: 0 | BX65: 0 | BY65: 0 | BZ65: 0 | CA65: 0 | CB65: 0 | CC65: 0 | CD65: =IF(AND(CD$17>=$K64,CD$18<=$K66),1,0) -> 0 | CE65: 0 | CF65: 0 | CG65: 0 | CH65: 0 | CI65: 0 | CJ65: 0 | CK65: 0 | CL65: 0 | CM65: 0 | CN65: 0 | CO65: 0 | CP65: 0 | CQ65: 0 | CR65: 0 | CS65: 0 | CT65: 0 | CU65: 0 | CV65: 0 | CW65: 0 | CX65: 0 | CY65: 0 | CZ65: 0 | DA65: 0 | DB65: 0 | DC65: 0 | DD65: 0 | DE65: 0 | DF65: 0 | DG65: 0 | DH65: 0 | DI65: 0 | DJ65: 0 | DK65: 0 | DL65: 0 | DM65: 0 | DN65: 0 | DO65: 0 | DP65: 0 | DQ65: 0 | DR65: 0 | DS65: 0 | DT65: 0 | DU65: 0 | DV65: 0 | DW65: 0 | DX65: 0 | DY65: 0 | DZ65: 0 | EA65: 0 | EB65: 0 | EC65: 0 | ED65: 0 | EE65: 0 | EF65: 0 | EG65: 0 | EH65: 0 | EI65: 0 | EJ65: 0 | EK65: 0 | EL65: 0 | EM65: 0 | EN65: 0 | EO65: 0 | EP65: =IF(AND(EP$17>=$K64,EP$18<=$K66),1,0) -> 0 | EQ65: 0 | ER65: 0 | ES65: 0 | ET65: 0 | EU65: 0 | EV65: 0 | EW65: 0 | EX65: 0 | EY65: 0 | EZ65: 0 | FA65: 0 | FB65: 0 | FC65: 0 | FD65: 0 | FE65: 0 | FF65: 0 | FG65: 0 | FH65: 0 | FI65: 0 | FJ65: 0 | FK65: 0 | FL65: 0 | FM65: 0 | FN65: 0 | FO65: 0 | FP65: 0 | FQ65: 0 | FR65: 0 | FS65: 0 | FT65: 0 | FU65: 0 | FV65: 0 | FW65: 0 | FX65: 0 | FY65: 0 | FZ65: 0 | GA65: 0 | GB65: 0 | GC65: 0 | GD65: 0 | GE65: 0 | GF65: 0 | GG65: 0 | GH65: 0 | GI65: 0 | GJ65: 0 | GK65: 0 | GL65: 0 | GM65: 0 | GN65: 0 | GO65: 0 | GP65: 0 | GQ65: 0 | GR65: 0 | GS65: 0 | GT65: 0 | GU65: 0 | GV65: 0 | GW65: 0 | GX65: 0 | GY65: 0 | GZ65: 0 | HA65: 0 | HB65: =IF(AND(HB$17>=$K64,HB$18<=$K66),1,0) -> 0 | HC65: 0 | HD65: 0 | HE65: 0 | HF65: 0 | HG65: 0 | HH65: 0 | HI65: 0 | HJ65: 0 | HK65: 0 | HL65: 0 | HM65: 0 | HN65: 0 | HO65: 0 | HP65: 0 | HQ65: 0 | HR65: 0 | HS65: 0 | HT65: 0 | HU65: 0 | HV65: 0 | HW65: 0 | HX65: 0 | HY65: 0 | HZ65: 0 | IA65: 0 | IB65: 0 | IC65: 0 | ID65: 0 | IE65: 0
C66: Construction End | I66: flag | K66: =K12 -> 2022-06-30 | P66: =SUM(R66:IE66) -> 1 | R66: =AND($K66>=R$17,$K66<=R$18)*1 -> 0 | S66: 0 | T66: 0 | U66: 0 | V66: 0 | W66: 0 | X66: 0 | Y66: 0 | Z66: 0 | AA66: 0 | AB66: 0 | AC66: 0 | AD66: 0 | AE66: 0 | AF66: 0 | AG66: 0 | AH66: 0 | AI66: 1 | AJ66: 0 | AK66: 0 | AL66: 0 | AM66: 0 | AN66: 0 | AO66: 0 | AP66: 0 | AQ66: 0 | AR66: 0 | AS66: 0 | AT66: 0 | AU66: 0 | AV66: 0 | AW66: 0 | AX66: 0 | AY66: 0 | AZ66: 0 | BA66: 0 | BB66: 0 | BC66: 0 | BD66: 0 | BE66: 0 | BF66: 0 | BG66: 0 | BH66: 0 | BI66: 0 | BJ66: 0 | BK66: 0 | BL66: 0 | BM66: 0 | BN66: 0 | BO66: 0 | BP66: 0 | BQ66: 0 | BR66: 0 | BS66: 0 | BT66: 0 | BU66: 0 | BV66: 0 | BW66: 0 | BX66: 0 | BY66: 0 | BZ66: 0 | CA66: 0 | CB66: 0 | CC66: 0 | CD66: =AND($K66>=CD$17,$K66<=CD$18)*1 -> 0 | CE66: 0 | CF66: 0 | CG66: 0 | CH66: 0 | CI66: 0 | CJ66: 0 | CK66: 0 | CL66: 0 | CM66: 0 | CN66: 0 | CO66: 0 | CP66: 0 | CQ66: 0 | CR66: 0 | CS66: 0 | CT66: 0 | CU66: 0 | CV66: 0 | CW66: 0 | CX66: 0 | CY66: 0 | CZ66: 0 | DA66: 0 | DB66: 0 | DC66: 0 | DD66: 0 | DE66: 0 | DF66: 0 | DG66: 0 | DH66: 0 | DI66: 0 | DJ66: 0 | DK66: 0 | DL66: 0 | DM66: 0 | DN66: 0 | DO66: 0 | DP66: 0 | DQ66: 0 | DR66: 0 | DS66: 0 | DT66: 0 | DU66: 0 | DV66: 0 | DW66: 0 | DX66: 0 | DY66: 0 | DZ66: 0 | EA66: 0 | EB66: 0 | EC66: 0 | ED66: 0 | EE66: 0 | EF66: 0 | EG66: 0 | EH66: 0 | EI66: 0 | EJ66: 0 | EK66: 0 | EL66: 0 | EM66: 0 | EN66: 0 | EO66: 0 | EP66: =AND($K66>=EP$17,$K66<=EP$18)*1 -> 0 | EQ66: 0 | ER66: 0 | ES66: 0 | ET66: 0 | EU66: 0 | EV66: 0 | EW66: 0 | EX66: 0 | EY66: 0 | EZ66: 0 | FA66: 0 | FB66: 0 | FC66: 0 | FD66: 0 | FE66: 0 | FF66: 0 | FG66: 0 | FH66: 0 | FI66: 0 | FJ66: 0 | FK66: 0 | FL66: 0 | FM66: 0 | FN66: 0 | FO66: 0 | FP66: 0 | FQ66: 0 | FR66: 0 | FS66: 0 | FT66: 0 | FU66: 0 | FV66: 0 | FW66: 0 | FX66: 0 | FY66: 0 | FZ66: 0 | GA66: 0 | GB66: 0 | GC66: 0 | GD66: 0 | GE66: 0 | GF66: 0 | GG66: 0 | GH66: 0 | GI66: 0 | GJ66: 0 | GK66: 0 | GL66: 0 | GM66: 0 | GN66: 0 | GO66: 0 | GP66: 0 | GQ66: 0 | GR66: 0 | GS66: 0 | GT66: 0 | GU66: 0 | GV66: 0 | GW66: 0 | GX66: 0 | GY66: 0 | GZ66: 0 | HA66: 0 | HB66: =AND($K66>=HB$17,$K66<=HB$18)*1 -> 0 | HC66: 0 | HD66: 0 | HE66: 0 | HF66: 0 | HG66: 0 | HH66: 0 | HI66: 0 | HJ66: 0 | HK66: 0 | HL66: 0 | HM66: 0 | HN66: 0 | HO66: 0 | HP66: 0 | HQ66: 0 | HR66: 0 | HS66: 0 | HT66: 0 | HU66: 0 | HV66: 0 | HW66: 0 | HX66: 0 | HY66: 0 | HZ66: 0 | IA66: 0 | IB66: 0 | IC66: 0 | ID66: 0 | IE66: 0
A69: Operation
B71: ="" ->  | C71: Operations
